{"text_format":"1","workbook":"xlsx","n_sheets":52,"sheets":["SVK","Status","List","Gamma PuroPlus","Gamma DecoboardClassic","Gamma DecoboardPure","Gamma Ornimat","Gamma Colormat","Gamma ColorPlus","Gamma Touch","Pic PuroPlus","Pic DecoboardClassic","Pic DecoboardPure","Pic Ornimat","Pic Colormat","Pic ColorPlus","Pic Touch","Sjab PuroPlus","Sjab DecoboardClassic","Sjab DecoboardPure","Sjab Ornimat","Sjab Colormat","Sjab ColorPlus","Sjab Touch","Hand PuroPlus EN","Hand DecoboardClassic EN","Hand DecoboardPure EN","Hand Ornimat EN","Hand Colormat EN","Hand ColorPlus EN","Hand Touch EN","Hand PuroPlus NL","Hand DecoboardClassic NL","Hand DecoboardPure NL","Hand Ornimat NL","Hand Colormat NL","Hand ColorPlus  NL","Hand Touch NL","Hand PuroPlus FR","Hand DecoboardClassic FR","Hand DecoboardPure FR","Hand Ornimat FR","Hand Colormat FR","Hand ColorPlus FR","Hand Touch FR","Hand PuroPlus DE","Hand DecoboardClassic DE","Hand DecoboardPure DE","Hand Ornimat DE","Hand Colormat DE","Hand ColorPlus DE","Hand Touch DE"],"not_rendered":{"charts":0,"images":162,"macros":1,"external_links":0,"defined_names":47,"comments":0,"pivot_tables":0},"unopened":[],"bounds":{"document_bytes":16777216,"sheet_cells":100000,"rows_first":2000,"rows_last":500,"rows_between":2000,"halvings":0,"cell_chars":16384,"cell_head_chars":4096},"cells_cut":0,"cells_raw":0,"read":"row_number_cap","date_system":"1900"}

{"sheet":"SVK","index":0,"n_rows":7,"n_cols":26,"rows_kept":7,"cut":false,"hidden":false,"merged":[]}
[null,null,null,null,null,null,null,null,null,null,null,null,null,null,null,null,null,null,null,null,null,null,null,null,null,"DE"]
[null,null,null,null,null,null,null,null,null,null,null,null,null,null,null,null,null,null,null,null,null,null,null,null,null,"Touch"]
[null,null,null,null,null,null,null,null,null,null,null,null,null,null,null,null,null,null,null,null,null,null,null,null,null,"Möchten Sie die Daten vor dem Schließen kontrollieren?"]
[null,null,null,null,null,null,null,null,null,null,null,null,null,null,null,null,null,null,null,null,null,null,null,null,null,"Endkontrolle"]
[null,null,null,null,null,null,null,null,null,null,null,null,null,null,null,null,null,null,null,null,null,null,null,null,null,"Falsche Daten erkannt. Möchten Sie die falschen Daten ändern?"]
[null,null,null,null,null,null,null,null,null,null,null,null,null,null,null,null,null,null,null,null,null,null,null,null,null,"Falsche Data"]
[null,null,null,null,null,null,null,null,null,null,null,null,null,null,null,null,null,null,null,null,null,null,null,null,null,"Die Datei wird einschließlich falscher Daten gespeichert"]

{"sheet":"Status","index":1,"n_rows":1,"n_cols":2,"rows_kept":1,"cut":false,"hidden":true,"merged":[]}
[1,{"$f":"SUM(A1:A1100)","v":1}]

{"sheet":"List","index":2,"n_rows":8,"n_cols":6,"rows_kept":8,"cut":false,"hidden":true,"merged":[]}
["Bestellung"]
["Angebotsanfrage"]
["Lijst Off/Best."]
[]
[null,"Essentials","Classic"]
["Basic","Elements","Scripto"]
["Inspiration","Inspiration","Touch","Color Plus","Basic","Basic"]
["Decoboard","Ornimat","Colormat","Colorplus","Touch","Decoboard Pure"]

{"sheet":"Gamma PuroPlus","index":3,"n_rows":0,"n_cols":0,"rows_kept":0,"cut":false,"hidden":true,"merged":[[8,2,8,3],[8,6,8,8],[8,11,8,13]]}

{"sheet":"Gamma DecoboardClassic","index":4,"n_rows":0,"n_cols":0,"rows_kept":0,"cut":false,"hidden":true,"merged":[[8,2,8,3],[8,6,8,8],[8,11,8,13]]}

{"sheet":"Gamma DecoboardPure","index":5,"n_rows":15,"n_cols":8,"rows_kept":15,"cut":false,"hidden":true,"merged":[[8,2,8,3],[8,5,8,6],[8,9,8,10],[14,3,14,4],[14,5,14,6],[14,7,14,8],[14,9,14,10]]}
[]
[]
[]
[]
[]
[]
[]
[]
[]
[]
[]
[]
[]
[]
[null,null,null,"DPU01 Gale",null,"DPU02 Burst",null,"DPU03 Thunder"]

{"sheet":"Gamma Ornimat","index":6,"n_rows":0,"n_cols":0,"rows_kept":0,"cut":false,"hidden":true,"merged":[[8,2,8,3],[8,6,8,8],[8,11,8,13]]}

{"sheet":"Gamma Colormat","index":7,"n_rows":0,"n_cols":0,"rows_kept":0,"cut":false,"hidden":true,"merged":[[8,2,8,3],[8,6,8,8],[8,11,8,13]]}

{"sheet":"Gamma ColorPlus","index":8,"n_rows":0,"n_cols":0,"rows_kept":0,"cut":false,"hidden":true,"merged":[[8,2,8,3],[8,6,8,8],[8,11,8,13]]}

{"sheet":"Gamma Touch","index":9,"n_rows":0,"n_cols":0,"rows_kept":0,"cut":false,"hidden":true,"merged":[[8,2,8,3],[8,6,8,8],[8,11,8,13]]}

{"sheet":"Pic PuroPlus","index":10,"n_rows":13,"n_cols":14,"rows_kept":13,"cut":false,"hidden":true,"merged":[[12,2,12,7],[12,13,12,17],[1,1,3,1],[4,13,4,15],[8,1,11,1],[8,12,11,12],[0,12,3,12],[4,2,4,5]]}
[null,null,null,null,null,null,null,null,null,null,null,null,"Sens de ponçage S <= 3070 mm"]
[null,"Sens P <= 1220 mm"]
[]
[]
[null,null,"Fig. 1 Sens de ponçage S <= 3070 mm",null,null,null,null,null,null,null,null,null,null,"Fig. 2 Sens P  <= 1220 mm"]
[]
[]
[]
[null,"Sens P = 1220 mm",null,null,null,null,null,null,null,null,null,null,"Sens de ponçage S = 3070 mm"]
[]
[]
[]
[null,null,"Sens de ponçage S = 3070 mm\r\nFig. a Dimensions maximales horizontal",null,null,null,null,null,null,null,null,null,null,"Sens P = 1220 mm\r\nFig. b Dimensions maximales vertical"]

{"sheet":"Pic DecoboardClassic","index":11,"n_rows":13,"n_cols":14,"rows_kept":13,"cut":false,"hidden":true,"merged":[[8,12,11,12],[12,13,12,17],[1,1,3,1],[1,12,3,12],[4,2,4,6],[8,1,11,1],[4,13,4,15],[12,2,12,7]]}
[null,null,null,null,null,null,null,null,null,null,null,null,"Richting S <= 3070 mm"]
[null,"Direction P <= 1220 mm",null,null,null,null,null,null,null,null,null,null,"Direction S <= 3070 mm"]
[]
[]
[null,null,"Fig. 1 Direction S <= 3070 mm",null,null,null,null,null,null,null,null,null,null,"Fig. 2 Direction P <= 1220 mm"]
[]
[]
[]
[null,"Direction P = 1220 mm",null,null,null,null,null,null,null,null,null,null,"Direction S = 3070 mm"]
[]
[]
[]
[null,null,"Direction S = 3070 mm\r\nFig. a Maximal dimensions horizontal",null,null,null,null,null,null,null,null,null,null,"Direction P = 1220 mm\r\nFig. b Maximal dimensions vertical"]

{"sheet":"Pic DecoboardPure","index":12,"n_rows":13,"n_cols":14,"rows_kept":13,"cut":false,"hidden":true,"merged":[[12,2,12,7],[12,13,12,17],[4,13,4,16],[0,12,3,12],[1,1,3,1],[4,2,4,6],[8,1,11,1],[8,12,11,12]]}
[null,null,null,null,null,null,null,null,null,null,null,null,"Schuurrichting S <= 3070 mm"]
[null,"Richting P <= 1220 mm"]
[]
[]
[null,null,"Fig. 1 Schuurrichting S <= 3070 mm",null,null,null,null,null,null,null,null,null,null,"Fig. 2 Richting P <= 1220 mm"]
[]
[]
[]
[null,"Richting P = 1220 mm",null,null,null,null,null,null,null,null,null,null,"Schuurrichting S = 3070 mm"]
[]
[]
[]
[null,null,"Schuurrichting S = 3070 mm\r\nFig. a Maximale afmetingen horizontaal",null,null,null,null,null,null,null,null,null,null,"Richting P = 1220 mm\r\nFig. b Maximale afmetingen verticaall"]

{"sheet":"Pic Ornimat","index":13,"n_rows":13,"n_cols":14,"rows_kept":13,"cut":false,"hidden":true,"merged":[[12,2,12,7],[12,13,12,17],[1,1,3,1],[1,12,3,12],[4,2,4,6],[4,13,4,15],[8,1,11,1],[8,12,11,12]]}
[]
[null,"Sense P <= 1220 mm",null,null,null,null,null,null,null,null,null,null,"Sense S <= 3070 mm"]
[]
[]
[null,null,"Fig. 1 Sense S <= 3070 mm",null,null,null,null,null,null,null,null,null,null,"Fig. 2 Sense P <= 1220 mm"]
[]
[]
[]
[null,"Sense P = 1220 mm",null,null,null,null,null,null,null,null,null,null,"Sense S = 3070 mm"]
[]
[]
[]
[null,null,"Sense S = 3070 mm\r\nFig. a Illustration dimensions maximales",null,null,null,null,null,null,null,null,null,null,"Sense P = 1220 mm\r\nFig. b Dimensions maximales vertical"]

{"sheet":"Pic Colormat","index":14,"n_rows":13,"n_cols":14,"rows_kept":13,"cut":false,"hidden":true,"merged":[[12,2,12,7],[12,13,12,17],[1,1,3,1],[4,2,4,6],[4,13,4,15],[8,1,11,1],[8,12,11,12],[0,12,3,12]]}
[null,null,null,null,null,null,null,null,null,null,null,null,"Sanding Direction S <= 3050 mm"]
[null,"Direction P <= 1220 mm"]
[]
[]
[null,null,"Fig. 1 Sanding Direction S <= 3050 mm",null,null,null,null,null,null,null,null,null,null,"Fig. 2 Direction P <= 1220 mm"]
[]
[]
[]
[null,"Direction P = 1220 mm",null,null,null,null,null,null,null,null,null,null,"Sanding Direction S = 3050 mm"]
[]
[]
[]
[null,null,"Sanding Direction S = 3050 mm\r\nFig. a Maximal dimensions horizontal",null,null,null,null,null,null,null,null,null,null,"Direction P = 1220 mm\r\nFig. b Maximal dimensions vertical"]

{"sheet":"Pic ColorPlus","index":15,"n_rows":13,"n_cols":14,"rows_kept":13,"cut":false,"hidden":true,"merged":[[12,2,12,7],[12,13,12,17],[0,12,3,12],[1,1,3,1],[4,2,4,6],[4,13,4,15],[8,1,11,1],[8,12,11,12]]}
[null,null,null,null,null,null,null,null,null,null,null,null,"Schuurrichting S <= 3050 mm"]
[null,"Richting P <= 1220 mm"]
[]
[]
[null,null,"Fig. 1 Schuurrichting S <= 3050 mm",null,null,null,null,null,null,null,null,null,null,"Fig. 2 Richting P <= 1220 mm"]
[]
[]
[]
[null,"Richting P = 1220 mm",null,null,null,null,null,null,null,null,null,null,"Schuurrichting S = 3050 mm"]
[]
[]
[]
[null,null,"Schuurrichting S = 3050 mm\r\nFig. a Maximale afmetingen horizontaal",null,null,null,null,null,null,null,null,null,null,"Richting P = 1220 mm\r\nFig. b Maximale afmetingen verticaall"]

{"sheet":"Pic Touch","index":16,"n_rows":13,"n_cols":14,"rows_kept":13,"cut":false,"hidden":true,"merged":[[12,2,12,7],[12,13,12,17],[1,1,3,1],[1,12,3,12],[4,2,4,6],[4,13,4,15],[8,1,11,1],[8,12,11,12]]}
[null,null,null,null,null,null,null,null,null,null,null,null,"Richting S <= 3050 mm"]
[null,"Richtung P <= 1220 mm",null,null,null,null,null,null,null,null,null,null,"Richtung S <= 3050 mm"]
[]
[]
[null,null,"Fig. 1 Richtung S <= 3050 mm",null,null,null,null,null,null,null,null,null,null,"Fig. 2 Richtung P <= 1220 mm"]
[]
[]
[]
[null,"Richtung P = 1220 m",null,null,null,null,null,null,null,null,null,null,"Richtung S = 3050 mm"]
[]
[]
[]
[null,null,"Richtung S = 3050 mm\r\nFig. a Maximale Abmessungen horizontal",null,null,null,null,null,null,null,null,null,null,"Richtung P = 1220 mm\r\nFig. b Maximale Abmessungen vertikal"]

{"sheet":"Sjab PuroPlus","index":17,"n_rows":999,"n_cols":32,"rows_kept":999,"cut":false,"hidden":true,"merged":[[15,1,16,5],[12,4,12,5],[13,4,13,5],[13,7,13,8],[14,1,14,3],[14,4,14,5],[12,1,12,3],[1,3,1,9],[7,1,8,1],[7,3,7,9],[8,3,8,9],[10,4,10,5],[5,1,6,1],[5,3,5,9],[6,3,6,9],[10,1,10,3],[10,7,10,8],[5,11,13,11],[6,12,12,14],[3,1,4,1],[3,3,3,9],[4,3,4,9],[11,4,11,5],[11,1,11,3],[5,21,13,21],[14,22,15,28],[15,31,16,35],[14,12,14,15],[6,17,12,19],[14,17,14,20],[2,16,13,16],[3,30,13,30]]}
[]
[null,null,null,"FORMULAIRE DE COMMANDE PURO PLUS"]
[null,null,null,null,null,null,null,null,null,null,null,null,null,null,null,null,"Sens de ponçage S <= 3070 mm"]
[null,"Projet","Nom",null,null,null,null,null,null,null,null,null,null,null,null,null,null,null,null,null,null,null,null,null,null,null,null,null,null,null,"Sens de ponçage S = 3070 mm"]
[null,null,"Adresse"]
[null,"Entrepreneur","Nom",null,null,null,null,null,null,null,null,"Sens P <= 1220 mm",null,null,null,null,null,null,null,null,null,"Sens P = 1220 mm"]
[null,null,"Adresse"]
[null,"Commerçant","Nom"]
[null,null,"Adresse"]
[]
[null,"Surface totale",null,null,{"$f":"SUM(G19:G999)","v":0},null,null,"Demandes de prix/Commandes"]
[null,"Surface totale plaques < 0,5 m²",null,null,{"$f":"SUM(H19:H999)","v":0}]
[null,"Surface totale plaques > 0,5 m²",null,null,{"$f":"E11-E12","v":0}]
[]
[null,"Totale numbre des plaques",null,null,{"$f":"SUM(D19:D999)","v":0},null,null,null,null,null,null,null,"Fig. 1 Sens de ponçage S <= 3070 mm",null,null,null,null,"Fig. 2 Sens P <= 1220 mm",null,null,null,null,"Sens de ponçage S = 3070 mm\r\nFig. a Dimensions maximales horizontal"]
[null,"RENSEIGNER LES DIMENSIONS EN MM !!",null,null,null,null,null,null,null,null,null,null,null,null,null,null,null,null,null,null,null,null,null,null,null,null,null,null,null,null,null,"Sens P = 1220 mm\r\nFig. b Dimensions maximales vertical"]
[]
["Ligne","Sens de ponçage S (mm)","Sens P (mm)","Nombre","Marquage de plaque","m²/pièce","m² Totale","< 0,5 m²","Pallete nr.","Remarques"]
[1,null,null,null,null,{"$f":"IF(D19<1,0,(B19/1000)*(C19/1000))","v":0},{"$f":"(B19/1000)*(C19/1000)*D19","v":0},{"$f":"IF(F19<0.5,G19,0)","v":0},null,null,null,null,null,{"$f":"SUM(M19:M999)","v":0}]
[{"$f":"IF(B20>0,ROW(A20)-18,\"\")","v":""},null,null,null,null,{"$f":"IF(D20<1,0,(B20/1000)*(C20/1000))","v":0},{"$f":"(B20/1000)*(C20/1000)*D20","v":0},{"$f":"IF(F20<0.5,G20,0)","v":0}]
["",null,null,null,null,0,0,0]
["",null,null,null,null,0,0,0]
["",null,null,null,null,0,0,0]
["",null,null,null,null,0,0,0]
["",null,null,null,null,0,0,0]
["",null,null,null,null,0,0,0]
["",null,null,null,null,0,0,0]
["",null,null,null,null,0,0,0]
["",null,null,null,null,0,0,0]
["",null,null,null,null,0,0,0]
["",null,null,null,null,0,0,0]
["",null,null,null,null,0,0,0]
["",null,null,null,null,0,0,0]
["",null,null,null,null,0,0,0]
["",null,null,null,null,0,0,0]
["",null,null,null,null,0,0,0]
["",null,null,null,null,0,0,0]
["",null,null,null,null,0,0,0]
["",null,null,null,null,0,0,0]
["",null,null,null,null,0,0,0]
["",null,null,null,null,0,0,0]
["",null,null,null,null,0,0,0]
["",null,null,null,null,0,0,0]
["",null,null,null,null,0,0,0]
["",null,null,null,null,0,0,0]
["",null,null,null,null,0,0,0]
["",null,null,null,null,0,0,0]
["",null,null,null,null,0,0,0]
["",null,null,null,null,0,0,0]
["",null,null,null,null,0,0,0]
["",null,null,null,null,0,0,0]
["",null,null,null,null,0,0,0]
["",null,null,null,null,0,0,0]
["",null,null,null,null,0,0,0]
["",null,null,null,null,0,0,0]
["",null,null,null,null,0,0,0]
["",null,null,null,null,0,0,0]
["",null,null,null,null,0,0,0]
["",null,null,null,null,0,0,0]
["",null,null,null,null,0,0,0]
["",null,null,null,null,0,0,0]
["",null,null,null,null,0,0,0]
["",null,null,null,null,0,0,0]
["",null,null,null,null,0,0,0]
["",null,null,null,null,0,0,0]
["",null,null,null,null,0,0,0]
["",null,null,null,null,0,0,0]
["",null,null,null,null,0,0,0]
["",null,null,null,null,0,0,0]
["",null,null,null,null,0,0,0]
["",null,null,null,null,0,0,0]
["",null,null,null,null,0,0,0]
["",null,null,null,null,0,0,0]
["",null,null,null,null,0,0,0]
["",null,null,null,null,0,0,0]
["",null,null,null,null,0,0,0]
["",null,null,null,null,0,0,0]
["",null,null,null,null,0,0,0]
["",null,null,null,null,0,0,0]
["",null,null,null,null,0,0,0]
["",null,null,null,null,0,0,0]
["",null,null,null,null,0,0,0]
["",null,null,null,null,0,0,0]
[{"$f":"IF(B84>0,ROW(A84)-18,\"\")","v":""},null,null,null,null,{"$f":"IF(D84<1,0,(B84/1000)*(C84/1000))","v":0},{"$f":"(B84/1000)*(C84/1000)*D84","v":0},{"$f":"IF(F84<0.5,G84,0)","v":0}]
["",null,null,null,null,0,0,0]
["",null,null,null,null,0,0,0]
["",null,null,null,null,0,0,0]
["",null,null,null,null,0,0,0]
["",null,null,null,null,0,0,0]
["",null,null,null,null,0,0,0]
["",null,null,null,null,0,0,0]
["",null,null,null,null,0,0,0]
["",null,null,null,null,0,0,0]
["",null,null,null,null,0,0,0]
["",null,null,null,null,0,0,0]
["",null,null,null,null,0,0,0]
["",null,null,null,null,0,0,0]
["",null,null,null,null,0,0,0]
["",null,null,null,null,0,0,0]
["",null,null,null,null,0,0,0]
["",null,null,null,null,0,0,0]
["",null,null,null,null,0,0,0]
["",null,null,null,null,0,0,0]
["",null,null,null,null,0,0,0]
["",null,null,null,null,0,0,0]
["",null,null,null,null,0,0,0]
["",null,null,null,null,0,0,0]
["",null,null,null,null,0,0,0]
["",null,null,null,null,0,0,0]
["",null,null,null,null,0,0,0]
["",null,null,null,null,0,0,0]
["",null,null,null,null,0,0,0]
["",null,null,null,null,0,0,0]
["",null,null,null,null,0,0,0]
["",null,null,null,null,0,0,0]
["",null,null,null,null,0,0,0]
["",null,null,null,null,0,0,0]
["",null,null,null,null,0,0,0]
["",null,null,null,null,0,0,0]
["",null,null,null,null,0,0,0]
["",null,null,null,null,0,0,0]
["",null,null,null,null,0,0,0]
["",null,null,null,null,0,0,0]
["",null,null,null,null,0,0,0]
["",null,null,null,null,0,0,0]
["",null,null,null,null,0,0,0]
["",null,null,null,null,0,0,0]
["",null,null,null,null,0,0,0]
["",null,null,null,null,0,0,0]
["",null,null,null,null,0,0,0]
["",null,null,null,null,0,0,0]
["",null,null,null,null,0,0,0]
["",null,null,null,null,0,0,0]
["",null,null,null,null,0,0,0]
["",null,null,null,null,0,0,0]
["",null,null,null,null,0,0,0]
["",null,null,null,null,0,0,0]
["",null,null,null,null,0,0,0]
["",null,null,null,null,0,0,0]
["",null,null,null,null,0,0,0]
["",null,null,null,null,0,0,0]
["",null,null,null,null,0,0,0]
["",null,null,null,null,0,0,0]
["",null,null,null,null,0,0,0]
["",null,null,null,null,0,0,0]
["",null,null,null,null,0,0,0]
["",null,null,null,null,0,0,0]
[{"$f":"IF(B148>0,ROW(A148)-18,\"\")","v":""},null,null,null,null,{"$f":"IF(D148<1,0,(B148/1000)*(C148/1000))","v":0},{"$f":"(B148/1000)*(C148/1000)*D148","v":0},{"$f":"IF(F148<0.5,G148,0)","v":0}]
["",null,null,null,null,0,0,0]
["",null,null,null,null,0,0,0]
["",null,null,null,null,0,0,0]
["",null,null,null,null,0,0,0]
["",null,null,null,null,0,0,0]
["",null,null,null,null,0,0,0]
["",null,null,null,null,0,0,0]
["",null,null,null,null,0,0,0]
["",null,null,null,null,0,0,0]
["",null,null,null,null,0,0,0]
["",null,null,null,null,0,0,0]
["",null,null,null,null,0,0,0]
["",null,null,null,null,0,0,0]
["",null,null,null,null,0,0,0]
["",null,null,null,null,0,0,0]
["",null,null,null,null,0,0,0]
["",null,null,null,null,0,0,0]
["",null,null,null,null,0,0,0]
["",null,null,null,null,0,0,0]
["",null,null,null,null,0,0,0]
["",null,null,null,null,0,0,0]
["",null,null,null,null,0,0,0]
["",null,null,null,null,0,0,0]
["",null,null,null,null,0,0,0]
["",null,null,null,null,0,0,0]
["",null,null,null,null,0,0,0]
["",null,null,null,null,0,0,0]
["",null,null,null,null,0,0,0]
["",null,null,null,null,0,0,0]
["",null,null,null,null,0,0,0]
["",null,null,null,null,0,0,0]
["",null,null,null,null,0,0,0]
["",null,null,null,null,0,0,0]
["",null,null,null,null,0,0,0]
["",null,null,null,null,0,0,0]
["",null,null,null,null,0,0,0]
["",null,null,null,null,0,0,0]
["",null,null,null,null,0,0,0]
["",null,null,null,null,0,0,0]
["",null,null,null,null,0,0,0]
["",null,null,null,null,0,0,0]
["",null,null,null,null,0,0,0]
["",null,null,null,null,0,0,0]
["",null,null,null,null,0,0,0]
["",null,null,null,null,0,0,0]
["",null,null,null,null,0,0,0]
["",null,null,null,null,0,0,0]
["",null,null,null,null,0,0,0]
["",null,null,null,null,0,0,0]
["",null,null,null,null,0,0,0]
["",null,null,null,null,0,0,0]
["",null,null,null,null,0,0,0]
["",null,null,null,null,0,0,0]
["",null,null,null,null,0,0,0]
["",null,null,null,null,0,0,0]
["",null,null,null,null,0,0,0]
["",null,null,null,null,0,0,0]
["",null,null,null,null,0,0,0]
["",null,null,null,null,0,0,0]
["",null,null,null,null,0,0,0]
["",null,null,null,null,0,0,0]
["",null,null,null,null,0,0,0]
["",null,null,null,null,0,0,0]
[{"$f":"IF(B212>0,ROW(A212)-18,\"\")","v":""},null,null,null,null,{"$f":"IF(D212<1,0,(B212/1000)*(C212/1000))","v":0},{"$f":"(B212/1000)*(C212/1000)*D212","v":0},{"$f":"IF(F212<0.5,G212,0)","v":0}]
["",null,null,null,null,0,0,0]
["",null,null,null,null,0,0,0]
["",null,null,null,null,0,0,0]
["",null,null,null,null,0,0,0]
["",null,null,null,null,0,0,0]
["",null,null,null,null,0,0,0]
["",null,null,null,null,0,0,0]
["",null,null,null,null,0,0,0]
["",null,null,null,null,0,0,0]
["",null,null,null,null,0,0,0]
["",null,null,null,null,0,0,0]
["",null,null,null,null,0,0,0]
["",null,null,null,null,0,0,0]
["",null,null,null,null,0,0,0]
["",null,null,null,null,0,0,0]
["",null,null,null,null,0,0,0]
["",null,null,null,null,0,0,0]
["",null,null,null,null,0,0,0]
["",null,null,null,null,0,0,0]
["",null,null,null,null,0,0,0]
["",null,null,null,null,0,0,0]
["",null,null,null,null,0,0,0]
["",null,null,null,null,0,0,0]
["",null,null,null,null,0,0,0]
["",null,null,null,null,0,0,0]
["",null,null,null,null,0,0,0]
["",null,null,null,null,0,0,0]
["",null,null,null,null,0,0,0]
["",null,null,null,null,0,0,0]
["",null,null,null,null,0,0,0]
["",null,null,null,null,0,0,0]
["",null,null,null,null,0,0,0]
["",null,null,null,null,0,0,0]
["",null,null,null,null,0,0,0]
["",null,null,null,null,0,0,0]
["",null,null,null,null,0,0,0]
["",null,null,null,null,0,0,0]
["",null,null,null,null,0,0,0]
["",null,null,null,null,0,0,0]
["",null,null,null,null,0,0,0]
["",null,null,null,null,0,0,0]
["",null,null,null,null,0,0,0]
["",null,null,null,null,0,0,0]
["",null,null,null,null,0,0,0]
["",null,null,null,null,0,0,0]
["",null,null,null,null,0,0,0]
["",null,null,null,null,0,0,0]
["",null,null,null,null,0,0,0]
["",null,null,null,null,0,0,0]
["",null,null,null,null,0,0,0]
["",null,null,null,null,0,0,0]
["",null,null,null,null,0,0,0]
["",null,null,null,null,0,0,0]
["",null,null,null,null,0,0,0]
["",null,null,null,null,0,0,0]
["",null,null,null,null,0,0,0]
["",null,null,null,null,0,0,0]
["",null,null,null,null,0,0,0]
["",null,null,null,null,0,0,0]
["",null,null,null,null,0,0,0]
["",null,null,null,null,0,0,0]
["",null,null,null,null,0,0,0]
["",null,null,null,null,0,0,0]
[{"$f":"IF(B276>0,ROW(A276)-18,\"\")","v":""},null,null,null,null,{"$f":"IF(D276<1,0,(B276/1000)*(C276/1000))","v":0},{"$f":"(B276/1000)*(C276/1000)*D276","v":0},{"$f":"IF(F276<0.5,G276,0)","v":0}]
["",null,null,null,null,0,0,0]
["",null,null,null,null,0,0,0]
["",null,null,null,null,0,0,0]
["",null,null,null,null,0,0,0]
["",null,null,null,null,0,0,0]
["",null,null,null,null,0,0,0]
["",null,null,null,null,0,0,0]
["",null,null,null,null,0,0,0]
["",null,null,null,null,0,0,0]
["",null,null,null,null,0,0,0]
["",null,null,null,null,0,0,0]
["",null,null,null,null,0,0,0]
["",null,null,null,null,0,0,0]
["",null,null,null,null,0,0,0]
["",null,null,null,null,0,0,0]
["",null,null,null,null,0,0,0]
["",null,null,null,null,0,0,0]
["",null,null,null,null,0,0,0]
["",null,null,null,null,0,0,0]
["",null,null,null,null,0,0,0]
["",null,null,null,null,0,0,0]
["",null,null,null,null,0,0,0]
["",null,null,null,null,0,0,0]
["",null,null,null,null,0,0,0]
["",null,null,null,null,0,0,0]
["",null,null,null,null,0,0,0]
["",null,null,null,null,0,0,0]
["",null,null,null,null,0,0,0]
["",null,null,null,null,0,0,0]
["",null,null,null,null,0,0,0]
["",null,null,null,null,0,0,0]
["",null,null,null,null,0,0,0]
["",null,null,null,null,0,0,0]
["",null,null,null,null,0,0,0]
["",null,null,null,null,0,0,0]
["",null,null,null,null,0,0,0]
["",null,null,null,null,0,0,0]
["",null,null,null,null,0,0,0]
["",null,null,null,null,0,0,0]
["",null,null,null,null,0,0,0]
["",null,null,null,null,0,0,0]
["",null,null,null,null,0,0,0]
["",null,null,null,null,0,0,0]
["",null,null,null,null,0,0,0]
["",null,null,null,null,0,0,0]
["",null,null,null,null,0,0,0]
["",null,null,null,null,0,0,0]
["",null,null,null,null,0,0,0]
["",null,null,null,null,0,0,0]
["",null,null,null,null,0,0,0]
["",null,null,null,null,0,0,0]
["",null,null,null,null,0,0,0]
["",null,null,null,null,0,0,0]
["",null,null,null,null,0,0,0]
["",null,null,null,null,0,0,0]
["",null,null,null,null,0,0,0]
["",null,null,null,null,0,0,0]
["",null,null,null,null,0,0,0]
["",null,null,null,null,0,0,0]
["",null,null,null,null,0,0,0]
["",null,null,null,null,0,0,0]
["",null,null,null,null,0,0,0]
["",null,null,null,null,0,0,0]
[{"$f":"IF(B340>0,ROW(A340)-18,\"\")","v":""},null,null,null,null,{"$f":"IF(D340<1,0,(B340/1000)*(C340/1000))","v":0},{"$f":"(B340/1000)*(C340/1000)*D340","v":0},{"$f":"IF(F340<0.5,G340,0)","v":0}]
["",null,null,null,null,0,0,0]
["",null,null,null,null,0,0,0]
["",null,null,null,null,0,0,0]
["",null,null,null,null,0,0,0]
["",null,null,null,null,0,0,0]
["",null,null,null,null,0,0,0]
["",null,null,null,null,0,0,0]
["",null,null,null,null,0,0,0]
["",null,null,null,null,0,0,0]
["",null,null,null,null,0,0,0]
["",null,null,null,null,0,0,0]
["",null,null,null,null,0,0,0]
["",null,null,null,null,0,0,0]
["",null,null,null,null,0,0,0]
["",null,null,null,null,0,0,0]
["",null,null,null,null,0,0,0]
["",null,null,null,null,0,0,0]
["",null,null,null,null,0,0,0]
["",null,null,null,null,0,0,0]
["",null,null,null,null,0,0,0]
["",null,null,null,null,0,0,0]
["",null,null,null,null,0,0,0]
["",null,null,null,null,0,0,0]
["",null,null,null,null,0,0,0]
["",null,null,null,null,0,0,0]
["",null,null,null,null,0,0,0]
["",null,null,null,null,0,0,0]
["",null,null,null,null,0,0,0]
["",null,null,null,null,0,0,0]
["",null,null,null,null,0,0,0]
["",null,null,null,null,0,0,0]
["",null,null,null,null,0,0,0]
["",null,null,null,null,0,0,0]
["",null,null,null,null,0,0,0]
["",null,null,null,null,0,0,0]
["",null,null,null,null,0,0,0]
["",null,null,null,null,0,0,0]
["",null,null,null,null,0,0,0]
["",null,null,null,null,0,0,0]
["",null,null,null,null,0,0,0]
["",null,null,null,null,0,0,0]
["",null,null,null,null,0,0,0]
["",null,null,null,null,0,0,0]
["",null,null,null,null,0,0,0]
["",null,null,null,null,0,0,0]
["",null,null,null,null,0,0,0]
["",null,null,null,null,0,0,0]
["",null,null,null,null,0,0,0]
["",null,null,null,null,0,0,0]
["",null,null,null,null,0,0,0]
["",null,null,null,null,0,0,0]
["",null,null,null,null,0,0,0]
["",null,null,null,null,0,0,0]
["",null,null,null,null,0,0,0]
["",null,null,null,null,0,0,0]
["",null,null,null,null,0,0,0]
["",null,null,null,null,0,0,0]
["",null,null,null,null,0,0,0]
["",null,null,null,null,0,0,0]
["",null,null,null,null,0,0,0]
["",null,null,null,null,0,0,0]
["",null,null,null,null,0,0,0]
["",null,null,null,null,0,0,0]
[{"$f":"IF(B404>0,ROW(A404)-18,\"\")","v":""},null,null,null,null,{"$f":"IF(D404<1,0,(B404/1000)*(C404/1000))","v":0},{"$f":"(B404/1000)*(C404/1000)*D404","v":0},{"$f":"IF(F404<0.5,G404,0)","v":0}]
["",null,null,null,null,0,0,0]
["",null,null,null,null,0,0,0]
["",null,null,null,null,0,0,0]
["",null,null,null,null,0,0,0]
["",null,null,null,null,0,0,0]
["",null,null,null,null,0,0,0]
["",null,null,null,null,0,0,0]
["",null,null,null,null,0,0,0]
["",null,null,null,null,0,0,0]
["",null,null,null,null,0,0,0]
["",null,null,null,null,0,0,0]
["",null,null,null,null,0,0,0]
["",null,null,null,null,0,0,0]
["",null,null,null,null,0,0,0]
["",null,null,null,null,0,0,0]
["",null,null,null,null,0,0,0]
["",null,null,null,null,0,0,0]
["",null,null,null,null,0,0,0]
["",null,null,null,null,0,0,0]
["",null,null,null,null,0,0,0]
["",null,null,null,null,0,0,0]
["",null,null,null,null,0,0,0]
["",null,null,null,null,0,0,0]
["",null,null,null,null,0,0,0]
["",null,null,null,null,0,0,0]
["",null,null,null,null,0,0,0]
["",null,null,null,null,0,0,0]
["",null,null,null,null,0,0,0]
["",null,null,null,null,0,0,0]
["",null,null,null,null,0,0,0]
["",null,null,null,null,0,0,0]
["",null,null,null,null,0,0,0]
["",null,null,null,null,0,0,0]
["",null,null,null,null,0,0,0]
["",null,null,null,null,0,0,0]
["",null,null,null,null,0,0,0]
["",null,null,null,null,0,0,0]
["",null,null,null,null,0,0,0]
["",null,null,null,null,0,0,0]
["",null,null,null,null,0,0,0]
["",null,null,null,null,0,0,0]
["",null,null,null,null,0,0,0]
["",null,null,null,null,0,0,0]
["",null,null,null,null,0,0,0]
["",null,null,null,null,0,0,0]
["",null,null,null,null,0,0,0]
["",null,null,null,null,0,0,0]
["",null,null,null,null,0,0,0]
["",null,null,null,null,0,0,0]
["",null,null,null,null,0,0,0]
["",null,null,null,null,0,0,0]
["",null,null,null,null,0,0,0]
["",null,null,null,null,0,0,0]
["",null,null,null,null,0,0,0]
["",null,null,null,null,0,0,0]
["",null,null,null,null,0,0,0]
["",null,null,null,null,0,0,0]
["",null,null,null,null,0,0,0]
["",null,null,null,null,0,0,0]
["",null,null,null,null,0,0,0]
["",null,null,null,null,0,0,0]
["",null,null,null,null,0,0,0]
["",null,null,null,null,0,0,0]
[{"$f":"IF(B468>0,ROW(A468)-18,\"\")","v":""},null,null,null,null,{"$f":"IF(D468<1,0,(B468/1000)*(C468/1000))","v":0},{"$f":"(B468/1000)*(C468/1000)*D468","v":0},{"$f":"IF(F468<0.5,G468,0)","v":0}]
["",null,null,null,null,0,0,0]
["",null,null,null,null,0,0,0]
["",null,null,null,null,0,0,0]
["",null,null,null,null,0,0,0]
["",null,null,null,null,0,0,0]
["",null,null,null,null,0,0,0]
["",null,null,null,null,0,0,0]
["",null,null,null,null,0,0,0]
["",null,null,null,null,0,0,0]
["",null,null,null,null,0,0,0]
["",null,null,null,null,0,0,0]
["",null,null,null,null,0,0,0]
["",null,null,null,null,0,0,0]
["",null,null,null,null,0,0,0]
["",null,null,null,null,0,0,0]
["",null,null,null,null,0,0,0]
["",null,null,null,null,0,0,0]
["",null,null,null,null,0,0,0]
["",null,null,null,null,0,0,0]
["",null,null,null,null,0,0,0]
["",null,null,null,null,0,0,0]
["",null,null,null,null,0,0,0]
["",null,null,null,null,0,0,0]
["",null,null,null,null,0,0,0]
["",null,null,null,null,0,0,0]
["",null,null,null,null,0,0,0]
["",null,null,null,null,0,0,0]
["",null,null,null,null,0,0,0]
["",null,null,null,null,0,0,0]
["",null,null,null,null,0,0,0]
["",null,null,null,null,0,0,0]
["",null,null,null,null,0,0,0]
["",null,null,null,null,0,0,0]
["",null,null,null,null,0,0,0]
["",null,null,null,null,0,0,0]
["",null,null,null,null,0,0,0]
["",null,null,null,null,0,0,0]
["",null,null,null,null,0,0,0]
["",null,null,null,null,0,0,0]
["",null,null,null,null,0,0,0]
["",null,null,null,null,0,0,0]
["",null,null,null,null,0,0,0]
["",null,null,null,null,0,0,0]
["",null,null,null,null,0,0,0]
["",null,null,null,null,0,0,0]
["",null,null,null,null,0,0,0]
["",null,null,null,null,0,0,0]
["",null,null,null,null,0,0,0]
["",null,null,null,null,0,0,0]
["",null,null,null,null,0,0,0]
["",null,null,null,null,0,0,0]
["",null,null,null,null,0,0,0]
["",null,null,null,null,0,0,0]
["",null,null,null,null,0,0,0]
["",null,null,null,null,0,0,0]
["",null,null,null,null,0,0,0]
["",null,null,null,null,0,0,0]
["",null,null,null,null,0,0,0]
["",null,null,null,null,0,0,0]
["",null,null,null,null,0,0,0]
["",null,null,null,null,0,0,0]
["",null,null,null,null,0,0,0]
["",null,null,null,null,0,0,0]
[{"$f":"IF(B532>0,ROW(A532)-18,\"\")","v":""},null,null,null,null,{"$f":"IF(D532<1,0,(B532/1000)*(C532/1000))","v":0},{"$f":"(B532/1000)*(C532/1000)*D532","v":0},{"$f":"IF(F532<0.5,G532,0)","v":0}]
["",null,null,null,null,0,0,0]
["",null,null,null,null,0,0,0]
["",null,null,null,null,0,0,0]
["",null,null,null,null,0,0,0]
["",null,null,null,null,0,0,0]
["",null,null,null,null,0,0,0]
["",null,null,null,null,0,0,0]
["",null,null,null,null,0,0,0]
["",null,null,null,null,0,0,0]
["",null,null,null,null,0,0,0]
["",null,null,null,null,0,0,0]
["",null,null,null,null,0,0,0]
["",null,null,null,null,0,0,0]
["",null,null,null,null,0,0,0]
["",null,null,null,null,0,0,0]
["",null,null,null,null,0,0,0]
["",null,null,null,null,0,0,0]
["",null,null,null,null,0,0,0]
["",null,null,null,null,0,0,0]
["",null,null,null,null,0,0,0]
["",null,null,null,null,0,0,0]
["",null,null,null,null,0,0,0]
["",null,null,null,null,0,0,0]
[{"$f":"IF(B556>0,ROW(A556)-18,\"\")","v":""},null,null,null,null,0,0,0]
["",null,null,null,null,0,0,0]
["",null,null,null,null,0,0,0]
["",null,null,null,null,0,0,0]
["",null,null,null,null,0,0,0]
["",null,null,null,null,0,0,0]
["",null,null,null,null,0,0,0]
["",null,null,null,null,0,0,0]
["",null,null,null,null,0,0,0]
["",null,null,null,null,0,0,0]
["",null,null,null,null,0,0,0]
["",null,null,null,null,0,0,0]
["",null,null,null,null,0,0,0]
["",null,null,null,null,0,0,0]
["",null,null,null,null,0,0,0]
["",null,null,null,null,0,0,0]
["",null,null,null,null,0,0,0]
["",null,null,null,null,0,0,0]
["",null,null,null,null,0,0,0]
["",null,null,null,null,0,0,0]
["",null,null,null,null,0,0,0]
["",null,null,null,null,0,0,0]
["",null,null,null,null,0,0,0]
["",null,null,null,null,0,0,0]
["",null,null,null,null,0,0,0]
["",null,null,null,null,0,0,0]
["",null,null,null,null,0,0,0]
["",null,null,null,null,0,0,0]
["",null,null,null,null,0,0,0]
["",null,null,null,null,0,0,0]
["",null,null,null,null,0,0,0]
["",null,null,null,null,0,0,0]
["",null,null,null,null,0,0,0]
["",null,null,null,null,0,0,0]
["",null,null,null,null,0,0,0]
["",null,null,null,null,0,0,0]
["",null,null,null,null,0,0,0]
["",null,null,null,null,0,0,0]
["",null,null,null,null,0,0,0]
["",null,null,null,null,0,0,0]
[{"$f":"IF(B596>0,ROW(A596)-18,\"\")","v":""},null,null,null,null,{"$f":"IF(D596<1,0,(B596/1000)*(C596/1000))","v":0},{"$f":"(B596/1000)*(C596/1000)*D596","v":0},{"$f":"IF(F596<0.5,G596,0)","v":0}]
["",null,null,null,null,0,0,0]
["",null,null,null,null,0,0,0]
["",null,null,null,null,0,0,0]
["",null,null,null,null,0,0,0]
["",null,null,null,null,0,0,0]
["",null,null,null,null,0,0,0]
["",null,null,null,null,0,0,0]
["",null,null,null,null,0,0,0]
["",null,null,null,null,0,0,0]
["",null,null,null,null,0,0,0]
["",null,null,null,null,0,0,0]
["",null,null,null,null,0,0,0]
["",null,null,null,null,0,0,0]
["",null,null,null,null,0,0,0]
["",null,null,null,null,0,0,0]
["",null,null,null,null,0,0,0]
["",null,null,null,null,0,0,0]
["",null,null,null,null,0,0,0]
["",null,null,null,null,0,0,0]
["",null,null,null,null,0,0,0]
["",null,null,null,null,0,0,0]
["",null,null,null,null,0,0,0]
["",null,null,null,null,0,0,0]
["",null,null,null,null,0,0,0]
["",null,null,null,null,0,0,0]
["",null,null,null,null,0,0,0]
["",null,null,null,null,0,0,0]
["",null,null,null,null,0,0,0]
["",null,null,null,null,0,0,0]
["",null,null,null,null,0,0,0]
["",null,null,null,null,0,0,0]
["",null,null,null,null,0,0,0]
["",null,null,null,null,0,0,0]
["",null,null,null,null,0,0,0]
["",null,null,null,null,0,0,0]
["",null,null,null,null,0,0,0]
["",null,null,null,null,0,0,0]
["",null,null,null,null,0,0,0]
["",null,null,null,null,0,0,0]
["",null,null,null,null,0,0,0]
["",null,null,null,null,0,0,0]
["",null,null,null,null,0,0,0]
["",null,null,null,null,0,0,0]
["",null,null,null,null,0,0,0]
["",null,null,null,null,0,0,0]
["",null,null,null,null,0,0,0]
["",null,null,null,null,0,0,0]
["",null,null,null,null,0,0,0]
["",null,null,null,null,0,0,0]
["",null,null,null,null,0,0,0]
["",null,null,null,null,0,0,0]
["",null,null,null,null,0,0,0]
["",null,null,null,null,0,0,0]
["",null,null,null,null,0,0,0]
["",null,null,null,null,0,0,0]
["",null,null,null,null,0,0,0]
["",null,null,null,null,0,0,0]
["",null,null,null,null,0,0,0]
["",null,null,null,null,0,0,0]
["",null,null,null,null,0,0,0]
["",null,null,null,null,0,0,0]
["",null,null,null,null,0,0,0]
["",null,null,null,null,0,0,0]
[{"$f":"IF(B660>0,ROW(A660)-18,\"\")","v":""},null,null,null,null,{"$f":"IF(D660<1,0,(B660/1000)*(C660/1000))","v":0},{"$f":"(B660/1000)*(C660/1000)*D660","v":0},{"$f":"IF(F660<0.5,G660,0)","v":0}]
["",null,null,null,null,0,0,0]
["",null,null,null,null,0,0,0]
["",null,null,null,null,0,0,0]
["",null,null,null,null,0,0,0]
["",null,null,null,null,0,0,0]
["",null,null,null,null,0,0,0]
["",null,null,null,null,0,0,0]
["",null,null,null,null,0,0,0]
["",null,null,null,null,0,0,0]
["",null,null,null,null,0,0,0]
["",null,null,null,null,0,0,0]
["",null,null,null,null,0,0,0]
["",null,null,null,null,0,0,0]
["",null,null,null,null,0,0,0]
["",null,null,null,null,0,0,0]
["",null,null,null,null,0,0,0]
["",null,null,null,null,0,0,0]
["",null,null,null,null,0,0,0]
["",null,null,null,null,0,0,0]
["",null,null,null,null,0,0,0]
["",null,null,null,null,0,0,0]
["",null,null,null,null,0,0,0]
["",null,null,null,null,0,0,0]
["",null,null,null,null,0,0,0]
["",null,null,null,null,0,0,0]
["",null,null,null,null,0,0,0]
["",null,null,null,null,0,0,0]
["",null,null,null,null,0,0,0]
["",null,null,null,null,0,0,0]
["",null,null,null,null,0,0,0]
["",null,null,null,null,0,0,0]
["",null,null,null,null,0,0,0]
["",null,null,null,null,0,0,0]
["",null,null,null,null,0,0,0]
["",null,null,null,null,0,0,0]
["",null,null,null,null,0,0,0]
["",null,null,null,null,0,0,0]
["",null,null,null,null,0,0,0]
["",null,null,null,null,0,0,0]
["",null,null,null,null,0,0,0]
["",null,null,null,null,0,0,0]
["",null,null,null,null,0,0,0]
["",null,null,null,null,0,0,0]
["",null,null,null,null,0,0,0]
["",null,null,null,null,0,0,0]
["",null,null,null,null,0,0,0]
["",null,null,null,null,0,0,0]
["",null,null,null,null,0,0,0]
["",null,null,null,null,0,0,0]
["",null,null,null,null,0,0,0]
["",null,null,null,null,0,0,0]
["",null,null,null,null,0,0,0]
["",null,null,null,null,0,0,0]
["",null,null,null,null,0,0,0]
["",null,null,null,null,0,0,0]
["",null,null,null,null,0,0,0]
["",null,null,null,null,0,0,0]
["",null,null,null,null,0,0,0]
["",null,null,null,null,0,0,0]
["",null,null,null,null,0,0,0]
["",null,null,null,null,0,0,0]
["",null,null,null,null,0,0,0]
["",null,null,null,null,0,0,0]
[{"$f":"IF(B724>0,ROW(A724)-18,\"\")","v":""},null,null,null,null,{"$f":"IF(D724<1,0,(B724/1000)*(C724/1000))","v":0},{"$f":"(B724/1000)*(C724/1000)*D724","v":0},{"$f":"IF(F724<0.5,G724,0)","v":0}]
["",null,null,null,null,0,0,0]
["",null,null,null,null,0,0,0]
["",null,null,null,null,0,0,0]
["",null,null,null,null,0,0,0]
["",null,null,null,null,0,0,0]
["",null,null,null,null,0,0,0]
["",null,null,null,null,0,0,0]
["",null,null,null,null,0,0,0]
["",null,null,null,null,0,0,0]
["",null,null,null,null,0,0,0]
["",null,null,null,null,0,0,0]
["",null,null,null,null,0,0,0]
["",null,null,null,null,0,0,0]
["",null,null,null,null,0,0,0]
["",null,null,null,null,0,0,0]
["",null,null,null,null,0,0,0]
["",null,null,null,null,0,0,0]
["",null,null,null,null,0,0,0]
["",null,null,null,null,0,0,0]
["",null,null,null,null,0,0,0]
["",null,null,null,null,0,0,0]
["",null,null,null,null,0,0,0]
["",null,null,null,null,0,0,0]
["",null,null,null,null,0,0,0]
["",null,null,null,null,0,0,0]
["",null,null,null,null,0,0,0]
["",null,null,null,null,0,0,0]
["",null,null,null,null,0,0,0]
["",null,null,null,null,0,0,0]
["",null,null,null,null,0,0,0]
["",null,null,null,null,0,0,0]
["",null,null,null,null,0,0,0]
["",null,null,null,null,0,0,0]
["",null,null,null,null,0,0,0]
["",null,null,null,null,0,0,0]
["",null,null,null,null,0,0,0]
["",null,null,null,null,0,0,0]
["",null,null,null,null,0,0,0]
["",null,null,null,null,0,0,0]
["",null,null,null,null,0,0,0]
["",null,null,null,null,0,0,0]
["",null,null,null,null,0,0,0]
["",null,null,null,null,0,0,0]
["",null,null,null,null,0,0,0]
["",null,null,null,null,0,0,0]
["",null,null,null,null,0,0,0]
["",null,null,null,null,0,0,0]
["",null,null,null,null,0,0,0]
["",null,null,null,null,0,0,0]
["",null,null,null,null,0,0,0]
["",null,null,null,null,0,0,0]
["",null,null,null,null,0,0,0]
["",null,null,null,null,0,0,0]
["",null,null,null,null,0,0,0]
["",null,null,null,null,0,0,0]
["",null,null,null,null,0,0,0]
["",null,null,null,null,0,0,0]
["",null,null,null,null,0,0,0]
["",null,null,null,null,0,0,0]
["",null,null,null,null,0,0,0]
["",null,null,null,null,0,0,0]
["",null,null,null,null,0,0,0]
["",null,null,null,null,0,0,0]
[{"$f":"IF(B788>0,ROW(A788)-18,\"\")","v":""},null,null,null,null,{"$f":"IF(D788<1,0,(B788/1000)*(C788/1000))","v":0},{"$f":"(B788/1000)*(C788/1000)*D788","v":0},{"$f":"IF(F788<0.5,G788,0)","v":0}]
["",null,null,null,null,0,0,0]
["",null,null,null,null,0,0,0]
["",null,null,null,null,0,0,0]
["",null,null,null,null,0,0,0]
["",null,null,null,null,0,0,0]
["",null,null,null,null,0,0,0]
["",null,null,null,null,0,0,0]
["",null,null,null,null,0,0,0]
["",null,null,null,null,0,0,0]
["",null,null,null,null,0,0,0]
["",null,null,null,null,0,0,0]
["",null,null,null,null,0,0,0]
["",null,null,null,null,0,0,0]
["",null,null,null,null,0,0,0]
["",null,null,null,null,0,0,0]
["",null,null,null,null,0,0,0]
["",null,null,null,null,0,0,0]
["",null,null,null,null,0,0,0]
["",null,null,null,null,0,0,0]
["",null,null,null,null,0,0,0]
["",null,null,null,null,0,0,0]
["",null,null,null,null,0,0,0]
["",null,null,null,null,0,0,0]
["",null,null,null,null,0,0,0]
["",null,null,null,null,0,0,0]
["",null,null,null,null,0,0,0]
["",null,null,null,null,0,0,0]
["",null,null,null,null,0,0,0]
["",null,null,null,null,0,0,0]
["",null,null,null,null,0,0,0]
["",null,null,null,null,0,0,0]
["",null,null,null,null,0,0,0]
["",null,null,null,null,0,0,0]
["",null,null,null,null,0,0,0]
["",null,null,null,null,0,0,0]
["",null,null,null,null,0,0,0]
["",null,null,null,null,0,0,0]
["",null,null,null,null,0,0,0]
["",null,null,null,null,0,0,0]
["",null,null,null,null,0,0,0]
["",null,null,null,null,0,0,0]
["",null,null,null,null,0,0,0]
["",null,null,null,null,0,0,0]
["",null,null,null,null,0,0,0]
["",null,null,null,null,0,0,0]
["",null,null,null,null,0,0,0]
["",null,null,null,null,0,0,0]
["",null,null,null,null,0,0,0]
["",null,null,null,null,0,0,0]
["",null,null,null,null,0,0,0]
["",null,null,null,null,0,0,0]
["",null,null,null,null,0,0,0]
["",null,null,null,null,0,0,0]
["",null,null,null,null,0,0,0]
["",null,null,null,null,0,0,0]
["",null,null,null,null,0,0,0]
["",null,null,null,null,0,0,0]
["",null,null,null,null,0,0,0]
["",null,null,null,null,0,0,0]
["",null,null,null,null,0,0,0]
["",null,null,null,null,0,0,0]
["",null,null,null,null,0,0,0]
["",null,null,null,null,0,0,0]
[{"$f":"IF(B852>0,ROW(A852)-18,\"\")","v":""},null,null,null,null,{"$f":"IF(D852<1,0,(B852/1000)*(C852/1000))","v":0},{"$f":"(B852/1000)*(C852/1000)*D852","v":0},{"$f":"IF(F852<0.5,G852,0)","v":0}]
["",null,null,null,null,0,0,0]
["",null,null,null,null,0,0,0]
["",null,null,null,null,0,0,0]
["",null,null,null,null,0,0,0]
["",null,null,null,null,0,0,0]
["",null,null,null,null,0,0,0]
["",null,null,null,null,0,0,0]
["",null,null,null,null,0,0,0]
["",null,null,null,null,0,0,0]
["",null,null,null,null,0,0,0]
["",null,null,null,null,0,0,0]
["",null,null,null,null,0,0,0]
["",null,null,null,null,0,0,0]
["",null,null,null,null,0,0,0]
["",null,null,null,null,0,0,0]
["",null,null,null,null,0,0,0]
["",null,null,null,null,0,0,0]
["",null,null,null,null,0,0,0]
["",null,null,null,null,0,0,0]
["",null,null,null,null,0,0,0]
["",null,null,null,null,0,0,0]
["",null,null,null,null,0,0,0]
["",null,null,null,null,0,0,0]
["",null,null,null,null,0,0,0]
["",null,null,null,null,0,0,0]
["",null,null,null,null,0,0,0]
["",null,null,null,null,0,0,0]
["",null,null,null,null,0,0,0]
["",null,null,null,null,0,0,0]
["",null,null,null,null,0,0,0]
["",null,null,null,null,0,0,0]
["",null,null,null,null,0,0,0]
["",null,null,null,null,0,0,0]
["",null,null,null,null,0,0,0]
["",null,null,null,null,0,0,0]
["",null,null,null,null,0,0,0]
["",null,null,null,null,0,0,0]
["",null,null,null,null,0,0,0]
["",null,null,null,null,0,0,0]
["",null,null,null,null,0,0,0]
["",null,null,null,null,0,0,0]
["",null,null,null,null,0,0,0]
["",null,null,null,null,0,0,0]
["",null,null,null,null,0,0,0]
["",null,null,null,null,0,0,0]
["",null,null,null,null,0,0,0]
["",null,null,null,null,0,0,0]
["",null,null,null,null,0,0,0]
["",null,null,null,null,0,0,0]
["",null,null,null,null,0,0,0]
["",null,null,null,null,0,0,0]
["",null,null,null,null,0,0,0]
["",null,null,null,null,0,0,0]
["",null,null,null,null,0,0,0]
["",null,null,null,null,0,0,0]
["",null,null,null,null,0,0,0]
["",null,null,null,null,0,0,0]
["",null,null,null,null,0,0,0]
["",null,null,null,null,0,0,0]
["",null,null,null,null,0,0,0]
["",null,null,null,null,0,0,0]
["",null,null,null,null,0,0,0]
["",null,null,null,null,0,0,0]
[{"$f":"IF(B916>0,ROW(A916)-18,\"\")","v":""},null,null,null,null,{"$f":"IF(D916<1,0,(B916/1000)*(C916/1000))","v":0},{"$f":"(B916/1000)*(C916/1000)*D916","v":0},{"$f":"IF(F916<0.5,G916,0)","v":0}]
["",null,null,null,null,0,0,0]
["",null,null,null,null,0,0,0]
["",null,null,null,null,0,0,0]
["",null,null,null,null,0,0,0]
["",null,null,null,null,0,0,0]
["",null,null,null,null,0,0,0]
["",null,null,null,null,0,0,0]
["",null,null,null,null,0,0,0]
["",null,null,null,null,0,0,0]
["",null,null,null,null,0,0,0]
["",null,null,null,null,0,0,0]
["",null,null,null,null,0,0,0]
["",null,null,null,null,0,0,0]
["",null,null,null,null,0,0,0]
["",null,null,null,null,0,0,0]
["",null,null,null,null,0,0,0]
["",null,null,null,null,0,0,0]
["",null,null,null,null,0,0,0]
["",null,null,null,null,0,0,0]
["",null,null,null,null,0,0,0]
["",null,null,null,null,0,0,0]
["",null,null,null,null,0,0,0]
["",null,null,null,null,0,0,0]
["",null,null,null,null,0,0,0]
["",null,null,null,null,0,0,0]
["",null,null,null,null,0,0,0]
["",null,null,null,null,0,0,0]
["",null,null,null,null,0,0,0]
["",null,null,null,null,0,0,0]
["",null,null,null,null,0,0,0]
["",null,null,null,null,0,0,0]
["",null,null,null,null,0,0,0]
["",null,null,null,null,0,0,0]
["",null,null,null,null,0,0,0]
["",null,null,null,null,0,0,0]
["",null,null,null,null,0,0,0]
["",null,null,null,null,0,0,0]
["",null,null,null,null,0,0,0]
["",null,null,null,null,0,0,0]
["",null,null,null,null,0,0,0]
["",null,null,null,null,0,0,0]
["",null,null,null,null,0,0,0]
["",null,null,null,null,0,0,0]
["",null,null,null,null,0,0,0]
["",null,null,null,null,0,0,0]
["",null,null,null,null,0,0,0]
["",null,null,null,null,0,0,0]
["",null,null,null,null,0,0,0]
["",null,null,null,null,0,0,0]
["",null,null,null,null,0,0,0]
["",null,null,null,null,0,0,0]
["",null,null,null,null,0,0,0]
["",null,null,null,null,0,0,0]
["",null,null,null,null,0,0,0]
["",null,null,null,null,0,0,0]
["",null,null,null,null,0,0,0]
["",null,null,null,null,0,0,0]
["",null,null,null,null,0,0,0]
["",null,null,null,null,0,0,0]
["",null,null,null,null,0,0,0]
["",null,null,null,null,0,0,0]
["",null,null,null,null,0,0,0]
["",null,null,null,null,0,0,0]
[{"$f":"IF(B980>0,ROW(A980)-18,\"\")","v":""},null,null,null,null,{"$f":"IF(D980<1,0,(B980/1000)*(C980/1000))","v":0},{"$f":"(B980/1000)*(C980/1000)*D980","v":0},{"$f":"IF(F980<0.5,G980,0)","v":0}]
["",null,null,null,null,0,0,0]
["",null,null,null,null,0,0,0]
["",null,null,null,null,0,0,0]
["",null,null,null,null,0,0,0]
["",null,null,null,null,0,0,0]
["",null,null,null,null,0,0,0]
["",null,null,null,null,0,0,0]
["",null,null,null,null,0,0,0]
["",null,null,null,null,0,0,0]
["",null,null,null,null,0,0,0]
["",null,null,null,null,0,0,0]
["",null,null,null,null,0,0,0]
["",null,null,null,null,0,0,0]
["",null,null,null,null,0,0,0]
["",null,null,null,null,0,0,0]
["",null,null,null,null,0,0,0]
["",null,null,null,null,0,0,0]
["",null,null,null,null,0,0,0]
["",null,null,null,null,0,0,0]

{"sheet":"Sjab DecoboardClassic","index":18,"n_rows":999,"n_cols":32,"rows_kept":999,"cut":false,"hidden":true,"merged":[[15,31,16,36],[5,16,13,16],[3,1,4,1],[15,1,16,5],[3,3,3,9],[4,3,4,9],[5,3,5,9],[6,3,6,9],[7,3,7,9],[8,3,8,9],[14,22,15,28],[14,4,14,5],[7,1,8,1],[10,4,10,5],[11,4,11,5],[5,1,6,1],[14,1,14,3],[3,30,13,30],[14,12,14,15],[14,17,14,20],[10,1,10,3],[11,1,11,3],[12,1,12,3],[10,7,10,8],[11,7,11,8],[12,7,12,8],[5,11,13,11],[1,3,1,9],[5,21,13,21],[6,12,12,14],[6,17,12,19],[12,4,12,5],[13,7,13,8]],"read":"row_number_cap"}
[]
[null,null,null,"ORDER FORM DECOBOARD CLASSIC"]
[]
[null,"Project","Name",null,null,null,null,null,null,null,null,null,null,null,null,null,null,null,null,null,null,null,null,null,null,null,null,null,null,null,"Direction S = 3070 mm"]
[null,null,"Address"]
[null,"Contractor","Name",null,null,null,null,null,null,null,null,"Direction P <= 1220 mm",null,null,null,null,"Direction S <= 3070 mm",null,null,null,null,"Direction P = 1220 mm"]
[null,null,"Address"]
[null,"Trader","Name"]
[null,null,"Address"]
[]
[null,"Total Surface",null,null,{"$f":"SUM(G19:G999)","v":0},null,null,"Order/Price request"]
[null,"Total Surface Panels < 0,5 m²",null,null,{"$f":"SUM(H19:H10999)","v":0},null,null,"Colour range"]
[null,"Total Surface Panels > 0,5 m²",null,null,{"$f":"E11-E12","v":0},null,null,"Colour code"]
[null,null,null,null,null,null,null,"Colour name"]
[null,"Total Amount Panels",null,null,{"$f":"SUM(D19:D999)","v":0},null,null,null,null,null,null,null,"Fig. 1 Direction S <= 3070 mm",null,null,null,null,"Fig. 2 Direction P <= 1220 mm",null,null,null,null,"Direction S = 3070 mm\r\nFig. a Maximal dimensions horizontal"]
[null,"FILL IN DIMENSIONS IN MM!!",null,null,null,null,null,null,null,null,null,null,null,null,null,null,null,null,null,null,null,null,null,null,null,null,null,null,null,null,null,"Direction P = 1220 mm\r\nFig. b Maximal dimensions vertical"]
[]
["Row","Direction S (mm)","Direction P (mm)","Amount","Panel marking","m²/pc","m² Total","< 0,5 m²","Palletnr.","Remarks"]
[1,null,null,null,null,{"$f":"IF(D19<1,0,(B19/1000)*(C19/1000))","v":0},{"$f":"(B19/1000)*(C19/1000)*D19","v":0},{"$f":"IF(F19<0.5,G19,0)","v":0},null,null,null,null,null,{"$f":"SUM(M19:M999)","v":0}]
[{"$f":"IF(B20>0,ROW(A20)-18,\"\")","v":""},null,null,null,null,0,0,0]
["",null,null,null,null,0,0,0]
["",null,null,null,null,0,0,0]
["",null,null,null,null,0,0,0]
["",null,null,null,null,0,0,0]
["",null,null,null,null,0,0,0]
["",null,null,null,null,0,0,0]
["",null,null,null,null,0,0,0]
["",null,null,null,null,0,0,0]
["",null,null,null,null,0,0,0]
["",null,null,null,null,0,0,0]
["",null,null,null,null,0,0,0]
["",null,null,null,null,0,0,0]
["",null,null,null,null,0,0,0]
["",null,null,null,null,0,0,0]
["",null,null,null,null,0,0,0]
["",null,null,null,null,0,0,0]
["",null,null,null,null,0,0,0]
["",null,null,null,null,0,0,0]
["",null,null,null,null,0,0,0]
["",null,null,null,null,0,0,0]
["",null,null,null,null,0,0,0]
["",null,null,null,null,0,0,0]
["",null,null,null,null,0,0,0]
["",null,null,null,null,0,0,0]
["",null,null,null,null,0,0,0]
["",null,null,null,null,0,0,0]
["",null,null,null,null,0,0,0]
["",null,null,null,null,0,0,0]
["",null,null,null,null,0,0,0]
["",null,null,null,null,0,0,0]
["",null,null,null,null,0,0,0]
["",null,null,null,null,0,0,0]
["",null,null,null,null,0,0,0]
["",null,null,null,null,0,0,0]
["",null,null,null,null,0,0,0]
["",null,null,null,null,0,0,0]
["",null,null,null,null,0,0,0]
["",null,null,null,null,0,0,0]
["",null,null,null,null,0,0,0]
["",null,null,null,null,0,0,0]
["",null,null,null,null,0,0,0]
["",null,null,null,null,0,0,0]
["",null,null,null,null,0,0,0]
["",null,null,null,null,0,0,0]
["",null,null,null,null,0,0,0]
["",null,null,null,null,0,0,0]
["",null,null,null,null,0,0,0]
["",null,null,null,null,0,0,0]
["",null,null,null,null,0,0,0]
["",null,null,null,null,0,0,0]
["",null,null,null,null,0,0,0]
["",null,null,null,null,0,0,0]
["",null,null,null,null,0,0,0]
["",null,null,null,null,0,0,0]
["",null,null,null,null,0,0,0]
["",null,null,null,null,0,0,0]
["",null,null,null,null,0,0,0]
["",null,null,null,null,0,0,0]
["",null,null,null,null,0,0,0]
["",null,null,null,null,0,0,0]
["",null,null,null,null,0,0,0]
["",null,null,null,null,0,0,0]
[{"$f":"IF(B83>0,ROW(A83)-18,\"\")","v":""},null,null,null,null,{"$f":"IF(D83<1,0,(B83/1000)*(C83/1000))","v":0},{"$f":"(B83/1000)*(C83/1000)*D83","v":0},{"$f":"IF(F83<0.5,G83,0)","v":0}]
["",null,null,null,null,0,0,0]
["",null,null,null,null,0,0,0]
["",null,null,null,null,0,0,0]
["",null,null,null,null,0,0,0]
["",null,null,null,null,0,0,0]
["",null,null,null,null,0,0,0]
["",null,null,null,null,0,0,0]
["",null,null,null,null,0,0,0]
["",null,null,null,null,0,0,0]
["",null,null,null,null,0,0,0]
["",null,null,null,null,0,0,0]
["",null,null,null,null,0,0,0]
["",null,null,null,null,0,0,0]
["",null,null,null,null,0,0,0]
["",null,null,null,null,0,0,0]
["",null,null,null,null,0,0,0]
["",null,null,null,null,0,0,0]
["",null,null,null,null,0,0,0]
["",null,null,null,null,0,0,0]
["",null,null,null,null,0,0,0]
["",null,null,null,null,0,0,0]
["",null,null,null,null,0,0,0]
["",null,null,null,null,0,0,0]
["",null,null,null,null,0,0,0]
["",null,null,null,null,0,0,0]
["",null,null,null,null,0,0,0]
["",null,null,null,null,0,0,0]
["",null,null,null,null,0,0,0]
["",null,null,null,null,0,0,0]
["",null,null,null,null,0,0,0]
["",null,null,null,null,0,0,0]
["",null,null,null,null,0,0,0]
["",null,null,null,null,0,0,0]
["",null,null,null,null,0,0,0]
["",null,null,null,null,0,0,0]
["",null,null,null,null,0,0,0]
["",null,null,null,null,0,0,0]
["",null,null,null,null,0,0,0]
["",null,null,null,null,0,0,0]
["",null,null,null,null,0,0,0]
["",null,null,null,null,0,0,0]
["",null,null,null,null,0,0,0]
["",null,null,null,null,0,0,0]
["",null,null,null,null,0,0,0]
["",null,null,null,null,0,0,0]
["",null,null,null,null,0,0,0]
["",null,null,null,null,0,0,0]
["",null,null,null,null,0,0,0]
["",null,null,null,null,0,0,0]
["",null,null,null,null,0,0,0]
["",null,null,null,null,0,0,0]
["",null,null,null,null,0,0,0]
["",null,null,null,null,0,0,0]
["",null,null,null,null,0,0,0]
["",null,null,null,null,0,0,0]
["",null,null,null,null,0,0,0]
["",null,null,null,null,0,0,0]
["",null,null,null,null,0,0,0]
["",null,null,null,null,0,0,0]
["",null,null,null,null,0,0,0]
["",null,null,null,null,0,0,0]
["",null,null,null,null,0,0,0]
["",null,null,null,null,0,0,0]
[{"$f":"IF(B147>0,ROW(A147)-18,\"\")","v":""},null,null,null,null,{"$f":"IF(D147<1,0,(B147/1000)*(C147/1000))","v":0},{"$f":"(B147/1000)*(C147/1000)*D147","v":0},{"$f":"IF(F147<0.5,G147,0)","v":0}]
["",null,null,null,null,0,0,0]
["",null,null,null,null,0,0,0]
["",null,null,null,null,0,0,0]
["",null,null,null,null,0,0,0]
["",null,null,null,null,0,0,0]
["",null,null,null,null,0,0,0]
["",null,null,null,null,0,0,0]
["",null,null,null,null,0,0,0]
["",null,null,null,null,0,0,0]
["",null,null,null,null,0,0,0]
["",null,null,null,null,0,0,0]
["",null,null,null,null,0,0,0]
["",null,null,null,null,0,0,0]
["",null,null,null,null,0,0,0]
["",null,null,null,null,0,0,0]
["",null,null,null,null,0,0,0]
["",null,null,null,null,0,0,0]
["",null,null,null,null,0,0,0]
["",null,null,null,null,0,0,0]
["",null,null,null,null,0,0,0]
["",null,null,null,null,0,0,0]
["",null,null,null,null,0,0,0]
["",null,null,null,null,0,0,0]
["",null,null,null,null,0,0,0]
["",null,null,null,null,0,0,0]
["",null,null,null,null,0,0,0]
["",null,null,null,null,0,0,0]
["",null,null,null,null,0,0,0]
["",null,null,null,null,0,0,0]
["",null,null,null,null,0,0,0]
["",null,null,null,null,0,0,0]
["",null,null,null,null,0,0,0]
["",null,null,null,null,0,0,0]
["",null,null,null,null,0,0,0]
["",null,null,null,null,0,0,0]
["",null,null,null,null,0,0,0]
["",null,null,null,null,0,0,0]
["",null,null,null,null,0,0,0]
["",null,null,null,null,0,0,0]
["",null,null,null,null,0,0,0]
["",null,null,null,null,0,0,0]
["",null,null,null,null,0,0,0]
["",null,null,null,null,0,0,0]
["",null,null,null,null,0,0,0]
["",null,null,null,null,0,0,0]
["",null,null,null,null,0,0,0]
["",null,null,null,null,0,0,0]
["",null,null,null,null,0,0,0]
["",null,null,null,null,0,0,0]
["",null,null,null,null,0,0,0]
["",null,null,null,null,0,0,0]
["",null,null,null,null,0,0,0]
["",null,null,null,null,0,0,0]
["",null,null,null,null,0,0,0]
["",null,null,null,null,0,0,0]
["",null,null,null,null,0,0,0]
["",null,null,null,null,0,0,0]
["",null,null,null,null,0,0,0]
["",null,null,null,null,0,0,0]
["",null,null,null,null,0,0,0]
["",null,null,null,null,0,0,0]
["",null,null,null,null,0,0,0]
["",null,null,null,null,0,0,0]
[{"$f":"IF(B211>0,ROW(A211)-18,\"\")","v":""},null,null,null,null,{"$f":"IF(D211<1,0,(B211/1000)*(C211/1000))","v":0},{"$f":"(B211/1000)*(C211/1000)*D211","v":0},{"$f":"IF(F211<0.5,G211,0)","v":0}]
["",null,null,null,null,0,0,0]
["",null,null,null,null,0,0,0]
["",null,null,null,null,0,0,0]
["",null,null,null,null,0,0,0]
["",null,null,null,null,0,0,0]
["",null,null,null,null,0,0,0]
["",null,null,null,null,0,0,0]
["",null,null,null,null,0,0,0]
["",null,null,null,null,0,0,0]
["",null,null,null,null,0,0,0]
["",null,null,null,null,0,0,0]
["",null,null,null,null,0,0,0]
["",null,null,null,null,0,0,0]
["",null,null,null,null,0,0,0]
["",null,null,null,null,0,0,0]
["",null,null,null,null,0,0,0]
["",null,null,null,null,0,0,0]
["",null,null,null,null,0,0,0]
["",null,null,null,null,0,0,0]
["",null,null,null,null,0,0,0]
["",null,null,null,null,0,0,0]
["",null,null,null,null,0,0,0]
["",null,null,null,null,0,0,0]
["",null,null,null,null,0,0,0]
["",null,null,null,null,0,0,0]
["",null,null,null,null,0,0,0]
["",null,null,null,null,0,0,0]
["",null,null,null,null,0,0,0]
["",null,null,null,null,0,0,0]
["",null,null,null,null,0,0,0]
["",null,null,null,null,0,0,0]
["",null,null,null,null,0,0,0]
["",null,null,null,null,0,0,0]
["",null,null,null,null,0,0,0]
["",null,null,null,null,0,0,0]
["",null,null,null,null,0,0,0]
["",null,null,null,null,0,0,0]
["",null,null,null,null,0,0,0]
["",null,null,null,null,0,0,0]
["",null,null,null,null,0,0,0]
["",null,null,null,null,0,0,0]
["",null,null,null,null,0,0,0]
["",null,null,null,null,0,0,0]
["",null,null,null,null,0,0,0]
["",null,null,null,null,0,0,0]
["",null,null,null,null,0,0,0]
["",null,null,null,null,0,0,0]
["",null,null,null,null,0,0,0]
["",null,null,null,null,0,0,0]
["",null,null,null,null,0,0,0]
["",null,null,null,null,0,0,0]
["",null,null,null,null,0,0,0]
["",null,null,null,null,0,0,0]
["",null,null,null,null,0,0,0]
["",null,null,null,null,0,0,0]
["",null,null,null,null,0,0,0]
["",null,null,null,null,0,0,0]
["",null,null,null,null,0,0,0]
["",null,null,null,null,0,0,0]
["",null,null,null,null,0,0,0]
["",null,null,null,null,0,0,0]
["",null,null,null,null,0,0,0]
["",null,null,null,null,0,0,0]
[{"$f":"IF(B275>0,ROW(A275)-18,\"\")","v":""},null,null,null,null,{"$f":"IF(D275<1,0,(B275/1000)*(C275/1000))","v":0},{"$f":"(B275/1000)*(C275/1000)*D275","v":0},{"$f":"IF(F275<0.5,G275,0)","v":0}]
["",null,null,null,null,0,0,0]
["",null,null,null,null,0,0,0]
["",null,null,null,null,0,0,0]
["",null,null,null,null,0,0,0]
["",null,null,null,null,0,0,0]
["",null,null,null,null,0,0,0]
["",null,null,null,null,0,0,0]
["",null,null,null,null,0,0,0]
["",null,null,null,null,0,0,0]
["",null,null,null,null,0,0,0]
["",null,null,null,null,0,0,0]
["",null,null,null,null,0,0,0]
["",null,null,null,null,0,0,0]
["",null,null,null,null,0,0,0]
["",null,null,null,null,0,0,0]
["",null,null,null,null,0,0,0]
["",null,null,null,null,0,0,0]
["",null,null,null,null,0,0,0]
["",null,null,null,null,0,0,0]
["",null,null,null,null,0,0,0]
["",null,null,null,null,0,0,0]
["",null,null,null,null,0,0,0]
["",null,null,null,null,0,0,0]
["",null,null,null,null,0,0,0]
["",null,null,null,null,0,0,0]
["",null,null,null,null,0,0,0]
["",null,null,null,null,0,0,0]
["",null,null,null,null,0,0,0]
["",null,null,null,null,0,0,0]
["",null,null,null,null,0,0,0]
["",null,null,null,null,0,0,0]
["",null,null,null,null,0,0,0]
["",null,null,null,null,0,0,0]
["",null,null,null,null,0,0,0]
["",null,null,null,null,0,0,0]
["",null,null,null,null,0,0,0]
["",null,null,null,null,0,0,0]
["",null,null,null,null,0,0,0]
["",null,null,null,null,0,0,0]
["",null,null,null,null,0,0,0]
["",null,null,null,null,0,0,0]
["",null,null,null,null,0,0,0]
["",null,null,null,null,0,0,0]
["",null,null,null,null,0,0,0]
["",null,null,null,null,0,0,0]
["",null,null,null,null,0,0,0]
["",null,null,null,null,0,0,0]
["",null,null,null,null,0,0,0]
["",null,null,null,null,0,0,0]
["",null,null,null,null,0,0,0]
["",null,null,null,null,0,0,0]
["",null,null,null,null,0,0,0]
["",null,null,null,null,0,0,0]
["",null,null,null,null,0,0,0]
["",null,null,null,null,0,0,0]
["",null,null,null,null,0,0,0]
["",null,null,null,null,0,0,0]
["",null,null,null,null,0,0,0]
["",null,null,null,null,0,0,0]
["",null,null,null,null,0,0,0]
["",null,null,null,null,0,0,0]
["",null,null,null,null,0,0,0]
["",null,null,null,null,0,0,0]
[{"$f":"IF(B339>0,ROW(A339)-18,\"\")","v":""},null,null,null,null,{"$f":"IF(D339<1,0,(B339/1000)*(C339/1000))","v":0},{"$f":"(B339/1000)*(C339/1000)*D339","v":0},{"$f":"IF(F339<0.5,G339,0)","v":0}]
["",null,null,null,null,0,0,0]
["",null,null,null,null,0,0,0]
["",null,null,null,null,0,0,0]
["",null,null,null,null,0,0,0]
["",null,null,null,null,0,0,0]
["",null,null,null,null,0,0,0]
["",null,null,null,null,0,0,0]
["",null,null,null,null,0,0,0]
["",null,null,null,null,0,0,0]
["",null,null,null,null,0,0,0]
["",null,null,null,null,0,0,0]
["",null,null,null,null,0,0,0]
["",null,null,null,null,0,0,0]
["",null,null,null,null,0,0,0]
["",null,null,null,null,0,0,0]
["",null,null,null,null,0,0,0]
["",null,null,null,null,0,0,0]
["",null,null,null,null,0,0,0]
["",null,null,null,null,0,0,0]
["",null,null,null,null,0,0,0]
["",null,null,null,null,0,0,0]
["",null,null,null,null,0,0,0]
["",null,null,null,null,0,0,0]
["",null,null,null,null,0,0,0]
["",null,null,null,null,0,0,0]
["",null,null,null,null,0,0,0]
["",null,null,null,null,0,0,0]
["",null,null,null,null,0,0,0]
["",null,null,null,null,0,0,0]
["",null,null,null,null,0,0,0]
["",null,null,null,null,0,0,0]
["",null,null,null,null,0,0,0]
["",null,null,null,null,0,0,0]
["",null,null,null,null,0,0,0]
["",null,null,null,null,0,0,0]
["",null,null,null,null,0,0,0]
["",null,null,null,null,0,0,0]
["",null,null,null,null,0,0,0]
["",null,null,null,null,0,0,0]
["",null,null,null,null,0,0,0]
["",null,null,null,null,0,0,0]
["",null,null,null,null,0,0,0]
["",null,null,null,null,0,0,0]
["",null,null,null,null,0,0,0]
["",null,null,null,null,0,0,0]
["",null,null,null,null,0,0,0]
["",null,null,null,null,0,0,0]
["",null,null,null,null,0,0,0]
["",null,null,null,null,0,0,0]
["",null,null,null,null,0,0,0]
["",null,null,null,null,0,0,0]
["",null,null,null,null,0,0,0]
["",null,null,null,null,0,0,0]
["",null,null,null,null,0,0,0]
["",null,null,null,null,0,0,0]
["",null,null,null,null,0,0,0]
["",null,null,null,null,0,0,0]
["",null,null,null,null,0,0,0]
["",null,null,null,null,0,0,0]
["",null,null,null,null,0,0,0]
["",null,null,null,null,0,0,0]
["",null,null,null,null,0,0,0]
["",null,null,null,null,0,0,0]
[{"$f":"IF(B403>0,ROW(A403)-18,\"\")","v":""},null,null,null,null,{"$f":"IF(D403<1,0,(B403/1000)*(C403/1000))","v":0},{"$f":"(B403/1000)*(C403/1000)*D403","v":0},{"$f":"IF(F403<0.5,G403,0)","v":0}]
["",null,null,null,null,0,0,0]
["",null,null,null,null,0,0,0]
["",null,null,null,null,0,0,0]
["",null,null,null,null,0,0,0]
["",null,null,null,null,0,0,0]
["",null,null,null,null,0,0,0]
["",null,null,null,null,0,0,0]
["",null,null,null,null,0,0,0]
["",null,null,null,null,0,0,0]
["",null,null,null,null,0,0,0]
["",null,null,null,null,0,0,0]
["",null,null,null,null,0,0,0]
["",null,null,null,null,0,0,0]
["",null,null,null,null,0,0,0]
["",null,null,null,null,0,0,0]
["",null,null,null,null,0,0,0]
["",null,null,null,null,0,0,0]
["",null,null,null,null,0,0,0]
["",null,null,null,null,0,0,0]
["",null,null,null,null,0,0,0]
["",null,null,null,null,0,0,0]
["",null,null,null,null,0,0,0]
["",null,null,null,null,0,0,0]
["",null,null,null,null,0,0,0]
["",null,null,null,null,0,0,0]
["",null,null,null,null,0,0,0]
["",null,null,null,null,0,0,0]
["",null,null,null,null,0,0,0]
["",null,null,null,null,0,0,0]
["",null,null,null,null,0,0,0]
["",null,null,null,null,0,0,0]
["",null,null,null,null,0,0,0]
["",null,null,null,null,0,0,0]
["",null,null,null,null,0,0,0]
["",null,null,null,null,0,0,0]
["",null,null,null,null,0,0,0]
["",null,null,null,null,0,0,0]
["",null,null,null,null,0,0,0]
["",null,null,null,null,0,0,0]
["",null,null,null,null,0,0,0]
["",null,null,null,null,0,0,0]
["",null,null,null,null,0,0,0]
["",null,null,null,null,0,0,0]
["",null,null,null,null,0,0,0]
["",null,null,null,null,0,0,0]
["",null,null,null,null,0,0,0]
["",null,null,null,null,0,0,0]
["",null,null,null,null,0,0,0]
["",null,null,null,null,0,0,0]
["",null,null,null,null,0,0,0]
["",null,null,null,null,0,0,0]
["",null,null,null,null,0,0,0]
["",null,null,null,null,0,0,0]
["",null,null,null,null,0,0,0]
["",null,null,null,null,0,0,0]
["",null,null,null,null,0,0,0]
["",null,null,null,null,0,0,0]
["",null,null,null,null,0,0,0]
["",null,null,null,null,0,0,0]
["",null,null,null,null,0,0,0]
["",null,null,null,null,0,0,0]
["",null,null,null,null,0,0,0]
["",null,null,null,null,0,0,0]
[{"$f":"IF(B467>0,ROW(A467)-18,\"\")","v":""},null,null,null,null,{"$f":"IF(D467<1,0,(B467/1000)*(C467/1000))","v":0},{"$f":"(B467/1000)*(C467/1000)*D467","v":0},{"$f":"IF(F467<0.5,G467,0)","v":0}]
["",null,null,null,null,0,0,0]
["",null,null,null,null,0,0,0]
["",null,null,null,null,0,0,0]
["",null,null,null,null,0,0,0]
["",null,null,null,null,0,0,0]
["",null,null,null,null,0,0,0]
["",null,null,null,null,0,0,0]
["",null,null,null,null,0,0,0]
["",null,null,null,null,0,0,0]
["",null,null,null,null,0,0,0]
["",null,null,null,null,0,0,0]
["",null,null,null,null,0,0,0]
["",null,null,null,null,0,0,0]
["",null,null,null,null,0,0,0]
["",null,null,null,null,0,0,0]
["",null,null,null,null,0,0,0]
["",null,null,null,null,0,0,0]
["",null,null,null,null,0,0,0]
["",null,null,null,null,0,0,0]
["",null,null,null,null,0,0,0]
["",null,null,null,null,0,0,0]
["",null,null,null,null,0,0,0]
["",null,null,null,null,0,0,0]
["",null,null,null,null,0,0,0]
["",null,null,null,null,0,0,0]
["",null,null,null,null,0,0,0]
["",null,null,null,null,0,0,0]
["",null,null,null,null,0,0,0]
["",null,null,null,null,0,0,0]
["",null,null,null,null,0,0,0]
["",null,null,null,null,0,0,0]
["",null,null,null,null,0,0,0]
["",null,null,null,null,0,0,0]
["",null,null,null,null,0,0,0]
["",null,null,null,null,0,0,0]
["",null,null,null,null,0,0,0]
["",null,null,null,null,0,0,0]
["",null,null,null,null,0,0,0]
["",null,null,null,null,0,0,0]
["",null,null,null,null,0,0,0]
["",null,null,null,null,0,0,0]
["",null,null,null,null,0,0,0]
["",null,null,null,null,0,0,0]
["",null,null,null,null,0,0,0]
["",null,null,null,null,0,0,0]
["",null,null,null,null,0,0,0]
["",null,null,null,null,0,0,0]
["",null,null,null,null,0,0,0]
["",null,null,null,null,0,0,0]
["",null,null,null,null,0,0,0]
["",null,null,null,null,0,0,0]
["",null,null,null,null,0,0,0]
["",null,null,null,null,0,0,0]
["",null,null,null,null,0,0,0]
["",null,null,null,null,0,0,0]
["",null,null,null,null,0,0,0]
["",null,null,null,null,0,0,0]
["",null,null,null,null,0,0,0]
["",null,null,null,null,0,0,0]
["",null,null,null,null,0,0,0]
["",null,null,null,null,0,0,0]
["",null,null,null,null,0,0,0]
["",null,null,null,null,0,0,0]
[{"$f":"IF(B531>0,ROW(A531)-18,\"\")","v":""},null,null,null,null,{"$f":"IF(D531<1,0,(B531/1000)*(C531/1000))","v":0},{"$f":"(B531/1000)*(C531/1000)*D531","v":0},{"$f":"IF(F531<0.5,G531,0)","v":0}]
["",null,null,null,null,0,0,0]
["",null,null,null,null,0,0,0]
["",null,null,null,null,0,0,0]
["",null,null,null,null,0,0,0]
["",null,null,null,null,0,0,0]
["",null,null,null,null,0,0,0]
["",null,null,null,null,0,0,0]
["",null,null,null,null,0,0,0]
["",null,null,null,null,0,0,0]
["",null,null,null,null,0,0,0]
["",null,null,null,null,0,0,0]
["",null,null,null,null,0,0,0]
["",null,null,null,null,0,0,0]
["",null,null,null,null,0,0,0]
["",null,null,null,null,0,0,0]
["",null,null,null,null,0,0,0]
["",null,null,null,null,0,0,0]
["",null,null,null,null,0,0,0]
["",null,null,null,null,0,0,0]
["",null,null,null,null,0,0,0]
["",null,null,null,null,0,0,0]
["",null,null,null,null,0,0,0]
["",null,null,null,null,0,0,0]
["",null,null,null,null,0,0,0]
["",null,null,null,null,0,0,0]
["",null,null,null,null,0,0,0]
["",null,null,null,null,0,0,0]
["",null,null,null,null,0,0,0]
["",null,null,null,null,0,0,0]
["",null,null,null,null,0,0,0]
["",null,null,null,null,0,0,0]
["",null,null,null,null,0,0,0]
["",null,null,null,null,0,0,0]
["",null,null,null,null,0,0,0]
["",null,null,null,null,0,0,0]
["",null,null,null,null,0,0,0]
["",null,null,null,null,0,0,0]
["",null,null,null,null,0,0,0]
["",null,null,null,null,0,0,0]
["",null,null,null,null,0,0,0]
["",null,null,null,null,0,0,0]
["",null,null,null,null,0,0,0]
["",null,null,null,null,0,0,0]
["",null,null,null,null,0,0,0]
["",null,null,null,null,0,0,0]
["",null,null,null,null,0,0,0]
["",null,null,null,null,0,0,0]
["",null,null,null,null,0,0,0]
["",null,null,null,null,0,0,0]
["",null,null,null,null,0,0,0]
["",null,null,null,null,0,0,0]
["",null,null,null,null,0,0,0]
["",null,null,null,null,0,0,0]
["",null,null,null,null,0,0,0]
["",null,null,null,null,0,0,0]
["",null,null,null,null,0,0,0]
["",null,null,null,null,0,0,0]
["",null,null,null,null,0,0,0]
["",null,null,null,null,0,0,0]
["",null,null,null,null,0,0,0]
["",null,null,null,null,0,0,0]
["",null,null,null,null,0,0,0]
["",null,null,null,null,0,0,0]
[{"$f":"IF(B595>0,ROW(A595)-18,\"\")","v":""},null,null,null,null,{"$f":"IF(D595<1,0,(B595/1000)*(C595/1000))","v":0},{"$f":"(B595/1000)*(C595/1000)*D595","v":0},{"$f":"IF(F595<0.5,G595,0)","v":0}]
["",null,null,null,null,0,0,0]
["",null,null,null,null,0,0,0]
["",null,null,null,null,0,0,0]
["",null,null,null,null,0,0,0]
["",null,null,null,null,0,0,0]
["",null,null,null,null,0,0,0]
["",null,null,null,null,0,0,0]
["",null,null,null,null,0,0,0]
["",null,null,null,null,0,0,0]
["",null,null,null,null,0,0,0]
["",null,null,null,null,0,0,0]
["",null,null,null,null,0,0,0]
["",null,null,null,null,0,0,0]
["",null,null,null,null,0,0,0]
["",null,null,null,null,0,0,0]
["",null,null,null,null,0,0,0]
["",null,null,null,null,0,0,0]
["",null,null,null,null,0,0,0]
["",null,null,null,null,0,0,0]
["",null,null,null,null,0,0,0]
["",null,null,null,null,0,0,0]
["",null,null,null,null,0,0,0]
["",null,null,null,null,0,0,0]
["",null,null,null,null,0,0,0]
["",null,null,null,null,0,0,0]
["",null,null,null,null,0,0,0]
["",null,null,null,null,0,0,0]
["",null,null,null,null,0,0,0]
["",null,null,null,null,0,0,0]
["",null,null,null,null,0,0,0]
["",null,null,null,null,0,0,0]
["",null,null,null,null,0,0,0]
["",null,null,null,null,0,0,0]
["",null,null,null,null,0,0,0]
["",null,null,null,null,0,0,0]
["",null,null,null,null,0,0,0]
["",null,null,null,null,0,0,0]
["",null,null,null,null,0,0,0]
["",null,null,null,null,0,0,0]
["",null,null,null,null,0,0,0]
["",null,null,null,null,0,0,0]
["",null,null,null,null,0,0,0]
["",null,null,null,null,0,0,0]
["",null,null,null,null,0,0,0]
["",null,null,null,null,0,0,0]
["",null,null,null,null,0,0,0]
["",null,null,null,null,0,0,0]
["",null,null,null,null,0,0,0]
["",null,null,null,null,0,0,0]
["",null,null,null,null,0,0,0]
["",null,null,null,null,0,0,0]
["",null,null,null,null,0,0,0]
["",null,null,null,null,0,0,0]
["",null,null,null,null,0,0,0]
["",null,null,null,null,0,0,0]
["",null,null,null,null,0,0,0]
["",null,null,null,null,0,0,0]
["",null,null,null,null,0,0,0]
["",null,null,null,null,0,0,0]
["",null,null,null,null,0,0,0]
["",null,null,null,null,0,0,0]
["",null,null,null,null,0,0,0]
["",null,null,null,null,0,0,0]
[{"$f":"IF(B659>0,ROW(A659)-18,\"\")","v":""},null,null,null,null,{"$f":"IF(D659<1,0,(B659/1000)*(C659/1000))","v":0},{"$f":"(B659/1000)*(C659/1000)*D659","v":0},{"$f":"IF(F659<0.5,G659,0)","v":0}]
["",null,null,null,null,0,0,0]
["",null,null,null,null,0,0,0]
["",null,null,null,null,0,0,0]
["",null,null,null,null,0,0,0]
["",null,null,null,null,0,0,0]
["",null,null,null,null,0,0,0]
["",null,null,null,null,0,0,0]
["",null,null,null,null,0,0,0]
["",null,null,null,null,0,0,0]
["",null,null,null,null,0,0,0]
["",null,null,null,null,0,0,0]
["",null,null,null,null,0,0,0]
["",null,null,null,null,0,0,0]
["",null,null,null,null,0,0,0]
["",null,null,null,null,0,0,0]
["",null,null,null,null,0,0,0]
["",null,null,null,null,0,0,0]
["",null,null,null,null,0,0,0]
["",null,null,null,null,0,0,0]
["",null,null,null,null,0,0,0]
["",null,null,null,null,0,0,0]
["",null,null,null,null,0,0,0]
["",null,null,null,null,0,0,0]
["",null,null,null,null,0,0,0]
["",null,null,null,null,0,0,0]
["",null,null,null,null,0,0,0]
["",null,null,null,null,0,0,0]
["",null,null,null,null,0,0,0]
["",null,null,null,null,0,0,0]
["",null,null,null,null,0,0,0]
["",null,null,null,null,0,0,0]
["",null,null,null,null,0,0,0]
["",null,null,null,null,0,0,0]
["",null,null,null,null,0,0,0]
["",null,null,null,null,0,0,0]
["",null,null,null,null,0,0,0]
["",null,null,null,null,0,0,0]
["",null,null,null,null,0,0,0]
["",null,null,null,null,0,0,0]
["",null,null,null,null,0,0,0]
["",null,null,null,null,0,0,0]
["",null,null,null,null,0,0,0]
["",null,null,null,null,0,0,0]
["",null,null,null,null,0,0,0]
["",null,null,null,null,0,0,0]
["",null,null,null,null,0,0,0]
["",null,null,null,null,0,0,0]
["",null,null,null,null,0,0,0]
["",null,null,null,null,0,0,0]
["",null,null,null,null,0,0,0]
["",null,null,null,null,0,0,0]
["",null,null,null,null,0,0,0]
["",null,null,null,null,0,0,0]
["",null,null,null,null,0,0,0]
["",null,null,null,null,0,0,0]
["",null,null,null,null,0,0,0]
["",null,null,null,null,0,0,0]
["",null,null,null,null,0,0,0]
["",null,null,null,null,0,0,0]
["",null,null,null,null,0,0,0]
["",null,null,null,null,0,0,0]
["",null,null,null,null,0,0,0]
["",null,null,null,null,0,0,0]
[{"$f":"IF(B723>0,ROW(A723)-18,\"\")","v":""},null,null,null,null,{"$f":"IF(D723<1,0,(B723/1000)*(C723/1000))","v":0},{"$f":"(B723/1000)*(C723/1000)*D723","v":0},{"$f":"IF(F723<0.5,G723,0)","v":0}]
["",null,null,null,null,0,0,0]
["",null,null,null,null,0,0,0]
["",null,null,null,null,0,0,0]
["",null,null,null,null,0,0,0]
["",null,null,null,null,0,0,0]
["",null,null,null,null,0,0,0]
["",null,null,null,null,0,0,0]
["",null,null,null,null,0,0,0]
["",null,null,null,null,0,0,0]
["",null,null,null,null,0,0,0]
["",null,null,null,null,0,0,0]
["",null,null,null,null,0,0,0]
["",null,null,null,null,0,0,0]
["",null,null,null,null,0,0,0]
["",null,null,null,null,0,0,0]
["",null,null,null,null,0,0,0]
["",null,null,null,null,0,0,0]
["",null,null,null,null,0,0,0]
["",null,null,null,null,0,0,0]
["",null,null,null,null,0,0,0]
["",null,null,null,null,0,0,0]
["",null,null,null,null,0,0,0]
["",null,null,null,null,0,0,0]
["",null,null,null,null,0,0,0]
["",null,null,null,null,0,0,0]
["",null,null,null,null,0,0,0]
["",null,null,null,null,0,0,0]
["",null,null,null,null,0,0,0]
["",null,null,null,null,0,0,0]
["",null,null,null,null,0,0,0]
["",null,null,null,null,0,0,0]
["",null,null,null,null,0,0,0]
["",null,null,null,null,0,0,0]
["",null,null,null,null,0,0,0]
["",null,null,null,null,0,0,0]
["",null,null,null,null,0,0,0]
["",null,null,null,null,0,0,0]
["",null,null,null,null,0,0,0]
["",null,null,null,null,0,0,0]
["",null,null,null,null,0,0,0]
["",null,null,null,null,0,0,0]
["",null,null,null,null,0,0,0]
["",null,null,null,null,0,0,0]
["",null,null,null,null,0,0,0]
["",null,null,null,null,0,0,0]
["",null,null,null,null,0,0,0]
["",null,null,null,null,0,0,0]
["",null,null,null,null,0,0,0]
["",null,null,null,null,0,0,0]
["",null,null,null,null,0,0,0]
["",null,null,null,null,0,0,0]
["",null,null,null,null,0,0,0]
["",null,null,null,null,0,0,0]
["",null,null,null,null,0,0,0]
["",null,null,null,null,0,0,0]
["",null,null,null,null,0,0,0]
["",null,null,null,null,0,0,0]
["",null,null,null,null,0,0,0]
["",null,null,null,null,0,0,0]
["",null,null,null,null,0,0,0]
["",null,null,null,null,0,0,0]
["",null,null,null,null,0,0,0]
["",null,null,null,null,0,0,0]
[{"$f":"IF(B787>0,ROW(A787)-18,\"\")","v":""},null,null,null,null,{"$f":"IF(D787<1,0,(B787/1000)*(C787/1000))","v":0},{"$f":"(B787/1000)*(C787/1000)*D787","v":0},{"$f":"IF(F787<0.5,G787,0)","v":0}]
["",null,null,null,null,0,0,0]
["",null,null,null,null,0,0,0]
["",null,null,null,null,0,0,0]
["",null,null,null,null,0,0,0]
["",null,null,null,null,0,0,0]
["",null,null,null,null,0,0,0]
["",null,null,null,null,0,0,0]
["",null,null,null,null,0,0,0]
["",null,null,null,null,0,0,0]
["",null,null,null,null,0,0,0]
["",null,null,null,null,0,0,0]
["",null,null,null,null,0,0,0]
["",null,null,null,null,0,0,0]
["",null,null,null,null,0,0,0]
["",null,null,null,null,0,0,0]
["",null,null,null,null,0,0,0]
["",null,null,null,null,0,0,0]
["",null,null,null,null,0,0,0]
["",null,null,null,null,0,0,0]
["",null,null,null,null,0,0,0]
["",null,null,null,null,0,0,0]
["",null,null,null,null,0,0,0]
["",null,null,null,null,0,0,0]
["",null,null,null,null,0,0,0]
["",null,null,null,null,0,0,0]
["",null,null,null,null,0,0,0]
["",null,null,null,null,0,0,0]
["",null,null,null,null,0,0,0]
["",null,null,null,null,0,0,0]
["",null,null,null,null,0,0,0]
["",null,null,null,null,0,0,0]
["",null,null,null,null,0,0,0]
["",null,null,null,null,0,0,0]
["",null,null,null,null,0,0,0]
["",null,null,null,null,0,0,0]
["",null,null,null,null,0,0,0]
["",null,null,null,null,0,0,0]
["",null,null,null,null,0,0,0]
["",null,null,null,null,0,0,0]
["",null,null,null,null,0,0,0]
["",null,null,null,null,0,0,0]
["",null,null,null,null,0,0,0]
["",null,null,null,null,0,0,0]
["",null,null,null,null,0,0,0]
["",null,null,null,null,0,0,0]
["",null,null,null,null,0,0,0]
["",null,null,null,null,0,0,0]
["",null,null,null,null,0,0,0]
["",null,null,null,null,0,0,0]
["",null,null,null,null,0,0,0]
["",null,null,null,null,0,0,0]
["",null,null,null,null,0,0,0]
["",null,null,null,null,0,0,0]
["",null,null,null,null,0,0,0]
["",null,null,null,null,0,0,0]
["",null,null,null,null,0,0,0]
["",null,null,null,null,0,0,0]
["",null,null,null,null,0,0,0]
["",null,null,null,null,0,0,0]
["",null,null,null,null,0,0,0]
["",null,null,null,null,0,0,0]
["",null,null,null,null,0,0,0]
["",null,null,null,null,0,0,0]
[{"$f":"IF(B851>0,ROW(A851)-18,\"\")","v":""},null,null,null,null,{"$f":"IF(D851<1,0,(B851/1000)*(C851/1000))","v":0},{"$f":"(B851/1000)*(C851/1000)*D851","v":0},{"$f":"IF(F851<0.5,G851,0)","v":0}]
["",null,null,null,null,0,0,0]
["",null,null,null,null,0,0,0]
["",null,null,null,null,0,0,0]
["",null,null,null,null,0,0,0]
["",null,null,null,null,0,0,0]
["",null,null,null,null,0,0,0]
["",null,null,null,null,0,0,0]
["",null,null,null,null,0,0,0]
["",null,null,null,null,0,0,0]
["",null,null,null,null,0,0,0]
["",null,null,null,null,0,0,0]
["",null,null,null,null,0,0,0]
["",null,null,null,null,0,0,0]
["",null,null,null,null,0,0,0]
["",null,null,null,null,0,0,0]
["",null,null,null,null,0,0,0]
["",null,null,null,null,0,0,0]
["",null,null,null,null,0,0,0]
["",null,null,null,null,0,0,0]
["",null,null,null,null,0,0,0]
["",null,null,null,null,0,0,0]
["",null,null,null,null,0,0,0]
["",null,null,null,null,0,0,0]
["",null,null,null,null,0,0,0]
["",null,null,null,null,0,0,0]
["",null,null,null,null,0,0,0]
["",null,null,null,null,0,0,0]
["",null,null,null,null,0,0,0]
["",null,null,null,null,0,0,0]
["",null,null,null,null,0,0,0]
["",null,null,null,null,0,0,0]
["",null,null,null,null,0,0,0]
["",null,null,null,null,0,0,0]
["",null,null,null,null,0,0,0]
["",null,null,null,null,0,0,0]
["",null,null,null,null,0,0,0]
["",null,null,null,null,0,0,0]
["",null,null,null,null,0,0,0]
["",null,null,null,null,0,0,0]
["",null,null,null,null,0,0,0]
["",null,null,null,null,0,0,0]
["",null,null,null,null,0,0,0]
["",null,null,null,null,0,0,0]
["",null,null,null,null,0,0,0]
["",null,null,null,null,0,0,0]
["",null,null,null,null,0,0,0]
["",null,null,null,null,0,0,0]
["",null,null,null,null,0,0,0]
["",null,null,null,null,0,0,0]
["",null,null,null,null,0,0,0]
["",null,null,null,null,0,0,0]
["",null,null,null,null,0,0,0]
["",null,null,null,null,0,0,0]
["",null,null,null,null,0,0,0]
["",null,null,null,null,0,0,0]
["",null,null,null,null,0,0,0]
["",null,null,null,null,0,0,0]
["",null,null,null,null,0,0,0]
["",null,null,null,null,0,0,0]
["",null,null,null,null,0,0,0]
["",null,null,null,null,0,0,0]
["",null,null,null,null,0,0,0]
["",null,null,null,null,0,0,0]
[{"$f":"IF(B915>0,ROW(A915)-18,\"\")","v":""},null,null,null,null,{"$f":"IF(D915<1,0,(B915/1000)*(C915/1000))","v":0},{"$f":"(B915/1000)*(C915/1000)*D915","v":0},{"$f":"IF(F915<0.5,G915,0)","v":0}]
["",null,null,null,null,0,0,0]
["",null,null,null,null,0,0,0]
["",null,null,null,null,0,0,0]
["",null,null,null,null,0,0,0]
["",null,null,null,null,0,0,0]
["",null,null,null,null,0,0,0]
["",null,null,null,null,0,0,0]
["",null,null,null,null,0,0,0]
["",null,null,null,null,0,0,0]
["",null,null,null,null,0,0,0]
["",null,null,null,null,0,0,0]
["",null,null,null,null,0,0,0]
["",null,null,null,null,0,0,0]
["",null,null,null,null,0,0,0]
["",null,null,null,null,0,0,0]
["",null,null,null,null,0,0,0]
["",null,null,null,null,0,0,0]
["",null,null,null,null,0,0,0]
["",null,null,null,null,0,0,0]
["",null,null,null,null,0,0,0]
["",null,null,null,null,0,0,0]
["",null,null,null,null,0,0,0]
["",null,null,null,null,0,0,0]
["",null,null,null,null,0,0,0]
["",null,null,null,null,0,0,0]
["",null,null,null,null,0,0,0]
["",null,null,null,null,0,0,0]
["",null,null,null,null,0,0,0]
["",null,null,null,null,0,0,0]
["",null,null,null,null,0,0,0]
["",null,null,null,null,0,0,0]
["",null,null,null,null,0,0,0]
["",null,null,null,null,0,0,0]
["",null,null,null,null,0,0,0]
["",null,null,null,null,0,0,0]
["",null,null,null,null,0,0,0]
["",null,null,null,null,0,0,0]
["",null,null,null,null,0,0,0]
["",null,null,null,null,0,0,0]
["",null,null,null,null,0,0,0]
["",null,null,null,null,0,0,0]
["",null,null,null,null,0,0,0]
["",null,null,null,null,0,0,0]
["",null,null,null,null,0,0,0]
["",null,null,null,null,0,0,0]
["",null,null,null,null,0,0,0]
["",null,null,null,null,0,0,0]
["",null,null,null,null,0,0,0]
["",null,null,null,null,0,0,0]
["",null,null,null,null,0,0,0]
["",null,null,null,null,0,0,0]
["",null,null,null,null,0,0,0]
["",null,null,null,null,0,0,0]
["",null,null,null,null,0,0,0]
["",null,null,null,null,0,0,0]
["",null,null,null,null,0,0,0]
["",null,null,null,null,0,0,0]
["",null,null,null,null,0,0,0]
["",null,null,null,null,0,0,0]
["",null,null,null,null,0,0,0]
["",null,null,null,null,0,0,0]
["",null,null,null,null,0,0,0]
["",null,null,null,null,0,0,0]
[{"$f":"IF(B979>0,ROW(A979)-18,\"\")","v":""},null,null,null,null,{"$f":"IF(D979<1,0,(B979/1000)*(C979/1000))","v":0},{"$f":"(B979/1000)*(C979/1000)*D979","v":0},{"$f":"IF(F979<0.5,G979,0)","v":0}]
["",null,null,null,null,0,0,0]
["",null,null,null,null,0,0,0]
["",null,null,null,null,0,0,0]
["",null,null,null,null,0,0,0]
["",null,null,null,null,0,0,0]
["",null,null,null,null,0,0,0]
["",null,null,null,null,0,0,0]
["",null,null,null,null,0,0,0]
["",null,null,null,null,0,0,0]
["",null,null,null,null,0,0,0]
["",null,null,null,null,0,0,0]
["",null,null,null,null,0,0,0]
["",null,null,null,null,0,0,0]
["",null,null,null,null,0,0,0]
["",null,null,null,null,0,0,0]
["",null,null,null,null,0,0,0]
["",null,null,null,null,0,0,0]
["",null,null,null,null,0,0,0]
["",null,null,null,null,0,0,0]
["",null,null,null,null,0,0,0]

{"sheet":"Sjab DecoboardPure","index":19,"n_rows":999,"n_cols":32,"rows_kept":999,"cut":false,"hidden":true,"merged":[[12,1,12,3],[12,4,12,5],[12,7,12,8],[15,31,16,36],[14,1,14,3],[14,4,14,5],[14,12,14,15],[14,17,14,20],[14,22,15,28],[15,1,16,5],[8,3,8,9],[10,1,10,3],[10,4,10,5],[10,7,10,8],[11,1,11,3],[11,4,11,5],[11,7,11,8],[1,3,1,9],[3,1,4,1],[3,3,3,9],[3,16,13,16],[3,30,13,30],[4,3,4,9],[5,1,6,1],[5,3,5,9],[5,11,13,11],[5,21,13,21],[13,7,13,8],[6,3,6,9],[6,12,12,14],[6,17,12,19],[7,1,8,1],[7,3,7,9]],"read":"row_number_cap"}
[]
[null,null,null,"BESTELFORMULIER DECOBOARD PURE"]
[]
[null,"Project","Naam",null,null,null,null,null,null,null,null,null,null,null,null,null,"Schuurrichting S <= 3070 mm",null,null,null,null,null,null,null,null,null,null,null,null,null,"Schuurrichting S = 3070 mm"]
[null,null,"Adres"]
[null,"Aannemer","Naam",null,null,null,null,null,null,null,null,"Richting P <= 1220 mm",null,null,null,null,null,null,null,null,null,"Richting P = 1220 mm"]
[null,null,"Adres"]
[null,"Handelaar","Naam"]
[null,null,"Adres"]
[]
[null,"Totale oppervlakte",null,null,{"$f":"SUM(G19:G999)","v":0},null,null,"Prijsaanvraag/Bestelling"]
[null,"Totale oppervlakte Platen < 0,5 m²",null,null,{"$f":"SUM(H19:H10999)","v":0},null,null,"Plaattype"]
[null,"Totale oppervlakte Platen > 0,5 m²",null,null,{"$f":"E11-E12","v":0},null,null,"Kleurcode"]
[null,null,null,null,null,null,null,"Kleurnaam"]
[null,"Totaal aantal Platen",null,null,{"$f":"SUM(D19:D999)","v":0},null,null,null,null,null,null,null,"Fig. 1 Schuurrichting S <= 3070 mm",null,null,null,null,"Fig. 2 Richting P <= 1220 mm",null,null,null,null,"Schuurrichting S = 3070 mm\r\nFig. a Maximale afmetingen horizontaal"]
[null,"AFMETINGEN IN MM INVULLEN!!",null,null,null,null,null,null,null,null,null,null,null,null,null,null,null,null,null,null,null,null,null,null,null,null,null,null,null,null,null,"Richting P = 1220 mm\r\nFig. b Maximale afmetingen verticaal"]
[]
["Rij","Schuurrichting S (mm)","Richting P (mm)","Aantal","Plaatmarkering","m²/stk","m² Totaal","< 0,5 m²","Palletnr.","Opmerkingen"]
[1,null,null,null,null,{"$f":"IF(D19<1,0,(B19/1000)*(C19/1000))","v":0},{"$f":"(B19/1000)*(C19/1000)*D19","v":0},{"$f":"IF(F19<0.5,G19,0)","v":0},null,null,null,null,null,{"$f":"SUM(M19:M999)","v":0}]
[{"$f":"IF(B20>0,ROW(A20)-18,\"\")","v":""},null,null,null,null,{"$f":"IF(D20<1,0,(B20/1000)*(C20/1000))","v":0},0,0]
["",null,null,null,null,0,0,0]
["",null,null,null,null,0,0,0]
["",null,null,null,null,0,0,0]
["",null,null,null,null,0,0,0]
["",null,null,null,null,0,0,0]
["",null,null,null,null,0,0,0]
["",null,null,null,null,0,0,0]
["",null,null,null,null,0,0,0]
["",null,null,null,null,0,0,0]
["",null,null,null,null,0,0,0]
["",null,null,null,null,0,0,0]
["",null,null,null,null,0,0,0]
["",null,null,null,null,0,0,0]
["",null,null,null,null,0,0,0]
["",null,null,null,null,0,0,0]
["",null,null,null,null,0,0,0]
["",null,null,null,null,0,0,0]
["",null,null,null,null,0,0,0]
["",null,null,null,null,0,0,0]
["",null,null,null,null,0,0,0]
["",null,null,null,null,0,0,0]
["",null,null,null,null,0,0,0]
["",null,null,null,null,0,0,0]
["",null,null,null,null,0,0,0]
["",null,null,null,null,0,0,0]
["",null,null,null,null,0,0,0]
["",null,null,null,null,0,0,0]
["",null,null,null,null,0,0,0]
["",null,null,null,null,0,0,0]
["",null,null,null,null,0,0,0]
["",null,null,null,null,0,0,0]
["",null,null,null,null,0,0,0]
["",null,null,null,null,0,0,0]
["",null,null,null,null,0,0,0]
["",null,null,null,null,0,0,0]
["",null,null,null,null,0,0,0]
["",null,null,null,null,0,0,0]
["",null,null,null,null,0,0,0]
["",null,null,null,null,0,0,0]
["",null,null,null,null,0,0,0]
["",null,null,null,null,0,0,0]
["",null,null,null,null,0,0,0]
["",null,null,null,null,0,0,0]
["",null,null,null,null,0,0,0]
["",null,null,null,null,0,0,0]
["",null,null,null,null,0,0,0]
["",null,null,null,null,0,0,0]
["",null,null,null,null,0,0,0]
["",null,null,null,null,0,0,0]
["",null,null,null,null,0,0,0]
["",null,null,null,null,0,0,0]
["",null,null,null,null,0,0,0]
["",null,null,null,null,0,0,0]
["",null,null,null,null,0,0,0]
["",null,null,null,null,0,0,0]
["",null,null,null,null,0,0,0]
["",null,null,null,null,0,0,0]
["",null,null,null,null,0,0,0]
["",null,null,null,null,0,0,0]
["",null,null,null,null,0,0,0]
["",null,null,null,null,0,0,0]
["",null,null,null,null,0,0,0]
[{"$f":"IF(B83>0,ROW(A83)-18,\"\")","v":""},null,null,null,null,0,{"$f":"(B83/1000)*(C83/1000)*D83","v":0},{"$f":"IF(F83<0.5,G83,0)","v":0}]
["",null,null,null,null,{"$f":"IF(D84<1,0,(B84/1000)*(C84/1000))","v":0},0,0]
["",null,null,null,null,0,0,0]
["",null,null,null,null,0,0,0]
["",null,null,null,null,0,0,0]
["",null,null,null,null,0,0,0]
["",null,null,null,null,0,0,0]
["",null,null,null,null,0,0,0]
["",null,null,null,null,0,0,0]
["",null,null,null,null,0,0,0]
["",null,null,null,null,0,0,0]
["",null,null,null,null,0,0,0]
["",null,null,null,null,0,0,0]
["",null,null,null,null,0,0,0]
["",null,null,null,null,0,0,0]
["",null,null,null,null,0,0,0]
["",null,null,null,null,0,0,0]
["",null,null,null,null,0,0,0]
["",null,null,null,null,0,0,0]
["",null,null,null,null,0,0,0]
["",null,null,null,null,0,0,0]
["",null,null,null,null,0,0,0]
["",null,null,null,null,0,0,0]
["",null,null,null,null,0,0,0]
["",null,null,null,null,0,0,0]
["",null,null,null,null,0,0,0]
["",null,null,null,null,0,0,0]
["",null,null,null,null,0,0,0]
["",null,null,null,null,0,0,0]
["",null,null,null,null,0,0,0]
["",null,null,null,null,0,0,0]
["",null,null,null,null,0,0,0]
["",null,null,null,null,0,0,0]
["",null,null,null,null,0,0,0]
["",null,null,null,null,0,0,0]
["",null,null,null,null,0,0,0]
["",null,null,null,null,0,0,0]
["",null,null,null,null,0,0,0]
["",null,null,null,null,0,0,0]
["",null,null,null,null,0,0,0]
["",null,null,null,null,0,0,0]
["",null,null,null,null,0,0,0]
["",null,null,null,null,0,0,0]
["",null,null,null,null,0,0,0]
["",null,null,null,null,0,0,0]
["",null,null,null,null,0,0,0]
["",null,null,null,null,0,0,0]
["",null,null,null,null,0,0,0]
["",null,null,null,null,0,0,0]
["",null,null,null,null,0,0,0]
["",null,null,null,null,0,0,0]
["",null,null,null,null,0,0,0]
["",null,null,null,null,0,0,0]
["",null,null,null,null,0,0,0]
["",null,null,null,null,0,0,0]
["",null,null,null,null,0,0,0]
["",null,null,null,null,0,0,0]
["",null,null,null,null,0,0,0]
["",null,null,null,null,0,0,0]
["",null,null,null,null,0,0,0]
["",null,null,null,null,0,0,0]
["",null,null,null,null,0,0,0]
["",null,null,null,null,0,0,0]
["",null,null,null,null,0,0,0]
[{"$f":"IF(B147>0,ROW(A147)-18,\"\")","v":""},null,null,null,null,0,{"$f":"(B147/1000)*(C147/1000)*D147","v":0},{"$f":"IF(F147<0.5,G147,0)","v":0}]
["",null,null,null,null,{"$f":"IF(D148<1,0,(B148/1000)*(C148/1000))","v":0},0,0]
["",null,null,null,null,0,0,0]
["",null,null,null,null,0,0,0]
["",null,null,null,null,0,0,0]
["",null,null,null,null,0,0,0]
["",null,null,null,null,0,0,0]
["",null,null,null,null,0,0,0]
["",null,null,null,null,0,0,0]
["",null,null,null,null,0,0,0]
["",null,null,null,null,0,0,0]
["",null,null,null,null,0,0,0]
["",null,null,null,null,0,0,0]
["",null,null,null,null,0,0,0]
["",null,null,null,null,0,0,0]
["",null,null,null,null,0,0,0]
["",null,null,null,null,0,0,0]
["",null,null,null,null,0,0,0]
["",null,null,null,null,0,0,0]
["",null,null,null,null,0,0,0]
["",null,null,null,null,0,0,0]
["",null,null,null,null,0,0,0]
["",null,null,null,null,0,0,0]
["",null,null,null,null,0,0,0]
["",null,null,null,null,0,0,0]
["",null,null,null,null,0,0,0]
["",null,null,null,null,0,0,0]
["",null,null,null,null,0,0,0]
["",null,null,null,null,0,0,0]
["",null,null,null,null,0,0,0]
["",null,null,null,null,0,0,0]
["",null,null,null,null,0,0,0]
["",null,null,null,null,0,0,0]
["",null,null,null,null,0,0,0]
["",null,null,null,null,0,0,0]
["",null,null,null,null,0,0,0]
["",null,null,null,null,0,0,0]
["",null,null,null,null,0,0,0]
["",null,null,null,null,0,0,0]
["",null,null,null,null,0,0,0]
["",null,null,null,null,0,0,0]
["",null,null,null,null,0,0,0]
["",null,null,null,null,0,0,0]
["",null,null,null,null,0,0,0]
["",null,null,null,null,0,0,0]
["",null,null,null,null,0,0,0]
["",null,null,null,null,0,0,0]
["",null,null,null,null,0,0,0]
["",null,null,null,null,0,0,0]
["",null,null,null,null,0,0,0]
["",null,null,null,null,0,0,0]
["",null,null,null,null,0,0,0]
["",null,null,null,null,0,0,0]
["",null,null,null,null,0,0,0]
["",null,null,null,null,0,0,0]
["",null,null,null,null,0,0,0]
["",null,null,null,null,0,0,0]
["",null,null,null,null,0,0,0]
["",null,null,null,null,0,0,0]
["",null,null,null,null,0,0,0]
["",null,null,null,null,0,0,0]
["",null,null,null,null,0,0,0]
["",null,null,null,null,0,0,0]
["",null,null,null,null,0,0,0]
[{"$f":"IF(B211>0,ROW(A211)-18,\"\")","v":""},null,null,null,null,0,{"$f":"(B211/1000)*(C211/1000)*D211","v":0},{"$f":"IF(F211<0.5,G211,0)","v":0}]
["",null,null,null,null,{"$f":"IF(D212<1,0,(B212/1000)*(C212/1000))","v":0},0,0]
["",null,null,null,null,0,0,0]
["",null,null,null,null,0,0,0]
["",null,null,null,null,0,0,0]
["",null,null,null,null,0,0,0]
["",null,null,null,null,0,0,0]
["",null,null,null,null,0,0,0]
["",null,null,null,null,0,0,0]
["",null,null,null,null,0,0,0]
["",null,null,null,null,0,0,0]
["",null,null,null,null,0,0,0]
["",null,null,null,null,0,0,0]
["",null,null,null,null,0,0,0]
["",null,null,null,null,0,0,0]
["",null,null,null,null,0,0,0]
["",null,null,null,null,0,0,0]
["",null,null,null,null,0,0,0]
["",null,null,null,null,0,0,0]
["",null,null,null,null,0,0,0]
["",null,null,null,null,0,0,0]
["",null,null,null,null,0,0,0]
["",null,null,null,null,0,0,0]
["",null,null,null,null,0,0,0]
["",null,null,null,null,0,0,0]
["",null,null,null,null,0,0,0]
["",null,null,null,null,0,0,0]
["",null,null,null,null,0,0,0]
["",null,null,null,null,0,0,0]
["",null,null,null,null,0,0,0]
["",null,null,null,null,0,0,0]
["",null,null,null,null,0,0,0]
["",null,null,null,null,0,0,0]
["",null,null,null,null,0,0,0]
["",null,null,null,null,0,0,0]
["",null,null,null,null,0,0,0]
["",null,null,null,null,0,0,0]
["",null,null,null,null,0,0,0]
["",null,null,null,null,0,0,0]
["",null,null,null,null,0,0,0]
["",null,null,null,null,0,0,0]
["",null,null,null,null,0,0,0]
["",null,null,null,null,0,0,0]
["",null,null,null,null,0,0,0]
["",null,null,null,null,0,0,0]
["",null,null,null,null,0,0,0]
["",null,null,null,null,0,0,0]
["",null,null,null,null,0,0,0]
["",null,null,null,null,0,0,0]
["",null,null,null,null,0,0,0]
["",null,null,null,null,0,0,0]
["",null,null,null,null,0,0,0]
["",null,null,null,null,0,0,0]
["",null,null,null,null,0,0,0]
["",null,null,null,null,0,0,0]
["",null,null,null,null,0,0,0]
["",null,null,null,null,0,0,0]
["",null,null,null,null,0,0,0]
["",null,null,null,null,0,0,0]
["",null,null,null,null,0,0,0]
["",null,null,null,null,0,0,0]
["",null,null,null,null,0,0,0]
["",null,null,null,null,0,0,0]
["",null,null,null,null,0,0,0]
[{"$f":"IF(B275>0,ROW(A275)-18,\"\")","v":""},null,null,null,null,0,{"$f":"(B275/1000)*(C275/1000)*D275","v":0},{"$f":"IF(F275<0.5,G275,0)","v":0}]
["",null,null,null,null,{"$f":"IF(D276<1,0,(B276/1000)*(C276/1000))","v":0},0,0]
["",null,null,null,null,0,0,0]
["",null,null,null,null,0,0,0]
["",null,null,null,null,0,0,0]
["",null,null,null,null,0,0,0]
["",null,null,null,null,0,0,0]
["",null,null,null,null,0,0,0]
["",null,null,null,null,0,0,0]
["",null,null,null,null,0,0,0]
["",null,null,null,null,0,0,0]
["",null,null,null,null,0,0,0]
["",null,null,null,null,0,0,0]
["",null,null,null,null,0,0,0]
["",null,null,null,null,0,0,0]
["",null,null,null,null,0,0,0]
["",null,null,null,null,0,0,0]
["",null,null,null,null,0,0,0]
["",null,null,null,null,0,0,0]
["",null,null,null,null,0,0,0]
["",null,null,null,null,0,0,0]
["",null,null,null,null,0,0,0]
["",null,null,null,null,0,0,0]
["",null,null,null,null,0,0,0]
["",null,null,null,null,0,0,0]
["",null,null,null,null,0,0,0]
["",null,null,null,null,0,0,0]
["",null,null,null,null,0,0,0]
["",null,null,null,null,0,0,0]
["",null,null,null,null,0,0,0]
["",null,null,null,null,0,0,0]
["",null,null,null,null,0,0,0]
["",null,null,null,null,0,0,0]
["",null,null,null,null,0,0,0]
["",null,null,null,null,0,0,0]
["",null,null,null,null,0,0,0]
["",null,null,null,null,0,0,0]
["",null,null,null,null,0,0,0]
["",null,null,null,null,0,0,0]
["",null,null,null,null,0,0,0]
["",null,null,null,null,0,0,0]
["",null,null,null,null,0,0,0]
["",null,null,null,null,0,0,0]
["",null,null,null,null,0,0,0]
["",null,null,null,null,0,0,0]
["",null,null,null,null,0,0,0]
["",null,null,null,null,0,0,0]
["",null,null,null,null,0,0,0]
["",null,null,null,null,0,0,0]
["",null,null,null,null,0,0,0]
["",null,null,null,null,0,0,0]
["",null,null,null,null,0,0,0]
["",null,null,null,null,0,0,0]
["",null,null,null,null,0,0,0]
["",null,null,null,null,0,0,0]
["",null,null,null,null,0,0,0]
["",null,null,null,null,0,0,0]
["",null,null,null,null,0,0,0]
["",null,null,null,null,0,0,0]
["",null,null,null,null,0,0,0]
["",null,null,null,null,0,0,0]
["",null,null,null,null,0,0,0]
["",null,null,null,null,0,0,0]
["",null,null,null,null,0,0,0]
[{"$f":"IF(B339>0,ROW(A339)-18,\"\")","v":""},null,null,null,null,0,{"$f":"(B339/1000)*(C339/1000)*D339","v":0},{"$f":"IF(F339<0.5,G339,0)","v":0}]
["",null,null,null,null,{"$f":"IF(D340<1,0,(B340/1000)*(C340/1000))","v":0},0,0]
["",null,null,null,null,0,0,0]
["",null,null,null,null,0,0,0]
["",null,null,null,null,0,0,0]
["",null,null,null,null,0,0,0]
["",null,null,null,null,0,0,0]
["",null,null,null,null,0,0,0]
["",null,null,null,null,0,0,0]
["",null,null,null,null,0,0,0]
["",null,null,null,null,0,0,0]
["",null,null,null,null,0,0,0]
["",null,null,null,null,0,0,0]
["",null,null,null,null,0,0,0]
["",null,null,null,null,0,0,0]
["",null,null,null,null,0,0,0]
["",null,null,null,null,0,0,0]
["",null,null,null,null,0,0,0]
["",null,null,null,null,0,0,0]
["",null,null,null,null,0,0,0]
["",null,null,null,null,0,0,0]
["",null,null,null,null,0,0,0]
["",null,null,null,null,0,0,0]
["",null,null,null,null,0,0,0]
["",null,null,null,null,0,0,0]
["",null,null,null,null,0,0,0]
["",null,null,null,null,0,0,0]
["",null,null,null,null,0,0,0]
["",null,null,null,null,0,0,0]
["",null,null,null,null,0,0,0]
["",null,null,null,null,0,0,0]
["",null,null,null,null,0,0,0]
["",null,null,null,null,0,0,0]
["",null,null,null,null,0,0,0]
["",null,null,null,null,0,0,0]
["",null,null,null,null,0,0,0]
["",null,null,null,null,0,0,0]
["",null,null,null,null,0,0,0]
["",null,null,null,null,0,0,0]
["",null,null,null,null,0,0,0]
["",null,null,null,null,0,0,0]
["",null,null,null,null,0,0,0]
["",null,null,null,null,0,0,0]
["",null,null,null,null,0,0,0]
["",null,null,null,null,0,0,0]
["",null,null,null,null,0,0,0]
["",null,null,null,null,0,0,0]
["",null,null,null,null,0,0,0]
["",null,null,null,null,0,0,0]
["",null,null,null,null,0,0,0]
["",null,null,null,null,0,0,0]
["",null,null,null,null,0,0,0]
["",null,null,null,null,0,0,0]
["",null,null,null,null,0,0,0]
["",null,null,null,null,0,0,0]
["",null,null,null,null,0,0,0]
["",null,null,null,null,0,0,0]
["",null,null,null,null,0,0,0]
["",null,null,null,null,0,0,0]
["",null,null,null,null,0,0,0]
["",null,null,null,null,0,0,0]
["",null,null,null,null,0,0,0]
["",null,null,null,null,0,0,0]
["",null,null,null,null,0,0,0]
[{"$f":"IF(B403>0,ROW(A403)-18,\"\")","v":""},null,null,null,null,0,{"$f":"(B403/1000)*(C403/1000)*D403","v":0},{"$f":"IF(F403<0.5,G403,0)","v":0}]
["",null,null,null,null,{"$f":"IF(D404<1,0,(B404/1000)*(C404/1000))","v":0},0,0]
["",null,null,null,null,0,0,0]
["",null,null,null,null,0,0,0]
["",null,null,null,null,0,0,0]
["",null,null,null,null,0,0,0]
["",null,null,null,null,0,0,0]
["",null,null,null,null,0,0,0]
["",null,null,null,null,0,0,0]
["",null,null,null,null,0,0,0]
["",null,null,null,null,0,0,0]
["",null,null,null,null,0,0,0]
["",null,null,null,null,0,0,0]
["",null,null,null,null,0,0,0]
["",null,null,null,null,0,0,0]
["",null,null,null,null,0,0,0]
["",null,null,null,null,0,0,0]
["",null,null,null,null,0,0,0]
["",null,null,null,null,0,0,0]
["",null,null,null,null,0,0,0]
["",null,null,null,null,0,0,0]
["",null,null,null,null,0,0,0]
["",null,null,null,null,0,0,0]
["",null,null,null,null,0,0,0]
["",null,null,null,null,0,0,0]
["",null,null,null,null,0,0,0]
["",null,null,null,null,0,0,0]
["",null,null,null,null,0,0,0]
["",null,null,null,null,0,0,0]
["",null,null,null,null,0,0,0]
["",null,null,null,null,0,0,0]
["",null,null,null,null,0,0,0]
["",null,null,null,null,0,0,0]
["",null,null,null,null,0,0,0]
["",null,null,null,null,0,0,0]
["",null,null,null,null,0,0,0]
["",null,null,null,null,0,0,0]
["",null,null,null,null,0,0,0]
["",null,null,null,null,0,0,0]
["",null,null,null,null,0,0,0]
["",null,null,null,null,0,0,0]
["",null,null,null,null,0,0,0]
["",null,null,null,null,0,0,0]
["",null,null,null,null,0,0,0]
["",null,null,null,null,0,0,0]
["",null,null,null,null,0,0,0]
["",null,null,null,null,0,0,0]
["",null,null,null,null,0,0,0]
["",null,null,null,null,0,0,0]
["",null,null,null,null,0,0,0]
["",null,null,null,null,0,0,0]
["",null,null,null,null,0,0,0]
["",null,null,null,null,0,0,0]
["",null,null,null,null,0,0,0]
["",null,null,null,null,0,0,0]
["",null,null,null,null,0,0,0]
["",null,null,null,null,0,0,0]
["",null,null,null,null,0,0,0]
["",null,null,null,null,0,0,0]
["",null,null,null,null,0,0,0]
["",null,null,null,null,0,0,0]
["",null,null,null,null,0,0,0]
["",null,null,null,null,0,0,0]
["",null,null,null,null,0,0,0]
[{"$f":"IF(B467>0,ROW(A467)-18,\"\")","v":""},null,null,null,null,0,{"$f":"(B467/1000)*(C467/1000)*D467","v":0},{"$f":"IF(F467<0.5,G467,0)","v":0}]
["",null,null,null,null,{"$f":"IF(D468<1,0,(B468/1000)*(C468/1000))","v":0},0,0]
["",null,null,null,null,0,0,0]
["",null,null,null,null,0,0,0]
["",null,null,null,null,0,0,0]
["",null,null,null,null,0,0,0]
["",null,null,null,null,0,0,0]
["",null,null,null,null,0,0,0]
["",null,null,null,null,0,0,0]
["",null,null,null,null,0,0,0]
["",null,null,null,null,0,0,0]
["",null,null,null,null,0,0,0]
["",null,null,null,null,0,0,0]
["",null,null,null,null,0,0,0]
["",null,null,null,null,0,0,0]
["",null,null,null,null,0,0,0]
["",null,null,null,null,0,0,0]
["",null,null,null,null,0,0,0]
["",null,null,null,null,0,0,0]
["",null,null,null,null,0,0,0]
["",null,null,null,null,0,0,0]
["",null,null,null,null,0,0,0]
["",null,null,null,null,0,0,0]
["",null,null,null,null,0,0,0]
["",null,null,null,null,0,0,0]
["",null,null,null,null,0,0,0]
["",null,null,null,null,0,0,0]
["",null,null,null,null,0,0,0]
["",null,null,null,null,0,0,0]
["",null,null,null,null,0,0,0]
["",null,null,null,null,0,0,0]
["",null,null,null,null,0,0,0]
["",null,null,null,null,0,0,0]
["",null,null,null,null,0,0,0]
["",null,null,null,null,0,0,0]
["",null,null,null,null,0,0,0]
["",null,null,null,null,0,0,0]
["",null,null,null,null,0,0,0]
["",null,null,null,null,0,0,0]
["",null,null,null,null,0,0,0]
["",null,null,null,null,0,0,0]
["",null,null,null,null,0,0,0]
["",null,null,null,null,0,0,0]
["",null,null,null,null,0,0,0]
["",null,null,null,null,0,0,0]
["",null,null,null,null,0,0,0]
["",null,null,null,null,0,0,0]
["",null,null,null,null,0,0,0]
["",null,null,null,null,0,0,0]
["",null,null,null,null,0,0,0]
["",null,null,null,null,0,0,0]
["",null,null,null,null,0,0,0]
["",null,null,null,null,0,0,0]
["",null,null,null,null,0,0,0]
["",null,null,null,null,0,0,0]
["",null,null,null,null,0,0,0]
["",null,null,null,null,0,0,0]
["",null,null,null,null,0,0,0]
["",null,null,null,null,0,0,0]
["",null,null,null,null,0,0,0]
["",null,null,null,null,0,0,0]
["",null,null,null,null,0,0,0]
["",null,null,null,null,0,0,0]
["",null,null,null,null,0,0,0]
[{"$f":"IF(B531>0,ROW(A531)-18,\"\")","v":""},null,null,null,null,0,{"$f":"(B531/1000)*(C531/1000)*D531","v":0},{"$f":"IF(F531<0.5,G531,0)","v":0}]
["",null,null,null,null,{"$f":"IF(D532<1,0,(B532/1000)*(C532/1000))","v":0},0,0]
["",null,null,null,null,0,0,0]
["",null,null,null,null,0,0,0]
["",null,null,null,null,0,0,0]
["",null,null,null,null,0,0,0]
["",null,null,null,null,0,0,0]
["",null,null,null,null,0,0,0]
["",null,null,null,null,0,0,0]
["",null,null,null,null,0,0,0]
["",null,null,null,null,0,0,0]
["",null,null,null,null,0,0,0]
["",null,null,null,null,0,0,0]
["",null,null,null,null,0,0,0]
["",null,null,null,null,0,0,0]
["",null,null,null,null,0,0,0]
["",null,null,null,null,0,0,0]
["",null,null,null,null,0,0,0]
["",null,null,null,null,0,0,0]
["",null,null,null,null,0,0,0]
["",null,null,null,null,0,0,0]
["",null,null,null,null,0,0,0]
["",null,null,null,null,0,0,0]
["",null,null,null,null,0,0,0]
["",null,null,null,null,0,0,0]
["",null,null,null,null,0,0,0]
["",null,null,null,null,0,0,0]
["",null,null,null,null,0,0,0]
["",null,null,null,null,0,0,0]
["",null,null,null,null,0,0,0]
["",null,null,null,null,0,0,0]
["",null,null,null,null,0,0,0]
["",null,null,null,null,0,0,0]
["",null,null,null,null,0,0,0]
["",null,null,null,null,0,0,0]
["",null,null,null,null,0,0,0]
["",null,null,null,null,0,0,0]
["",null,null,null,null,0,0,0]
["",null,null,null,null,0,0,0]
["",null,null,null,null,0,0,0]
["",null,null,null,null,0,0,0]
["",null,null,null,null,0,0,0]
["",null,null,null,null,0,0,0]
["",null,null,null,null,0,0,0]
["",null,null,null,null,0,0,0]
["",null,null,null,null,0,0,0]
["",null,null,null,null,0,0,0]
["",null,null,null,null,0,0,0]
["",null,null,null,null,0,0,0]
["",null,null,null,null,0,0,0]
["",null,null,null,null,0,0,0]
["",null,null,null,null,0,0,0]
["",null,null,null,null,0,0,0]
["",null,null,null,null,0,0,0]
["",null,null,null,null,0,0,0]
["",null,null,null,null,0,0,0]
["",null,null,null,null,0,0,0]
["",null,null,null,null,0,0,0]
["",null,null,null,null,0,0,0]
["",null,null,null,null,0,0,0]
["",null,null,null,null,0,0,0]
["",null,null,null,null,0,0,0]
["",null,null,null,null,0,0,0]
["",null,null,null,null,0,0,0]
[{"$f":"IF(B595>0,ROW(A595)-18,\"\")","v":""},null,null,null,null,0,{"$f":"(B595/1000)*(C595/1000)*D595","v":0},{"$f":"IF(F595<0.5,G595,0)","v":0}]
["",null,null,null,null,{"$f":"IF(D596<1,0,(B596/1000)*(C596/1000))","v":0},0,0]
["",null,null,null,null,0,0,0]
["",null,null,null,null,0,0,0]
["",null,null,null,null,0,0,0]
["",null,null,null,null,0,0,0]
["",null,null,null,null,0,0,0]
["",null,null,null,null,0,0,0]
["",null,null,null,null,0,0,0]
["",null,null,null,null,0,0,0]
["",null,null,null,null,0,0,0]
["",null,null,null,null,0,0,0]
["",null,null,null,null,0,0,0]
["",null,null,null,null,0,0,0]
["",null,null,null,null,0,0,0]
["",null,null,null,null,0,0,0]
["",null,null,null,null,0,0,0]
["",null,null,null,null,0,0,0]
["",null,null,null,null,0,0,0]
["",null,null,null,null,0,0,0]
["",null,null,null,null,0,0,0]
["",null,null,null,null,0,0,0]
["",null,null,null,null,0,0,0]
["",null,null,null,null,0,0,0]
["",null,null,null,null,0,0,0]
["",null,null,null,null,0,0,0]
["",null,null,null,null,0,0,0]
["",null,null,null,null,0,0,0]
["",null,null,null,null,0,0,0]
["",null,null,null,null,0,0,0]
["",null,null,null,null,0,0,0]
["",null,null,null,null,0,0,0]
["",null,null,null,null,0,0,0]
["",null,null,null,null,0,0,0]
["",null,null,null,null,0,0,0]
["",null,null,null,null,0,0,0]
["",null,null,null,null,0,0,0]
["",null,null,null,null,0,0,0]
["",null,null,null,null,0,0,0]
["",null,null,null,null,0,0,0]
["",null,null,null,null,0,0,0]
["",null,null,null,null,0,0,0]
["",null,null,null,null,0,0,0]
["",null,null,null,null,0,0,0]
["",null,null,null,null,0,0,0]
["",null,null,null,null,0,0,0]
["",null,null,null,null,0,0,0]
["",null,null,null,null,0,0,0]
["",null,null,null,null,0,0,0]
["",null,null,null,null,0,0,0]
["",null,null,null,null,0,0,0]
["",null,null,null,null,0,0,0]
["",null,null,null,null,0,0,0]
["",null,null,null,null,0,0,0]
["",null,null,null,null,0,0,0]
["",null,null,null,null,0,0,0]
["",null,null,null,null,0,0,0]
["",null,null,null,null,0,0,0]
["",null,null,null,null,0,0,0]
["",null,null,null,null,0,0,0]
["",null,null,null,null,0,0,0]
["",null,null,null,null,0,0,0]
["",null,null,null,null,0,0,0]
["",null,null,null,null,0,0,0]
[{"$f":"IF(B659>0,ROW(A659)-18,\"\")","v":""},null,null,null,null,0,{"$f":"(B659/1000)*(C659/1000)*D659","v":0},{"$f":"IF(F659<0.5,G659,0)","v":0}]
["",null,null,null,null,{"$f":"IF(D660<1,0,(B660/1000)*(C660/1000))","v":0},0,0]
["",null,null,null,null,0,0,0]
["",null,null,null,null,0,0,0]
["",null,null,null,null,0,0,0]
["",null,null,null,null,0,0,0]
["",null,null,null,null,0,0,0]
["",null,null,null,null,0,0,0]
["",null,null,null,null,0,0,0]
["",null,null,null,null,0,0,0]
["",null,null,null,null,0,0,0]
["",null,null,null,null,0,0,0]
["",null,null,null,null,0,0,0]
["",null,null,null,null,0,0,0]
["",null,null,null,null,0,0,0]
["",null,null,null,null,0,0,0]
["",null,null,null,null,0,0,0]
["",null,null,null,null,0,0,0]
["",null,null,null,null,0,0,0]
["",null,null,null,null,0,0,0]
["",null,null,null,null,0,0,0]
["",null,null,null,null,0,0,0]
["",null,null,null,null,0,0,0]
["",null,null,null,null,0,0,0]
["",null,null,null,null,0,0,0]
["",null,null,null,null,0,0,0]
["",null,null,null,null,0,0,0]
["",null,null,null,null,0,0,0]
["",null,null,null,null,0,0,0]
["",null,null,null,null,0,0,0]
["",null,null,null,null,0,0,0]
["",null,null,null,null,0,0,0]
["",null,null,null,null,0,0,0]
["",null,null,null,null,0,0,0]
["",null,null,null,null,0,0,0]
["",null,null,null,null,0,0,0]
["",null,null,null,null,0,0,0]
["",null,null,null,null,0,0,0]
["",null,null,null,null,0,0,0]
["",null,null,null,null,0,0,0]
["",null,null,null,null,0,0,0]
["",null,null,null,null,0,0,0]
["",null,null,null,null,0,0,0]
["",null,null,null,null,0,0,0]
["",null,null,null,null,0,0,0]
["",null,null,null,null,0,0,0]
["",null,null,null,null,0,0,0]
["",null,null,null,null,0,0,0]
["",null,null,null,null,0,0,0]
["",null,null,null,null,0,0,0]
["",null,null,null,null,0,0,0]
["",null,null,null,null,0,0,0]
["",null,null,null,null,0,0,0]
["",null,null,null,null,0,0,0]
["",null,null,null,null,0,0,0]
["",null,null,null,null,0,0,0]
["",null,null,null,null,0,0,0]
["",null,null,null,null,0,0,0]
["",null,null,null,null,0,0,0]
["",null,null,null,null,0,0,0]
["",null,null,null,null,0,0,0]
["",null,null,null,null,0,0,0]
["",null,null,null,null,0,0,0]
["",null,null,null,null,0,0,0]
[{"$f":"IF(B723>0,ROW(A723)-18,\"\")","v":""},null,null,null,null,0,{"$f":"(B723/1000)*(C723/1000)*D723","v":0},{"$f":"IF(F723<0.5,G723,0)","v":0}]
["",null,null,null,null,{"$f":"IF(D724<1,0,(B724/1000)*(C724/1000))","v":0},0,0]
["",null,null,null,null,0,0,0]
["",null,null,null,null,0,0,0]
["",null,null,null,null,0,0,0]
["",null,null,null,null,0,0,0]
["",null,null,null,null,0,0,0]
["",null,null,null,null,0,0,0]
["",null,null,null,null,0,0,0]
["",null,null,null,null,0,0,0]
["",null,null,null,null,0,0,0]
["",null,null,null,null,0,0,0]
["",null,null,null,null,0,0,0]
["",null,null,null,null,0,0,0]
["",null,null,null,null,0,0,0]
["",null,null,null,null,0,0,0]
["",null,null,null,null,0,0,0]
["",null,null,null,null,0,0,0]
["",null,null,null,null,0,0,0]
["",null,null,null,null,0,0,0]
["",null,null,null,null,0,0,0]
["",null,null,null,null,0,0,0]
["",null,null,null,null,0,0,0]
["",null,null,null,null,0,0,0]
["",null,null,null,null,0,0,0]
["",null,null,null,null,0,0,0]
["",null,null,null,null,0,0,0]
["",null,null,null,null,0,0,0]
["",null,null,null,null,0,0,0]
["",null,null,null,null,0,0,0]
["",null,null,null,null,0,0,0]
["",null,null,null,null,0,0,0]
["",null,null,null,null,0,0,0]
["",null,null,null,null,0,0,0]
["",null,null,null,null,0,0,0]
["",null,null,null,null,0,0,0]
["",null,null,null,null,0,0,0]
["",null,null,null,null,0,0,0]
["",null,null,null,null,0,0,0]
["",null,null,null,null,0,0,0]
["",null,null,null,null,0,0,0]
["",null,null,null,null,0,0,0]
["",null,null,null,null,0,0,0]
["",null,null,null,null,0,0,0]
["",null,null,null,null,0,0,0]
["",null,null,null,null,0,0,0]
["",null,null,null,null,0,0,0]
["",null,null,null,null,0,0,0]
["",null,null,null,null,0,0,0]
["",null,null,null,null,0,0,0]
["",null,null,null,null,0,0,0]
["",null,null,null,null,0,0,0]
["",null,null,null,null,0,0,0]
["",null,null,null,null,0,0,0]
["",null,null,null,null,0,0,0]
["",null,null,null,null,0,0,0]
["",null,null,null,null,0,0,0]
["",null,null,null,null,0,0,0]
["",null,null,null,null,0,0,0]
["",null,null,null,null,0,0,0]
["",null,null,null,null,0,0,0]
["",null,null,null,null,0,0,0]
["",null,null,null,null,0,0,0]
["",null,null,null,null,0,0,0]
[{"$f":"IF(B787>0,ROW(A787)-18,\"\")","v":""},null,null,null,null,0,{"$f":"(B787/1000)*(C787/1000)*D787","v":0},{"$f":"IF(F787<0.5,G787,0)","v":0}]
["",null,null,null,null,{"$f":"IF(D788<1,0,(B788/1000)*(C788/1000))","v":0},0,0]
["",null,null,null,null,0,0,0]
["",null,null,null,null,0,0,0]
["",null,null,null,null,0,0,0]
["",null,null,null,null,0,0,0]
["",null,null,null,null,0,0,0]
["",null,null,null,null,0,0,0]
["",null,null,null,null,0,0,0]
["",null,null,null,null,0,0,0]
["",null,null,null,null,0,0,0]
["",null,null,null,null,0,0,0]
["",null,null,null,null,0,0,0]
["",null,null,null,null,0,0,0]
["",null,null,null,null,0,0,0]
["",null,null,null,null,0,0,0]
["",null,null,null,null,0,0,0]
["",null,null,null,null,0,0,0]
["",null,null,null,null,0,0,0]
["",null,null,null,null,0,0,0]
["",null,null,null,null,0,0,0]
["",null,null,null,null,0,0,0]
["",null,null,null,null,0,0,0]
["",null,null,null,null,0,0,0]
["",null,null,null,null,0,0,0]
["",null,null,null,null,0,0,0]
["",null,null,null,null,0,0,0]
["",null,null,null,null,0,0,0]
["",null,null,null,null,0,0,0]
["",null,null,null,null,0,0,0]
["",null,null,null,null,0,0,0]
["",null,null,null,null,0,0,0]
["",null,null,null,null,0,0,0]
["",null,null,null,null,0,0,0]
["",null,null,null,null,0,0,0]
["",null,null,null,null,0,0,0]
["",null,null,null,null,0,0,0]
["",null,null,null,null,0,0,0]
["",null,null,null,null,0,0,0]
["",null,null,null,null,0,0,0]
["",null,null,null,null,0,0,0]
["",null,null,null,null,0,0,0]
["",null,null,null,null,0,0,0]
["",null,null,null,null,0,0,0]
["",null,null,null,null,0,0,0]
["",null,null,null,null,0,0,0]
["",null,null,null,null,0,0,0]
["",null,null,null,null,0,0,0]
["",null,null,null,null,0,0,0]
["",null,null,null,null,0,0,0]
["",null,null,null,null,0,0,0]
["",null,null,null,null,0,0,0]
["",null,null,null,null,0,0,0]
["",null,null,null,null,0,0,0]
["",null,null,null,null,0,0,0]
["",null,null,null,null,0,0,0]
["",null,null,null,null,0,0,0]
["",null,null,null,null,0,0,0]
["",null,null,null,null,0,0,0]
["",null,null,null,null,0,0,0]
["",null,null,null,null,0,0,0]
["",null,null,null,null,0,0,0]
["",null,null,null,null,0,0,0]
["",null,null,null,null,0,0,0]
[{"$f":"IF(B851>0,ROW(A851)-18,\"\")","v":""},null,null,null,null,0,{"$f":"(B851/1000)*(C851/1000)*D851","v":0},{"$f":"IF(F851<0.5,G851,0)","v":0}]
["",null,null,null,null,{"$f":"IF(D852<1,0,(B852/1000)*(C852/1000))","v":0},0,0]
["",null,null,null,null,0,0,0]
["",null,null,null,null,0,0,0]
["",null,null,null,null,0,0,0]
["",null,null,null,null,0,0,0]
["",null,null,null,null,0,0,0]
["",null,null,null,null,0,0,0]
["",null,null,null,null,0,0,0]
["",null,null,null,null,0,0,0]
["",null,null,null,null,0,0,0]
["",null,null,null,null,0,0,0]
["",null,null,null,null,0,0,0]
["",null,null,null,null,0,0,0]
["",null,null,null,null,0,0,0]
["",null,null,null,null,0,0,0]
["",null,null,null,null,0,0,0]
["",null,null,null,null,0,0,0]
["",null,null,null,null,0,0,0]
["",null,null,null,null,0,0,0]
["",null,null,null,null,0,0,0]
["",null,null,null,null,0,0,0]
["",null,null,null,null,0,0,0]
["",null,null,null,null,0,0,0]
["",null,null,null,null,0,0,0]
["",null,null,null,null,0,0,0]
["",null,null,null,null,0,0,0]
["",null,null,null,null,0,0,0]
["",null,null,null,null,0,0,0]
["",null,null,null,null,0,0,0]
["",null,null,null,null,0,0,0]
["",null,null,null,null,0,0,0]
["",null,null,null,null,0,0,0]
["",null,null,null,null,0,0,0]
["",null,null,null,null,0,0,0]
["",null,null,null,null,0,0,0]
["",null,null,null,null,0,0,0]
["",null,null,null,null,0,0,0]
["",null,null,null,null,0,0,0]
["",null,null,null,null,0,0,0]
["",null,null,null,null,0,0,0]
["",null,null,null,null,0,0,0]
["",null,null,null,null,0,0,0]
["",null,null,null,null,0,0,0]
["",null,null,null,null,0,0,0]
["",null,null,null,null,0,0,0]
["",null,null,null,null,0,0,0]
["",null,null,null,null,0,0,0]
["",null,null,null,null,0,0,0]
["",null,null,null,null,0,0,0]
["",null,null,null,null,0,0,0]
["",null,null,null,null,0,0,0]
["",null,null,null,null,0,0,0]
["",null,null,null,null,0,0,0]
["",null,null,null,null,0,0,0]
["",null,null,null,null,0,0,0]
["",null,null,null,null,0,0,0]
["",null,null,null,null,0,0,0]
["",null,null,null,null,0,0,0]
["",null,null,null,null,0,0,0]
["",null,null,null,null,0,0,0]
["",null,null,null,null,0,0,0]
["",null,null,null,null,0,0,0]
["",null,null,null,null,0,0,0]
[{"$f":"IF(B915>0,ROW(A915)-18,\"\")","v":""},null,null,null,null,0,{"$f":"(B915/1000)*(C915/1000)*D915","v":0},{"$f":"IF(F915<0.5,G915,0)","v":0}]
["",null,null,null,null,{"$f":"IF(D916<1,0,(B916/1000)*(C916/1000))","v":0},0,0]
["",null,null,null,null,0,0,0]
["",null,null,null,null,0,0,0]
["",null,null,null,null,0,0,0]
["",null,null,null,null,0,0,0]
["",null,null,null,null,0,0,0]
["",null,null,null,null,0,0,0]
["",null,null,null,null,0,0,0]
["",null,null,null,null,0,0,0]
["",null,null,null,null,0,0,0]
["",null,null,null,null,0,0,0]
["",null,null,null,null,0,0,0]
["",null,null,null,null,0,0,0]
["",null,null,null,null,0,0,0]
["",null,null,null,null,0,0,0]
["",null,null,null,null,0,0,0]
["",null,null,null,null,0,0,0]
["",null,null,null,null,0,0,0]
["",null,null,null,null,0,0,0]
["",null,null,null,null,0,0,0]
["",null,null,null,null,0,0,0]
["",null,null,null,null,0,0,0]
["",null,null,null,null,0,0,0]
["",null,null,null,null,0,0,0]
["",null,null,null,null,0,0,0]
["",null,null,null,null,0,0,0]
["",null,null,null,null,0,0,0]
["",null,null,null,null,0,0,0]
["",null,null,null,null,0,0,0]
["",null,null,null,null,0,0,0]
["",null,null,null,null,0,0,0]
["",null,null,null,null,0,0,0]
["",null,null,null,null,0,0,0]
["",null,null,null,null,0,0,0]
["",null,null,null,null,0,0,0]
["",null,null,null,null,0,0,0]
["",null,null,null,null,0,0,0]
["",null,null,null,null,0,0,0]
["",null,null,null,null,0,0,0]
["",null,null,null,null,0,0,0]
["",null,null,null,null,0,0,0]
["",null,null,null,null,0,0,0]
["",null,null,null,null,0,0,0]
["",null,null,null,null,0,0,0]
["",null,null,null,null,0,0,0]
["",null,null,null,null,0,0,0]
["",null,null,null,null,0,0,0]
["",null,null,null,null,0,0,0]
["",null,null,null,null,0,0,0]
["",null,null,null,null,0,0,0]
["",null,null,null,null,0,0,0]
["",null,null,null,null,0,0,0]
["",null,null,null,null,0,0,0]
["",null,null,null,null,0,0,0]
["",null,null,null,null,0,0,0]
["",null,null,null,null,0,0,0]
["",null,null,null,null,0,0,0]
["",null,null,null,null,0,0,0]
["",null,null,null,null,0,0,0]
["",null,null,null,null,0,0,0]
["",null,null,null,null,0,0,0]
["",null,null,null,null,0,0,0]
["",null,null,null,null,0,0,0]
[{"$f":"IF(B979>0,ROW(A979)-18,\"\")","v":""},null,null,null,null,0,{"$f":"(B979/1000)*(C979/1000)*D979","v":0},{"$f":"IF(F979<0.5,G979,0)","v":0}]
["",null,null,null,null,{"$f":"IF(D980<1,0,(B980/1000)*(C980/1000))","v":0},0,0]
["",null,null,null,null,0,0,0]
["",null,null,null,null,0,0,0]
["",null,null,null,null,0,0,0]
["",null,null,null,null,0,0,0]
["",null,null,null,null,0,0,0]
["",null,null,null,null,0,0,0]
["",null,null,null,null,0,0,0]
["",null,null,null,null,0,0,0]
["",null,null,null,null,0,0,0]
["",null,null,null,null,0,0,0]
["",null,null,null,null,0,0,0]
["",null,null,null,null,0,0,0]
["",null,null,null,null,0,0,0]
["",null,null,null,null,0,0,0]
["",null,null,null,null,0,0,0]
["",null,null,null,null,0,0,0]
["",null,null,null,null,0,0,0]
["",null,null,null,null,0,0,0]
[null,null,null,null,null,0,0,0]

{"sheet":"Sjab Ornimat","index":20,"n_rows":999,"n_cols":32,"rows_kept":999,"cut":false,"hidden":true,"merged":[[5,11,13,11],[3,1,4,1],[15,1,16,5],[3,3,3,9],[4,3,4,9],[5,3,5,9],[6,3,6,9],[7,3,7,9],[8,3,8,9],[1,3,1,9],[5,1,6,1],[12,4,12,5],[13,7,13,8],[14,1,14,3],[14,4,14,5],[7,1,8,1],[10,4,10,5],[11,4,11,5],[10,1,10,3],[11,1,11,3],[12,1,12,3],[11,7,11,8],[12,7,12,8],[10,7,10,8],[14,22,15,28],[3,30,13,30],[15,31,16,36],[6,12,12,14],[14,12,14,15],[5,16,13,16],[5,21,13,21],[6,17,12,19],[14,17,14,20]],"read":"row_number_cap"}
[]
[null,null,null,"FORMULAIRE DE COMMANDE ORNIMAT"]
[]
[null,"Projet","Nom",null,null,null,null,null,null,null,null,null,null,null,null,null,null,null,null,null,null,null,null,null,null,null,null,null,null,null,"Sens S = 3070 mm"]
[null,null,"Adresse"]
[null,"Entrepreneur","Nom",null,null,null,null,null,null,null,null,"Sens P <= 1220 mm",null,null,null,null,"Sens S <= 3070 mm",null,null,null,null,"Sens P = 1220 mm"]
[null,null,"Adresse"]
[null,"Commerçant","Nom"]
[null,null,"Adresse"]
[]
[null,"Surface totale",null,null,{"$f":"SUM(G19:G999)","v":0},null,null,"Demandes de prix/Commandes"]
[null,"Surface totale plaques < 0,5 m²",null,null,{"$f":"SUM(H19:H10999)","v":0},null,null,"Gamme de couleur"]
[null,"Surface totale plaques > 0,5 m²",null,null,{"$f":"E11-E12","v":0},null,null,"Code couleur"]
[null,null,null,null,null,null,null,"Nom couleur"]
[null,"Totale numbre des plaques",null,null,{"$f":"SUM(D19:D999)","v":0},null,null,null,null,null,null,null,"Fig. 1 Sens S <= 3070 mm",null,null,null,null,"Fig. 2 Sens P <= 1220 mm",null,null,null,null,"Sens S = 3070 mm\r\nFig. a Illustration dimensions maximales"]
[null,"RENSEIGNER LES DIMENSIONS EN MM !!",null,null,null,null,null,null,null,null,null,null,null,null,null,null,null,null,null,null,null,null,null,null,null,null,null,null,null,null,null,"Sens P = 1220 mm\r\nFig. b Dimensions maximales vertical"]
[]
["Ligne","Sens S (mm)","Sens P (mm)","Nombre","Marquage de plaque","m²/pièce","m² Totale","< 0,5 m²","Pallete nr.","Remarques"]
[1,null,null,null,null,{"$f":"IF(D19<1,0,(B19/1000)*(C19/1000))","v":0},{"$f":"(B19/1000)*(C19/1000)*D19","v":0},{"$f":"IF(F19<0.5,G19,0)","v":0},null,null,null,null,null,{"$f":"SUM(M19:M999)","v":0}]
[{"$f":"IF(B20>0,ROW(A20)-18,\"\")","v":""},null,null,null,null,0,0,0]
["",null,null,null,null,0,0,0]
["",null,null,null,null,0,0,0]
["",null,null,null,null,0,0,0]
["",null,null,null,null,0,0,0]
["",null,null,null,null,0,0,0]
["",null,null,null,null,0,0,0]
["",null,null,null,null,0,0,0]
["",null,null,null,null,0,0,0]
["",null,null,null,null,0,0,0]
["",null,null,null,null,0,0,0]
["",null,null,null,null,0,0,0]
["",null,null,null,null,0,0,0]
["",null,null,null,null,0,0,0]
["",null,null,null,null,0,0,0]
["",null,null,null,null,0,0,0]
["",null,null,null,null,0,0,0]
["",null,null,null,null,0,0,0]
["",null,null,null,null,0,0,0]
["",null,null,null,null,0,0,0]
["",null,null,null,null,0,0,0]
["",null,null,null,null,0,0,0]
["",null,null,null,null,0,0,0]
["",null,null,null,null,0,0,0]
["",null,null,null,null,0,0,0]
["",null,null,null,null,0,0,0]
["",null,null,null,null,0,0,0]
["",null,null,null,null,0,0,0]
["",null,null,null,null,0,0,0]
["",null,null,null,null,0,0,0]
["",null,null,null,null,0,0,0]
["",null,null,null,null,0,0,0]
["",null,null,null,null,0,0,0]
["",null,null,null,null,0,0,0]
["",null,null,null,null,0,0,0]
["",null,null,null,null,0,0,0]
["",null,null,null,null,0,0,0]
["",null,null,null,null,0,0,0]
["",null,null,null,null,0,0,0]
["",null,null,null,null,0,0,0]
["",null,null,null,null,0,0,0]
["",null,null,null,null,0,0,0]
["",null,null,null,null,0,0,0]
["",null,null,null,null,0,0,0]
["",null,null,null,null,0,0,0]
["",null,null,null,null,0,0,0]
["",null,null,null,null,0,0,0]
["",null,null,null,null,0,0,0]
["",null,null,null,null,0,0,0]
["",null,null,null,null,0,0,0]
["",null,null,null,null,0,0,0]
["",null,null,null,null,0,0,0]
["",null,null,null,null,0,0,0]
["",null,null,null,null,0,0,0]
["",null,null,null,null,0,0,0]
["",null,null,null,null,0,0,0]
["",null,null,null,null,0,0,0]
["",null,null,null,null,0,0,0]
["",null,null,null,null,0,0,0]
["",null,null,null,null,0,0,0]
["",null,null,null,null,0,0,0]
["",null,null,null,null,0,0,0]
["",null,null,null,null,0,0,0]
[{"$f":"IF(B83>0,ROW(A83)-18,\"\")","v":""},null,null,null,null,{"$f":"IF(D83<1,0,(B83/1000)*(C83/1000))","v":0},{"$f":"(B83/1000)*(C83/1000)*D83","v":0},{"$f":"IF(F83<0.5,G83,0)","v":0}]
["",null,null,null,null,0,0,0]
["",null,null,null,null,0,0,0]
["",null,null,null,null,0,0,0]
["",null,null,null,null,0,0,0]
["",null,null,null,null,0,0,0]
["",null,null,null,null,0,0,0]
["",null,null,null,null,0,0,0]
["",null,null,null,null,0,0,0]
["",null,null,null,null,0,0,0]
["",null,null,null,null,0,0,0]
["",null,null,null,null,0,0,0]
["",null,null,null,null,0,0,0]
["",null,null,null,null,0,0,0]
["",null,null,null,null,0,0,0]
["",null,null,null,null,0,0,0]
["",null,null,null,null,0,0,0]
["",null,null,null,null,0,0,0]
["",null,null,null,null,0,0,0]
["",null,null,null,null,0,0,0]
["",null,null,null,null,0,0,0]
["",null,null,null,null,0,0,0]
["",null,null,null,null,0,0,0]
["",null,null,null,null,0,0,0]
["",null,null,null,null,0,0,0]
["",null,null,null,null,0,0,0]
["",null,null,null,null,0,0,0]
["",null,null,null,null,0,0,0]
["",null,null,null,null,0,0,0]
["",null,null,null,null,0,0,0]
["",null,null,null,null,0,0,0]
["",null,null,null,null,0,0,0]
["",null,null,null,null,0,0,0]
["",null,null,null,null,0,0,0]
["",null,null,null,null,0,0,0]
["",null,null,null,null,0,0,0]
["",null,null,null,null,0,0,0]
["",null,null,null,null,0,0,0]
["",null,null,null,null,0,0,0]
["",null,null,null,null,0,0,0]
["",null,null,null,null,0,0,0]
["",null,null,null,null,0,0,0]
["",null,null,null,null,0,0,0]
["",null,null,null,null,0,0,0]
["",null,null,null,null,0,0,0]
["",null,null,null,null,0,0,0]
["",null,null,null,null,0,0,0]
["",null,null,null,null,0,0,0]
["",null,null,null,null,0,0,0]
["",null,null,null,null,0,0,0]
["",null,null,null,null,0,0,0]
["",null,null,null,null,0,0,0]
["",null,null,null,null,0,0,0]
["",null,null,null,null,0,0,0]
["",null,null,null,null,0,0,0]
["",null,null,null,null,0,0,0]
["",null,null,null,null,0,0,0]
["",null,null,null,null,0,0,0]
["",null,null,null,null,0,0,0]
["",null,null,null,null,0,0,0]
["",null,null,null,null,0,0,0]
["",null,null,null,null,0,0,0]
["",null,null,null,null,0,0,0]
["",null,null,null,null,0,0,0]
[{"$f":"IF(B147>0,ROW(A147)-18,\"\")","v":""},null,null,null,null,{"$f":"IF(D147<1,0,(B147/1000)*(C147/1000))","v":0},{"$f":"(B147/1000)*(C147/1000)*D147","v":0},{"$f":"IF(F147<0.5,G147,0)","v":0}]
["",null,null,null,null,0,0,0]
["",null,null,null,null,0,0,0]
["",null,null,null,null,0,0,0]
["",null,null,null,null,0,0,0]
["",null,null,null,null,0,0,0]
["",null,null,null,null,0,0,0]
["",null,null,null,null,0,0,0]
["",null,null,null,null,0,0,0]
["",null,null,null,null,0,0,0]
["",null,null,null,null,0,0,0]
["",null,null,null,null,0,0,0]
["",null,null,null,null,0,0,0]
["",null,null,null,null,0,0,0]
["",null,null,null,null,0,0,0]
["",null,null,null,null,0,0,0]
["",null,null,null,null,0,0,0]
["",null,null,null,null,0,0,0]
["",null,null,null,null,0,0,0]
["",null,null,null,null,0,0,0]
["",null,null,null,null,0,0,0]
["",null,null,null,null,0,0,0]
["",null,null,null,null,0,0,0]
["",null,null,null,null,0,0,0]
["",null,null,null,null,0,0,0]
["",null,null,null,null,0,0,0]
["",null,null,null,null,0,0,0]
["",null,null,null,null,0,0,0]
["",null,null,null,null,0,0,0]
["",null,null,null,null,0,0,0]
["",null,null,null,null,0,0,0]
["",null,null,null,null,0,0,0]
["",null,null,null,null,0,0,0]
["",null,null,null,null,0,0,0]
["",null,null,null,null,0,0,0]
["",null,null,null,null,0,0,0]
["",null,null,null,null,0,0,0]
["",null,null,null,null,0,0,0]
["",null,null,null,null,0,0,0]
["",null,null,null,null,0,0,0]
["",null,null,null,null,0,0,0]
["",null,null,null,null,0,0,0]
["",null,null,null,null,0,0,0]
["",null,null,null,null,0,0,0]
["",null,null,null,null,0,0,0]
["",null,null,null,null,0,0,0]
["",null,null,null,null,0,0,0]
["",null,null,null,null,0,0,0]
["",null,null,null,null,0,0,0]
["",null,null,null,null,0,0,0]
["",null,null,null,null,0,0,0]
["",null,null,null,null,0,0,0]
["",null,null,null,null,0,0,0]
["",null,null,null,null,0,0,0]
["",null,null,null,null,0,0,0]
["",null,null,null,null,0,0,0]
["",null,null,null,null,0,0,0]
["",null,null,null,null,0,0,0]
["",null,null,null,null,0,0,0]
["",null,null,null,null,0,0,0]
["",null,null,null,null,0,0,0]
["",null,null,null,null,0,0,0]
["",null,null,null,null,0,0,0]
["",null,null,null,null,0,0,0]
[{"$f":"IF(B211>0,ROW(A211)-18,\"\")","v":""},null,null,null,null,{"$f":"IF(D211<1,0,(B211/1000)*(C211/1000))","v":0},{"$f":"(B211/1000)*(C211/1000)*D211","v":0},{"$f":"IF(F211<0.5,G211,0)","v":0}]
["",null,null,null,null,0,0,0]
["",null,null,null,null,0,0,0]
["",null,null,null,null,0,0,0]
["",null,null,null,null,0,0,0]
["",null,null,null,null,0,0,0]
["",null,null,null,null,0,0,0]
["",null,null,null,null,0,0,0]
["",null,null,null,null,0,0,0]
["",null,null,null,null,0,0,0]
["",null,null,null,null,0,0,0]
["",null,null,null,null,0,0,0]
["",null,null,null,null,0,0,0]
["",null,null,null,null,0,0,0]
["",null,null,null,null,0,0,0]
["",null,null,null,null,0,0,0]
["",null,null,null,null,0,0,0]
["",null,null,null,null,0,0,0]
["",null,null,null,null,0,0,0]
["",null,null,null,null,0,0,0]
["",null,null,null,null,0,0,0]
["",null,null,null,null,0,0,0]
["",null,null,null,null,0,0,0]
["",null,null,null,null,0,0,0]
["",null,null,null,null,0,0,0]
["",null,null,null,null,0,0,0]
["",null,null,null,null,0,0,0]
["",null,null,null,null,0,0,0]
["",null,null,null,null,0,0,0]
["",null,null,null,null,0,0,0]
["",null,null,null,null,0,0,0]
["",null,null,null,null,0,0,0]
["",null,null,null,null,0,0,0]
["",null,null,null,null,0,0,0]
["",null,null,null,null,0,0,0]
["",null,null,null,null,0,0,0]
["",null,null,null,null,0,0,0]
["",null,null,null,null,0,0,0]
["",null,null,null,null,0,0,0]
["",null,null,null,null,0,0,0]
["",null,null,null,null,0,0,0]
["",null,null,null,null,0,0,0]
["",null,null,null,null,0,0,0]
["",null,null,null,null,0,0,0]
["",null,null,null,null,0,0,0]
["",null,null,null,null,0,0,0]
["",null,null,null,null,0,0,0]
["",null,null,null,null,0,0,0]
["",null,null,null,null,0,0,0]
["",null,null,null,null,0,0,0]
["",null,null,null,null,0,0,0]
["",null,null,null,null,0,0,0]
["",null,null,null,null,0,0,0]
["",null,null,null,null,0,0,0]
["",null,null,null,null,0,0,0]
["",null,null,null,null,0,0,0]
["",null,null,null,null,0,0,0]
["",null,null,null,null,0,0,0]
["",null,null,null,null,0,0,0]
["",null,null,null,null,0,0,0]
["",null,null,null,null,0,0,0]
["",null,null,null,null,0,0,0]
["",null,null,null,null,0,0,0]
["",null,null,null,null,0,0,0]
[{"$f":"IF(B275>0,ROW(A275)-18,\"\")","v":""},null,null,null,null,{"$f":"IF(D275<1,0,(B275/1000)*(C275/1000))","v":0},{"$f":"(B275/1000)*(C275/1000)*D275","v":0},{"$f":"IF(F275<0.5,G275,0)","v":0}]
["",null,null,null,null,0,0,0]
["",null,null,null,null,0,0,0]
["",null,null,null,null,0,0,0]
["",null,null,null,null,0,0,0]
["",null,null,null,null,0,0,0]
["",null,null,null,null,0,0,0]
["",null,null,null,null,0,0,0]
["",null,null,null,null,0,0,0]
["",null,null,null,null,0,0,0]
["",null,null,null,null,0,0,0]
["",null,null,null,null,0,0,0]
["",null,null,null,null,0,0,0]
["",null,null,null,null,0,0,0]
["",null,null,null,null,0,0,0]
["",null,null,null,null,0,0,0]
["",null,null,null,null,0,0,0]
["",null,null,null,null,0,0,0]
["",null,null,null,null,0,0,0]
["",null,null,null,null,0,0,0]
["",null,null,null,null,0,0,0]
["",null,null,null,null,0,0,0]
["",null,null,null,null,0,0,0]
["",null,null,null,null,0,0,0]
["",null,null,null,null,0,0,0]
["",null,null,null,null,0,0,0]
["",null,null,null,null,0,0,0]
["",null,null,null,null,0,0,0]
["",null,null,null,null,0,0,0]
["",null,null,null,null,0,0,0]
["",null,null,null,null,0,0,0]
["",null,null,null,null,0,0,0]
["",null,null,null,null,0,0,0]
["",null,null,null,null,0,0,0]
["",null,null,null,null,0,0,0]
["",null,null,null,null,0,0,0]
["",null,null,null,null,0,0,0]
["",null,null,null,null,0,0,0]
["",null,null,null,null,0,0,0]
["",null,null,null,null,0,0,0]
["",null,null,null,null,0,0,0]
["",null,null,null,null,0,0,0]
["",null,null,null,null,0,0,0]
["",null,null,null,null,0,0,0]
["",null,null,null,null,0,0,0]
["",null,null,null,null,0,0,0]
["",null,null,null,null,0,0,0]
["",null,null,null,null,0,0,0]
["",null,null,null,null,0,0,0]
["",null,null,null,null,0,0,0]
["",null,null,null,null,0,0,0]
["",null,null,null,null,0,0,0]
["",null,null,null,null,0,0,0]
["",null,null,null,null,0,0,0]
["",null,null,null,null,0,0,0]
["",null,null,null,null,0,0,0]
["",null,null,null,null,0,0,0]
["",null,null,null,null,0,0,0]
["",null,null,null,null,0,0,0]
["",null,null,null,null,0,0,0]
["",null,null,null,null,0,0,0]
["",null,null,null,null,0,0,0]
["",null,null,null,null,0,0,0]
["",null,null,null,null,0,0,0]
[{"$f":"IF(B339>0,ROW(A339)-18,\"\")","v":""},null,null,null,null,{"$f":"IF(D339<1,0,(B339/1000)*(C339/1000))","v":0},{"$f":"(B339/1000)*(C339/1000)*D339","v":0},{"$f":"IF(F339<0.5,G339,0)","v":0}]
["",null,null,null,null,0,0,0]
["",null,null,null,null,0,0,0]
["",null,null,null,null,0,0,0]
["",null,null,null,null,0,0,0]
["",null,null,null,null,0,0,0]
["",null,null,null,null,0,0,0]
["",null,null,null,null,0,0,0]
["",null,null,null,null,0,0,0]
["",null,null,null,null,0,0,0]
["",null,null,null,null,0,0,0]
["",null,null,null,null,0,0,0]
["",null,null,null,null,0,0,0]
["",null,null,null,null,0,0,0]
["",null,null,null,null,0,0,0]
["",null,null,null,null,0,0,0]
["",null,null,null,null,0,0,0]
["",null,null,null,null,0,0,0]
["",null,null,null,null,0,0,0]
["",null,null,null,null,0,0,0]
["",null,null,null,null,0,0,0]
["",null,null,null,null,0,0,0]
["",null,null,null,null,0,0,0]
["",null,null,null,null,0,0,0]
["",null,null,null,null,0,0,0]
["",null,null,null,null,0,0,0]
["",null,null,null,null,0,0,0]
["",null,null,null,null,0,0,0]
["",null,null,null,null,0,0,0]
["",null,null,null,null,0,0,0]
["",null,null,null,null,0,0,0]
["",null,null,null,null,0,0,0]
["",null,null,null,null,0,0,0]
["",null,null,null,null,0,0,0]
["",null,null,null,null,0,0,0]
["",null,null,null,null,0,0,0]
["",null,null,null,null,0,0,0]
["",null,null,null,null,0,0,0]
["",null,null,null,null,0,0,0]
["",null,null,null,null,0,0,0]
["",null,null,null,null,0,0,0]
["",null,null,null,null,0,0,0]
["",null,null,null,null,0,0,0]
["",null,null,null,null,0,0,0]
["",null,null,null,null,0,0,0]
["",null,null,null,null,0,0,0]
["",null,null,null,null,0,0,0]
["",null,null,null,null,0,0,0]
["",null,null,null,null,0,0,0]
["",null,null,null,null,0,0,0]
["",null,null,null,null,0,0,0]
["",null,null,null,null,0,0,0]
["",null,null,null,null,0,0,0]
["",null,null,null,null,0,0,0]
["",null,null,null,null,0,0,0]
["",null,null,null,null,0,0,0]
["",null,null,null,null,0,0,0]
["",null,null,null,null,0,0,0]
["",null,null,null,null,0,0,0]
["",null,null,null,null,0,0,0]
["",null,null,null,null,0,0,0]
["",null,null,null,null,0,0,0]
["",null,null,null,null,0,0,0]
["",null,null,null,null,0,0,0]
[{"$f":"IF(B403>0,ROW(A403)-18,\"\")","v":""},null,null,null,null,{"$f":"IF(D403<1,0,(B403/1000)*(C403/1000))","v":0},{"$f":"(B403/1000)*(C403/1000)*D403","v":0},{"$f":"IF(F403<0.5,G403,0)","v":0}]
["",null,null,null,null,0,0,0]
["",null,null,null,null,0,0,0]
["",null,null,null,null,0,0,0]
["",null,null,null,null,0,0,0]
["",null,null,null,null,0,0,0]
["",null,null,null,null,0,0,0]
["",null,null,null,null,0,0,0]
["",null,null,null,null,0,0,0]
["",null,null,null,null,0,0,0]
["",null,null,null,null,0,0,0]
["",null,null,null,null,0,0,0]
["",null,null,null,null,0,0,0]
["",null,null,null,null,0,0,0]
["",null,null,null,null,0,0,0]
["",null,null,null,null,0,0,0]
["",null,null,null,null,0,0,0]
["",null,null,null,null,0,0,0]
["",null,null,null,null,0,0,0]
["",null,null,null,null,0,0,0]
["",null,null,null,null,0,0,0]
["",null,null,null,null,0,0,0]
["",null,null,null,null,0,0,0]
["",null,null,null,null,0,0,0]
["",null,null,null,null,0,0,0]
["",null,null,null,null,0,0,0]
["",null,null,null,null,0,0,0]
["",null,null,null,null,0,0,0]
["",null,null,null,null,0,0,0]
["",null,null,null,null,0,0,0]
["",null,null,null,null,0,0,0]
["",null,null,null,null,0,0,0]
["",null,null,null,null,0,0,0]
["",null,null,null,null,0,0,0]
["",null,null,null,null,0,0,0]
["",null,null,null,null,0,0,0]
["",null,null,null,null,0,0,0]
["",null,null,null,null,0,0,0]
["",null,null,null,null,0,0,0]
["",null,null,null,null,0,0,0]
["",null,null,null,null,0,0,0]
["",null,null,null,null,0,0,0]
["",null,null,null,null,0,0,0]
["",null,null,null,null,0,0,0]
["",null,null,null,null,0,0,0]
["",null,null,null,null,0,0,0]
["",null,null,null,null,0,0,0]
["",null,null,null,null,0,0,0]
["",null,null,null,null,0,0,0]
["",null,null,null,null,0,0,0]
["",null,null,null,null,0,0,0]
["",null,null,null,null,0,0,0]
["",null,null,null,null,0,0,0]
["",null,null,null,null,0,0,0]
["",null,null,null,null,0,0,0]
["",null,null,null,null,0,0,0]
["",null,null,null,null,0,0,0]
["",null,null,null,null,0,0,0]
["",null,null,null,null,0,0,0]
["",null,null,null,null,0,0,0]
["",null,null,null,null,0,0,0]
["",null,null,null,null,0,0,0]
["",null,null,null,null,0,0,0]
["",null,null,null,null,0,0,0]
[{"$f":"IF(B467>0,ROW(A467)-18,\"\")","v":""},null,null,null,null,{"$f":"IF(D467<1,0,(B467/1000)*(C467/1000))","v":0},{"$f":"(B467/1000)*(C467/1000)*D467","v":0},{"$f":"IF(F467<0.5,G467,0)","v":0}]
["",null,null,null,null,0,0,0]
["",null,null,null,null,0,0,0]
["",null,null,null,null,0,0,0]
["",null,null,null,null,0,0,0]
["",null,null,null,null,0,0,0]
["",null,null,null,null,0,0,0]
["",null,null,null,null,0,0,0]
["",null,null,null,null,0,0,0]
["",null,null,null,null,0,0,0]
["",null,null,null,null,0,0,0]
["",null,null,null,null,0,0,0]
["",null,null,null,null,0,0,0]
["",null,null,null,null,0,0,0]
["",null,null,null,null,0,0,0]
["",null,null,null,null,0,0,0]
["",null,null,null,null,0,0,0]
["",null,null,null,null,0,0,0]
["",null,null,null,null,0,0,0]
["",null,null,null,null,0,0,0]
["",null,null,null,null,0,0,0]
["",null,null,null,null,0,0,0]
["",null,null,null,null,0,0,0]
["",null,null,null,null,0,0,0]
["",null,null,null,null,0,0,0]
["",null,null,null,null,0,0,0]
["",null,null,null,null,0,0,0]
["",null,null,null,null,0,0,0]
["",null,null,null,null,0,0,0]
["",null,null,null,null,0,0,0]
["",null,null,null,null,0,0,0]
["",null,null,null,null,0,0,0]
["",null,null,null,null,0,0,0]
["",null,null,null,null,0,0,0]
["",null,null,null,null,0,0,0]
["",null,null,null,null,0,0,0]
["",null,null,null,null,0,0,0]
["",null,null,null,null,0,0,0]
["",null,null,null,null,0,0,0]
["",null,null,null,null,0,0,0]
["",null,null,null,null,0,0,0]
["",null,null,null,null,0,0,0]
["",null,null,null,null,0,0,0]
["",null,null,null,null,0,0,0]
["",null,null,null,null,0,0,0]
["",null,null,null,null,0,0,0]
["",null,null,null,null,0,0,0]
["",null,null,null,null,0,0,0]
["",null,null,null,null,0,0,0]
["",null,null,null,null,0,0,0]
["",null,null,null,null,0,0,0]
["",null,null,null,null,0,0,0]
["",null,null,null,null,0,0,0]
["",null,null,null,null,0,0,0]
["",null,null,null,null,0,0,0]
["",null,null,null,null,0,0,0]
["",null,null,null,null,0,0,0]
["",null,null,null,null,0,0,0]
["",null,null,null,null,0,0,0]
["",null,null,null,null,0,0,0]
["",null,null,null,null,0,0,0]
["",null,null,null,null,0,0,0]
["",null,null,null,null,0,0,0]
["",null,null,null,null,0,0,0]
[{"$f":"IF(B531>0,ROW(A531)-18,\"\")","v":""},null,null,null,null,{"$f":"IF(D531<1,0,(B531/1000)*(C531/1000))","v":0},{"$f":"(B531/1000)*(C531/1000)*D531","v":0},{"$f":"IF(F531<0.5,G531,0)","v":0}]
["",null,null,null,null,0,0,0]
["",null,null,null,null,0,0,0]
["",null,null,null,null,0,0,0]
["",null,null,null,null,0,0,0]
["",null,null,null,null,0,0,0]
["",null,null,null,null,0,0,0]
["",null,null,null,null,0,0,0]
["",null,null,null,null,0,0,0]
["",null,null,null,null,0,0,0]
["",null,null,null,null,0,0,0]
["",null,null,null,null,0,0,0]
["",null,null,null,null,0,0,0]
["",null,null,null,null,0,0,0]
["",null,null,null,null,0,0,0]
["",null,null,null,null,0,0,0]
["",null,null,null,null,0,0,0]
["",null,null,null,null,0,0,0]
["",null,null,null,null,0,0,0]
["",null,null,null,null,0,0,0]
["",null,null,null,null,0,0,0]
["",null,null,null,null,0,0,0]
["",null,null,null,null,0,0,0]
["",null,null,null,null,0,0,0]
["",null,null,null,null,0,0,0]
["",null,null,null,null,0,0,0]
["",null,null,null,null,0,0,0]
["",null,null,null,null,0,0,0]
["",null,null,null,null,0,0,0]
["",null,null,null,null,0,0,0]
["",null,null,null,null,0,0,0]
["",null,null,null,null,0,0,0]
["",null,null,null,null,0,0,0]
["",null,null,null,null,0,0,0]
["",null,null,null,null,0,0,0]
["",null,null,null,null,0,0,0]
["",null,null,null,null,0,0,0]
["",null,null,null,null,0,0,0]
["",null,null,null,null,0,0,0]
["",null,null,null,null,0,0,0]
["",null,null,null,null,0,0,0]
["",null,null,null,null,0,0,0]
["",null,null,null,null,0,0,0]
["",null,null,null,null,0,0,0]
["",null,null,null,null,0,0,0]
["",null,null,null,null,0,0,0]
["",null,null,null,null,0,0,0]
["",null,null,null,null,0,0,0]
["",null,null,null,null,0,0,0]
["",null,null,null,null,0,0,0]
["",null,null,null,null,0,0,0]
["",null,null,null,null,0,0,0]
["",null,null,null,null,0,0,0]
["",null,null,null,null,0,0,0]
["",null,null,null,null,0,0,0]
["",null,null,null,null,0,0,0]
["",null,null,null,null,0,0,0]
["",null,null,null,null,0,0,0]
["",null,null,null,null,0,0,0]
["",null,null,null,null,0,0,0]
["",null,null,null,null,0,0,0]
["",null,null,null,null,0,0,0]
["",null,null,null,null,0,0,0]
["",null,null,null,null,0,0,0]
[{"$f":"IF(B595>0,ROW(A595)-18,\"\")","v":""},null,null,null,null,{"$f":"IF(D595<1,0,(B595/1000)*(C595/1000))","v":0},{"$f":"(B595/1000)*(C595/1000)*D595","v":0},{"$f":"IF(F595<0.5,G595,0)","v":0}]
["",null,null,null,null,0,0,0]
["",null,null,null,null,0,0,0]
["",null,null,null,null,0,0,0]
["",null,null,null,null,0,0,0]
["",null,null,null,null,0,0,0]
["",null,null,null,null,0,0,0]
["",null,null,null,null,0,0,0]
["",null,null,null,null,0,0,0]
["",null,null,null,null,0,0,0]
["",null,null,null,null,0,0,0]
["",null,null,null,null,0,0,0]
["",null,null,null,null,0,0,0]
["",null,null,null,null,0,0,0]
["",null,null,null,null,0,0,0]
["",null,null,null,null,0,0,0]
["",null,null,null,null,0,0,0]
["",null,null,null,null,0,0,0]
["",null,null,null,null,0,0,0]
["",null,null,null,null,0,0,0]
["",null,null,null,null,0,0,0]
["",null,null,null,null,0,0,0]
["",null,null,null,null,0,0,0]
["",null,null,null,null,0,0,0]
["",null,null,null,null,0,0,0]
["",null,null,null,null,0,0,0]
["",null,null,null,null,0,0,0]
["",null,null,null,null,0,0,0]
["",null,null,null,null,0,0,0]
["",null,null,null,null,0,0,0]
["",null,null,null,null,0,0,0]
["",null,null,null,null,0,0,0]
["",null,null,null,null,0,0,0]
["",null,null,null,null,0,0,0]
["",null,null,null,null,0,0,0]
["",null,null,null,null,0,0,0]
["",null,null,null,null,0,0,0]
["",null,null,null,null,0,0,0]
["",null,null,null,null,0,0,0]
["",null,null,null,null,0,0,0]
["",null,null,null,null,0,0,0]
["",null,null,null,null,0,0,0]
["",null,null,null,null,0,0,0]
["",null,null,null,null,0,0,0]
["",null,null,null,null,0,0,0]
["",null,null,null,null,0,0,0]
["",null,null,null,null,0,0,0]
["",null,null,null,null,0,0,0]
["",null,null,null,null,0,0,0]
["",null,null,null,null,0,0,0]
["",null,null,null,null,0,0,0]
["",null,null,null,null,0,0,0]
["",null,null,null,null,0,0,0]
["",null,null,null,null,0,0,0]
["",null,null,null,null,0,0,0]
["",null,null,null,null,0,0,0]
["",null,null,null,null,0,0,0]
["",null,null,null,null,0,0,0]
["",null,null,null,null,0,0,0]
["",null,null,null,null,0,0,0]
["",null,null,null,null,0,0,0]
["",null,null,null,null,0,0,0]
["",null,null,null,null,0,0,0]
["",null,null,null,null,0,0,0]
[{"$f":"IF(B659>0,ROW(A659)-18,\"\")","v":""},null,null,null,null,{"$f":"IF(D659<1,0,(B659/1000)*(C659/1000))","v":0},{"$f":"(B659/1000)*(C659/1000)*D659","v":0},{"$f":"IF(F659<0.5,G659,0)","v":0}]
["",null,null,null,null,0,0,0]
["",null,null,null,null,0,0,0]
["",null,null,null,null,0,0,0]
["",null,null,null,null,0,0,0]
["",null,null,null,null,0,0,0]
["",null,null,null,null,0,0,0]
["",null,null,null,null,0,0,0]
["",null,null,null,null,0,0,0]
["",null,null,null,null,0,0,0]
["",null,null,null,null,0,0,0]
["",null,null,null,null,0,0,0]
["",null,null,null,null,0,0,0]
["",null,null,null,null,0,0,0]
["",null,null,null,null,0,0,0]
["",null,null,null,null,0,0,0]
["",null,null,null,null,0,0,0]
["",null,null,null,null,0,0,0]
["",null,null,null,null,0,0,0]
["",null,null,null,null,0,0,0]
["",null,null,null,null,0,0,0]
["",null,null,null,null,0,0,0]
["",null,null,null,null,0,0,0]
["",null,null,null,null,0,0,0]
["",null,null,null,null,0,0,0]
["",null,null,null,null,0,0,0]
["",null,null,null,null,0,0,0]
["",null,null,null,null,0,0,0]
["",null,null,null,null,0,0,0]
["",null,null,null,null,0,0,0]
["",null,null,null,null,0,0,0]
["",null,null,null,null,0,0,0]
["",null,null,null,null,0,0,0]
["",null,null,null,null,0,0,0]
["",null,null,null,null,0,0,0]
["",null,null,null,null,0,0,0]
["",null,null,null,null,0,0,0]
["",null,null,null,null,0,0,0]
["",null,null,null,null,0,0,0]
["",null,null,null,null,0,0,0]
["",null,null,null,null,0,0,0]
["",null,null,null,null,0,0,0]
["",null,null,null,null,0,0,0]
["",null,null,null,null,0,0,0]
["",null,null,null,null,0,0,0]
["",null,null,null,null,0,0,0]
["",null,null,null,null,0,0,0]
["",null,null,null,null,0,0,0]
["",null,null,null,null,0,0,0]
["",null,null,null,null,0,0,0]
["",null,null,null,null,0,0,0]
["",null,null,null,null,0,0,0]
["",null,null,null,null,0,0,0]
["",null,null,null,null,0,0,0]
["",null,null,null,null,0,0,0]
["",null,null,null,null,0,0,0]
["",null,null,null,null,0,0,0]
["",null,null,null,null,0,0,0]
["",null,null,null,null,0,0,0]
["",null,null,null,null,0,0,0]
["",null,null,null,null,0,0,0]
["",null,null,null,null,0,0,0]
["",null,null,null,null,0,0,0]
["",null,null,null,null,0,0,0]
[{"$f":"IF(B723>0,ROW(A723)-18,\"\")","v":""},null,null,null,null,{"$f":"IF(D723<1,0,(B723/1000)*(C723/1000))","v":0},{"$f":"(B723/1000)*(C723/1000)*D723","v":0},{"$f":"IF(F723<0.5,G723,0)","v":0}]
["",null,null,null,null,0,0,0]
["",null,null,null,null,0,0,0]
["",null,null,null,null,0,0,0]
["",null,null,null,null,0,0,0]
["",null,null,null,null,0,0,0]
["",null,null,null,null,0,0,0]
["",null,null,null,null,0,0,0]
["",null,null,null,null,0,0,0]
["",null,null,null,null,0,0,0]
["",null,null,null,null,0,0,0]
["",null,null,null,null,0,0,0]
["",null,null,null,null,0,0,0]
["",null,null,null,null,0,0,0]
["",null,null,null,null,0,0,0]
["",null,null,null,null,0,0,0]
["",null,null,null,null,0,0,0]
["",null,null,null,null,0,0,0]
["",null,null,null,null,0,0,0]
["",null,null,null,null,0,0,0]
["",null,null,null,null,0,0,0]
["",null,null,null,null,0,0,0]
["",null,null,null,null,0,0,0]
["",null,null,null,null,0,0,0]
["",null,null,null,null,0,0,0]
["",null,null,null,null,0,0,0]
["",null,null,null,null,0,0,0]
["",null,null,null,null,0,0,0]
["",null,null,null,null,0,0,0]
["",null,null,null,null,0,0,0]
["",null,null,null,null,0,0,0]
["",null,null,null,null,0,0,0]
["",null,null,null,null,0,0,0]
["",null,null,null,null,0,0,0]
["",null,null,null,null,0,0,0]
["",null,null,null,null,0,0,0]
["",null,null,null,null,0,0,0]
["",null,null,null,null,0,0,0]
["",null,null,null,null,0,0,0]
["",null,null,null,null,0,0,0]
["",null,null,null,null,0,0,0]
["",null,null,null,null,0,0,0]
["",null,null,null,null,0,0,0]
["",null,null,null,null,0,0,0]
["",null,null,null,null,0,0,0]
["",null,null,null,null,0,0,0]
["",null,null,null,null,0,0,0]
["",null,null,null,null,0,0,0]
["",null,null,null,null,0,0,0]
["",null,null,null,null,0,0,0]
["",null,null,null,null,0,0,0]
["",null,null,null,null,0,0,0]
["",null,null,null,null,0,0,0]
["",null,null,null,null,0,0,0]
["",null,null,null,null,0,0,0]
["",null,null,null,null,0,0,0]
["",null,null,null,null,0,0,0]
["",null,null,null,null,0,0,0]
["",null,null,null,null,0,0,0]
["",null,null,null,null,0,0,0]
["",null,null,null,null,0,0,0]
["",null,null,null,null,0,0,0]
["",null,null,null,null,0,0,0]
["",null,null,null,null,0,0,0]
[{"$f":"IF(B787>0,ROW(A787)-18,\"\")","v":""},null,null,null,null,{"$f":"IF(D787<1,0,(B787/1000)*(C787/1000))","v":0},{"$f":"(B787/1000)*(C787/1000)*D787","v":0},{"$f":"IF(F787<0.5,G787,0)","v":0}]
["",null,null,null,null,0,0,0]
["",null,null,null,null,0,0,0]
["",null,null,null,null,0,0,0]
["",null,null,null,null,0,0,0]
["",null,null,null,null,0,0,0]
["",null,null,null,null,0,0,0]
["",null,null,null,null,0,0,0]
["",null,null,null,null,0,0,0]
["",null,null,null,null,0,0,0]
["",null,null,null,null,0,0,0]
["",null,null,null,null,0,0,0]
["",null,null,null,null,0,0,0]
["",null,null,null,null,0,0,0]
["",null,null,null,null,0,0,0]
["",null,null,null,null,0,0,0]
["",null,null,null,null,0,0,0]
["",null,null,null,null,0,0,0]
["",null,null,null,null,0,0,0]
["",null,null,null,null,0,0,0]
["",null,null,null,null,0,0,0]
["",null,null,null,null,0,0,0]
["",null,null,null,null,0,0,0]
["",null,null,null,null,0,0,0]
["",null,null,null,null,0,0,0]
["",null,null,null,null,0,0,0]
["",null,null,null,null,0,0,0]
["",null,null,null,null,0,0,0]
["",null,null,null,null,0,0,0]
["",null,null,null,null,0,0,0]
["",null,null,null,null,0,0,0]
["",null,null,null,null,0,0,0]
["",null,null,null,null,0,0,0]
["",null,null,null,null,0,0,0]
["",null,null,null,null,0,0,0]
["",null,null,null,null,0,0,0]
["",null,null,null,null,0,0,0]
["",null,null,null,null,0,0,0]
["",null,null,null,null,0,0,0]
["",null,null,null,null,0,0,0]
["",null,null,null,null,0,0,0]
["",null,null,null,null,0,0,0]
["",null,null,null,null,0,0,0]
["",null,null,null,null,0,0,0]
["",null,null,null,null,0,0,0]
["",null,null,null,null,0,0,0]
["",null,null,null,null,0,0,0]
["",null,null,null,null,0,0,0]
["",null,null,null,null,0,0,0]
["",null,null,null,null,0,0,0]
["",null,null,null,null,0,0,0]
["",null,null,null,null,0,0,0]
["",null,null,null,null,0,0,0]
["",null,null,null,null,0,0,0]
["",null,null,null,null,0,0,0]
["",null,null,null,null,0,0,0]
["",null,null,null,null,0,0,0]
["",null,null,null,null,0,0,0]
["",null,null,null,null,0,0,0]
["",null,null,null,null,0,0,0]
["",null,null,null,null,0,0,0]
["",null,null,null,null,0,0,0]
["",null,null,null,null,0,0,0]
["",null,null,null,null,0,0,0]
[{"$f":"IF(B851>0,ROW(A851)-18,\"\")","v":""},null,null,null,null,{"$f":"IF(D851<1,0,(B851/1000)*(C851/1000))","v":0},{"$f":"(B851/1000)*(C851/1000)*D851","v":0},{"$f":"IF(F851<0.5,G851,0)","v":0}]
["",null,null,null,null,0,0,0]
["",null,null,null,null,0,0,0]
["",null,null,null,null,0,0,0]
["",null,null,null,null,0,0,0]
["",null,null,null,null,0,0,0]
["",null,null,null,null,0,0,0]
["",null,null,null,null,0,0,0]
["",null,null,null,null,0,0,0]
["",null,null,null,null,0,0,0]
["",null,null,null,null,0,0,0]
["",null,null,null,null,0,0,0]
["",null,null,null,null,0,0,0]
["",null,null,null,null,0,0,0]
["",null,null,null,null,0,0,0]
["",null,null,null,null,0,0,0]
["",null,null,null,null,0,0,0]
["",null,null,null,null,0,0,0]
["",null,null,null,null,0,0,0]
["",null,null,null,null,0,0,0]
["",null,null,null,null,0,0,0]
["",null,null,null,null,0,0,0]
["",null,null,null,null,0,0,0]
["",null,null,null,null,0,0,0]
["",null,null,null,null,0,0,0]
["",null,null,null,null,0,0,0]
["",null,null,null,null,0,0,0]
["",null,null,null,null,0,0,0]
["",null,null,null,null,0,0,0]
["",null,null,null,null,0,0,0]
["",null,null,null,null,0,0,0]
["",null,null,null,null,0,0,0]
["",null,null,null,null,0,0,0]
["",null,null,null,null,0,0,0]
["",null,null,null,null,0,0,0]
["",null,null,null,null,0,0,0]
["",null,null,null,null,0,0,0]
["",null,null,null,null,0,0,0]
["",null,null,null,null,0,0,0]
["",null,null,null,null,0,0,0]
["",null,null,null,null,0,0,0]
["",null,null,null,null,0,0,0]
["",null,null,null,null,0,0,0]
["",null,null,null,null,0,0,0]
["",null,null,null,null,0,0,0]
["",null,null,null,null,0,0,0]
["",null,null,null,null,0,0,0]
["",null,null,null,null,0,0,0]
["",null,null,null,null,0,0,0]
["",null,null,null,null,0,0,0]
["",null,null,null,null,0,0,0]
["",null,null,null,null,0,0,0]
["",null,null,null,null,0,0,0]
["",null,null,null,null,0,0,0]
["",null,null,null,null,0,0,0]
["",null,null,null,null,0,0,0]
["",null,null,null,null,0,0,0]
["",null,null,null,null,0,0,0]
["",null,null,null,null,0,0,0]
["",null,null,null,null,0,0,0]
["",null,null,null,null,0,0,0]
["",null,null,null,null,0,0,0]
["",null,null,null,null,0,0,0]
["",null,null,null,null,0,0,0]
[{"$f":"IF(B915>0,ROW(A915)-18,\"\")","v":""},null,null,null,null,{"$f":"IF(D915<1,0,(B915/1000)*(C915/1000))","v":0},{"$f":"(B915/1000)*(C915/1000)*D915","v":0},{"$f":"IF(F915<0.5,G915,0)","v":0}]
["",null,null,null,null,0,0,0]
["",null,null,null,null,0,0,0]
["",null,null,null,null,0,0,0]
["",null,null,null,null,0,0,0]
["",null,null,null,null,0,0,0]
["",null,null,null,null,0,0,0]
["",null,null,null,null,0,0,0]
["",null,null,null,null,0,0,0]
["",null,null,null,null,0,0,0]
["",null,null,null,null,0,0,0]
["",null,null,null,null,0,0,0]
["",null,null,null,null,0,0,0]
["",null,null,null,null,0,0,0]
["",null,null,null,null,0,0,0]
["",null,null,null,null,0,0,0]
["",null,null,null,null,0,0,0]
["",null,null,null,null,0,0,0]
["",null,null,null,null,0,0,0]
["",null,null,null,null,0,0,0]
["",null,null,null,null,0,0,0]
["",null,null,null,null,0,0,0]
["",null,null,null,null,0,0,0]
["",null,null,null,null,0,0,0]
["",null,null,null,null,0,0,0]
["",null,null,null,null,0,0,0]
["",null,null,null,null,0,0,0]
["",null,null,null,null,0,0,0]
["",null,null,null,null,0,0,0]
["",null,null,null,null,0,0,0]
["",null,null,null,null,0,0,0]
["",null,null,null,null,0,0,0]
["",null,null,null,null,0,0,0]
["",null,null,null,null,0,0,0]
["",null,null,null,null,0,0,0]
["",null,null,null,null,0,0,0]
["",null,null,null,null,0,0,0]
["",null,null,null,null,0,0,0]
["",null,null,null,null,0,0,0]
["",null,null,null,null,0,0,0]
["",null,null,null,null,0,0,0]
["",null,null,null,null,0,0,0]
["",null,null,null,null,0,0,0]
["",null,null,null,null,0,0,0]
["",null,null,null,null,0,0,0]
["",null,null,null,null,0,0,0]
["",null,null,null,null,0,0,0]
["",null,null,null,null,0,0,0]
["",null,null,null,null,0,0,0]
["",null,null,null,null,0,0,0]
["",null,null,null,null,0,0,0]
["",null,null,null,null,0,0,0]
["",null,null,null,null,0,0,0]
["",null,null,null,null,0,0,0]
["",null,null,null,null,0,0,0]
["",null,null,null,null,0,0,0]
["",null,null,null,null,0,0,0]
["",null,null,null,null,0,0,0]
["",null,null,null,null,0,0,0]
["",null,null,null,null,0,0,0]
["",null,null,null,null,0,0,0]
["",null,null,null,null,0,0,0]
["",null,null,null,null,0,0,0]
["",null,null,null,null,0,0,0]
[{"$f":"IF(B979>0,ROW(A979)-18,\"\")","v":""},null,null,null,null,{"$f":"IF(D979<1,0,(B979/1000)*(C979/1000))","v":0},{"$f":"(B979/1000)*(C979/1000)*D979","v":0},{"$f":"IF(F979<0.5,G979,0)","v":0}]
["",null,null,null,null,0,0,0]
["",null,null,null,null,0,0,0]
["",null,null,null,null,0,0,0]
["",null,null,null,null,0,0,0]
["",null,null,null,null,0,0,0]
["",null,null,null,null,0,0,0]
["",null,null,null,null,0,0,0]
["",null,null,null,null,0,0,0]
["",null,null,null,null,0,0,0]
["",null,null,null,null,0,0,0]
["",null,null,null,null,0,0,0]
["",null,null,null,null,0,0,0]
["",null,null,null,null,0,0,0]
["",null,null,null,null,0,0,0]
["",null,null,null,null,0,0,0]
["",null,null,null,null,0,0,0]
["",null,null,null,null,0,0,0]
["",null,null,null,null,0,0,0]
["",null,null,null,null,0,0,0]
["",null,null,null,null,0,0,0]

{"sheet":"Sjab Colormat","index":21,"n_rows":999,"n_cols":32,"rows_kept":999,"cut":false,"hidden":true,"merged":[[14,1,14,3],[14,4,14,5],[7,1,8,1],[10,4,10,5],[11,4,11,5],[8,3,8,9],[10,7,10,8],[11,7,11,8],[12,7,12,8],[10,1,10,3],[11,1,11,3],[12,1,12,3],[1,3,1,9],[3,3,3,9],[4,3,4,9],[5,3,5,9],[6,3,6,9],[14,12,14,15],[14,17,14,20],[14,22,15,28],[15,31,16,36],[5,1,6,1],[12,4,12,5],[13,7,13,8],[3,16,13,16],[3,30,13,30],[5,21,13,21],[6,12,12,14],[6,17,12,19],[5,11,13,11],[3,1,4,1],[15,1,16,5],[7,3,7,9]],"read":"row_number_cap"}
[]
[null,null,null,"ORDER FORM COLORMAT"]
[]
[null,"Project","Name",null,null,null,null,null,null,null,null,null,null,null,null,null,"Sanding Direction S <= 3050 mm",null,null,null,null,null,null,null,null,null,null,null,null,null,"Sanding Direction S = 3050 mm"]
[null,null,"Address"]
[null,"Contractor","Name",null,null,null,null,null,null,null,null,"Direction P <= 1220 mm",null,null,null,null,null,null,null,null,null,"Direction P = 1220 mm"]
[null,null,"Address"]
[null,"Trader","Name"]
[null,null,"Address"]
[]
[null,"Total Surface",null,null,{"$f":"SUM(G19:G999)","v":0},null,null,"Order/Price request"]
[null,"Total Surface Panels < 0,5 m²",null,null,{"$f":"SUM(H19:H10999)","v":0},null,null,"Panel Type"]
[null,"Total Surface Panels > 0,5 m²",null,null,{"$f":"E11-E12","v":0},null,null,"Colour code"]
[null,null,null,null,null,null,null,"Colour name"]
[null,"Total Amount Panels",null,null,{"$f":"SUM(D19:D999)","v":0},null,null,null,null,null,null,null,"Fig. 1 Sanding Direction S <= 3050 mm",null,null,null,null,"Fig. 2 Direction P <= 1220 mm",null,null,null,null,"Sanding Direction S = 3050 mm\r\nFig. a Maximal dimensions horizontal"]
[null,"FILL IN DIMENSIONS IN MM!!",null,null,null,null,null,null,null,null,null,null,null,null,null,null,null,null,null,null,null,null,null,null,null,null,null,null,null,null,null,"Direction P = 1220 mm\r\nFig. b Maximal dimensions vertical"]
[]
["Row","Sanding direction S (mm)","Direction P (mm)","Amount","Panel marking","m²/pc","m² Total","< 0,5 m²","Palletnr.","Remarks"]
[1,null,null,null,null,{"$f":"IF(D19<1,0,(B19/1000)*(C19/1000))","v":0},{"$f":"(B19/1000)*(C19/1000)*D19","v":0},{"$f":"IF(F19<0.5,G19,0)","v":0},null,null,null,null,null,{"$f":"SUM(M19:M999)","v":0}]
[{"$f":"IF(B20>0,ROW(A20)-18,\"\")","v":""},null,null,null,null,{"$f":"IF(D20<1,0,(B20/1000)*(C20/1000))","v":0},0,0]
["",null,null,null,null,0,0,0]
["",null,null,null,null,0,0,0]
["",null,null,null,null,0,0,0]
["",null,null,null,null,0,0,0]
["",null,null,null,null,0,0,0]
["",null,null,null,null,0,0,0]
["",null,null,null,null,0,0,0]
["",null,null,null,null,0,0,0]
["",null,null,null,null,0,0,0]
["",null,null,null,null,0,0,0]
["",null,null,null,null,0,0,0]
["",null,null,null,null,0,0,0]
["",null,null,null,null,0,0,0]
["",null,null,null,null,0,0,0]
["",null,null,null,null,0,0,0]
["",null,null,null,null,0,0,0]
["",null,null,null,null,0,0,0]
["",null,null,null,null,0,0,0]
["",null,null,null,null,0,0,0]
["",null,null,null,null,0,0,0]
["",null,null,null,null,0,0,0]
["",null,null,null,null,0,0,0]
["",null,null,null,null,0,0,0]
["",null,null,null,null,0,0,0]
["",null,null,null,null,0,0,0]
["",null,null,null,null,0,0,0]
["",null,null,null,null,0,0,0]
["",null,null,null,null,0,0,0]
["",null,null,null,null,0,0,0]
["",null,null,null,null,0,0,0]
["",null,null,null,null,0,0,0]
["",null,null,null,null,0,0,0]
["",null,null,null,null,0,0,0]
["",null,null,null,null,0,0,0]
["",null,null,null,null,0,0,0]
["",null,null,null,null,0,0,0]
["",null,null,null,null,0,0,0]
["",null,null,null,null,0,0,0]
["",null,null,null,null,0,0,0]
["",null,null,null,null,0,0,0]
["",null,null,null,null,0,0,0]
["",null,null,null,null,0,0,0]
["",null,null,null,null,0,0,0]
["",null,null,null,null,0,0,0]
["",null,null,null,null,0,0,0]
["",null,null,null,null,0,0,0]
["",null,null,null,null,0,0,0]
["",null,null,null,null,0,0,0]
["",null,null,null,null,0,0,0]
["",null,null,null,null,0,0,0]
["",null,null,null,null,0,0,0]
["",null,null,null,null,0,0,0]
["",null,null,null,null,0,0,0]
["",null,null,null,null,0,0,0]
["",null,null,null,null,0,0,0]
["",null,null,null,null,0,0,0]
["",null,null,null,null,0,0,0]
["",null,null,null,null,0,0,0]
["",null,null,null,null,0,0,0]
["",null,null,null,null,0,0,0]
["",null,null,null,null,0,0,0]
["",null,null,null,null,0,0,0]
[{"$f":"IF(B83>0,ROW(A83)-18,\"\")","v":""},null,null,null,null,{"$f":"IF(D83<1,0,(B83/1000)*(C83/1000))","v":0},{"$f":"(B83/1000)*(C83/1000)*D83","v":0},{"$f":"IF(F83<0.5,G83,0)","v":0}]
["",null,null,null,null,0,0,0]
["",null,null,null,null,0,0,0]
["",null,null,null,null,0,0,0]
["",null,null,null,null,0,0,0]
["",null,null,null,null,0,0,0]
["",null,null,null,null,0,0,0]
["",null,null,null,null,0,0,0]
["",null,null,null,null,0,0,0]
["",null,null,null,null,0,0,0]
["",null,null,null,null,0,0,0]
["",null,null,null,null,0,0,0]
["",null,null,null,null,0,0,0]
["",null,null,null,null,0,0,0]
["",null,null,null,null,0,0,0]
["",null,null,null,null,0,0,0]
["",null,null,null,null,0,0,0]
["",null,null,null,null,0,0,0]
["",null,null,null,null,0,0,0]
["",null,null,null,null,0,0,0]
["",null,null,null,null,0,0,0]
["",null,null,null,null,0,0,0]
["",null,null,null,null,0,0,0]
["",null,null,null,null,0,0,0]
["",null,null,null,null,0,0,0]
["",null,null,null,null,0,0,0]
["",null,null,null,null,0,0,0]
["",null,null,null,null,0,0,0]
["",null,null,null,null,0,0,0]
["",null,null,null,null,0,0,0]
["",null,null,null,null,0,0,0]
["",null,null,null,null,0,0,0]
["",null,null,null,null,0,0,0]
["",null,null,null,null,0,0,0]
["",null,null,null,null,0,0,0]
["",null,null,null,null,0,0,0]
["",null,null,null,null,0,0,0]
["",null,null,null,null,0,0,0]
["",null,null,null,null,0,0,0]
["",null,null,null,null,0,0,0]
["",null,null,null,null,0,0,0]
["",null,null,null,null,0,0,0]
["",null,null,null,null,0,0,0]
["",null,null,null,null,0,0,0]
["",null,null,null,null,0,0,0]
["",null,null,null,null,0,0,0]
["",null,null,null,null,0,0,0]
["",null,null,null,null,0,0,0]
["",null,null,null,null,0,0,0]
["",null,null,null,null,0,0,0]
["",null,null,null,null,0,0,0]
["",null,null,null,null,0,0,0]
["",null,null,null,null,0,0,0]
["",null,null,null,null,0,0,0]
["",null,null,null,null,0,0,0]
["",null,null,null,null,0,0,0]
["",null,null,null,null,0,0,0]
["",null,null,null,null,0,0,0]
["",null,null,null,null,0,0,0]
["",null,null,null,null,0,0,0]
["",null,null,null,null,0,0,0]
["",null,null,null,null,0,0,0]
["",null,null,null,null,0,0,0]
["",null,null,null,null,0,0,0]
[{"$f":"IF(B147>0,ROW(A147)-18,\"\")","v":""},null,null,null,null,{"$f":"IF(D147<1,0,(B147/1000)*(C147/1000))","v":0},{"$f":"(B147/1000)*(C147/1000)*D147","v":0},{"$f":"IF(F147<0.5,G147,0)","v":0}]
["",null,null,null,null,0,0,0]
["",null,null,null,null,0,0,0]
["",null,null,null,null,0,0,0]
["",null,null,null,null,0,0,0]
["",null,null,null,null,0,0,0]
["",null,null,null,null,0,0,0]
["",null,null,null,null,0,0,0]
["",null,null,null,null,0,0,0]
["",null,null,null,null,0,0,0]
["",null,null,null,null,0,0,0]
["",null,null,null,null,0,0,0]
["",null,null,null,null,0,0,0]
["",null,null,null,null,0,0,0]
["",null,null,null,null,0,0,0]
["",null,null,null,null,0,0,0]
["",null,null,null,null,0,0,0]
["",null,null,null,null,0,0,0]
["",null,null,null,null,0,0,0]
["",null,null,null,null,0,0,0]
["",null,null,null,null,0,0,0]
["",null,null,null,null,0,0,0]
["",null,null,null,null,0,0,0]
["",null,null,null,null,0,0,0]
["",null,null,null,null,0,0,0]
["",null,null,null,null,0,0,0]
["",null,null,null,null,0,0,0]
["",null,null,null,null,0,0,0]
["",null,null,null,null,0,0,0]
["",null,null,null,null,0,0,0]
["",null,null,null,null,0,0,0]
["",null,null,null,null,0,0,0]
["",null,null,null,null,0,0,0]
["",null,null,null,null,0,0,0]
["",null,null,null,null,0,0,0]
["",null,null,null,null,0,0,0]
["",null,null,null,null,0,0,0]
["",null,null,null,null,0,0,0]
["",null,null,null,null,0,0,0]
["",null,null,null,null,0,0,0]
["",null,null,null,null,0,0,0]
["",null,null,null,null,0,0,0]
["",null,null,null,null,0,0,0]
["",null,null,null,null,0,0,0]
["",null,null,null,null,0,0,0]
["",null,null,null,null,0,0,0]
["",null,null,null,null,0,0,0]
["",null,null,null,null,0,0,0]
["",null,null,null,null,0,0,0]
["",null,null,null,null,0,0,0]
["",null,null,null,null,0,0,0]
["",null,null,null,null,0,0,0]
["",null,null,null,null,0,0,0]
["",null,null,null,null,0,0,0]
["",null,null,null,null,0,0,0]
["",null,null,null,null,0,0,0]
["",null,null,null,null,0,0,0]
["",null,null,null,null,0,0,0]
["",null,null,null,null,0,0,0]
["",null,null,null,null,0,0,0]
["",null,null,null,null,0,0,0]
["",null,null,null,null,0,0,0]
["",null,null,null,null,0,0,0]
["",null,null,null,null,0,0,0]
[{"$f":"IF(B211>0,ROW(A211)-18,\"\")","v":""},null,null,null,null,{"$f":"IF(D211<1,0,(B211/1000)*(C211/1000))","v":0},{"$f":"(B211/1000)*(C211/1000)*D211","v":0},{"$f":"IF(F211<0.5,G211,0)","v":0}]
["",null,null,null,null,0,0,0]
["",null,null,null,null,0,0,0]
["",null,null,null,null,0,0,0]
["",null,null,null,null,0,0,0]
["",null,null,null,null,0,0,0]
["",null,null,null,null,0,0,0]
["",null,null,null,null,0,0,0]
["",null,null,null,null,0,0,0]
["",null,null,null,null,0,0,0]
["",null,null,null,null,0,0,0]
["",null,null,null,null,0,0,0]
["",null,null,null,null,0,0,0]
["",null,null,null,null,0,0,0]
["",null,null,null,null,0,0,0]
["",null,null,null,null,0,0,0]
["",null,null,null,null,0,0,0]
["",null,null,null,null,0,0,0]
["",null,null,null,null,0,0,0]
["",null,null,null,null,0,0,0]
["",null,null,null,null,0,0,0]
["",null,null,null,null,0,0,0]
["",null,null,null,null,0,0,0]
["",null,null,null,null,0,0,0]
["",null,null,null,null,0,0,0]
["",null,null,null,null,0,0,0]
["",null,null,null,null,0,0,0]
["",null,null,null,null,0,0,0]
["",null,null,null,null,0,0,0]
["",null,null,null,null,0,0,0]
["",null,null,null,null,0,0,0]
["",null,null,null,null,0,0,0]
["",null,null,null,null,0,0,0]
["",null,null,null,null,0,0,0]
["",null,null,null,null,0,0,0]
["",null,null,null,null,0,0,0]
["",null,null,null,null,0,0,0]
["",null,null,null,null,0,0,0]
["",null,null,null,null,0,0,0]
["",null,null,null,null,0,0,0]
["",null,null,null,null,0,0,0]
["",null,null,null,null,0,0,0]
["",null,null,null,null,0,0,0]
["",null,null,null,null,0,0,0]
["",null,null,null,null,0,0,0]
["",null,null,null,null,0,0,0]
["",null,null,null,null,0,0,0]
["",null,null,null,null,0,0,0]
["",null,null,null,null,0,0,0]
["",null,null,null,null,0,0,0]
["",null,null,null,null,0,0,0]
["",null,null,null,null,0,0,0]
["",null,null,null,null,0,0,0]
["",null,null,null,null,0,0,0]
["",null,null,null,null,0,0,0]
["",null,null,null,null,0,0,0]
["",null,null,null,null,0,0,0]
["",null,null,null,null,0,0,0]
["",null,null,null,null,0,0,0]
["",null,null,null,null,0,0,0]
["",null,null,null,null,0,0,0]
["",null,null,null,null,0,0,0]
["",null,null,null,null,0,0,0]
["",null,null,null,null,0,0,0]
[{"$f":"IF(B275>0,ROW(A275)-18,\"\")","v":""},null,null,null,null,{"$f":"IF(D275<1,0,(B275/1000)*(C275/1000))","v":0},{"$f":"(B275/1000)*(C275/1000)*D275","v":0},{"$f":"IF(F275<0.5,G275,0)","v":0}]
["",null,null,null,null,0,0,0]
["",null,null,null,null,0,0,0]
["",null,null,null,null,0,0,0]
["",null,null,null,null,0,0,0]
["",null,null,null,null,0,0,0]
["",null,null,null,null,0,0,0]
["",null,null,null,null,0,0,0]
["",null,null,null,null,0,0,0]
["",null,null,null,null,0,0,0]
["",null,null,null,null,0,0,0]
["",null,null,null,null,0,0,0]
["",null,null,null,null,0,0,0]
["",null,null,null,null,0,0,0]
["",null,null,null,null,0,0,0]
["",null,null,null,null,0,0,0]
["",null,null,null,null,0,0,0]
["",null,null,null,null,0,0,0]
["",null,null,null,null,0,0,0]
["",null,null,null,null,0,0,0]
["",null,null,null,null,0,0,0]
["",null,null,null,null,0,0,0]
["",null,null,null,null,0,0,0]
["",null,null,null,null,0,0,0]
["",null,null,null,null,0,0,0]
["",null,null,null,null,0,0,0]
["",null,null,null,null,0,0,0]
["",null,null,null,null,0,0,0]
["",null,null,null,null,0,0,0]
["",null,null,null,null,0,0,0]
["",null,null,null,null,0,0,0]
["",null,null,null,null,0,0,0]
["",null,null,null,null,0,0,0]
["",null,null,null,null,0,0,0]
["",null,null,null,null,0,0,0]
["",null,null,null,null,0,0,0]
["",null,null,null,null,0,0,0]
["",null,null,null,null,0,0,0]
["",null,null,null,null,0,0,0]
["",null,null,null,null,0,0,0]
["",null,null,null,null,0,0,0]
["",null,null,null,null,0,0,0]
["",null,null,null,null,0,0,0]
["",null,null,null,null,0,0,0]
["",null,null,null,null,0,0,0]
["",null,null,null,null,0,0,0]
["",null,null,null,null,0,0,0]
["",null,null,null,null,0,0,0]
["",null,null,null,null,0,0,0]
["",null,null,null,null,0,0,0]
["",null,null,null,null,0,0,0]
["",null,null,null,null,0,0,0]
["",null,null,null,null,0,0,0]
["",null,null,null,null,0,0,0]
["",null,null,null,null,0,0,0]
["",null,null,null,null,0,0,0]
["",null,null,null,null,0,0,0]
["",null,null,null,null,0,0,0]
["",null,null,null,null,0,0,0]
["",null,null,null,null,0,0,0]
["",null,null,null,null,0,0,0]
["",null,null,null,null,0,0,0]
["",null,null,null,null,0,0,0]
["",null,null,null,null,0,0,0]
[{"$f":"IF(B339>0,ROW(A339)-18,\"\")","v":""},null,null,null,null,{"$f":"IF(D339<1,0,(B339/1000)*(C339/1000))","v":0},{"$f":"(B339/1000)*(C339/1000)*D339","v":0},{"$f":"IF(F339<0.5,G339,0)","v":0}]
["",null,null,null,null,0,0,0]
["",null,null,null,null,0,0,0]
["",null,null,null,null,0,0,0]
["",null,null,null,null,0,0,0]
["",null,null,null,null,0,0,0]
["",null,null,null,null,0,0,0]
["",null,null,null,null,0,0,0]
["",null,null,null,null,0,0,0]
["",null,null,null,null,0,0,0]
["",null,null,null,null,0,0,0]
["",null,null,null,null,0,0,0]
["",null,null,null,null,0,0,0]
["",null,null,null,null,0,0,0]
["",null,null,null,null,0,0,0]
["",null,null,null,null,0,0,0]
["",null,null,null,null,0,0,0]
["",null,null,null,null,0,0,0]
["",null,null,null,null,0,0,0]
["",null,null,null,null,0,0,0]
["",null,null,null,null,0,0,0]
["",null,null,null,null,0,0,0]
["",null,null,null,null,0,0,0]
["",null,null,null,null,0,0,0]
["",null,null,null,null,0,0,0]
["",null,null,null,null,0,0,0]
["",null,null,null,null,0,0,0]
["",null,null,null,null,0,0,0]
["",null,null,null,null,0,0,0]
["",null,null,null,null,0,0,0]
["",null,null,null,null,0,0,0]
["",null,null,null,null,0,0,0]
["",null,null,null,null,0,0,0]
["",null,null,null,null,0,0,0]
["",null,null,null,null,0,0,0]
["",null,null,null,null,0,0,0]
["",null,null,null,null,0,0,0]
["",null,null,null,null,0,0,0]
["",null,null,null,null,0,0,0]
["",null,null,null,null,0,0,0]
["",null,null,null,null,0,0,0]
["",null,null,null,null,0,0,0]
["",null,null,null,null,0,0,0]
["",null,null,null,null,0,0,0]
["",null,null,null,null,0,0,0]
["",null,null,null,null,0,0,0]
["",null,null,null,null,0,0,0]
["",null,null,null,null,0,0,0]
["",null,null,null,null,0,0,0]
["",null,null,null,null,0,0,0]
["",null,null,null,null,0,0,0]
["",null,null,null,null,0,0,0]
["",null,null,null,null,0,0,0]
["",null,null,null,null,0,0,0]
["",null,null,null,null,0,0,0]
["",null,null,null,null,0,0,0]
["",null,null,null,null,0,0,0]
["",null,null,null,null,0,0,0]
["",null,null,null,null,0,0,0]
["",null,null,null,null,0,0,0]
["",null,null,null,null,0,0,0]
["",null,null,null,null,0,0,0]
["",null,null,null,null,0,0,0]
["",null,null,null,null,0,0,0]
[{"$f":"IF(B403>0,ROW(A403)-18,\"\")","v":""},null,null,null,null,{"$f":"IF(D403<1,0,(B403/1000)*(C403/1000))","v":0},{"$f":"(B403/1000)*(C403/1000)*D403","v":0},{"$f":"IF(F403<0.5,G403,0)","v":0}]
["",null,null,null,null,0,0,0]
["",null,null,null,null,0,0,0]
["",null,null,null,null,0,0,0]
["",null,null,null,null,0,0,0]
["",null,null,null,null,0,0,0]
["",null,null,null,null,0,0,0]
["",null,null,null,null,0,0,0]
["",null,null,null,null,0,0,0]
["",null,null,null,null,0,0,0]
["",null,null,null,null,0,0,0]
["",null,null,null,null,0,0,0]
["",null,null,null,null,0,0,0]
["",null,null,null,null,0,0,0]
["",null,null,null,null,0,0,0]
["",null,null,null,null,0,0,0]
["",null,null,null,null,0,0,0]
["",null,null,null,null,0,0,0]
["",null,null,null,null,0,0,0]
["",null,null,null,null,0,0,0]
["",null,null,null,null,0,0,0]
["",null,null,null,null,0,0,0]
["",null,null,null,null,0,0,0]
["",null,null,null,null,0,0,0]
["",null,null,null,null,0,0,0]
["",null,null,null,null,0,0,0]
["",null,null,null,null,0,0,0]
["",null,null,null,null,0,0,0]
["",null,null,null,null,0,0,0]
["",null,null,null,null,0,0,0]
["",null,null,null,null,0,0,0]
["",null,null,null,null,0,0,0]
["",null,null,null,null,0,0,0]
["",null,null,null,null,0,0,0]
["",null,null,null,null,0,0,0]
["",null,null,null,null,0,0,0]
["",null,null,null,null,0,0,0]
["",null,null,null,null,0,0,0]
["",null,null,null,null,0,0,0]
["",null,null,null,null,0,0,0]
["",null,null,null,null,0,0,0]
["",null,null,null,null,0,0,0]
["",null,null,null,null,0,0,0]
["",null,null,null,null,0,0,0]
["",null,null,null,null,0,0,0]
["",null,null,null,null,0,0,0]
["",null,null,null,null,0,0,0]
["",null,null,null,null,0,0,0]
["",null,null,null,null,0,0,0]
["",null,null,null,null,0,0,0]
["",null,null,null,null,0,0,0]
["",null,null,null,null,0,0,0]
["",null,null,null,null,0,0,0]
["",null,null,null,null,0,0,0]
["",null,null,null,null,0,0,0]
["",null,null,null,null,0,0,0]
["",null,null,null,null,0,0,0]
["",null,null,null,null,0,0,0]
["",null,null,null,null,0,0,0]
["",null,null,null,null,0,0,0]
["",null,null,null,null,0,0,0]
["",null,null,null,null,0,0,0]
["",null,null,null,null,0,0,0]
["",null,null,null,null,0,0,0]
[{"$f":"IF(B467>0,ROW(A467)-18,\"\")","v":""},null,null,null,null,{"$f":"IF(D467<1,0,(B467/1000)*(C467/1000))","v":0},{"$f":"(B467/1000)*(C467/1000)*D467","v":0},{"$f":"IF(F467<0.5,G467,0)","v":0}]
["",null,null,null,null,0,0,0]
["",null,null,null,null,0,0,0]
["",null,null,null,null,0,0,0]
["",null,null,null,null,0,0,0]
["",null,null,null,null,0,0,0]
["",null,null,null,null,0,0,0]
["",null,null,null,null,0,0,0]
["",null,null,null,null,0,0,0]
["",null,null,null,null,0,0,0]
["",null,null,null,null,0,0,0]
["",null,null,null,null,0,0,0]
["",null,null,null,null,0,0,0]
["",null,null,null,null,0,0,0]
["",null,null,null,null,0,0,0]
["",null,null,null,null,0,0,0]
["",null,null,null,null,0,0,0]
["",null,null,null,null,0,0,0]
["",null,null,null,null,0,0,0]
["",null,null,null,null,0,0,0]
["",null,null,null,null,0,0,0]
["",null,null,null,null,0,0,0]
["",null,null,null,null,0,0,0]
["",null,null,null,null,0,0,0]
["",null,null,null,null,0,0,0]
["",null,null,null,null,0,0,0]
["",null,null,null,null,0,0,0]
["",null,null,null,null,0,0,0]
["",null,null,null,null,0,0,0]
["",null,null,null,null,0,0,0]
["",null,null,null,null,0,0,0]
["",null,null,null,null,0,0,0]
["",null,null,null,null,0,0,0]
["",null,null,null,null,0,0,0]
["",null,null,null,null,0,0,0]
["",null,null,null,null,0,0,0]
["",null,null,null,null,0,0,0]
["",null,null,null,null,0,0,0]
["",null,null,null,null,0,0,0]
["",null,null,null,null,0,0,0]
["",null,null,null,null,0,0,0]
["",null,null,null,null,0,0,0]
["",null,null,null,null,0,0,0]
["",null,null,null,null,0,0,0]
["",null,null,null,null,0,0,0]
["",null,null,null,null,0,0,0]
["",null,null,null,null,0,0,0]
["",null,null,null,null,0,0,0]
["",null,null,null,null,0,0,0]
["",null,null,null,null,0,0,0]
["",null,null,null,null,0,0,0]
["",null,null,null,null,0,0,0]
["",null,null,null,null,0,0,0]
["",null,null,null,null,0,0,0]
["",null,null,null,null,0,0,0]
["",null,null,null,null,0,0,0]
["",null,null,null,null,0,0,0]
["",null,null,null,null,0,0,0]
["",null,null,null,null,0,0,0]
["",null,null,null,null,0,0,0]
["",null,null,null,null,0,0,0]
["",null,null,null,null,0,0,0]
["",null,null,null,null,0,0,0]
["",null,null,null,null,0,0,0]
[{"$f":"IF(B531>0,ROW(A531)-18,\"\")","v":""},null,null,null,null,{"$f":"IF(D531<1,0,(B531/1000)*(C531/1000))","v":0},{"$f":"(B531/1000)*(C531/1000)*D531","v":0},{"$f":"IF(F531<0.5,G531,0)","v":0}]
["",null,null,null,null,0,0,0]
["",null,null,null,null,0,0,0]
["",null,null,null,null,0,0,0]
["",null,null,null,null,0,0,0]
["",null,null,null,null,0,0,0]
["",null,null,null,null,0,0,0]
["",null,null,null,null,0,0,0]
["",null,null,null,null,0,0,0]
["",null,null,null,null,0,0,0]
["",null,null,null,null,0,0,0]
["",null,null,null,null,0,0,0]
["",null,null,null,null,0,0,0]
["",null,null,null,null,0,0,0]
["",null,null,null,null,0,0,0]
["",null,null,null,null,0,0,0]
["",null,null,null,null,0,0,0]
["",null,null,null,null,0,0,0]
["",null,null,null,null,0,0,0]
["",null,null,null,null,0,0,0]
["",null,null,null,null,0,0,0]
["",null,null,null,null,0,0,0]
["",null,null,null,null,0,0,0]
["",null,null,null,null,0,0,0]
["",null,null,null,null,0,0,0]
["",null,null,null,null,0,0,0]
["",null,null,null,null,0,0,0]
["",null,null,null,null,0,0,0]
["",null,null,null,null,0,0,0]
["",null,null,null,null,0,0,0]
["",null,null,null,null,0,0,0]
["",null,null,null,null,0,0,0]
["",null,null,null,null,0,0,0]
["",null,null,null,null,0,0,0]
["",null,null,null,null,0,0,0]
["",null,null,null,null,0,0,0]
["",null,null,null,null,0,0,0]
["",null,null,null,null,0,0,0]
["",null,null,null,null,0,0,0]
["",null,null,null,null,0,0,0]
["",null,null,null,null,0,0,0]
["",null,null,null,null,0,0,0]
["",null,null,null,null,0,0,0]
["",null,null,null,null,0,0,0]
["",null,null,null,null,0,0,0]
["",null,null,null,null,0,0,0]
["",null,null,null,null,0,0,0]
["",null,null,null,null,0,0,0]
["",null,null,null,null,0,0,0]
["",null,null,null,null,0,0,0]
["",null,null,null,null,0,0,0]
["",null,null,null,null,0,0,0]
["",null,null,null,null,0,0,0]
["",null,null,null,null,0,0,0]
["",null,null,null,null,0,0,0]
["",null,null,null,null,0,0,0]
["",null,null,null,null,0,0,0]
["",null,null,null,null,0,0,0]
["",null,null,null,null,0,0,0]
["",null,null,null,null,0,0,0]
["",null,null,null,null,0,0,0]
["",null,null,null,null,0,0,0]
["",null,null,null,null,0,0,0]
["",null,null,null,null,0,0,0]
[{"$f":"IF(B595>0,ROW(A595)-18,\"\")","v":""},null,null,null,null,{"$f":"IF(D595<1,0,(B595/1000)*(C595/1000))","v":0},{"$f":"(B595/1000)*(C595/1000)*D595","v":0},{"$f":"IF(F595<0.5,G595,0)","v":0}]
["",null,null,null,null,0,0,0]
["",null,null,null,null,0,0,0]
["",null,null,null,null,0,0,0]
["",null,null,null,null,0,0,0]
["",null,null,null,null,0,0,0]
["",null,null,null,null,0,0,0]
["",null,null,null,null,0,0,0]
["",null,null,null,null,0,0,0]
["",null,null,null,null,0,0,0]
["",null,null,null,null,0,0,0]
["",null,null,null,null,0,0,0]
["",null,null,null,null,0,0,0]
["",null,null,null,null,0,0,0]
["",null,null,null,null,0,0,0]
["",null,null,null,null,0,0,0]
["",null,null,null,null,0,0,0]
["",null,null,null,null,0,0,0]
["",null,null,null,null,0,0,0]
["",null,null,null,null,0,0,0]
["",null,null,null,null,0,0,0]
["",null,null,null,null,0,0,0]
["",null,null,null,null,0,0,0]
["",null,null,null,null,0,0,0]
["",null,null,null,null,0,0,0]
["",null,null,null,null,0,0,0]
["",null,null,null,null,0,0,0]
["",null,null,null,null,0,0,0]
["",null,null,null,null,0,0,0]
["",null,null,null,null,0,0,0]
["",null,null,null,null,0,0,0]
["",null,null,null,null,0,0,0]
["",null,null,null,null,0,0,0]
["",null,null,null,null,0,0,0]
["",null,null,null,null,0,0,0]
["",null,null,null,null,0,0,0]
["",null,null,null,null,0,0,0]
["",null,null,null,null,0,0,0]
["",null,null,null,null,0,0,0]
["",null,null,null,null,0,0,0]
["",null,null,null,null,0,0,0]
["",null,null,null,null,0,0,0]
["",null,null,null,null,0,0,0]
["",null,null,null,null,0,0,0]
["",null,null,null,null,0,0,0]
["",null,null,null,null,0,0,0]
["",null,null,null,null,0,0,0]
["",null,null,null,null,0,0,0]
["",null,null,null,null,0,0,0]
["",null,null,null,null,0,0,0]
["",null,null,null,null,0,0,0]
["",null,null,null,null,0,0,0]
["",null,null,null,null,0,0,0]
["",null,null,null,null,0,0,0]
["",null,null,null,null,0,0,0]
["",null,null,null,null,0,0,0]
["",null,null,null,null,0,0,0]
["",null,null,null,null,0,0,0]
["",null,null,null,null,0,0,0]
["",null,null,null,null,0,0,0]
["",null,null,null,null,0,0,0]
["",null,null,null,null,0,0,0]
["",null,null,null,null,0,0,0]
["",null,null,null,null,0,0,0]
[{"$f":"IF(B659>0,ROW(A659)-18,\"\")","v":""},null,null,null,null,{"$f":"IF(D659<1,0,(B659/1000)*(C659/1000))","v":0},{"$f":"(B659/1000)*(C659/1000)*D659","v":0},{"$f":"IF(F659<0.5,G659,0)","v":0}]
["",null,null,null,null,0,0,0]
["",null,null,null,null,0,0,0]
["",null,null,null,null,0,0,0]
["",null,null,null,null,0,0,0]
["",null,null,null,null,0,0,0]
["",null,null,null,null,0,0,0]
["",null,null,null,null,0,0,0]
["",null,null,null,null,0,0,0]
["",null,null,null,null,0,0,0]
["",null,null,null,null,0,0,0]
["",null,null,null,null,0,0,0]
["",null,null,null,null,0,0,0]
["",null,null,null,null,0,0,0]
["",null,null,null,null,0,0,0]
["",null,null,null,null,0,0,0]
["",null,null,null,null,0,0,0]
["",null,null,null,null,0,0,0]
["",null,null,null,null,0,0,0]
["",null,null,null,null,0,0,0]
["",null,null,null,null,0,0,0]
["",null,null,null,null,0,0,0]
["",null,null,null,null,0,0,0]
["",null,null,null,null,0,0,0]
["",null,null,null,null,0,0,0]
["",null,null,null,null,0,0,0]
["",null,null,null,null,0,0,0]
["",null,null,null,null,0,0,0]
["",null,null,null,null,0,0,0]
["",null,null,null,null,0,0,0]
["",null,null,null,null,0,0,0]
["",null,null,null,null,0,0,0]
["",null,null,null,null,0,0,0]
["",null,null,null,null,0,0,0]
["",null,null,null,null,0,0,0]
["",null,null,null,null,0,0,0]
["",null,null,null,null,0,0,0]
["",null,null,null,null,0,0,0]
["",null,null,null,null,0,0,0]
["",null,null,null,null,0,0,0]
["",null,null,null,null,0,0,0]
["",null,null,null,null,0,0,0]
["",null,null,null,null,0,0,0]
["",null,null,null,null,0,0,0]
["",null,null,null,null,0,0,0]
["",null,null,null,null,0,0,0]
["",null,null,null,null,0,0,0]
["",null,null,null,null,0,0,0]
["",null,null,null,null,0,0,0]
["",null,null,null,null,0,0,0]
["",null,null,null,null,0,0,0]
["",null,null,null,null,0,0,0]
["",null,null,null,null,0,0,0]
["",null,null,null,null,0,0,0]
["",null,null,null,null,0,0,0]
["",null,null,null,null,0,0,0]
["",null,null,null,null,0,0,0]
["",null,null,null,null,0,0,0]
["",null,null,null,null,0,0,0]
["",null,null,null,null,0,0,0]
["",null,null,null,null,0,0,0]
["",null,null,null,null,0,0,0]
["",null,null,null,null,0,0,0]
["",null,null,null,null,0,0,0]
[{"$f":"IF(B723>0,ROW(A723)-18,\"\")","v":""},null,null,null,null,{"$f":"IF(D723<1,0,(B723/1000)*(C723/1000))","v":0},{"$f":"(B723/1000)*(C723/1000)*D723","v":0},{"$f":"IF(F723<0.5,G723,0)","v":0}]
["",null,null,null,null,0,0,0]
["",null,null,null,null,0,0,0]
["",null,null,null,null,0,0,0]
["",null,null,null,null,0,0,0]
["",null,null,null,null,0,0,0]
["",null,null,null,null,0,0,0]
["",null,null,null,null,0,0,0]
["",null,null,null,null,0,0,0]
["",null,null,null,null,0,0,0]
["",null,null,null,null,0,0,0]
["",null,null,null,null,0,0,0]
["",null,null,null,null,0,0,0]
["",null,null,null,null,0,0,0]
["",null,null,null,null,0,0,0]
["",null,null,null,null,0,0,0]
["",null,null,null,null,0,0,0]
["",null,null,null,null,0,0,0]
["",null,null,null,null,0,0,0]
["",null,null,null,null,0,0,0]
["",null,null,null,null,0,0,0]
["",null,null,null,null,0,0,0]
["",null,null,null,null,0,0,0]
["",null,null,null,null,0,0,0]
["",null,null,null,null,0,0,0]
["",null,null,null,null,0,0,0]
["",null,null,null,null,0,0,0]
["",null,null,null,null,0,0,0]
["",null,null,null,null,0,0,0]
["",null,null,null,null,0,0,0]
["",null,null,null,null,0,0,0]
["",null,null,null,null,0,0,0]
["",null,null,null,null,0,0,0]
["",null,null,null,null,0,0,0]
["",null,null,null,null,0,0,0]
["",null,null,null,null,0,0,0]
["",null,null,null,null,0,0,0]
["",null,null,null,null,0,0,0]
["",null,null,null,null,0,0,0]
["",null,null,null,null,0,0,0]
["",null,null,null,null,0,0,0]
["",null,null,null,null,0,0,0]
["",null,null,null,null,0,0,0]
["",null,null,null,null,0,0,0]
["",null,null,null,null,0,0,0]
["",null,null,null,null,0,0,0]
["",null,null,null,null,0,0,0]
["",null,null,null,null,0,0,0]
["",null,null,null,null,0,0,0]
["",null,null,null,null,0,0,0]
["",null,null,null,null,0,0,0]
["",null,null,null,null,0,0,0]
["",null,null,null,null,0,0,0]
["",null,null,null,null,0,0,0]
["",null,null,null,null,0,0,0]
["",null,null,null,null,0,0,0]
["",null,null,null,null,0,0,0]
["",null,null,null,null,0,0,0]
["",null,null,null,null,0,0,0]
["",null,null,null,null,0,0,0]
["",null,null,null,null,0,0,0]
["",null,null,null,null,0,0,0]
["",null,null,null,null,0,0,0]
["",null,null,null,null,0,0,0]
[{"$f":"IF(B787>0,ROW(A787)-18,\"\")","v":""},null,null,null,null,{"$f":"IF(D787<1,0,(B787/1000)*(C787/1000))","v":0},{"$f":"(B787/1000)*(C787/1000)*D787","v":0},{"$f":"IF(F787<0.5,G787,0)","v":0}]
["",null,null,null,null,0,0,0]
["",null,null,null,null,0,0,0]
["",null,null,null,null,0,0,0]
["",null,null,null,null,0,0,0]
["",null,null,null,null,0,0,0]
["",null,null,null,null,0,0,0]
["",null,null,null,null,0,0,0]
["",null,null,null,null,0,0,0]
["",null,null,null,null,0,0,0]
["",null,null,null,null,0,0,0]
["",null,null,null,null,0,0,0]
["",null,null,null,null,0,0,0]
["",null,null,null,null,0,0,0]
["",null,null,null,null,0,0,0]
["",null,null,null,null,0,0,0]
["",null,null,null,null,0,0,0]
["",null,null,null,null,0,0,0]
["",null,null,null,null,0,0,0]
["",null,null,null,null,0,0,0]
["",null,null,null,null,0,0,0]
["",null,null,null,null,0,0,0]
["",null,null,null,null,0,0,0]
["",null,null,null,null,0,0,0]
["",null,null,null,null,0,0,0]
["",null,null,null,null,0,0,0]
["",null,null,null,null,0,0,0]
["",null,null,null,null,0,0,0]
["",null,null,null,null,0,0,0]
["",null,null,null,null,0,0,0]
["",null,null,null,null,0,0,0]
["",null,null,null,null,0,0,0]
["",null,null,null,null,0,0,0]
["",null,null,null,null,0,0,0]
["",null,null,null,null,0,0,0]
["",null,null,null,null,0,0,0]
["",null,null,null,null,0,0,0]
["",null,null,null,null,0,0,0]
["",null,null,null,null,0,0,0]
["",null,null,null,null,0,0,0]
["",null,null,null,null,0,0,0]
["",null,null,null,null,0,0,0]
["",null,null,null,null,0,0,0]
["",null,null,null,null,0,0,0]
["",null,null,null,null,0,0,0]
["",null,null,null,null,0,0,0]
["",null,null,null,null,0,0,0]
["",null,null,null,null,0,0,0]
["",null,null,null,null,0,0,0]
["",null,null,null,null,0,0,0]
["",null,null,null,null,0,0,0]
["",null,null,null,null,0,0,0]
["",null,null,null,null,0,0,0]
["",null,null,null,null,0,0,0]
["",null,null,null,null,0,0,0]
["",null,null,null,null,0,0,0]
["",null,null,null,null,0,0,0]
["",null,null,null,null,0,0,0]
["",null,null,null,null,0,0,0]
["",null,null,null,null,0,0,0]
["",null,null,null,null,0,0,0]
["",null,null,null,null,0,0,0]
["",null,null,null,null,0,0,0]
["",null,null,null,null,0,0,0]
[{"$f":"IF(B851>0,ROW(A851)-18,\"\")","v":""},null,null,null,null,{"$f":"IF(D851<1,0,(B851/1000)*(C851/1000))","v":0},{"$f":"(B851/1000)*(C851/1000)*D851","v":0},{"$f":"IF(F851<0.5,G851,0)","v":0}]
["",null,null,null,null,0,0,0]
["",null,null,null,null,0,0,0]
["",null,null,null,null,0,0,0]
["",null,null,null,null,0,0,0]
["",null,null,null,null,0,0,0]
["",null,null,null,null,0,0,0]
["",null,null,null,null,0,0,0]
["",null,null,null,null,0,0,0]
["",null,null,null,null,0,0,0]
["",null,null,null,null,0,0,0]
["",null,null,null,null,0,0,0]
["",null,null,null,null,0,0,0]
["",null,null,null,null,0,0,0]
["",null,null,null,null,0,0,0]
["",null,null,null,null,0,0,0]
["",null,null,null,null,0,0,0]
["",null,null,null,null,0,0,0]
["",null,null,null,null,0,0,0]
["",null,null,null,null,0,0,0]
["",null,null,null,null,0,0,0]
["",null,null,null,null,0,0,0]
["",null,null,null,null,0,0,0]
["",null,null,null,null,0,0,0]
["",null,null,null,null,0,0,0]
["",null,null,null,null,0,0,0]
["",null,null,null,null,0,0,0]
["",null,null,null,null,0,0,0]
["",null,null,null,null,0,0,0]
["",null,null,null,null,0,0,0]
["",null,null,null,null,0,0,0]
["",null,null,null,null,0,0,0]
["",null,null,null,null,0,0,0]
["",null,null,null,null,0,0,0]
["",null,null,null,null,0,0,0]
["",null,null,null,null,0,0,0]
["",null,null,null,null,0,0,0]
["",null,null,null,null,0,0,0]
["",null,null,null,null,0,0,0]
["",null,null,null,null,0,0,0]
["",null,null,null,null,0,0,0]
["",null,null,null,null,0,0,0]
["",null,null,null,null,0,0,0]
["",null,null,null,null,0,0,0]
["",null,null,null,null,0,0,0]
["",null,null,null,null,0,0,0]
["",null,null,null,null,0,0,0]
["",null,null,null,null,0,0,0]
["",null,null,null,null,0,0,0]
["",null,null,null,null,0,0,0]
["",null,null,null,null,0,0,0]
["",null,null,null,null,0,0,0]
["",null,null,null,null,0,0,0]
["",null,null,null,null,0,0,0]
["",null,null,null,null,0,0,0]
["",null,null,null,null,0,0,0]
["",null,null,null,null,0,0,0]
["",null,null,null,null,0,0,0]
["",null,null,null,null,0,0,0]
["",null,null,null,null,0,0,0]
["",null,null,null,null,0,0,0]
["",null,null,null,null,0,0,0]
["",null,null,null,null,0,0,0]
["",null,null,null,null,0,0,0]
[{"$f":"IF(B915>0,ROW(A915)-18,\"\")","v":""},null,null,null,null,{"$f":"IF(D915<1,0,(B915/1000)*(C915/1000))","v":0},{"$f":"(B915/1000)*(C915/1000)*D915","v":0},{"$f":"IF(F915<0.5,G915,0)","v":0}]
["",null,null,null,null,0,0,0]
["",null,null,null,null,0,0,0]
["",null,null,null,null,0,0,0]
["",null,null,null,null,0,0,0]
["",null,null,null,null,0,0,0]
["",null,null,null,null,0,0,0]
["",null,null,null,null,0,0,0]
["",null,null,null,null,0,0,0]
["",null,null,null,null,0,0,0]
["",null,null,null,null,0,0,0]
["",null,null,null,null,0,0,0]
["",null,null,null,null,0,0,0]
["",null,null,null,null,0,0,0]
["",null,null,null,null,0,0,0]
["",null,null,null,null,0,0,0]
["",null,null,null,null,0,0,0]
["",null,null,null,null,0,0,0]
["",null,null,null,null,0,0,0]
["",null,null,null,null,0,0,0]
["",null,null,null,null,0,0,0]
["",null,null,null,null,0,0,0]
["",null,null,null,null,0,0,0]
["",null,null,null,null,0,0,0]
["",null,null,null,null,0,0,0]
["",null,null,null,null,0,0,0]
["",null,null,null,null,0,0,0]
["",null,null,null,null,0,0,0]
["",null,null,null,null,0,0,0]
["",null,null,null,null,0,0,0]
["",null,null,null,null,0,0,0]
["",null,null,null,null,0,0,0]
["",null,null,null,null,0,0,0]
["",null,null,null,null,0,0,0]
["",null,null,null,null,0,0,0]
["",null,null,null,null,0,0,0]
["",null,null,null,null,0,0,0]
["",null,null,null,null,0,0,0]
["",null,null,null,null,0,0,0]
["",null,null,null,null,0,0,0]
["",null,null,null,null,0,0,0]
["",null,null,null,null,0,0,0]
["",null,null,null,null,0,0,0]
["",null,null,null,null,0,0,0]
["",null,null,null,null,0,0,0]
["",null,null,null,null,0,0,0]
["",null,null,null,null,0,0,0]
["",null,null,null,null,0,0,0]
["",null,null,null,null,0,0,0]
["",null,null,null,null,0,0,0]
["",null,null,null,null,0,0,0]
["",null,null,null,null,0,0,0]
["",null,null,null,null,0,0,0]
["",null,null,null,null,0,0,0]
["",null,null,null,null,0,0,0]
["",null,null,null,null,0,0,0]
["",null,null,null,null,0,0,0]
["",null,null,null,null,0,0,0]
["",null,null,null,null,0,0,0]
["",null,null,null,null,0,0,0]
["",null,null,null,null,0,0,0]
["",null,null,null,null,0,0,0]
["",null,null,null,null,0,0,0]
["",null,null,null,null,0,0,0]
[{"$f":"IF(B979>0,ROW(A979)-18,\"\")","v":""},null,null,null,null,{"$f":"IF(D979<1,0,(B979/1000)*(C979/1000))","v":0},{"$f":"(B979/1000)*(C979/1000)*D979","v":0},{"$f":"IF(F979<0.5,G979,0)","v":0}]
["",null,null,null,null,0,0,0]
["",null,null,null,null,0,0,0]
["",null,null,null,null,0,0,0]
["",null,null,null,null,0,0,0]
["",null,null,null,null,0,0,0]
["",null,null,null,null,0,0,0]
["",null,null,null,null,0,0,0]
["",null,null,null,null,0,0,0]
["",null,null,null,null,0,0,0]
["",null,null,null,null,0,0,0]
["",null,null,null,null,0,0,0]
["",null,null,null,null,0,0,0]
["",null,null,null,null,0,0,0]
["",null,null,null,null,0,0,0]
["",null,null,null,null,0,0,0]
["",null,null,null,null,0,0,0]
["",null,null,null,null,0,0,0]
["",null,null,null,null,0,0,0]
["",null,null,null,null,0,0,0]
[null,null,null,null,null,0,0,0]

{"sheet":"Sjab ColorPlus","index":22,"n_rows":999,"n_cols":32,"rows_kept":999,"cut":false,"hidden":true,"merged":[[12,1,12,3],[12,4,12,5],[12,7,12,8],[15,31,16,36],[14,1,14,3],[14,4,14,5],[14,12,14,15],[14,17,14,20],[14,22,15,28],[15,1,16,5],[8,3,8,9],[10,1,10,3],[10,4,10,5],[10,7,10,8],[11,1,11,3],[11,4,11,5],[11,7,11,8],[1,3,1,9],[3,1,4,1],[3,3,3,9],[3,16,13,16],[3,30,13,30],[4,3,4,9],[5,1,6,1],[5,3,5,9],[5,11,13,11],[5,21,13,21],[13,7,13,8],[6,3,6,9],[6,12,12,14],[6,17,12,19],[7,1,8,1],[7,3,7,9]],"read":"row_number_cap"}
[]
[null,null,null,"BESTELFORMULIER COLOR PLUS"]
[]
[null,"Project","Naam",null,null,null,null,null,null,null,null,null,null,null,null,null,"Schuurrichting S <= 3050 mm",null,null,null,null,null,null,null,null,null,null,null,null,null,"Schuurrichting S = 3050 mm"]
[null,null,"Adres"]
[null,"Aannemer","Naam",null,null,null,null,null,null,null,null,"Richting P <= 1220 mm",null,null,null,null,null,null,null,null,null,"Richting P = 1220 mm"]
[null,null,"Adres"]
[null,"Handelaar","Naam"]
[null,null,"Adres"]
[]
[null,"Totale oppervlakte",null,null,{"$f":"SUM(G19:G999)","v":0},null,null,"Prijsaanvraag/Bestelling"]
[null,"Totale oppervlakte Platen < 0,5 m²",null,null,{"$f":"SUM(H19:H10999)","v":0},null,null,"Plaattype"]
[null,"Totale oppervlakte Platen > 0,5 m²",null,null,{"$f":"E11-E12","v":0},null,null,"Kleurcode"]
[null,null,null,null,null,null,null,"Kleurnaam"]
[null,"Totaal aantal Platen",null,null,{"$f":"SUM(D19:D999)","v":0},null,null,null,null,null,null,null,"Fig. 1 Schuurrichting S <= 3050 mm",null,null,null,null,"Fig. 2 Richting P <= 1220 mm",null,null,null,null,"Schuurrichting S = 3050 mm\r\nFig. a Maximale afmetingen horizontaal"]
[null,"AFMETINGEN IN MM INVULLEN!!",null,null,null,null,null,null,null,null,null,null,null,null,null,null,null,null,null,null,null,null,null,null,null,null,null,null,null,null,null,"Richting P = 1220 mm\r\nFig. b Maximale afmetingen verticaal"]
[]
["Rij","Schuurrichting S (mm)","Richting P (mm)","Aantal","Plaatmarkering","m²/stk","m² Totaal","< 0,5 m²","Palletnr.","Opmerkingen"]
[1,null,null,null,null,{"$f":"IF(D19<1,0,(B19/1000)*(C19/1000))","v":0},{"$f":"(B19/1000)*(C19/1000)*D19","v":0},{"$f":"IF(F19<0.5,G19,0)","v":0},null,null,null,null,null,{"$f":"SUM(M19:M999)","v":0}]
[{"$f":"IF(B20>0,ROW(A20)-18,\"\")","v":""},null,null,null,null,{"$f":"IF(D20<1,0,(B20/1000)*(C20/1000))","v":0},0,0]
["",null,null,null,null,0,0,0]
["",null,null,null,null,0,0,0]
["",null,null,null,null,0,0,0]
["",null,null,null,null,0,0,0]
["",null,null,null,null,0,0,0]
["",null,null,null,null,0,0,0]
["",null,null,null,null,0,0,0]
["",null,null,null,null,0,0,0]
["",null,null,null,null,0,0,0]
["",null,null,null,null,0,0,0]
["",null,null,null,null,0,0,0]
["",null,null,null,null,0,0,0]
["",null,null,null,null,0,0,0]
["",null,null,null,null,0,0,0]
["",null,null,null,null,0,0,0]
["",null,null,null,null,0,0,0]
["",null,null,null,null,0,0,0]
["",null,null,null,null,0,0,0]
["",null,null,null,null,0,0,0]
["",null,null,null,null,0,0,0]
["",null,null,null,null,0,0,0]
["",null,null,null,null,0,0,0]
["",null,null,null,null,0,0,0]
["",null,null,null,null,0,0,0]
["",null,null,null,null,0,0,0]
["",null,null,null,null,0,0,0]
["",null,null,null,null,0,0,0]
["",null,null,null,null,0,0,0]
["",null,null,null,null,0,0,0]
["",null,null,null,null,0,0,0]
["",null,null,null,null,0,0,0]
["",null,null,null,null,0,0,0]
["",null,null,null,null,0,0,0]
["",null,null,null,null,0,0,0]
["",null,null,null,null,0,0,0]
["",null,null,null,null,0,0,0]
["",null,null,null,null,0,0,0]
["",null,null,null,null,0,0,0]
["",null,null,null,null,0,0,0]
["",null,null,null,null,0,0,0]
["",null,null,null,null,0,0,0]
["",null,null,null,null,0,0,0]
["",null,null,null,null,0,0,0]
["",null,null,null,null,0,0,0]
["",null,null,null,null,0,0,0]
["",null,null,null,null,0,0,0]
["",null,null,null,null,0,0,0]
["",null,null,null,null,0,0,0]
["",null,null,null,null,0,0,0]
["",null,null,null,null,0,0,0]
["",null,null,null,null,0,0,0]
["",null,null,null,null,0,0,0]
["",null,null,null,null,0,0,0]
["",null,null,null,null,0,0,0]
["",null,null,null,null,0,0,0]
["",null,null,null,null,0,0,0]
["",null,null,null,null,0,0,0]
["",null,null,null,null,0,0,0]
["",null,null,null,null,0,0,0]
["",null,null,null,null,0,0,0]
["",null,null,null,null,0,0,0]
["",null,null,null,null,0,0,0]
[{"$f":"IF(B83>0,ROW(A83)-18,\"\")","v":""},null,null,null,null,0,{"$f":"(B83/1000)*(C83/1000)*D83","v":0},{"$f":"IF(F83<0.5,G83,0)","v":0}]
["",null,null,null,null,{"$f":"IF(D84<1,0,(B84/1000)*(C84/1000))","v":0},0,0]
["",null,null,null,null,0,0,0]
["",null,null,null,null,0,0,0]
["",null,null,null,null,0,0,0]
["",null,null,null,null,0,0,0]
["",null,null,null,null,0,0,0]
["",null,null,null,null,0,0,0]
["",null,null,null,null,0,0,0]
["",null,null,null,null,0,0,0]
["",null,null,null,null,0,0,0]
["",null,null,null,null,0,0,0]
["",null,null,null,null,0,0,0]
["",null,null,null,null,0,0,0]
["",null,null,null,null,0,0,0]
["",null,null,null,null,0,0,0]
["",null,null,null,null,0,0,0]
["",null,null,null,null,0,0,0]
["",null,null,null,null,0,0,0]
["",null,null,null,null,0,0,0]
["",null,null,null,null,0,0,0]
["",null,null,null,null,0,0,0]
["",null,null,null,null,0,0,0]
["",null,null,null,null,0,0,0]
["",null,null,null,null,0,0,0]
["",null,null,null,null,0,0,0]
["",null,null,null,null,0,0,0]
["",null,null,null,null,0,0,0]
["",null,null,null,null,0,0,0]
["",null,null,null,null,0,0,0]
["",null,null,null,null,0,0,0]
["",null,null,null,null,0,0,0]
["",null,null,null,null,0,0,0]
["",null,null,null,null,0,0,0]
["",null,null,null,null,0,0,0]
["",null,null,null,null,0,0,0]
["",null,null,null,null,0,0,0]
["",null,null,null,null,0,0,0]
["",null,null,null,null,0,0,0]
["",null,null,null,null,0,0,0]
["",null,null,null,null,0,0,0]
["",null,null,null,null,0,0,0]
["",null,null,null,null,0,0,0]
["",null,null,null,null,0,0,0]
["",null,null,null,null,0,0,0]
["",null,null,null,null,0,0,0]
["",null,null,null,null,0,0,0]
["",null,null,null,null,0,0,0]
["",null,null,null,null,0,0,0]
["",null,null,null,null,0,0,0]
["",null,null,null,null,0,0,0]
["",null,null,null,null,0,0,0]
["",null,null,null,null,0,0,0]
["",null,null,null,null,0,0,0]
["",null,null,null,null,0,0,0]
["",null,null,null,null,0,0,0]
["",null,null,null,null,0,0,0]
["",null,null,null,null,0,0,0]
["",null,null,null,null,0,0,0]
["",null,null,null,null,0,0,0]
["",null,null,null,null,0,0,0]
["",null,null,null,null,0,0,0]
["",null,null,null,null,0,0,0]
["",null,null,null,null,0,0,0]
[{"$f":"IF(B147>0,ROW(A147)-18,\"\")","v":""},null,null,null,null,0,{"$f":"(B147/1000)*(C147/1000)*D147","v":0},{"$f":"IF(F147<0.5,G147,0)","v":0}]
["",null,null,null,null,{"$f":"IF(D148<1,0,(B148/1000)*(C148/1000))","v":0},0,0]
["",null,null,null,null,0,0,0]
["",null,null,null,null,0,0,0]
["",null,null,null,null,0,0,0]
["",null,null,null,null,0,0,0]
["",null,null,null,null,0,0,0]
["",null,null,null,null,0,0,0]
["",null,null,null,null,0,0,0]
["",null,null,null,null,0,0,0]
["",null,null,null,null,0,0,0]
["",null,null,null,null,0,0,0]
["",null,null,null,null,0,0,0]
["",null,null,null,null,0,0,0]
["",null,null,null,null,0,0,0]
["",null,null,null,null,0,0,0]
["",null,null,null,null,0,0,0]
["",null,null,null,null,0,0,0]
["",null,null,null,null,0,0,0]
["",null,null,null,null,0,0,0]
["",null,null,null,null,0,0,0]
["",null,null,null,null,0,0,0]
["",null,null,null,null,0,0,0]
["",null,null,null,null,0,0,0]
["",null,null,null,null,0,0,0]
["",null,null,null,null,0,0,0]
["",null,null,null,null,0,0,0]
["",null,null,null,null,0,0,0]
["",null,null,null,null,0,0,0]
["",null,null,null,null,0,0,0]
["",null,null,null,null,0,0,0]
["",null,null,null,null,0,0,0]
["",null,null,null,null,0,0,0]
["",null,null,null,null,0,0,0]
["",null,null,null,null,0,0,0]
["",null,null,null,null,0,0,0]
["",null,null,null,null,0,0,0]
["",null,null,null,null,0,0,0]
["",null,null,null,null,0,0,0]
["",null,null,null,null,0,0,0]
["",null,null,null,null,0,0,0]
["",null,null,null,null,0,0,0]
["",null,null,null,null,0,0,0]
["",null,null,null,null,0,0,0]
["",null,null,null,null,0,0,0]
["",null,null,null,null,0,0,0]
["",null,null,null,null,0,0,0]
["",null,null,null,null,0,0,0]
["",null,null,null,null,0,0,0]
["",null,null,null,null,0,0,0]
["",null,null,null,null,0,0,0]
["",null,null,null,null,0,0,0]
["",null,null,null,null,0,0,0]
["",null,null,null,null,0,0,0]
["",null,null,null,null,0,0,0]
["",null,null,null,null,0,0,0]
["",null,null,null,null,0,0,0]
["",null,null,null,null,0,0,0]
["",null,null,null,null,0,0,0]
["",null,null,null,null,0,0,0]
["",null,null,null,null,0,0,0]
["",null,null,null,null,0,0,0]
["",null,null,null,null,0,0,0]
["",null,null,null,null,0,0,0]
[{"$f":"IF(B211>0,ROW(A211)-18,\"\")","v":""},null,null,null,null,0,{"$f":"(B211/1000)*(C211/1000)*D211","v":0},{"$f":"IF(F211<0.5,G211,0)","v":0}]
["",null,null,null,null,{"$f":"IF(D212<1,0,(B212/1000)*(C212/1000))","v":0},0,0]
["",null,null,null,null,0,0,0]
["",null,null,null,null,0,0,0]
["",null,null,null,null,0,0,0]
["",null,null,null,null,0,0,0]
["",null,null,null,null,0,0,0]
["",null,null,null,null,0,0,0]
["",null,null,null,null,0,0,0]
["",null,null,null,null,0,0,0]
["",null,null,null,null,0,0,0]
["",null,null,null,null,0,0,0]
["",null,null,null,null,0,0,0]
["",null,null,null,null,0,0,0]
["",null,null,null,null,0,0,0]
["",null,null,null,null,0,0,0]
["",null,null,null,null,0,0,0]
["",null,null,null,null,0,0,0]
["",null,null,null,null,0,0,0]
["",null,null,null,null,0,0,0]
["",null,null,null,null,0,0,0]
["",null,null,null,null,0,0,0]
["",null,null,null,null,0,0,0]
["",null,null,null,null,0,0,0]
["",null,null,null,null,0,0,0]
["",null,null,null,null,0,0,0]
["",null,null,null,null,0,0,0]
["",null,null,null,null,0,0,0]
["",null,null,null,null,0,0,0]
["",null,null,null,null,0,0,0]
["",null,null,null,null,0,0,0]
["",null,null,null,null,0,0,0]
["",null,null,null,null,0,0,0]
["",null,null,null,null,0,0,0]
["",null,null,null,null,0,0,0]
["",null,null,null,null,0,0,0]
["",null,null,null,null,0,0,0]
["",null,null,null,null,0,0,0]
["",null,null,null,null,0,0,0]
["",null,null,null,null,0,0,0]
["",null,null,null,null,0,0,0]
["",null,null,null,null,0,0,0]
["",null,null,null,null,0,0,0]
["",null,null,null,null,0,0,0]
["",null,null,null,null,0,0,0]
["",null,null,null,null,0,0,0]
["",null,null,null,null,0,0,0]
["",null,null,null,null,0,0,0]
["",null,null,null,null,0,0,0]
["",null,null,null,null,0,0,0]
["",null,null,null,null,0,0,0]
["",null,null,null,null,0,0,0]
["",null,null,null,null,0,0,0]
["",null,null,null,null,0,0,0]
["",null,null,null,null,0,0,0]
["",null,null,null,null,0,0,0]
["",null,null,null,null,0,0,0]
["",null,null,null,null,0,0,0]
["",null,null,null,null,0,0,0]
["",null,null,null,null,0,0,0]
["",null,null,null,null,0,0,0]
["",null,null,null,null,0,0,0]
["",null,null,null,null,0,0,0]
["",null,null,null,null,0,0,0]
[{"$f":"IF(B275>0,ROW(A275)-18,\"\")","v":""},null,null,null,null,0,{"$f":"(B275/1000)*(C275/1000)*D275","v":0},{"$f":"IF(F275<0.5,G275,0)","v":0}]
["",null,null,null,null,{"$f":"IF(D276<1,0,(B276/1000)*(C276/1000))","v":0},0,0]
["",null,null,null,null,0,0,0]
["",null,null,null,null,0,0,0]
["",null,null,null,null,0,0,0]
["",null,null,null,null,0,0,0]
["",null,null,null,null,0,0,0]
["",null,null,null,null,0,0,0]
["",null,null,null,null,0,0,0]
["",null,null,null,null,0,0,0]
["",null,null,null,null,0,0,0]
["",null,null,null,null,0,0,0]
["",null,null,null,null,0,0,0]
["",null,null,null,null,0,0,0]
["",null,null,null,null,0,0,0]
["",null,null,null,null,0,0,0]
["",null,null,null,null,0,0,0]
["",null,null,null,null,0,0,0]
["",null,null,null,null,0,0,0]
["",null,null,null,null,0,0,0]
["",null,null,null,null,0,0,0]
["",null,null,null,null,0,0,0]
["",null,null,null,null,0,0,0]
["",null,null,null,null,0,0,0]
["",null,null,null,null,0,0,0]
["",null,null,null,null,0,0,0]
["",null,null,null,null,0,0,0]
["",null,null,null,null,0,0,0]
["",null,null,null,null,0,0,0]
["",null,null,null,null,0,0,0]
["",null,null,null,null,0,0,0]
["",null,null,null,null,0,0,0]
["",null,null,null,null,0,0,0]
["",null,null,null,null,0,0,0]
["",null,null,null,null,0,0,0]
["",null,null,null,null,0,0,0]
["",null,null,null,null,0,0,0]
["",null,null,null,null,0,0,0]
["",null,null,null,null,0,0,0]
["",null,null,null,null,0,0,0]
["",null,null,null,null,0,0,0]
["",null,null,null,null,0,0,0]
["",null,null,null,null,0,0,0]
["",null,null,null,null,0,0,0]
["",null,null,null,null,0,0,0]
["",null,null,null,null,0,0,0]
["",null,null,null,null,0,0,0]
["",null,null,null,null,0,0,0]
["",null,null,null,null,0,0,0]
["",null,null,null,null,0,0,0]
["",null,null,null,null,0,0,0]
["",null,null,null,null,0,0,0]
["",null,null,null,null,0,0,0]
["",null,null,null,null,0,0,0]
["",null,null,null,null,0,0,0]
["",null,null,null,null,0,0,0]
["",null,null,null,null,0,0,0]
["",null,null,null,null,0,0,0]
["",null,null,null,null,0,0,0]
["",null,null,null,null,0,0,0]
["",null,null,null,null,0,0,0]
["",null,null,null,null,0,0,0]
["",null,null,null,null,0,0,0]
["",null,null,null,null,0,0,0]
[{"$f":"IF(B339>0,ROW(A339)-18,\"\")","v":""},null,null,null,null,0,{"$f":"(B339/1000)*(C339/1000)*D339","v":0},{"$f":"IF(F339<0.5,G339,0)","v":0}]
["",null,null,null,null,{"$f":"IF(D340<1,0,(B340/1000)*(C340/1000))","v":0},0,0]
["",null,null,null,null,0,0,0]
["",null,null,null,null,0,0,0]
["",null,null,null,null,0,0,0]
["",null,null,null,null,0,0,0]
["",null,null,null,null,0,0,0]
["",null,null,null,null,0,0,0]
["",null,null,null,null,0,0,0]
["",null,null,null,null,0,0,0]
["",null,null,null,null,0,0,0]
["",null,null,null,null,0,0,0]
["",null,null,null,null,0,0,0]
["",null,null,null,null,0,0,0]
["",null,null,null,null,0,0,0]
["",null,null,null,null,0,0,0]
["",null,null,null,null,0,0,0]
["",null,null,null,null,0,0,0]
["",null,null,null,null,0,0,0]
["",null,null,null,null,0,0,0]
["",null,null,null,null,0,0,0]
["",null,null,null,null,0,0,0]
["",null,null,null,null,0,0,0]
["",null,null,null,null,0,0,0]
["",null,null,null,null,0,0,0]
["",null,null,null,null,0,0,0]
["",null,null,null,null,0,0,0]
["",null,null,null,null,0,0,0]
["",null,null,null,null,0,0,0]
["",null,null,null,null,0,0,0]
["",null,null,null,null,0,0,0]
["",null,null,null,null,0,0,0]
["",null,null,null,null,0,0,0]
["",null,null,null,null,0,0,0]
["",null,null,null,null,0,0,0]
["",null,null,null,null,0,0,0]
["",null,null,null,null,0,0,0]
["",null,null,null,null,0,0,0]
["",null,null,null,null,0,0,0]
["",null,null,null,null,0,0,0]
["",null,null,null,null,0,0,0]
["",null,null,null,null,0,0,0]
["",null,null,null,null,0,0,0]
["",null,null,null,null,0,0,0]
["",null,null,null,null,0,0,0]
["",null,null,null,null,0,0,0]
["",null,null,null,null,0,0,0]
["",null,null,null,null,0,0,0]
["",null,null,null,null,0,0,0]
["",null,null,null,null,0,0,0]
["",null,null,null,null,0,0,0]
["",null,null,null,null,0,0,0]
["",null,null,null,null,0,0,0]
["",null,null,null,null,0,0,0]
["",null,null,null,null,0,0,0]
["",null,null,null,null,0,0,0]
["",null,null,null,null,0,0,0]
["",null,null,null,null,0,0,0]
["",null,null,null,null,0,0,0]
["",null,null,null,null,0,0,0]
["",null,null,null,null,0,0,0]
["",null,null,null,null,0,0,0]
["",null,null,null,null,0,0,0]
["",null,null,null,null,0,0,0]
[{"$f":"IF(B403>0,ROW(A403)-18,\"\")","v":""},null,null,null,null,0,{"$f":"(B403/1000)*(C403/1000)*D403","v":0},{"$f":"IF(F403<0.5,G403,0)","v":0}]
["",null,null,null,null,{"$f":"IF(D404<1,0,(B404/1000)*(C404/1000))","v":0},0,0]
["",null,null,null,null,0,0,0]
["",null,null,null,null,0,0,0]
["",null,null,null,null,0,0,0]
["",null,null,null,null,0,0,0]
["",null,null,null,null,0,0,0]
["",null,null,null,null,0,0,0]
["",null,null,null,null,0,0,0]
["",null,null,null,null,0,0,0]
["",null,null,null,null,0,0,0]
["",null,null,null,null,0,0,0]
["",null,null,null,null,0,0,0]
["",null,null,null,null,0,0,0]
["",null,null,null,null,0,0,0]
["",null,null,null,null,0,0,0]
["",null,null,null,null,0,0,0]
["",null,null,null,null,0,0,0]
["",null,null,null,null,0,0,0]
["",null,null,null,null,0,0,0]
["",null,null,null,null,0,0,0]
["",null,null,null,null,0,0,0]
["",null,null,null,null,0,0,0]
["",null,null,null,null,0,0,0]
["",null,null,null,null,0,0,0]
["",null,null,null,null,0,0,0]
["",null,null,null,null,0,0,0]
["",null,null,null,null,0,0,0]
["",null,null,null,null,0,0,0]
["",null,null,null,null,0,0,0]
["",null,null,null,null,0,0,0]
["",null,null,null,null,0,0,0]
["",null,null,null,null,0,0,0]
["",null,null,null,null,0,0,0]
["",null,null,null,null,0,0,0]
["",null,null,null,null,0,0,0]
["",null,null,null,null,0,0,0]
["",null,null,null,null,0,0,0]
["",null,null,null,null,0,0,0]
["",null,null,null,null,0,0,0]
["",null,null,null,null,0,0,0]
["",null,null,null,null,0,0,0]
["",null,null,null,null,0,0,0]
["",null,null,null,null,0,0,0]
["",null,null,null,null,0,0,0]
["",null,null,null,null,0,0,0]
["",null,null,null,null,0,0,0]
["",null,null,null,null,0,0,0]
["",null,null,null,null,0,0,0]
["",null,null,null,null,0,0,0]
["",null,null,null,null,0,0,0]
["",null,null,null,null,0,0,0]
["",null,null,null,null,0,0,0]
["",null,null,null,null,0,0,0]
["",null,null,null,null,0,0,0]
["",null,null,null,null,0,0,0]
["",null,null,null,null,0,0,0]
["",null,null,null,null,0,0,0]
["",null,null,null,null,0,0,0]
["",null,null,null,null,0,0,0]
["",null,null,null,null,0,0,0]
["",null,null,null,null,0,0,0]
["",null,null,null,null,0,0,0]
["",null,null,null,null,0,0,0]
[{"$f":"IF(B467>0,ROW(A467)-18,\"\")","v":""},null,null,null,null,0,{"$f":"(B467/1000)*(C467/1000)*D467","v":0},{"$f":"IF(F467<0.5,G467,0)","v":0}]
["",null,null,null,null,{"$f":"IF(D468<1,0,(B468/1000)*(C468/1000))","v":0},0,0]
["",null,null,null,null,0,0,0]
["",null,null,null,null,0,0,0]
["",null,null,null,null,0,0,0]
["",null,null,null,null,0,0,0]
["",null,null,null,null,0,0,0]
["",null,null,null,null,0,0,0]
["",null,null,null,null,0,0,0]
["",null,null,null,null,0,0,0]
["",null,null,null,null,0,0,0]
["",null,null,null,null,0,0,0]
["",null,null,null,null,0,0,0]
["",null,null,null,null,0,0,0]
["",null,null,null,null,0,0,0]
["",null,null,null,null,0,0,0]
["",null,null,null,null,0,0,0]
["",null,null,null,null,0,0,0]
["",null,null,null,null,0,0,0]
["",null,null,null,null,0,0,0]
["",null,null,null,null,0,0,0]
["",null,null,null,null,0,0,0]
["",null,null,null,null,0,0,0]
["",null,null,null,null,0,0,0]
["",null,null,null,null,0,0,0]
["",null,null,null,null,0,0,0]
["",null,null,null,null,0,0,0]
["",null,null,null,null,0,0,0]
["",null,null,null,null,0,0,0]
["",null,null,null,null,0,0,0]
["",null,null,null,null,0,0,0]
["",null,null,null,null,0,0,0]
["",null,null,null,null,0,0,0]
["",null,null,null,null,0,0,0]
["",null,null,null,null,0,0,0]
["",null,null,null,null,0,0,0]
["",null,null,null,null,0,0,0]
["",null,null,null,null,0,0,0]
["",null,null,null,null,0,0,0]
["",null,null,null,null,0,0,0]
["",null,null,null,null,0,0,0]
["",null,null,null,null,0,0,0]
["",null,null,null,null,0,0,0]
["",null,null,null,null,0,0,0]
["",null,null,null,null,0,0,0]
["",null,null,null,null,0,0,0]
["",null,null,null,null,0,0,0]
["",null,null,null,null,0,0,0]
["",null,null,null,null,0,0,0]
["",null,null,null,null,0,0,0]
["",null,null,null,null,0,0,0]
["",null,null,null,null,0,0,0]
["",null,null,null,null,0,0,0]
["",null,null,null,null,0,0,0]
["",null,null,null,null,0,0,0]
["",null,null,null,null,0,0,0]
["",null,null,null,null,0,0,0]
["",null,null,null,null,0,0,0]
["",null,null,null,null,0,0,0]
["",null,null,null,null,0,0,0]
["",null,null,null,null,0,0,0]
["",null,null,null,null,0,0,0]
["",null,null,null,null,0,0,0]
["",null,null,null,null,0,0,0]
[{"$f":"IF(B531>0,ROW(A531)-18,\"\")","v":""},null,null,null,null,0,{"$f":"(B531/1000)*(C531/1000)*D531","v":0},{"$f":"IF(F531<0.5,G531,0)","v":0}]
["",null,null,null,null,{"$f":"IF(D532<1,0,(B532/1000)*(C532/1000))","v":0},0,0]
["",null,null,null,null,0,0,0]
["",null,null,null,null,0,0,0]
["",null,null,null,null,0,0,0]
["",null,null,null,null,0,0,0]
["",null,null,null,null,0,0,0]
["",null,null,null,null,0,0,0]
["",null,null,null,null,0,0,0]
["",null,null,null,null,0,0,0]
["",null,null,null,null,0,0,0]
["",null,null,null,null,0,0,0]
["",null,null,null,null,0,0,0]
["",null,null,null,null,0,0,0]
["",null,null,null,null,0,0,0]
["",null,null,null,null,0,0,0]
["",null,null,null,null,0,0,0]
["",null,null,null,null,0,0,0]
["",null,null,null,null,0,0,0]
["",null,null,null,null,0,0,0]
["",null,null,null,null,0,0,0]
["",null,null,null,null,0,0,0]
["",null,null,null,null,0,0,0]
["",null,null,null,null,0,0,0]
["",null,null,null,null,0,0,0]
["",null,null,null,null,0,0,0]
["",null,null,null,null,0,0,0]
["",null,null,null,null,0,0,0]
["",null,null,null,null,0,0,0]
["",null,null,null,null,0,0,0]
["",null,null,null,null,0,0,0]
["",null,null,null,null,0,0,0]
["",null,null,null,null,0,0,0]
["",null,null,null,null,0,0,0]
["",null,null,null,null,0,0,0]
["",null,null,null,null,0,0,0]
["",null,null,null,null,0,0,0]
["",null,null,null,null,0,0,0]
["",null,null,null,null,0,0,0]
["",null,null,null,null,0,0,0]
["",null,null,null,null,0,0,0]
["",null,null,null,null,0,0,0]
["",null,null,null,null,0,0,0]
["",null,null,null,null,0,0,0]
["",null,null,null,null,0,0,0]
["",null,null,null,null,0,0,0]
["",null,null,null,null,0,0,0]
["",null,null,null,null,0,0,0]
["",null,null,null,null,0,0,0]
["",null,null,null,null,0,0,0]
["",null,null,null,null,0,0,0]
["",null,null,null,null,0,0,0]
["",null,null,null,null,0,0,0]
["",null,null,null,null,0,0,0]
["",null,null,null,null,0,0,0]
["",null,null,null,null,0,0,0]
["",null,null,null,null,0,0,0]
["",null,null,null,null,0,0,0]
["",null,null,null,null,0,0,0]
["",null,null,null,null,0,0,0]
["",null,null,null,null,0,0,0]
["",null,null,null,null,0,0,0]
["",null,null,null,null,0,0,0]
["",null,null,null,null,0,0,0]
[{"$f":"IF(B595>0,ROW(A595)-18,\"\")","v":""},null,null,null,null,0,{"$f":"(B595/1000)*(C595/1000)*D595","v":0},{"$f":"IF(F595<0.5,G595,0)","v":0}]
["",null,null,null,null,{"$f":"IF(D596<1,0,(B596/1000)*(C596/1000))","v":0},0,0]
["",null,null,null,null,0,0,0]
["",null,null,null,null,0,0,0]
["",null,null,null,null,0,0,0]
["",null,null,null,null,0,0,0]
["",null,null,null,null,0,0,0]
["",null,null,null,null,0,0,0]
["",null,null,null,null,0,0,0]
["",null,null,null,null,0,0,0]
["",null,null,null,null,0,0,0]
["",null,null,null,null,0,0,0]
["",null,null,null,null,0,0,0]
["",null,null,null,null,0,0,0]
["",null,null,null,null,0,0,0]
["",null,null,null,null,0,0,0]
["",null,null,null,null,0,0,0]
["",null,null,null,null,0,0,0]
["",null,null,null,null,0,0,0]
["",null,null,null,null,0,0,0]
["",null,null,null,null,0,0,0]
["",null,null,null,null,0,0,0]
["",null,null,null,null,0,0,0]
["",null,null,null,null,0,0,0]
["",null,null,null,null,0,0,0]
["",null,null,null,null,0,0,0]
["",null,null,null,null,0,0,0]
["",null,null,null,null,0,0,0]
["",null,null,null,null,0,0,0]
["",null,null,null,null,0,0,0]
["",null,null,null,null,0,0,0]
["",null,null,null,null,0,0,0]
["",null,null,null,null,0,0,0]
["",null,null,null,null,0,0,0]
["",null,null,null,null,0,0,0]
["",null,null,null,null,0,0,0]
["",null,null,null,null,0,0,0]
["",null,null,null,null,0,0,0]
["",null,null,null,null,0,0,0]
["",null,null,null,null,0,0,0]
["",null,null,null,null,0,0,0]
["",null,null,null,null,0,0,0]
["",null,null,null,null,0,0,0]
["",null,null,null,null,0,0,0]
["",null,null,null,null,0,0,0]
["",null,null,null,null,0,0,0]
["",null,null,null,null,0,0,0]
["",null,null,null,null,0,0,0]
["",null,null,null,null,0,0,0]
["",null,null,null,null,0,0,0]
["",null,null,null,null,0,0,0]
["",null,null,null,null,0,0,0]
["",null,null,null,null,0,0,0]
["",null,null,null,null,0,0,0]
["",null,null,null,null,0,0,0]
["",null,null,null,null,0,0,0]
["",null,null,null,null,0,0,0]
["",null,null,null,null,0,0,0]
["",null,null,null,null,0,0,0]
["",null,null,null,null,0,0,0]
["",null,null,null,null,0,0,0]
["",null,null,null,null,0,0,0]
["",null,null,null,null,0,0,0]
["",null,null,null,null,0,0,0]
[{"$f":"IF(B659>0,ROW(A659)-18,\"\")","v":""},null,null,null,null,0,{"$f":"(B659/1000)*(C659/1000)*D659","v":0},{"$f":"IF(F659<0.5,G659,0)","v":0}]
["",null,null,null,null,{"$f":"IF(D660<1,0,(B660/1000)*(C660/1000))","v":0},0,0]
["",null,null,null,null,0,0,0]
["",null,null,null,null,0,0,0]
["",null,null,null,null,0,0,0]
["",null,null,null,null,0,0,0]
["",null,null,null,null,0,0,0]
["",null,null,null,null,0,0,0]
["",null,null,null,null,0,0,0]
["",null,null,null,null,0,0,0]
["",null,null,null,null,0,0,0]
["",null,null,null,null,0,0,0]
["",null,null,null,null,0,0,0]
["",null,null,null,null,0,0,0]
["",null,null,null,null,0,0,0]
["",null,null,null,null,0,0,0]
["",null,null,null,null,0,0,0]
["",null,null,null,null,0,0,0]
["",null,null,null,null,0,0,0]
["",null,null,null,null,0,0,0]
["",null,null,null,null,0,0,0]
["",null,null,null,null,0,0,0]
["",null,null,null,null,0,0,0]
["",null,null,null,null,0,0,0]
["",null,null,null,null,0,0,0]
["",null,null,null,null,0,0,0]
["",null,null,null,null,0,0,0]
["",null,null,null,null,0,0,0]
["",null,null,null,null,0,0,0]
["",null,null,null,null,0,0,0]
["",null,null,null,null,0,0,0]
["",null,null,null,null,0,0,0]
["",null,null,null,null,0,0,0]
["",null,null,null,null,0,0,0]
["",null,null,null,null,0,0,0]
["",null,null,null,null,0,0,0]
["",null,null,null,null,0,0,0]
["",null,null,null,null,0,0,0]
["",null,null,null,null,0,0,0]
["",null,null,null,null,0,0,0]
["",null,null,null,null,0,0,0]
["",null,null,null,null,0,0,0]
["",null,null,null,null,0,0,0]
["",null,null,null,null,0,0,0]
["",null,null,null,null,0,0,0]
["",null,null,null,null,0,0,0]
["",null,null,null,null,0,0,0]
["",null,null,null,null,0,0,0]
["",null,null,null,null,0,0,0]
["",null,null,null,null,0,0,0]
["",null,null,null,null,0,0,0]
["",null,null,null,null,0,0,0]
["",null,null,null,null,0,0,0]
["",null,null,null,null,0,0,0]
["",null,null,null,null,0,0,0]
["",null,null,null,null,0,0,0]
["",null,null,null,null,0,0,0]
["",null,null,null,null,0,0,0]
["",null,null,null,null,0,0,0]
["",null,null,null,null,0,0,0]
["",null,null,null,null,0,0,0]
["",null,null,null,null,0,0,0]
["",null,null,null,null,0,0,0]
["",null,null,null,null,0,0,0]
[{"$f":"IF(B723>0,ROW(A723)-18,\"\")","v":""},null,null,null,null,0,{"$f":"(B723/1000)*(C723/1000)*D723","v":0},{"$f":"IF(F723<0.5,G723,0)","v":0}]
["",null,null,null,null,{"$f":"IF(D724<1,0,(B724/1000)*(C724/1000))","v":0},0,0]
["",null,null,null,null,0,0,0]
["",null,null,null,null,0,0,0]
["",null,null,null,null,0,0,0]
["",null,null,null,null,0,0,0]
["",null,null,null,null,0,0,0]
["",null,null,null,null,0,0,0]
["",null,null,null,null,0,0,0]
["",null,null,null,null,0,0,0]
["",null,null,null,null,0,0,0]
["",null,null,null,null,0,0,0]
["",null,null,null,null,0,0,0]
["",null,null,null,null,0,0,0]
["",null,null,null,null,0,0,0]
["",null,null,null,null,0,0,0]
["",null,null,null,null,0,0,0]
["",null,null,null,null,0,0,0]
["",null,null,null,null,0,0,0]
["",null,null,null,null,0,0,0]
["",null,null,null,null,0,0,0]
["",null,null,null,null,0,0,0]
["",null,null,null,null,0,0,0]
["",null,null,null,null,0,0,0]
["",null,null,null,null,0,0,0]
["",null,null,null,null,0,0,0]
["",null,null,null,null,0,0,0]
["",null,null,null,null,0,0,0]
["",null,null,null,null,0,0,0]
["",null,null,null,null,0,0,0]
["",null,null,null,null,0,0,0]
["",null,null,null,null,0,0,0]
["",null,null,null,null,0,0,0]
["",null,null,null,null,0,0,0]
["",null,null,null,null,0,0,0]
["",null,null,null,null,0,0,0]
["",null,null,null,null,0,0,0]
["",null,null,null,null,0,0,0]
["",null,null,null,null,0,0,0]
["",null,null,null,null,0,0,0]
["",null,null,null,null,0,0,0]
["",null,null,null,null,0,0,0]
["",null,null,null,null,0,0,0]
["",null,null,null,null,0,0,0]
["",null,null,null,null,0,0,0]
["",null,null,null,null,0,0,0]
["",null,null,null,null,0,0,0]
["",null,null,null,null,0,0,0]
["",null,null,null,null,0,0,0]
["",null,null,null,null,0,0,0]
["",null,null,null,null,0,0,0]
["",null,null,null,null,0,0,0]
["",null,null,null,null,0,0,0]
["",null,null,null,null,0,0,0]
["",null,null,null,null,0,0,0]
["",null,null,null,null,0,0,0]
["",null,null,null,null,0,0,0]
["",null,null,null,null,0,0,0]
["",null,null,null,null,0,0,0]
["",null,null,null,null,0,0,0]
["",null,null,null,null,0,0,0]
["",null,null,null,null,0,0,0]
["",null,null,null,null,0,0,0]
["",null,null,null,null,0,0,0]
[{"$f":"IF(B787>0,ROW(A787)-18,\"\")","v":""},null,null,null,null,0,{"$f":"(B787/1000)*(C787/1000)*D787","v":0},{"$f":"IF(F787<0.5,G787,0)","v":0}]
["",null,null,null,null,{"$f":"IF(D788<1,0,(B788/1000)*(C788/1000))","v":0},0,0]
["",null,null,null,null,0,0,0]
["",null,null,null,null,0,0,0]
["",null,null,null,null,0,0,0]
["",null,null,null,null,0,0,0]
["",null,null,null,null,0,0,0]
["",null,null,null,null,0,0,0]
["",null,null,null,null,0,0,0]
["",null,null,null,null,0,0,0]
["",null,null,null,null,0,0,0]
["",null,null,null,null,0,0,0]
["",null,null,null,null,0,0,0]
["",null,null,null,null,0,0,0]
["",null,null,null,null,0,0,0]
["",null,null,null,null,0,0,0]
["",null,null,null,null,0,0,0]
["",null,null,null,null,0,0,0]
["",null,null,null,null,0,0,0]
["",null,null,null,null,0,0,0]
["",null,null,null,null,0,0,0]
["",null,null,null,null,0,0,0]
["",null,null,null,null,0,0,0]
["",null,null,null,null,0,0,0]
["",null,null,null,null,0,0,0]
["",null,null,null,null,0,0,0]
["",null,null,null,null,0,0,0]
["",null,null,null,null,0,0,0]
["",null,null,null,null,0,0,0]
["",null,null,null,null,0,0,0]
["",null,null,null,null,0,0,0]
["",null,null,null,null,0,0,0]
["",null,null,null,null,0,0,0]
["",null,null,null,null,0,0,0]
["",null,null,null,null,0,0,0]
["",null,null,null,null,0,0,0]
["",null,null,null,null,0,0,0]
["",null,null,null,null,0,0,0]
["",null,null,null,null,0,0,0]
["",null,null,null,null,0,0,0]
["",null,null,null,null,0,0,0]
["",null,null,null,null,0,0,0]
["",null,null,null,null,0,0,0]
["",null,null,null,null,0,0,0]
["",null,null,null,null,0,0,0]
["",null,null,null,null,0,0,0]
["",null,null,null,null,0,0,0]
["",null,null,null,null,0,0,0]
["",null,null,null,null,0,0,0]
["",null,null,null,null,0,0,0]
["",null,null,null,null,0,0,0]
["",null,null,null,null,0,0,0]
["",null,null,null,null,0,0,0]
["",null,null,null,null,0,0,0]
["",null,null,null,null,0,0,0]
["",null,null,null,null,0,0,0]
["",null,null,null,null,0,0,0]
["",null,null,null,null,0,0,0]
["",null,null,null,null,0,0,0]
["",null,null,null,null,0,0,0]
["",null,null,null,null,0,0,0]
["",null,null,null,null,0,0,0]
["",null,null,null,null,0,0,0]
["",null,null,null,null,0,0,0]
[{"$f":"IF(B851>0,ROW(A851)-18,\"\")","v":""},null,null,null,null,0,{"$f":"(B851/1000)*(C851/1000)*D851","v":0},{"$f":"IF(F851<0.5,G851,0)","v":0}]
["",null,null,null,null,{"$f":"IF(D852<1,0,(B852/1000)*(C852/1000))","v":0},0,0]
["",null,null,null,null,0,0,0]
["",null,null,null,null,0,0,0]
["",null,null,null,null,0,0,0]
["",null,null,null,null,0,0,0]
["",null,null,null,null,0,0,0]
["",null,null,null,null,0,0,0]
["",null,null,null,null,0,0,0]
["",null,null,null,null,0,0,0]
["",null,null,null,null,0,0,0]
["",null,null,null,null,0,0,0]
["",null,null,null,null,0,0,0]
["",null,null,null,null,0,0,0]
["",null,null,null,null,0,0,0]
["",null,null,null,null,0,0,0]
["",null,null,null,null,0,0,0]
["",null,null,null,null,0,0,0]
["",null,null,null,null,0,0,0]
["",null,null,null,null,0,0,0]
["",null,null,null,null,0,0,0]
["",null,null,null,null,0,0,0]
["",null,null,null,null,0,0,0]
["",null,null,null,null,0,0,0]
["",null,null,null,null,0,0,0]
["",null,null,null,null,0,0,0]
["",null,null,null,null,0,0,0]
["",null,null,null,null,0,0,0]
["",null,null,null,null,0,0,0]
["",null,null,null,null,0,0,0]
["",null,null,null,null,0,0,0]
["",null,null,null,null,0,0,0]
["",null,null,null,null,0,0,0]
["",null,null,null,null,0,0,0]
["",null,null,null,null,0,0,0]
["",null,null,null,null,0,0,0]
["",null,null,null,null,0,0,0]
["",null,null,null,null,0,0,0]
["",null,null,null,null,0,0,0]
["",null,null,null,null,0,0,0]
["",null,null,null,null,0,0,0]
["",null,null,null,null,0,0,0]
["",null,null,null,null,0,0,0]
["",null,null,null,null,0,0,0]
["",null,null,null,null,0,0,0]
["",null,null,null,null,0,0,0]
["",null,null,null,null,0,0,0]
["",null,null,null,null,0,0,0]
["",null,null,null,null,0,0,0]
["",null,null,null,null,0,0,0]
["",null,null,null,null,0,0,0]
["",null,null,null,null,0,0,0]
["",null,null,null,null,0,0,0]
["",null,null,null,null,0,0,0]
["",null,null,null,null,0,0,0]
["",null,null,null,null,0,0,0]
["",null,null,null,null,0,0,0]
["",null,null,null,null,0,0,0]
["",null,null,null,null,0,0,0]
["",null,null,null,null,0,0,0]
["",null,null,null,null,0,0,0]
["",null,null,null,null,0,0,0]
["",null,null,null,null,0,0,0]
["",null,null,null,null,0,0,0]
[{"$f":"IF(B915>0,ROW(A915)-18,\"\")","v":""},null,null,null,null,0,{"$f":"(B915/1000)*(C915/1000)*D915","v":0},{"$f":"IF(F915<0.5,G915,0)","v":0}]
["",null,null,null,null,{"$f":"IF(D916<1,0,(B916/1000)*(C916/1000))","v":0},0,0]
["",null,null,null,null,0,0,0]
["",null,null,null,null,0,0,0]
["",null,null,null,null,0,0,0]
["",null,null,null,null,0,0,0]
["",null,null,null,null,0,0,0]
["",null,null,null,null,0,0,0]
["",null,null,null,null,0,0,0]
["",null,null,null,null,0,0,0]
["",null,null,null,null,0,0,0]
["",null,null,null,null,0,0,0]
["",null,null,null,null,0,0,0]
["",null,null,null,null,0,0,0]
["",null,null,null,null,0,0,0]
["",null,null,null,null,0,0,0]
["",null,null,null,null,0,0,0]
["",null,null,null,null,0,0,0]
["",null,null,null,null,0,0,0]
["",null,null,null,null,0,0,0]
["",null,null,null,null,0,0,0]
["",null,null,null,null,0,0,0]
["",null,null,null,null,0,0,0]
["",null,null,null,null,0,0,0]
["",null,null,null,null,0,0,0]
["",null,null,null,null,0,0,0]
["",null,null,null,null,0,0,0]
["",null,null,null,null,0,0,0]
["",null,null,null,null,0,0,0]
["",null,null,null,null,0,0,0]
["",null,null,null,null,0,0,0]
["",null,null,null,null,0,0,0]
["",null,null,null,null,0,0,0]
["",null,null,null,null,0,0,0]
["",null,null,null,null,0,0,0]
["",null,null,null,null,0,0,0]
["",null,null,null,null,0,0,0]
["",null,null,null,null,0,0,0]
["",null,null,null,null,0,0,0]
["",null,null,null,null,0,0,0]
["",null,null,null,null,0,0,0]
["",null,null,null,null,0,0,0]
["",null,null,null,null,0,0,0]
["",null,null,null,null,0,0,0]
["",null,null,null,null,0,0,0]
["",null,null,null,null,0,0,0]
["",null,null,null,null,0,0,0]
["",null,null,null,null,0,0,0]
["",null,null,null,null,0,0,0]
["",null,null,null,null,0,0,0]
["",null,null,null,null,0,0,0]
["",null,null,null,null,0,0,0]
["",null,null,null,null,0,0,0]
["",null,null,null,null,0,0,0]
["",null,null,null,null,0,0,0]
["",null,null,null,null,0,0,0]
["",null,null,null,null,0,0,0]
["",null,null,null,null,0,0,0]
["",null,null,null,null,0,0,0]
["",null,null,null,null,0,0,0]
["",null,null,null,null,0,0,0]
["",null,null,null,null,0,0,0]
["",null,null,null,null,0,0,0]
["",null,null,null,null,0,0,0]
[{"$f":"IF(B979>0,ROW(A979)-18,\"\")","v":""},null,null,null,null,0,{"$f":"(B979/1000)*(C979/1000)*D979","v":0},{"$f":"IF(F979<0.5,G979,0)","v":0}]
["",null,null,null,null,{"$f":"IF(D980<1,0,(B980/1000)*(C980/1000))","v":0},0,0]
["",null,null,null,null,0,0,0]
["",null,null,null,null,0,0,0]
["",null,null,null,null,0,0,0]
["",null,null,null,null,0,0,0]
["",null,null,null,null,0,0,0]
["",null,null,null,null,0,0,0]
["",null,null,null,null,0,0,0]
["",null,null,null,null,0,0,0]
["",null,null,null,null,0,0,0]
["",null,null,null,null,0,0,0]
["",null,null,null,null,0,0,0]
["",null,null,null,null,0,0,0]
["",null,null,null,null,0,0,0]
["",null,null,null,null,0,0,0]
["",null,null,null,null,0,0,0]
["",null,null,null,null,0,0,0]
["",null,null,null,null,0,0,0]
["",null,null,null,null,0,0,0]
[null,null,null,null,null,0,0,0]

{"sheet":"Sjab Touch","index":23,"n_rows":999,"n_cols":32,"rows_kept":999,"cut":false,"hidden":true,"merged":[[12,1,12,3],[12,4,12,5],[12,7,12,8],[15,31,16,36],[14,1,14,3],[14,4,14,5],[14,12,14,15],[14,17,14,20],[14,22,15,28],[15,1,16,5],[8,3,8,9],[10,1,10,3],[10,4,10,5],[10,7,10,8],[11,1,11,3],[11,4,11,5],[11,7,11,8],[1,3,1,9],[3,1,4,1],[3,3,3,9],[3,30,13,30],[4,3,4,9],[5,1,6,1],[5,3,5,9],[5,11,13,11],[5,16,13,16],[5,21,13,21],[13,7,13,8],[6,3,6,9],[6,12,12,14],[6,17,12,19],[7,1,8,1],[7,3,7,9]],"read":"row_number_cap"}
[]
[null,null,null,"BESTELLFORMULAR COLORMAT TOUCH"]
[]
[null,"Baustelle","Name",null,null,null,null,null,null,null,null,null,null,null,null,null,null,null,null,null,null,null,null,null,null,null,null,null,null,null,"Richtung S = 3050 mm"]
[null,null,"Adresse"]
[null,"Bauunternehmer","Name",null,null,null,null,null,null,null,null,"Richtung P <= 1220 mm",null,null,null,null,"Richtung S <= 3050 mm",null,null,null,null,"Richtung P = 1220 mm"]
[null,null,"Adresse"]
[null,"Händler","Name"]
[null,null,"Adresse"]
[]
[null,"Total Oberfläche",null,null,{"$f":"SUM(G19:G999)","v":0},null,null,"Bestellung/Angebotsanfrage"]
[null,"Total Oberfläche Tafel < 0,5 m²",null,null,{"$f":"SUM(H19:H10999)","v":0},null,null,"Farbpalette"]
[null,"Total Oberfläche Tafel > 0,5 m²",null,null,{"$f":"E11-E12","v":0},null,null,"Farbcode"]
[null,null,null,null,null,null,null,"Farbname"]
[null,"Total Anzahl Tafel",null,null,{"$f":"SUM(D19:D999)","v":0},null,null,null,null,null,null,null,"Fig. 1 Richtung S <= 3050 mm",null,null,null,null,"Fig. 2 Richtung P <= 1220 mm",null,null,null,null,"Richtung S = 3050 mm\r\nFig. a Maximale Abmessungen horizontal"]
[null,"ABMESSUNGEN IN MM ANGEBEN!!",null,null,null,null,null,null,null,null,null,null,null,null,null,null,null,null,null,null,null,null,null,null,null,null,null,null,null,null,null,"Richtung P = 1220 mm\r\nFig. b Maximale Abmessungen vertikal"]
[]
["Reihe","Richtung S (mm)","Richtung P (mm)","Anzahl","Plattenmarkierung","m²/Stück","m² Total","< 0,5 m²","Pallettennr.","Anmerkungen"]
[1,null,null,null,null,{"$f":"IF(D19<1,0,(B19/1000)*(C19/1000))","v":0},{"$f":"(B19/1000)*(C19/1000)*D19","v":0},{"$f":"IF(F19<0.5,G19,0)","v":0},null,null,null,null,null,{"$f":"SUM(M19:M999)","v":0}]
[{"$f":"IF(B20>0,ROW(A20)-18,\"\")","v":""},null,null,null,null,0,0,0]
["",null,null,null,null,0,0,0]
["",null,null,null,null,0,0,0]
["",null,null,null,null,0,0,0]
["",null,null,null,null,0,0,0]
["",null,null,null,null,0,0,0]
["",null,null,null,null,0,0,0]
["",null,null,null,null,0,0,0]
["",null,null,null,null,0,0,0]
["",null,null,null,null,0,0,0]
["",null,null,null,null,0,0,0]
["",null,null,null,null,0,0,0]
["",null,null,null,null,0,0,0]
["",null,null,null,null,0,0,0]
["",null,null,null,null,0,0,0]
["",null,null,null,null,0,0,0]
["",null,null,null,null,0,0,0]
["",null,null,null,null,0,0,0]
["",null,null,null,null,0,0,0]
["",null,null,null,null,0,0,0]
["",null,null,null,null,0,0,0]
["",null,null,null,null,0,0,0]
["",null,null,null,null,0,0,0]
["",null,null,null,null,0,0,0]
["",null,null,null,null,0,0,0]
["",null,null,null,null,0,0,0]
["",null,null,null,null,0,0,0]
["",null,null,null,null,0,0,0]
["",null,null,null,null,0,0,0]
["",null,null,null,null,0,0,0]
["",null,null,null,null,0,0,0]
["",null,null,null,null,0,0,0]
["",null,null,null,null,0,0,0]
["",null,null,null,null,0,0,0]
["",null,null,null,null,0,0,0]
["",null,null,null,null,0,0,0]
["",null,null,null,null,0,0,0]
["",null,null,null,null,0,0,0]
["",null,null,null,null,0,0,0]
["",null,null,null,null,0,0,0]
["",null,null,null,null,0,0,0]
["",null,null,null,null,0,0,0]
["",null,null,null,null,0,0,0]
["",null,null,null,null,0,0,0]
["",null,null,null,null,0,0,0]
["",null,null,null,null,0,0,0]
["",null,null,null,null,0,0,0]
["",null,null,null,null,0,0,0]
["",null,null,null,null,0,0,0]
["",null,null,null,null,0,0,0]
["",null,null,null,null,0,0,0]
["",null,null,null,null,0,0,0]
["",null,null,null,null,0,0,0]
["",null,null,null,null,0,0,0]
["",null,null,null,null,0,0,0]
["",null,null,null,null,0,0,0]
["",null,null,null,null,0,0,0]
["",null,null,null,null,0,0,0]
["",null,null,null,null,0,0,0]
["",null,null,null,null,0,0,0]
["",null,null,null,null,0,0,0]
["",null,null,null,null,0,0,0]
["",null,null,null,null,0,0,0]
[{"$f":"IF(B83>0,ROW(A83)-18,\"\")","v":""},null,null,null,null,{"$f":"IF(D83<1,0,(B83/1000)*(C83/1000))","v":0},{"$f":"(B83/1000)*(C83/1000)*D83","v":0},{"$f":"IF(F83<0.5,G83,0)","v":0}]
["",null,null,null,null,0,0,0]
["",null,null,null,null,0,0,0]
["",null,null,null,null,0,0,0]
["",null,null,null,null,0,0,0]
["",null,null,null,null,0,0,0]
["",null,null,null,null,0,0,0]
["",null,null,null,null,0,0,0]
["",null,null,null,null,0,0,0]
["",null,null,null,null,0,0,0]
["",null,null,null,null,0,0,0]
["",null,null,null,null,0,0,0]
["",null,null,null,null,0,0,0]
["",null,null,null,null,0,0,0]
["",null,null,null,null,0,0,0]
["",null,null,null,null,0,0,0]
["",null,null,null,null,0,0,0]
["",null,null,null,null,0,0,0]
["",null,null,null,null,0,0,0]
["",null,null,null,null,0,0,0]
["",null,null,null,null,0,0,0]
["",null,null,null,null,0,0,0]
["",null,null,null,null,0,0,0]
["",null,null,null,null,0,0,0]
["",null,null,null,null,0,0,0]
["",null,null,null,null,0,0,0]
["",null,null,null,null,0,0,0]
["",null,null,null,null,0,0,0]
["",null,null,null,null,0,0,0]
["",null,null,null,null,0,0,0]
["",null,null,null,null,0,0,0]
["",null,null,null,null,0,0,0]
["",null,null,null,null,0,0,0]
["",null,null,null,null,0,0,0]
["",null,null,null,null,0,0,0]
["",null,null,null,null,0,0,0]
["",null,null,null,null,0,0,0]
["",null,null,null,null,0,0,0]
["",null,null,null,null,0,0,0]
["",null,null,null,null,0,0,0]
["",null,null,null,null,0,0,0]
["",null,null,null,null,0,0,0]
["",null,null,null,null,0,0,0]
["",null,null,null,null,0,0,0]
["",null,null,null,null,0,0,0]
["",null,null,null,null,0,0,0]
["",null,null,null,null,0,0,0]
["",null,null,null,null,0,0,0]
["",null,null,null,null,0,0,0]
["",null,null,null,null,0,0,0]
["",null,null,null,null,0,0,0]
["",null,null,null,null,0,0,0]
["",null,null,null,null,0,0,0]
["",null,null,null,null,0,0,0]
["",null,null,null,null,0,0,0]
["",null,null,null,null,0,0,0]
["",null,null,null,null,0,0,0]
["",null,null,null,null,0,0,0]
["",null,null,null,null,0,0,0]
["",null,null,null,null,0,0,0]
["",null,null,null,null,0,0,0]
["",null,null,null,null,0,0,0]
["",null,null,null,null,0,0,0]
["",null,null,null,null,0,0,0]
[{"$f":"IF(B147>0,ROW(A147)-18,\"\")","v":""},null,null,null,null,{"$f":"IF(D147<1,0,(B147/1000)*(C147/1000))","v":0},{"$f":"(B147/1000)*(C147/1000)*D147","v":0},{"$f":"IF(F147<0.5,G147,0)","v":0}]
["",null,null,null,null,0,0,0]
["",null,null,null,null,0,0,0]
["",null,null,null,null,0,0,0]
["",null,null,null,null,0,0,0]
["",null,null,null,null,0,0,0]
["",null,null,null,null,0,0,0]
["",null,null,null,null,0,0,0]
["",null,null,null,null,0,0,0]
["",null,null,null,null,0,0,0]
["",null,null,null,null,0,0,0]
["",null,null,null,null,0,0,0]
["",null,null,null,null,0,0,0]
["",null,null,null,null,0,0,0]
["",null,null,null,null,0,0,0]
["",null,null,null,null,0,0,0]
["",null,null,null,null,0,0,0]
["",null,null,null,null,0,0,0]
["",null,null,null,null,0,0,0]
["",null,null,null,null,0,0,0]
["",null,null,null,null,0,0,0]
["",null,null,null,null,0,0,0]
["",null,null,null,null,0,0,0]
["",null,null,null,null,0,0,0]
["",null,null,null,null,0,0,0]
["",null,null,null,null,0,0,0]
["",null,null,null,null,0,0,0]
["",null,null,null,null,0,0,0]
["",null,null,null,null,0,0,0]
["",null,null,null,null,0,0,0]
["",null,null,null,null,0,0,0]
["",null,null,null,null,0,0,0]
["",null,null,null,null,0,0,0]
["",null,null,null,null,0,0,0]
["",null,null,null,null,0,0,0]
["",null,null,null,null,0,0,0]
["",null,null,null,null,0,0,0]
["",null,null,null,null,0,0,0]
["",null,null,null,null,0,0,0]
["",null,null,null,null,0,0,0]
["",null,null,null,null,0,0,0]
["",null,null,null,null,0,0,0]
["",null,null,null,null,0,0,0]
["",null,null,null,null,0,0,0]
["",null,null,null,null,0,0,0]
["",null,null,null,null,0,0,0]
["",null,null,null,null,0,0,0]
["",null,null,null,null,0,0,0]
["",null,null,null,null,0,0,0]
["",null,null,null,null,0,0,0]
["",null,null,null,null,0,0,0]
["",null,null,null,null,0,0,0]
["",null,null,null,null,0,0,0]
["",null,null,null,null,0,0,0]
["",null,null,null,null,0,0,0]
["",null,null,null,null,0,0,0]
["",null,null,null,null,0,0,0]
["",null,null,null,null,0,0,0]
["",null,null,null,null,0,0,0]
["",null,null,null,null,0,0,0]
["",null,null,null,null,0,0,0]
["",null,null,null,null,0,0,0]
["",null,null,null,null,0,0,0]
["",null,null,null,null,0,0,0]
[{"$f":"IF(B211>0,ROW(A211)-18,\"\")","v":""},null,null,null,null,{"$f":"IF(D211<1,0,(B211/1000)*(C211/1000))","v":0},{"$f":"(B211/1000)*(C211/1000)*D211","v":0},{"$f":"IF(F211<0.5,G211,0)","v":0}]
["",null,null,null,null,0,0,0]
["",null,null,null,null,0,0,0]
["",null,null,null,null,0,0,0]
["",null,null,null,null,0,0,0]
["",null,null,null,null,0,0,0]
["",null,null,null,null,0,0,0]
["",null,null,null,null,0,0,0]
["",null,null,null,null,0,0,0]
["",null,null,null,null,0,0,0]
["",null,null,null,null,0,0,0]
["",null,null,null,null,0,0,0]
["",null,null,null,null,0,0,0]
["",null,null,null,null,0,0,0]
["",null,null,null,null,0,0,0]
["",null,null,null,null,0,0,0]
["",null,null,null,null,0,0,0]
["",null,null,null,null,0,0,0]
["",null,null,null,null,0,0,0]
["",null,null,null,null,0,0,0]
["",null,null,null,null,0,0,0]
["",null,null,null,null,0,0,0]
["",null,null,null,null,0,0,0]
["",null,null,null,null,0,0,0]
["",null,null,null,null,0,0,0]
["",null,null,null,null,0,0,0]
["",null,null,null,null,0,0,0]
["",null,null,null,null,0,0,0]
["",null,null,null,null,0,0,0]
["",null,null,null,null,0,0,0]
["",null,null,null,null,0,0,0]
["",null,null,null,null,0,0,0]
["",null,null,null,null,0,0,0]
["",null,null,null,null,0,0,0]
["",null,null,null,null,0,0,0]
["",null,null,null,null,0,0,0]
["",null,null,null,null,0,0,0]
["",null,null,null,null,0,0,0]
["",null,null,null,null,0,0,0]
["",null,null,null,null,0,0,0]
["",null,null,null,null,0,0,0]
["",null,null,null,null,0,0,0]
["",null,null,null,null,0,0,0]
["",null,null,null,null,0,0,0]
["",null,null,null,null,0,0,0]
["",null,null,null,null,0,0,0]
["",null,null,null,null,0,0,0]
["",null,null,null,null,0,0,0]
["",null,null,null,null,0,0,0]
["",null,null,null,null,0,0,0]
["",null,null,null,null,0,0,0]
["",null,null,null,null,0,0,0]
["",null,null,null,null,0,0,0]
["",null,null,null,null,0,0,0]
["",null,null,null,null,0,0,0]
["",null,null,null,null,0,0,0]
["",null,null,null,null,0,0,0]
["",null,null,null,null,0,0,0]
["",null,null,null,null,0,0,0]
["",null,null,null,null,0,0,0]
["",null,null,null,null,0,0,0]
["",null,null,null,null,0,0,0]
["",null,null,null,null,0,0,0]
["",null,null,null,null,0,0,0]
[{"$f":"IF(B275>0,ROW(A275)-18,\"\")","v":""},null,null,null,null,{"$f":"IF(D275<1,0,(B275/1000)*(C275/1000))","v":0},{"$f":"(B275/1000)*(C275/1000)*D275","v":0},{"$f":"IF(F275<0.5,G275,0)","v":0}]
["",null,null,null,null,0,0,0]
["",null,null,null,null,0,0,0]
["",null,null,null,null,0,0,0]
["",null,null,null,null,0,0,0]
["",null,null,null,null,0,0,0]
["",null,null,null,null,0,0,0]
["",null,null,null,null,0,0,0]
["",null,null,null,null,0,0,0]
["",null,null,null,null,0,0,0]
["",null,null,null,null,0,0,0]
["",null,null,null,null,0,0,0]
["",null,null,null,null,0,0,0]
["",null,null,null,null,0,0,0]
["",null,null,null,null,0,0,0]
["",null,null,null,null,0,0,0]
["",null,null,null,null,0,0,0]
["",null,null,null,null,0,0,0]
["",null,null,null,null,0,0,0]
["",null,null,null,null,0,0,0]
["",null,null,null,null,0,0,0]
["",null,null,null,null,0,0,0]
["",null,null,null,null,0,0,0]
["",null,null,null,null,0,0,0]
["",null,null,null,null,0,0,0]
["",null,null,null,null,0,0,0]
["",null,null,null,null,0,0,0]
["",null,null,null,null,0,0,0]
["",null,null,null,null,0,0,0]
["",null,null,null,null,0,0,0]
["",null,null,null,null,0,0,0]
["",null,null,null,null,0,0,0]
["",null,null,null,null,0,0,0]
["",null,null,null,null,0,0,0]
["",null,null,null,null,0,0,0]
["",null,null,null,null,0,0,0]
["",null,null,null,null,0,0,0]
["",null,null,null,null,0,0,0]
["",null,null,null,null,0,0,0]
["",null,null,null,null,0,0,0]
["",null,null,null,null,0,0,0]
["",null,null,null,null,0,0,0]
["",null,null,null,null,0,0,0]
["",null,null,null,null,0,0,0]
["",null,null,null,null,0,0,0]
["",null,null,null,null,0,0,0]
["",null,null,null,null,0,0,0]
["",null,null,null,null,0,0,0]
["",null,null,null,null,0,0,0]
["",null,null,null,null,0,0,0]
["",null,null,null,null,0,0,0]
["",null,null,null,null,0,0,0]
["",null,null,null,null,0,0,0]
["",null,null,null,null,0,0,0]
["",null,null,null,null,0,0,0]
["",null,null,null,null,0,0,0]
["",null,null,null,null,0,0,0]
["",null,null,null,null,0,0,0]
["",null,null,null,null,0,0,0]
["",null,null,null,null,0,0,0]
["",null,null,null,null,0,0,0]
["",null,null,null,null,0,0,0]
["",null,null,null,null,0,0,0]
["",null,null,null,null,0,0,0]
[{"$f":"IF(B339>0,ROW(A339)-18,\"\")","v":""},null,null,null,null,{"$f":"IF(D339<1,0,(B339/1000)*(C339/1000))","v":0},{"$f":"(B339/1000)*(C339/1000)*D339","v":0},{"$f":"IF(F339<0.5,G339,0)","v":0}]
["",null,null,null,null,0,0,0]
["",null,null,null,null,0,0,0]
["",null,null,null,null,0,0,0]
["",null,null,null,null,0,0,0]
["",null,null,null,null,0,0,0]
["",null,null,null,null,0,0,0]
["",null,null,null,null,0,0,0]
["",null,null,null,null,0,0,0]
["",null,null,null,null,0,0,0]
["",null,null,null,null,0,0,0]
["",null,null,null,null,0,0,0]
["",null,null,null,null,0,0,0]
["",null,null,null,null,0,0,0]
["",null,null,null,null,0,0,0]
["",null,null,null,null,0,0,0]
["",null,null,null,null,0,0,0]
["",null,null,null,null,0,0,0]
["",null,null,null,null,0,0,0]
["",null,null,null,null,0,0,0]
["",null,null,null,null,0,0,0]
["",null,null,null,null,0,0,0]
["",null,null,null,null,0,0,0]
["",null,null,null,null,0,0,0]
["",null,null,null,null,0,0,0]
["",null,null,null,null,0,0,0]
["",null,null,null,null,0,0,0]
["",null,null,null,null,0,0,0]
["",null,null,null,null,0,0,0]
["",null,null,null,null,0,0,0]
["",null,null,null,null,0,0,0]
["",null,null,null,null,0,0,0]
["",null,null,null,null,0,0,0]
["",null,null,null,null,0,0,0]
["",null,null,null,null,0,0,0]
["",null,null,null,null,0,0,0]
["",null,null,null,null,0,0,0]
["",null,null,null,null,0,0,0]
["",null,null,null,null,0,0,0]
["",null,null,null,null,0,0,0]
["",null,null,null,null,0,0,0]
["",null,null,null,null,0,0,0]
["",null,null,null,null,0,0,0]
["",null,null,null,null,0,0,0]
["",null,null,null,null,0,0,0]
["",null,null,null,null,0,0,0]
["",null,null,null,null,0,0,0]
["",null,null,null,null,0,0,0]
["",null,null,null,null,0,0,0]
["",null,null,null,null,0,0,0]
["",null,null,null,null,0,0,0]
["",null,null,null,null,0,0,0]
["",null,null,null,null,0,0,0]
["",null,null,null,null,0,0,0]
["",null,null,null,null,0,0,0]
["",null,null,null,null,0,0,0]
["",null,null,null,null,0,0,0]
["",null,null,null,null,0,0,0]
["",null,null,null,null,0,0,0]
["",null,null,null,null,0,0,0]
["",null,null,null,null,0,0,0]
["",null,null,null,null,0,0,0]
["",null,null,null,null,0,0,0]
["",null,null,null,null,0,0,0]
[{"$f":"IF(B403>0,ROW(A403)-18,\"\")","v":""},null,null,null,null,{"$f":"IF(D403<1,0,(B403/1000)*(C403/1000))","v":0},{"$f":"(B403/1000)*(C403/1000)*D403","v":0},{"$f":"IF(F403<0.5,G403,0)","v":0}]
["",null,null,null,null,0,0,0]
["",null,null,null,null,0,0,0]
["",null,null,null,null,0,0,0]
["",null,null,null,null,0,0,0]
["",null,null,null,null,0,0,0]
["",null,null,null,null,0,0,0]
["",null,null,null,null,0,0,0]
["",null,null,null,null,0,0,0]
["",null,null,null,null,0,0,0]
["",null,null,null,null,0,0,0]
["",null,null,null,null,0,0,0]
["",null,null,null,null,0,0,0]
["",null,null,null,null,0,0,0]
["",null,null,null,null,0,0,0]
["",null,null,null,null,0,0,0]
["",null,null,null,null,0,0,0]
["",null,null,null,null,0,0,0]
["",null,null,null,null,0,0,0]
["",null,null,null,null,0,0,0]
["",null,null,null,null,0,0,0]
["",null,null,null,null,0,0,0]
["",null,null,null,null,0,0,0]
["",null,null,null,null,0,0,0]
["",null,null,null,null,0,0,0]
["",null,null,null,null,0,0,0]
["",null,null,null,null,0,0,0]
["",null,null,null,null,0,0,0]
["",null,null,null,null,0,0,0]
["",null,null,null,null,0,0,0]
["",null,null,null,null,0,0,0]
["",null,null,null,null,0,0,0]
["",null,null,null,null,0,0,0]
["",null,null,null,null,0,0,0]
["",null,null,null,null,0,0,0]
["",null,null,null,null,0,0,0]
["",null,null,null,null,0,0,0]
["",null,null,null,null,0,0,0]
["",null,null,null,null,0,0,0]
["",null,null,null,null,0,0,0]
["",null,null,null,null,0,0,0]
["",null,null,null,null,0,0,0]
["",null,null,null,null,0,0,0]
["",null,null,null,null,0,0,0]
["",null,null,null,null,0,0,0]
["",null,null,null,null,0,0,0]
["",null,null,null,null,0,0,0]
["",null,null,null,null,0,0,0]
["",null,null,null,null,0,0,0]
["",null,null,null,null,0,0,0]
["",null,null,null,null,0,0,0]
["",null,null,null,null,0,0,0]
["",null,null,null,null,0,0,0]
["",null,null,null,null,0,0,0]
["",null,null,null,null,0,0,0]
["",null,null,null,null,0,0,0]
["",null,null,null,null,0,0,0]
["",null,null,null,null,0,0,0]
["",null,null,null,null,0,0,0]
["",null,null,null,null,0,0,0]
["",null,null,null,null,0,0,0]
["",null,null,null,null,0,0,0]
["",null,null,null,null,0,0,0]
["",null,null,null,null,0,0,0]
[{"$f":"IF(B467>0,ROW(A467)-18,\"\")","v":""},null,null,null,null,{"$f":"IF(D467<1,0,(B467/1000)*(C467/1000))","v":0},{"$f":"(B467/1000)*(C467/1000)*D467","v":0},{"$f":"IF(F467<0.5,G467,0)","v":0}]
["",null,null,null,null,0,0,0]
["",null,null,null,null,0,0,0]
["",null,null,null,null,0,0,0]
["",null,null,null,null,0,0,0]
["",null,null,null,null,0,0,0]
["",null,null,null,null,0,0,0]
["",null,null,null,null,0,0,0]
["",null,null,null,null,0,0,0]
["",null,null,null,null,0,0,0]
["",null,null,null,null,0,0,0]
["",null,null,null,null,0,0,0]
["",null,null,null,null,0,0,0]
["",null,null,null,null,0,0,0]
["",null,null,null,null,0,0,0]
["",null,null,null,null,0,0,0]
["",null,null,null,null,0,0,0]
["",null,null,null,null,0,0,0]
["",null,null,null,null,0,0,0]
["",null,null,null,null,0,0,0]
["",null,null,null,null,0,0,0]
["",null,null,null,null,0,0,0]
["",null,null,null,null,0,0,0]
["",null,null,null,null,0,0,0]
["",null,null,null,null,0,0,0]
["",null,null,null,null,0,0,0]
["",null,null,null,null,0,0,0]
["",null,null,null,null,0,0,0]
["",null,null,null,null,0,0,0]
["",null,null,null,null,0,0,0]
["",null,null,null,null,0,0,0]
["",null,null,null,null,0,0,0]
["",null,null,null,null,0,0,0]
["",null,null,null,null,0,0,0]
["",null,null,null,null,0,0,0]
["",null,null,null,null,0,0,0]
["",null,null,null,null,0,0,0]
["",null,null,null,null,0,0,0]
["",null,null,null,null,0,0,0]
["",null,null,null,null,0,0,0]
["",null,null,null,null,0,0,0]
["",null,null,null,null,0,0,0]
["",null,null,null,null,0,0,0]
["",null,null,null,null,0,0,0]
["",null,null,null,null,0,0,0]
["",null,null,null,null,0,0,0]
["",null,null,null,null,0,0,0]
["",null,null,null,null,0,0,0]
["",null,null,null,null,0,0,0]
["",null,null,null,null,0,0,0]
["",null,null,null,null,0,0,0]
["",null,null,null,null,0,0,0]
["",null,null,null,null,0,0,0]
["",null,null,null,null,0,0,0]
["",null,null,null,null,0,0,0]
["",null,null,null,null,0,0,0]
["",null,null,null,null,0,0,0]
["",null,null,null,null,0,0,0]
["",null,null,null,null,0,0,0]
["",null,null,null,null,0,0,0]
["",null,null,null,null,0,0,0]
["",null,null,null,null,0,0,0]
["",null,null,null,null,0,0,0]
["",null,null,null,null,0,0,0]
[{"$f":"IF(B531>0,ROW(A531)-18,\"\")","v":""},null,null,null,null,{"$f":"IF(D531<1,0,(B531/1000)*(C531/1000))","v":0},{"$f":"(B531/1000)*(C531/1000)*D531","v":0},{"$f":"IF(F531<0.5,G531,0)","v":0}]
["",null,null,null,null,0,0,0]
["",null,null,null,null,0,0,0]
["",null,null,null,null,0,0,0]
["",null,null,null,null,0,0,0]
["",null,null,null,null,0,0,0]
["",null,null,null,null,0,0,0]
["",null,null,null,null,0,0,0]
["",null,null,null,null,0,0,0]
["",null,null,null,null,0,0,0]
["",null,null,null,null,0,0,0]
["",null,null,null,null,0,0,0]
["",null,null,null,null,0,0,0]
["",null,null,null,null,0,0,0]
["",null,null,null,null,0,0,0]
["",null,null,null,null,0,0,0]
["",null,null,null,null,0,0,0]
["",null,null,null,null,0,0,0]
["",null,null,null,null,0,0,0]
["",null,null,null,null,0,0,0]
["",null,null,null,null,0,0,0]
["",null,null,null,null,0,0,0]
["",null,null,null,null,0,0,0]
["",null,null,null,null,0,0,0]
["",null,null,null,null,0,0,0]
["",null,null,null,null,0,0,0]
["",null,null,null,null,0,0,0]
["",null,null,null,null,0,0,0]
["",null,null,null,null,0,0,0]
["",null,null,null,null,0,0,0]
["",null,null,null,null,0,0,0]
["",null,null,null,null,0,0,0]
["",null,null,null,null,0,0,0]
["",null,null,null,null,0,0,0]
["",null,null,null,null,0,0,0]
["",null,null,null,null,0,0,0]
["",null,null,null,null,0,0,0]
["",null,null,null,null,0,0,0]
["",null,null,null,null,0,0,0]
["",null,null,null,null,0,0,0]
["",null,null,null,null,0,0,0]
["",null,null,null,null,0,0,0]
["",null,null,null,null,0,0,0]
["",null,null,null,null,0,0,0]
["",null,null,null,null,0,0,0]
["",null,null,null,null,0,0,0]
["",null,null,null,null,0,0,0]
["",null,null,null,null,0,0,0]
["",null,null,null,null,0,0,0]
["",null,null,null,null,0,0,0]
["",null,null,null,null,0,0,0]
["",null,null,null,null,0,0,0]
["",null,null,null,null,0,0,0]
["",null,null,null,null,0,0,0]
["",null,null,null,null,0,0,0]
["",null,null,null,null,0,0,0]
["",null,null,null,null,0,0,0]
["",null,null,null,null,0,0,0]
["",null,null,null,null,0,0,0]
["",null,null,null,null,0,0,0]
["",null,null,null,null,0,0,0]
["",null,null,null,null,0,0,0]
["",null,null,null,null,0,0,0]
["",null,null,null,null,0,0,0]
[{"$f":"IF(B595>0,ROW(A595)-18,\"\")","v":""},null,null,null,null,{"$f":"IF(D595<1,0,(B595/1000)*(C595/1000))","v":0},{"$f":"(B595/1000)*(C595/1000)*D595","v":0},{"$f":"IF(F595<0.5,G595,0)","v":0}]
["",null,null,null,null,0,0,0]
["",null,null,null,null,0,0,0]
["",null,null,null,null,0,0,0]
["",null,null,null,null,0,0,0]
["",null,null,null,null,0,0,0]
["",null,null,null,null,0,0,0]
["",null,null,null,null,0,0,0]
["",null,null,null,null,0,0,0]
["",null,null,null,null,0,0,0]
["",null,null,null,null,0,0,0]
["",null,null,null,null,0,0,0]
["",null,null,null,null,0,0,0]
["",null,null,null,null,0,0,0]
["",null,null,null,null,0,0,0]
["",null,null,null,null,0,0,0]
["",null,null,null,null,0,0,0]
["",null,null,null,null,0,0,0]
["",null,null,null,null,0,0,0]
["",null,null,null,null,0,0,0]
["",null,null,null,null,0,0,0]
["",null,null,null,null,0,0,0]
["",null,null,null,null,0,0,0]
["",null,null,null,null,0,0,0]
["",null,null,null,null,0,0,0]
["",null,null,null,null,0,0,0]
["",null,null,null,null,0,0,0]
["",null,null,null,null,0,0,0]
["",null,null,null,null,0,0,0]
["",null,null,null,null,0,0,0]
["",null,null,null,null,0,0,0]
["",null,null,null,null,0,0,0]
["",null,null,null,null,0,0,0]
["",null,null,null,null,0,0,0]
["",null,null,null,null,0,0,0]
["",null,null,null,null,0,0,0]
["",null,null,null,null,0,0,0]
["",null,null,null,null,0,0,0]
["",null,null,null,null,0,0,0]
["",null,null,null,null,0,0,0]
["",null,null,null,null,0,0,0]
["",null,null,null,null,0,0,0]
["",null,null,null,null,0,0,0]
["",null,null,null,null,0,0,0]
["",null,null,null,null,0,0,0]
["",null,null,null,null,0,0,0]
["",null,null,null,null,0,0,0]
["",null,null,null,null,0,0,0]
["",null,null,null,null,0,0,0]
["",null,null,null,null,0,0,0]
["",null,null,null,null,0,0,0]
["",null,null,null,null,0,0,0]
["",null,null,null,null,0,0,0]
["",null,null,null,null,0,0,0]
["",null,null,null,null,0,0,0]
["",null,null,null,null,0,0,0]
["",null,null,null,null,0,0,0]
["",null,null,null,null,0,0,0]
["",null,null,null,null,0,0,0]
["",null,null,null,null,0,0,0]
["",null,null,null,null,0,0,0]
["",null,null,null,null,0,0,0]
["",null,null,null,null,0,0,0]
["",null,null,null,null,0,0,0]
[{"$f":"IF(B659>0,ROW(A659)-18,\"\")","v":""},null,null,null,null,{"$f":"IF(D659<1,0,(B659/1000)*(C659/1000))","v":0},{"$f":"(B659/1000)*(C659/1000)*D659","v":0},{"$f":"IF(F659<0.5,G659,0)","v":0}]
["",null,null,null,null,0,0,0]
["",null,null,null,null,0,0,0]
["",null,null,null,null,0,0,0]
["",null,null,null,null,0,0,0]
["",null,null,null,null,0,0,0]
["",null,null,null,null,0,0,0]
["",null,null,null,null,0,0,0]
["",null,null,null,null,0,0,0]
["",null,null,null,null,0,0,0]
["",null,null,null,null,0,0,0]
["",null,null,null,null,0,0,0]
["",null,null,null,null,0,0,0]
["",null,null,null,null,0,0,0]
["",null,null,null,null,0,0,0]
["",null,null,null,null,0,0,0]
["",null,null,null,null,0,0,0]
["",null,null,null,null,0,0,0]
["",null,null,null,null,0,0,0]
["",null,null,null,null,0,0,0]
["",null,null,null,null,0,0,0]
["",null,null,null,null,0,0,0]
["",null,null,null,null,0,0,0]
["",null,null,null,null,0,0,0]
["",null,null,null,null,0,0,0]
["",null,null,null,null,0,0,0]
["",null,null,null,null,0,0,0]
["",null,null,null,null,0,0,0]
["",null,null,null,null,0,0,0]
["",null,null,null,null,0,0,0]
["",null,null,null,null,0,0,0]
["",null,null,null,null,0,0,0]
["",null,null,null,null,0,0,0]
["",null,null,null,null,0,0,0]
["",null,null,null,null,0,0,0]
["",null,null,null,null,0,0,0]
["",null,null,null,null,0,0,0]
["",null,null,null,null,0,0,0]
["",null,null,null,null,0,0,0]
["",null,null,null,null,0,0,0]
["",null,null,null,null,0,0,0]
["",null,null,null,null,0,0,0]
["",null,null,null,null,0,0,0]
["",null,null,null,null,0,0,0]
["",null,null,null,null,0,0,0]
["",null,null,null,null,0,0,0]
["",null,null,null,null,0,0,0]
["",null,null,null,null,0,0,0]
["",null,null,null,null,0,0,0]
["",null,null,null,null,0,0,0]
["",null,null,null,null,0,0,0]
["",null,null,null,null,0,0,0]
["",null,null,null,null,0,0,0]
["",null,null,null,null,0,0,0]
["",null,null,null,null,0,0,0]
["",null,null,null,null,0,0,0]
["",null,null,null,null,0,0,0]
["",null,null,null,null,0,0,0]
["",null,null,null,null,0,0,0]
["",null,null,null,null,0,0,0]
["",null,null,null,null,0,0,0]
["",null,null,null,null,0,0,0]
["",null,null,null,null,0,0,0]
["",null,null,null,null,0,0,0]
[{"$f":"IF(B723>0,ROW(A723)-18,\"\")","v":""},null,null,null,null,{"$f":"IF(D723<1,0,(B723/1000)*(C723/1000))","v":0},{"$f":"(B723/1000)*(C723/1000)*D723","v":0},{"$f":"IF(F723<0.5,G723,0)","v":0}]
["",null,null,null,null,0,0,0]
["",null,null,null,null,0,0,0]
["",null,null,null,null,0,0,0]
["",null,null,null,null,0,0,0]
["",null,null,null,null,0,0,0]
["",null,null,null,null,0,0,0]
["",null,null,null,null,0,0,0]
["",null,null,null,null,0,0,0]
["",null,null,null,null,0,0,0]
["",null,null,null,null,0,0,0]
["",null,null,null,null,0,0,0]
["",null,null,null,null,0,0,0]
["",null,null,null,null,0,0,0]
["",null,null,null,null,0,0,0]
["",null,null,null,null,0,0,0]
["",null,null,null,null,0,0,0]
["",null,null,null,null,0,0,0]
["",null,null,null,null,0,0,0]
["",null,null,null,null,0,0,0]
["",null,null,null,null,0,0,0]
["",null,null,null,null,0,0,0]
["",null,null,null,null,0,0,0]
["",null,null,null,null,0,0,0]
["",null,null,null,null,0,0,0]
["",null,null,null,null,0,0,0]
["",null,null,null,null,0,0,0]
["",null,null,null,null,0,0,0]
["",null,null,null,null,0,0,0]
["",null,null,null,null,0,0,0]
["",null,null,null,null,0,0,0]
["",null,null,null,null,0,0,0]
["",null,null,null,null,0,0,0]
["",null,null,null,null,0,0,0]
["",null,null,null,null,0,0,0]
["",null,null,null,null,0,0,0]
["",null,null,null,null,0,0,0]
["",null,null,null,null,0,0,0]
["",null,null,null,null,0,0,0]
["",null,null,null,null,0,0,0]
["",null,null,null,null,0,0,0]
["",null,null,null,null,0,0,0]
["",null,null,null,null,0,0,0]
["",null,null,null,null,0,0,0]
["",null,null,null,null,0,0,0]
["",null,null,null,null,0,0,0]
["",null,null,null,null,0,0,0]
["",null,null,null,null,0,0,0]
["",null,null,null,null,0,0,0]
["",null,null,null,null,0,0,0]
["",null,null,null,null,0,0,0]
["",null,null,null,null,0,0,0]
["",null,null,null,null,0,0,0]
["",null,null,null,null,0,0,0]
["",null,null,null,null,0,0,0]
["",null,null,null,null,0,0,0]
["",null,null,null,null,0,0,0]
["",null,null,null,null,0,0,0]
["",null,null,null,null,0,0,0]
["",null,null,null,null,0,0,0]
["",null,null,null,null,0,0,0]
["",null,null,null,null,0,0,0]
["",null,null,null,null,0,0,0]
["",null,null,null,null,0,0,0]
[{"$f":"IF(B787>0,ROW(A787)-18,\"\")","v":""},null,null,null,null,{"$f":"IF(D787<1,0,(B787/1000)*(C787/1000))","v":0},{"$f":"(B787/1000)*(C787/1000)*D787","v":0},{"$f":"IF(F787<0.5,G787,0)","v":0}]
["",null,null,null,null,0,0,0]
["",null,null,null,null,0,0,0]
["",null,null,null,null,0,0,0]
["",null,null,null,null,0,0,0]
["",null,null,null,null,0,0,0]
["",null,null,null,null,0,0,0]
["",null,null,null,null,0,0,0]
["",null,null,null,null,0,0,0]
["",null,null,null,null,0,0,0]
["",null,null,null,null,0,0,0]
["",null,null,null,null,0,0,0]
["",null,null,null,null,0,0,0]
["",null,null,null,null,0,0,0]
["",null,null,null,null,0,0,0]
["",null,null,null,null,0,0,0]
["",null,null,null,null,0,0,0]
["",null,null,null,null,0,0,0]
["",null,null,null,null,0,0,0]
["",null,null,null,null,0,0,0]
["",null,null,null,null,0,0,0]
["",null,null,null,null,0,0,0]
["",null,null,null,null,0,0,0]
["",null,null,null,null,0,0,0]
["",null,null,null,null,0,0,0]
["",null,null,null,null,0,0,0]
["",null,null,null,null,0,0,0]
["",null,null,null,null,0,0,0]
["",null,null,null,null,0,0,0]
["",null,null,null,null,0,0,0]
["",null,null,null,null,0,0,0]
["",null,null,null,null,0,0,0]
["",null,null,null,null,0,0,0]
["",null,null,null,null,0,0,0]
["",null,null,null,null,0,0,0]
["",null,null,null,null,0,0,0]
["",null,null,null,null,0,0,0]
["",null,null,null,null,0,0,0]
["",null,null,null,null,0,0,0]
["",null,null,null,null,0,0,0]
["",null,null,null,null,0,0,0]
["",null,null,null,null,0,0,0]
["",null,null,null,null,0,0,0]
["",null,null,null,null,0,0,0]
["",null,null,null,null,0,0,0]
["",null,null,null,null,0,0,0]
["",null,null,null,null,0,0,0]
["",null,null,null,null,0,0,0]
["",null,null,null,null,0,0,0]
["",null,null,null,null,0,0,0]
["",null,null,null,null,0,0,0]
["",null,null,null,null,0,0,0]
["",null,null,null,null,0,0,0]
["",null,null,null,null,0,0,0]
["",null,null,null,null,0,0,0]
["",null,null,null,null,0,0,0]
["",null,null,null,null,0,0,0]
["",null,null,null,null,0,0,0]
["",null,null,null,null,0,0,0]
["",null,null,null,null,0,0,0]
["",null,null,null,null,0,0,0]
["",null,null,null,null,0,0,0]
["",null,null,null,null,0,0,0]
["",null,null,null,null,0,0,0]
[{"$f":"IF(B851>0,ROW(A851)-18,\"\")","v":""},null,null,null,null,{"$f":"IF(D851<1,0,(B851/1000)*(C851/1000))","v":0},{"$f":"(B851/1000)*(C851/1000)*D851","v":0},{"$f":"IF(F851<0.5,G851,0)","v":0}]
["",null,null,null,null,0,0,0]
["",null,null,null,null,0,0,0]
["",null,null,null,null,0,0,0]
["",null,null,null,null,0,0,0]
["",null,null,null,null,0,0,0]
["",null,null,null,null,0,0,0]
["",null,null,null,null,0,0,0]
["",null,null,null,null,0,0,0]
["",null,null,null,null,0,0,0]
["",null,null,null,null,0,0,0]
["",null,null,null,null,0,0,0]
["",null,null,null,null,0,0,0]
["",null,null,null,null,0,0,0]
["",null,null,null,null,0,0,0]
["",null,null,null,null,0,0,0]
["",null,null,null,null,0,0,0]
["",null,null,null,null,0,0,0]
["",null,null,null,null,0,0,0]
["",null,null,null,null,0,0,0]
["",null,null,null,null,0,0,0]
["",null,null,null,null,0,0,0]
["",null,null,null,null,0,0,0]
["",null,null,null,null,0,0,0]
["",null,null,null,null,0,0,0]
["",null,null,null,null,0,0,0]
["",null,null,null,null,0,0,0]
["",null,null,null,null,0,0,0]
["",null,null,null,null,0,0,0]
["",null,null,null,null,0,0,0]
["",null,null,null,null,0,0,0]
["",null,null,null,null,0,0,0]
["",null,null,null,null,0,0,0]
["",null,null,null,null,0,0,0]
["",null,null,null,null,0,0,0]
["",null,null,null,null,0,0,0]
["",null,null,null,null,0,0,0]
["",null,null,null,null,0,0,0]
["",null,null,null,null,0,0,0]
["",null,null,null,null,0,0,0]
["",null,null,null,null,0,0,0]
["",null,null,null,null,0,0,0]
["",null,null,null,null,0,0,0]
["",null,null,null,null,0,0,0]
["",null,null,null,null,0,0,0]
["",null,null,null,null,0,0,0]
["",null,null,null,null,0,0,0]
["",null,null,null,null,0,0,0]
["",null,null,null,null,0,0,0]
["",null,null,null,null,0,0,0]
["",null,null,null,null,0,0,0]
["",null,null,null,null,0,0,0]
["",null,null,null,null,0,0,0]
["",null,null,null,null,0,0,0]
["",null,null,null,null,0,0,0]
["",null,null,null,null,0,0,0]
["",null,null,null,null,0,0,0]
["",null,null,null,null,0,0,0]
["",null,null,null,null,0,0,0]
["",null,null,null,null,0,0,0]
["",null,null,null,null,0,0,0]
["",null,null,null,null,0,0,0]
["",null,null,null,null,0,0,0]
["",null,null,null,null,0,0,0]
[{"$f":"IF(B915>0,ROW(A915)-18,\"\")","v":""},null,null,null,null,{"$f":"IF(D915<1,0,(B915/1000)*(C915/1000))","v":0},{"$f":"(B915/1000)*(C915/1000)*D915","v":0},{"$f":"IF(F915<0.5,G915,0)","v":0}]
["",null,null,null,null,0,0,0]
["",null,null,null,null,0,0,0]
["",null,null,null,null,0,0,0]
["",null,null,null,null,0,0,0]
["",null,null,null,null,0,0,0]
["",null,null,null,null,0,0,0]
["",null,null,null,null,0,0,0]
["",null,null,null,null,0,0,0]
["",null,null,null,null,0,0,0]
["",null,null,null,null,0,0,0]
["",null,null,null,null,0,0,0]
["",null,null,null,null,0,0,0]
["",null,null,null,null,0,0,0]
["",null,null,null,null,0,0,0]
["",null,null,null,null,0,0,0]
["",null,null,null,null,0,0,0]
["",null,null,null,null,0,0,0]
["",null,null,null,null,0,0,0]
["",null,null,null,null,0,0,0]
["",null,null,null,null,0,0,0]
["",null,null,null,null,0,0,0]
["",null,null,null,null,0,0,0]
["",null,null,null,null,0,0,0]
["",null,null,null,null,0,0,0]
["",null,null,null,null,0,0,0]
["",null,null,null,null,0,0,0]
["",null,null,null,null,0,0,0]
["",null,null,null,null,0,0,0]
["",null,null,null,null,0,0,0]
["",null,null,null,null,0,0,0]
["",null,null,null,null,0,0,0]
["",null,null,null,null,0,0,0]
["",null,null,null,null,0,0,0]
["",null,null,null,null,0,0,0]
["",null,null,null,null,0,0,0]
["",null,null,null,null,0,0,0]
["",null,null,null,null,0,0,0]
["",null,null,null,null,0,0,0]
["",null,null,null,null,0,0,0]
["",null,null,null,null,0,0,0]
["",null,null,null,null,0,0,0]
["",null,null,null,null,0,0,0]
["",null,null,null,null,0,0,0]
["",null,null,null,null,0,0,0]
["",null,null,null,null,0,0,0]
["",null,null,null,null,0,0,0]
["",null,null,null,null,0,0,0]
["",null,null,null,null,0,0,0]
["",null,null,null,null,0,0,0]
["",null,null,null,null,0,0,0]
["",null,null,null,null,0,0,0]
["",null,null,null,null,0,0,0]
["",null,null,null,null,0,0,0]
["",null,null,null,null,0,0,0]
["",null,null,null,null,0,0,0]
["",null,null,null,null,0,0,0]
["",null,null,null,null,0,0,0]
["",null,null,null,null,0,0,0]
["",null,null,null,null,0,0,0]
["",null,null,null,null,0,0,0]
["",null,null,null,null,0,0,0]
["",null,null,null,null,0,0,0]
["",null,null,null,null,0,0,0]
[{"$f":"IF(B979>0,ROW(A979)-18,\"\")","v":""},null,null,null,null,{"$f":"IF(D979<1,0,(B979/1000)*(C979/1000))","v":0},{"$f":"(B979/1000)*(C979/1000)*D979","v":0},{"$f":"IF(F979<0.5,G979,0)","v":0}]
["",null,null,null,null,0,0,0]
["",null,null,null,null,0,0,0]
["",null,null,null,null,0,0,0]
["",null,null,null,null,0,0,0]
["",null,null,null,null,0,0,0]
["",null,null,null,null,0,0,0]
["",null,null,null,null,0,0,0]
["",null,null,null,null,0,0,0]
["",null,null,null,null,0,0,0]
["",null,null,null,null,0,0,0]
["",null,null,null,null,0,0,0]
["",null,null,null,null,0,0,0]
["",null,null,null,null,0,0,0]
["",null,null,null,null,0,0,0]
["",null,null,null,null,0,0,0]
["",null,null,null,null,0,0,0]
["",null,null,null,null,0,0,0]
["",null,null,null,null,0,0,0]
["",null,null,null,null,0,0,0]
["",null,null,null,null,0,0,0]

{"sheet":"Hand PuroPlus EN","index":24,"n_rows":35,"n_cols":15,"rows_kept":35,"cut":false,"hidden":true,"merged":[[9,3,15,3],[7,13,15,13],[34,4,34,7],[23,3,33,3],[34,14,34,17],[22,13,32,13],[17,14,18,17],[17,4,18,7]]}
[]
[]
[]
[]
[]
[null,"MANUAL ORDER FORM \"SVK NON-PERFORATED PURO PLUS PANELS\" "]
[]
[null,"Read the entire manual before completing your order form. After reading the manual disclaimer, click on \"Read and accepted\" to continue entering the information.",null,null,null,null,null,null,null,null,null,null,null,"Sanding direction S ≤ 3070 mm"]
[]
[null,"The order form \"SVK non-perforated Puro Plus panels\" forms a practical tool for the order of cut rectangular Puro Plus panels without perforations. ",null,"Direction P ≤ 1220 mm"]
[]
[null,"For the treatment and installation of SVK Puro Plus panels, we refer to the SVK Technical Data Puro Plus. Always consult the most recent version, which can be found on our website http://www.svk.be/."]
[]
[null,"When completing your order, please follow the steps below:"]
[]
[null,"Step 1:"]
[null,"After reading the manual, click on \"Read and accepted\" below. You are automatically referred to the next tab. You can always be referred back to the manual, by clicking on the \"Manual\" button."]
[null,null,null,null,"Fig. 1 Sanding direction S ≤ 3070 mm",null,null,null,null,null,null,null,null,null,"Fig. 2 Direction P ≤ 1220 mm"]
[null,"Step 2:"]
[null,"Enter the project data. "]
[]
[null,"Step 3:"]
[null,"Please keep in mind that with complete panels 3070 mm x 1220 mm the sanding direction is always parallel with the longest direction, see Fig. 1 and Fig. 2.  All other smaller sizes are made by sawing a complete panel to the correct size. This can cause the sanding direction to no longer be aligned with the longest dimension (for example if both dimensions are ≤1220 mm). It is therefore crucial that the choice of shape is based on the sanding direction, instead of on the largest dimension of the panel.",null,null,null,null,null,null,null,null,null,null,null,"Sanding direction S = 3070 mm"]
[null,"Depending on the sanding direction of the panel, Fig. 1 or Fig. 2 will be appropriate. Fig. a and Fig. b are for illustration of the sanding direction with complete panels only.",null,"Direction P = 1220 mm"]
[]
[null,"Proceed to enter all data for the panels"]
[null,"*dimensions of Sanding direction S and Direction P, depending on the matching drawing"]
[null,"*Amounts of the panels"]
[null,"*If you wish to delete an entire row, click on \"Delete row\" and fill in the required row number to delete."]
[null,"Press Control Data to check your values"]
[]
[null,"attention: "]
[null,"* thefront side of the panel is the finished side of the panel"]
[]
[null,"Disclaimer order form facade panels:\n\"The goods are delivered in accordance with the order as entered by the client. The client makes use of this order form entirely on his/her own responsibility and will be the only party responsible for the correctness of the data provided. SVK nv cannot be held responsible for errors in dimensions, surface, number of panels, panel brand, sanding direction, perforation pattern or other data as a result of the incorrect measuring or the incorrect provision of this information by the client. Nor can SVK nv be held responsible if the order is not registered, or registered incomplete or incorrect at SVK nv due to technical issues. Finally SVK nv declines any reliability for any form of damage arising from the use of this order form. SVK nv reserves the right to not accept the order in case of doubt or ambiguity. The placement of an order by means of this order form results in the unreserved acceptance of this clause.\"",null,null,"Sanding direction S = 3070 mm\n\nFig. a Maximal Dimensions horizontal",null,null,null,null,null,null,null,null,null,"Direction P = 1220 mm\n\nFig. b Maximal Dimensions vertical"]

{"sheet":"Hand DecoboardClassic EN","index":25,"n_rows":37,"n_cols":15,"rows_kept":37,"cut":false,"hidden":true,"merged":[[27,4,29,7],[27,14,29,17],[2,3,8,3],[2,13,8,13],[10,4,11,7],[10,14,11,17],[15,13,25,13],[16,3,26,3]]}
[]
[]
[null,null,null,"Direction P ≤ 1220 mm",null,null,null,null,null,null,null,null,null,"Direction S ≤ 3070 mm"]
[]
[]
[null,"MANUAL ORDER FORM \"SVK NON-PERFORATED DECOBOARD CLASSIC PANELS\" "]
[]
[null,"Read the entire manual before completing your order form. After reading the manual disclaimer, click on \"Read and accepted\" to continue entering the information."]
[]
[null,"The order form \"SVK non-perforated Decoboard Classic panels\" forms a practical tool for the order of cut rectangular Decoboard panels without perforations. All panels in one Tab must be of  the same colour. For a different colour a new Tab must be filled in. Click on \"Other Colour\" for a new tab."]
[null,null,null,null,"Fig. 1 Direction S ≤ 3070 mm",null,null,null,null,null,null,null,null,null,"Fig. 2 Direction P ≤ 1220 mm"]
[null,"For the treatment and installation of SVK Decoboard panels, we refer to the SVK Technical Data Decoboard. Always consult the most recent version, which can be found on our website http://www.svk.be/."]
[]
[null,"When completing your order, please follow the steps below:"]
[]
[null,"Step 1:",null,null,null,null,null,null,null,null,null,null,null,"Direction S = 3070 mm"]
[null,"After reading the manual, click on \"Read and accepted\" below. You are automatically referred to the next tab. You can always be referred back to the manual, by clicking on the \"Manual\" button.",null,"Direction P = 1220 mm"]
[]
[null,"Step 2:"]
[null,"Enter the project data and the desired colour. Per order form tab, different sizes can be entered, but you can only choose 1 single colour. For different colours a new tab must be filled in. The \"Colour Range\" tab contains an overview of the possible standard colours; you can consult it at any time. You are required to enter the number of the colour code, the name may be entered for control purposes but it is not required."]
[]
[null,"Step 3:"]
[null,"Please keep in mind that the maximal dimensions of the panels are 3070 mm x 1220 mm, see Fig. a and Fig. b.  Decoboard panels are not directional and can be placed in the longitudinal or transversal direction of the panel."]
[]
[null,"Situation1: When one of the dimensions of the panel is > 1220mm, the greatest dimension must be taken as Direcion S. The other dimension, always ≤ 1220 mm becomes Direction P."]
[null,"Situation 2: If neither of the dimensions of the panel exceeds 1220 mm, you are free to choose the axes."]
[]
[null,"Proceed to enter all data for the panels.",null,null,"Direction S = 3070 mm\n\nFig. a Maximal Dimensions horizontal",null,null,null,null,null,null,null,null,null,"Direction P = 1220 mm\n\nFig. b Maximal Dimensions vertical"]
[null,"*dimensions of Direction S and Direction P, depending on the matching drawing"]
[null,"*Amounts of the panels"]
[null,"*If you wish to delete an entire row, click on \"Delete row\" and fill in the required row number to delete."]
[null,"Press Control Data to check your values. "]
[]
[null,"attention: "]
[null,"* the front side of the panel is the finished side of the panel"]
[]
[null,"Disclaimer order form facade panels:\n\"The goods are delivered in accordance with the order as entered by the client. The client makes use of this order form entirely on his/her own responsibility and will be the only party responsible for the correctness of the data provided. SVK nv cannot be held responsible for errors in dimensions, surface, number of panels, panel brand, sanding direction, perforation pattern or other data as a result of the incorrect measuring or the incorrect provision of this information by the client. Nor can SVK nv be held responsible if the order is not registered, or registered incomplete or incorrect at SVK nv due to technical issues. Finally SVK nv declines any reliability for any form of damage arising from the use of this order form. SVK nv reserves the right to not accept the order in case of doubt or ambiguity. The placement of an order by means of this order form results in the unreserved acceptance of this clause.\""]

{"sheet":"Hand DecoboardPure EN","index":26,"n_rows":35,"n_cols":15,"rows_kept":35,"cut":false,"hidden":true,"merged":[[29,4,31,7],[29,14,31,17],[2,3,10,3],[2,13,10,13],[12,4,13,7],[12,14,13,17],[17,13,27,13],[18,3,28,3]]}
[]
[]
[null,null,null,"Direction P ≤ 1220 mm",null,null,null,null,null,null,null,null,null,"Sanding direction S ≤ 3070 mm"]
[]
[]
[null,"MANUAL ORDER FORM \"SVK NON-PERFORATED DECOBOARD PURE PANELS\" "]
[]
[null,"Read the entire manual before completing your order form. After reading the manual disclaimer, click on \"Read and accepted\" to continue entering the information."]
[]
[null,"The order form \"SVK non-perforated Decoboard Pure panels\" forms a practical tool for the order of cut rectangular Decoboard Pure panels without perforations. All panels in one Tab must be of  the same the same colour. For a different type/colour a new Tab must be filled in. Click on \"Other Type/Colour\" for a new tab."]
[]
[null,"For the treatment and installation of SVK Decoboard Pure panels, we refer to the SVK Technical Data Always consult the most recent version, which can be found on our website http://www.svk.be/."]
[null,null,null,null,"Fig. 1 Sanding direction S ≤ 3070 mm",null,null,null,null,null,null,null,null,null,"Fig. 2 Direction P ≤ 1220 mm"]
[null,"When completing your order, please follow the steps below:"]
[]
[null,"Step 1:"]
[null,"After reading the manual, click on \"Read and accepted\" below. You are automatically referred to the next tab. You can always be referred back to the manual, by clicking on the \"Manual\" button."]
[null,null,null,null,null,null,null,null,null,null,null,null,null,"Sanding direction S = 3070 mm"]
[null,"Step 2:",null,"Direction P = 1220 mm"]
[null,"Enter the project data and the desired panel, type and colour. Per order form tab, different sizes can be entered, but you can only choose 1 single colour. For different types/colours a new tab must be filled in. The \"Colour Range\" tab contains an overview of the possible standard colours; you can consult it at any time. You are required to enter the number of the colour code, the name may be entered for control purposes but it is not required."]
[]
[null,"Step 3:"]
[null,"Please keep in mind that with complete panels 3070 mm x 1220 mm the sanding direction is always parallel with the longest direction, see Fig. a and Fig. b.  All other smaller sizes are made by sawing a complete panel to the correct size. This can cause the sanding direction to no longer be aligned with the longest dimension (for example if both dimensions are ≤1220 mm). It is therefore crucial that the choice of shape is based on the sanding direction, instead of on the largest dimension of the panel."]
[null,"Depending on the sanding direction of the panel, Fig. 1 or Fig. 2 will be appropriate. Fig. a and Fig. b are for illustration of the sanding direction with complete panels only."]
[]
[null,"Proceed to enter all data for the panels, Copy Pasting is allowed."]
[null,"*dimensions of Sanding direction S and Direction P, depending on the matching drawing"]
[null,"*Amounts of the panels"]
[null,"*If you wish to delete an entire row, click on \"Delete row\" and fill in the required row number to delete."]
[null,"Press Control Data to check your values",null,null,"Sanding direction S = 3070 mm\n\nFig. a Maximal Dimensions horizontal",null,null,null,null,null,null,null,null,null,"Direction P = 1220 mm\n\nFig. b Maximal Dimensions vertical"]
[]
[null,"attention: "]
[null,"* thefront side of the panel is the finished side of the panel"]
[]
[null,"Disclaimer order form facade panels:\n\"The goods are delivered in accordance with the order as entered by the client. The client makes use of this order form entirely on his/her own responsibility and will be the only party responsible for the correctness of the data provided. SVK nv cannot be held responsible for errors in dimensions, surface, number of panels, panel brand, sanding direction, perforation pattern or other data as a result of the incorrect measuring or the incorrect provision of this information by the client. Nor can SVK nv be held responsible if the order is not registered, or registered incomplete or incorrect at SVK nv due to technical issues. Finally SVK nv declines any reliability for any form of damage arising from the use of this order form. SVK nv reserves the right to not accept the order in case of doubt or ambiguity. The placement of an order by means of this order form results in the unreserved acceptance of this clause.\""]

{"sheet":"Hand Ornimat EN","index":27,"n_rows":37,"n_cols":15,"rows_kept":37,"cut":false,"hidden":true,"merged":[[29,4,31,7],[29,14,31,17],[2,3,10,3],[2,13,10,13],[12,4,13,7],[12,14,13,17],[17,13,27,13],[18,3,28,3]]}
[]
[]
[null,null,null,"Direction P ≤ 1220 mm",null,null,null,null,null,null,null,null,null,"Direction S ≤ 3070 mm"]
[]
[]
[null,"MANUAL ORDER FORM \"SVK NON-PERFORATED ORNIMAT PANELS\" "]
[]
[null,"Read the entire manual before completing your order form. After reading the manual disclaimer, click on \"Read and accepted\" to continue entering the information."]
[]
[null,"The order form \"SVK non-perforated Ornimat panels\" forms a practical tool for the order of cut rectangular Ornimat panels without perforations. All panels in one Tab must be of  the same colour. For a different colour a new Tab must be filled in. Click on \"Other Colour\" for a new tab."]
[]
[null,"For the treatment and installation of SVK Ornimat panels, we refer to the SVK Technical Data Ornimat. Always consult the most recent version, which can be found on our website http://www.svk.be/."]
[null,null,null,null,"Fig. 1 Direction S ≤ 3070 mm",null,null,null,null,null,null,null,null,null,"Fig. 2 Direction P ≤ 1220 mm"]
[null,"When completing your order, please follow the steps below:"]
[]
[null,"Step 1:"]
[null,"After reading the manual, click on \"Read and accepted\" below. You are automatically referred to the next tab. You can always be referred back to the manual, by clicking on the \"Manual\" button."]
[null,null,null,null,null,null,null,null,null,null,null,null,null,"Direction S = 3070 mm"]
[null,"Step 2:",null,"Direction P = 1220 mm"]
[null,"Enter the project data and the desired colour. Per order form tab, different sizes can be entered, but you can only choose 1 single colour. For different colours a new tab must be filled in. The \"Colour Range\" tab contains an overview of the possible standard colours; you can consult it at any time. You are required to enter the number of the colour code, the name may be entered for control purposes but it is not required."]
[]
[null,"Step 3:"]
[null,"Please keep in mind that the maximal dimensions of the panels are 3070 mm x 1220 mm, see Fig. a and Fig. b.  Ornimat panels are not directional and can be placed in the longitudinal or transversal direction of the panel."]
[]
[null,"Situation1: When one of the dimensions of the panel is > 1220mm, the greatest dimension must be taken as Direcion S. The other dimension, always ≤ 1220 mm becomes Direction P."]
[null,"Situation 2: If neither of the dimensions of the panel exceeds 1220 mm, you are free to choose the axes."]
[]
[null,"Proceed to enter all data for the panels."]
[null,"*dimensions of Direction S and Direction P, depending on the matching drawing"]
[null,"*Amounts of the panels",null,null,"Direction S = 3070 mm\n\nFig. a Maximal Dimensions horizontal",null,null,null,null,null,null,null,null,null,"Direction P = 1220 mm\n\nFig. b Maximal Dimensions vertical"]
[null,"*If you wish to delete an entire row, click on \"Delete row\" and fill in the required row number to delete."]
[null,"Press Control Data to check your values. "]
[]
[null,"attention: "]
[null,"* the front side of the panel is the finished side of the panel"]
[]
[null,"Disclaimer order form facade panels:\n\"The goods are delivered in accordance with the order as entered by the client. The client makes use of this order form entirely on his/her own responsibility and will be the only party responsible for the correctness of the data provided. SVK nv cannot be held responsible for errors in dimensions, surface, number of panels, panel brand, sanding direction, perforation pattern or other data as a result of the incorrect measuring or the incorrect provision of this information by the client. Nor can SVK nv be held responsible if the order is not registered, or registered incomplete or incorrect at SVK nv due to technical issues. Finally SVK nv declines any reliability for any form of damage arising from the use of this order form. SVK nv reserves the right to not accept the order in case of doubt or ambiguity. The placement of an order by means of this order form results in the unreserved acceptance of this clause.\""]

{"sheet":"Hand Colormat EN","index":28,"n_rows":35,"n_cols":15,"rows_kept":35,"cut":false,"hidden":true,"merged":[[29,4,31,7],[29,14,31,17],[2,3,10,3],[2,13,10,13],[12,4,13,7],[12,14,13,17],[17,13,27,13],[18,3,28,3]]}
[]
[]
[null,null,null,"Direction P ≤ 1220 mm",null,null,null,null,null,null,null,null,null,"Sanding direction S ≤ 3050 mm"]
[]
[]
[null,"MANUAL ORDER FORM \"SVK NON-PERFORATED COLORMAT PANELS\" "]
[]
[null,"Read the entire manual before completing your order form. After reading the manual disclaimer, click on \"Read and accepted\" to continue entering the information."]
[]
[null,"The order form \"SVK non-perforated Colormat panels\" forms a practical tool for the order of cut rectangular Colormat panels without perforations. All panels in one Tab must be of  the same type (Classic, Scripto) and the same colour. For a different type/colour a new Tab must be filled in. Click on \"Other Type/Colour\" for a new tab."]
[]
[null,"For the treatment and installation of SVK Colormat panels, we refer to the SVK Technical Data Colormat. Always consult the most recent version, which can be found on our website http://www.svk.be/."]
[null,null,null,null,"Fig. 1 Sanding direction S ≤ 3050 mm",null,null,null,null,null,null,null,null,null,"Fig. 2 Direction P ≤ 1220 mm"]
[null,"When completing your order, please follow the steps below:"]
[]
[null,"Step 1:"]
[null,"After reading the manual, click on \"Read and accepted\" below. You are automatically referred to the next tab. You can always be referred back to the manual, by clicking on the \"Manual\" button."]
[null,null,null,null,null,null,null,null,null,null,null,null,null,"Sanding direction S = 3050 mm"]
[null,"Step 2:",null,"Direction P = 1220 mm"]
[null,"Enter the project data and the desired panel, type and colour. Per order form tab, different sizes can be entered, but you can only choose 1 single type and 1 single colour. For different types/colours a new tab must be filled in. The \"Colour Range\" tab contains an overview of the possible standard colours; you can consult it at any time. You are required to enter the number of the colour code, the name may be entered for control purposes but it is not required."]
[]
[null,"Step 3:"]
[null,"Please keep in mind that with complete panels 3050 mm x 1220 mm the sanding direction is always parallel with the longest direction, see Fig. a and Fig. b.  All other smaller sizes are made by sawing a complete panel to the correct size. This can cause the sanding direction to no longer be aligned with the longest dimension (for example if both dimensions are ≤1220 mm). It is therefore crucial that the choice of shape is based on the sanding direction, instead of on the largest dimension of the panel."]
[null,"Depending on the sanding direction of the panel, Fig. 1 or Fig. 2 will be appropriate. Fig. a and Fig. b are for illustration of the sanding direction with complete panels only."]
[]
[null,"Proceed to enter all data for the panels, Copy Pasting is allowed."]
[null,"*dimensions of Sanding direction S and Direction P, depending on the matching drawing"]
[null,"*Amounts of the panels"]
[null,"*If you wish to delete an entire row, click on \"Delete row\" and fill in the required row number to delete."]
[null,"Press Control Data to check your values",null,null,"Sanding direction S = 3050 mm\n\nFig. a Maximal Dimensions horizontal",null,null,null,null,null,null,null,null,null,"Direction P = 1220 mm\n\nFig. b Maximal Dimensions vertical"]
[]
[null,"attention: "]
[null,"* thefront side of the panel is the finished side of the panel"]
[]
[null,"Disclaimer order form facade panels:\n\"The goods are delivered in accordance with the order as entered by the client. The client makes use of this order form entirely on his/her own responsibility and will be the only party responsible for the correctness of the data provided. SVK nv cannot be held responsible for errors in dimensions, surface, number of panels, panel brand, sanding direction, perforation pattern or other data as a result of the incorrect measuring or the incorrect provision of this information by the client. Nor can SVK nv be held responsible if the order is not registered, or registered incomplete or incorrect at SVK nv due to technical issues. Finally SVK nv declines any reliability for any form of damage arising from the use of this order form. SVK nv reserves the right to not accept the order in case of doubt or ambiguity. The placement of an order by means of this order form results in the unreserved acceptance of this clause.\""]

{"sheet":"Hand ColorPlus EN","index":29,"n_rows":35,"n_cols":15,"rows_kept":35,"cut":false,"hidden":true,"merged":[[29,4,31,7],[29,14,31,17],[2,3,10,3],[2,13,10,13],[12,4,13,7],[12,14,13,17],[17,13,27,13],[18,3,28,3]]}
[]
[]
[null,null,null,"Direction P ≤ 1220 mm",null,null,null,null,null,null,null,null,null,"Sanding direction S ≤ 3050 mm"]
[]
[]
[null,"MANUAL ORDER FORM \"SVK NON-PERFORATED COLOR PLUS PANELS\" "]
[]
[null,"Read the entire manual before completing your order form. After reading the manual disclaimer, click on \"Read and accepted\" to continue entering the information."]
[]
[null,"The order form \"SVK non-perforated Color Plus panels\" forms a practical tool for the order of cut rectangular Color Plus panels without perforations. All panels in one Tab must be of  the same colour. For a different type/colour a new Tab must be filled in. Click on \"Other Type/Colour\" for a new tab."]
[]
[null,"For the treatment and installation of SVK Color Plus panels, we refer to the SVK Technical Data Color Plus. Always consult the most recent version, which can be found on our website http://www.svk.be/."]
[null,null,null,null,"Fig. 1 Sanding direction S ≤ 3050 mm",null,null,null,null,null,null,null,null,null,"Fig. 2 Direction P ≤ 1220 mm"]
[null,"When completing your order, please follow the steps below:"]
[]
[null,"Step 1:"]
[null,"After reading the manual, click on \"Read and accepted\" below. You are automatically referred to the next tab. You can always be referred back to the manual, by clicking on the \"Manual\" button."]
[null,null,null,null,null,null,null,null,null,null,null,null,null,"Sanding direction S = 3050 mm"]
[null,"Step 2:",null,"Direction P = 1220 mm"]
[null,"Enter the project data and the desired panel, type and colour. Per order form tab, different sizes can be entered, but you can only choose 1 single type and 1 single colour. For different types/colours a new tab must be filled in. The \"Colour Range\" tab contains an overview of the possible standard colours; you can consult it at any time. You are required to enter the number of the colour code, the name may be entered for control purposes but it is not required."]
[]
[null,"Step 3:"]
[null,"Please keep in mind that with complete panels 3050 mm x 1220 mm the sanding direction is always parallel with the longest direction, see Fig. a and Fig. b.  All other smaller sizes are made by sawing a complete panel to the correct size. This can cause the sanding direction to no longer be aligned with the longest dimension (for example if both dimensions are ≤1220 mm). It is therefore crucial that the choice of shape is based on the sanding direction, instead of on the largest dimension of the panel."]
[null,"Depending on the sanding direction of the panel, Fig. 1 or Fig. 2 will be appropriate. Fig. a and Fig. b are for illustration of the sanding direction with complete panels only."]
[]
[null,"Proceed to enter all data for the panels, Copy Pasting is allowed."]
[null,"*dimensions of Sanding direction S and Direction P, depending on the matching drawing"]
[null,"*Amounts of the panels"]
[null,"*If you wish to delete an entire row, click on \"Delete row\" and fill in the required row number to delete."]
[null,"Press Control Data to check your values",null,null,"Sanding direction S = 3050 mm\n\nFig. a Maximal Dimensions horizontal",null,null,null,null,null,null,null,null,null,"Direction P = 1220 mm\n\nFig. b Maximal Dimensions vertical"]
[]
[null,"attention: "]
[null,"* thefront side of the panel is the finished side of the panel"]
[]
[null,"Disclaimer order form facade panels:\n\"The goods are delivered in accordance with the order as entered by the client. The client makes use of this order form entirely on his/her own responsibility and will be the only party responsible for the correctness of the data provided. SVK nv cannot be held responsible for errors in dimensions, surface, number of panels, panel brand, sanding direction, perforation pattern or other data as a result of the incorrect measuring or the incorrect provision of this information by the client. Nor can SVK nv be held responsible if the order is not registered, or registered incomplete or incorrect at SVK nv due to technical issues. Finally SVK nv declines any reliability for any form of damage arising from the use of this order form. SVK nv reserves the right to not accept the order in case of doubt or ambiguity. The placement of an order by means of this order form results in the unreserved acceptance of this clause.\""]

{"sheet":"Hand Touch EN","index":30,"n_rows":37,"n_cols":15,"rows_kept":37,"cut":false,"hidden":true,"merged":[[29,4,31,7],[29,14,31,17],[2,3,10,3],[2,13,10,13],[12,4,13,7],[12,14,13,17],[17,13,27,13],[18,3,28,3]]}
[]
[]
[null,null,null,"Direction P ≤ 1220 mm",null,null,null,null,null,null,null,null,null,"Direction S ≤ 3050 mm"]
[]
[]
[null,"MANUAL ORDER FORM \"SVK NON-PERFORATED COLORMAT TOUCH PANELS\" "]
[]
[null,"Read the entire manual before completing your order form. After reading the manual disclaimer, click on \"Read and accepted\" to continue entering the information."]
[]
[null,"The order form \"SVK non-perforated Colormat Touch panels\" forms a practical tool for the order of cut rectangular Colormat Touch panels without perforations. All panels in one Tab must be of  the same colour. For a different colour a new Tab must be filled in. Click on \"Other Colour\" for a new tab."]
[]
[null,"For the treatment and installation of SVK Colormat Touch panels, we refer to the SVK Technical Data Colormat Touch. Always consult the most recent version, which can be found on our website http://www.svk.be/."]
[null,null,null,null,"Fig. 1 Direction S ≤ 3050 mm",null,null,null,null,null,null,null,null,null,"Fig. 2 Direction P ≤ 1220 mm"]
[null,"When completing your order, please follow the steps below:"]
[]
[null,"Step 1:"]
[null,"After reading the manual, click on \"Read and accepted\" below. You are automatically referred to the next tab. You can always be referred back to the manual, by clicking on the \"Manual\" button."]
[null,null,null,null,null,null,null,null,null,null,null,null,null,"Direction S = 3050 mm"]
[null,"Step 2:",null,"Direction P = 1220 mm"]
[null,"Enter the project data and the desired colour. Per order form tab, different sizes can be entered, but you can only choose 1 single colour. For different colours a new tab must be filled in. The \"Colour Range\" tab contains an overview of the possible standard colours; you can consult it at any time. You are required to enter the number of the colour code, the name may be entered for control purposes but it is not required."]
[]
[null,"Step 3:"]
[null,"Please keep in mind that the maximal dimensions of the panels are 3050 mm x 1220 mm, see Fig. a and Fig. b.  Colormat Touch panels are not directional and can be placed in the longitudinal or transversal direction of the panel."]
[]
[null,"Situation1: When one of the dimensions of the panel is > 1220mm, the greatest dimension must be taken as Direcion S. The other dimension, always ≤ 1220 mm becomes Direction P."]
[null,"Situation 2: If neither of the dimensions of the panel exceeds 1220 mm, you are free to choose the axes."]
[]
[null,"Proceed to enter all data for the panels."]
[null,"*dimensions of Direction S and Direction P, depending on the matching drawing"]
[null,"*Amounts of the panels",null,null,"Direction S = 300 mm\n\nFig. a Maximal Dimensions horizontal",null,null,null,null,null,null,null,null,null,"Direction P = 1220 mm\n\nFig. b Maximal Dimensions vertical"]
[null,"*If you wish to delete an entire row, click on \"Delete row\" and fill in the required row number to delete."]
[null,"Press Control Data to check your values. "]
[]
[null,"attention: "]
[null,"* the front side of the panel is the finished side of the panel"]
[]
[null,"Disclaimer order form facade panels:\n\"The goods are delivered in accordance with the order as entered by the client. The client makes use of this order form entirely on his/her own responsibility and will be the only party responsible for the correctness of the data provided. SVK nv cannot be held responsible for errors in dimensions, surface, number of panels, panel brand, sanding direction, perforation pattern or other data as a result of the incorrect measuring or the incorrect provision of this information by the client. Nor can SVK nv be held responsible if the order is not registered, or registered incomplete or incorrect at SVK nv due to technical issues. Finally SVK nv declines any reliability for any form of damage arising from the use of this order form. SVK nv reserves the right to not accept the order in case of doubt or ambiguity. The placement of an order by means of this order form results in the unreserved acceptance of this clause.\""]

{"sheet":"Hand PuroPlus NL","index":31,"n_rows":36,"n_cols":15,"rows_kept":36,"cut":false,"hidden":true,"merged":[[36,4,36,7],[36,14,36,17],[9,3,17,3],[9,13,17,13],[19,4,20,7],[19,14,20,17],[24,13,34,13],[25,3,34,3],[35,4,35,10],[35,14,35,17]]}
[]
[]
[]
[]
[]
[null,"HANDLEIDING BESTELFORMULIER \"SVK NIET GEPERFOREERDEPURO PLUS PLATEN\" "]
[]
[null,"Lees de volledige handleiding door vooraleer uw bestelformulier in te vullen. Na het lezen van de handleiding en disclaimer klikt u \"Gelezen en aanvaard\" om door te gaan met het invullen van de gegevens."]
[]
[null,"Het bestelformulier \"SVK niet geperforeerde Puro Plus platen\" is bedoeld als hulpmiddel bij het bestellen van verzaagde rechthoekige Puro Plus platen zonder perforaties. ",null,"Richting P ≤ 1220 mm",null,null,null,null,null,null,null,null,null,"Schuurrichting S ≤ 3070 mm"]
[]
[null,"Voor de bewerking en plaatsing van SVK Puro Plus platen verwijzen wij naar de SVK Technische Gegevens Puro Plus. Raadpleeg altijd de meest recente versie, deze vindt u op onze website terug: www.svk.be."]
[]
[null,"Bij het ingeven van uw bestelling gaat u als volgt te werk:"]
[]
[null,"Stap 1:"]
[null,"Na het lezen van de handleiding klikt u onderaan op \"Gelezen en aanvaard\". U wordt automatisch naar het volgende tabblad doorverwezen. U kunt steeds naar de handleiding terug verwezen worden door op de knop \"Handleiding\" te klikken."]
[]
[null,"Stap 2:"]
[null,"Vul de projectgegevens in. Per bestelformulier kunt u verschillende formaten ingeven.",null,null,"Fig. 1 Schuurrichting S ≤ 3070 mm",null,null,null,null,null,null,null,null,null,"Fig. 2 Richting P ≤ 1220 mm"]
[]
[null,"Stap 3:"]
[null,"Gelieve a.u.b. te noteren dat bij volle platen 3070mmx1220mm de schuurrichting altijd evenwijdig met de langste richting loopt, zie Fig. a en Fig. b. Alle andere kleinere formaten worden verkregen door een volle plaat te verzagen. Hierdoor kan het gebeuren (wanneer bijvoorbeeld beide afmetingen ≤1220mm zijn) dat de schuurrichting niet meer samenvalt met de langste afmeting. Hierdoor is het dus van het grootste belang om de keuze van de figuur te baseren op basis van de schuurrichting en niet o.b.v. de grootste afmeting van de plaat."]
[null,"Afhankelijk van de schuurrichting van de plaat zal u bij Fig.1 of Fig.2 terecht komen. Fig. a en Fig. b zijn enkel ter illustratie van de schuurrichting bij volle platen."]
[null,null,null,null,null,null,null,null,null,null,null,null,null,"Schuurrichting S = 3070 mm"]
[null,"Geef vervolgens alle gegevens in",null,"Richting P = 1220 mm"]
[null,"* afmetingen van Schuurrichting S en Richting P afhankelijk van de bijhorende figuur"]
[null,"* aantal stuks van deze plaat"]
[null,"*Om een rij gegevens te verwijderen druk op \"Verwijder Rij\" en geef in de gewenste rij"]
[null,"*Druk op \"Controleer\" om uw data te controleren"]
[]
[null,"aandacht: "]
[null,"* het aanzicht van de plaat is de afgewerkte kant van de plaat"]
[]
[null,"Disclaimer bestelformulier gevelplaten:\n"]
[null,"\"De goederen worden geleverd overeenkomstig de bestelling zoals ingegeven door de klant. De klant gebruikt dit bestelformulier volledig op eigen verantwoordelijkheid en zal als enige instaan voor de correctheid van de gegevens die hij verstrekt. SVK nv kan niet verantwoordelijk worden geacht voor fouten in afmetingen, oppervlakte, aantal platen, plaatmerk, richting schuurlijnen, perforatiepatroon of andere gegevens ten gevolge van het foutief opmeten of het foutief doorgeven ervan door de klant. SVK nv kan evenmin aansprakelijk worden gesteld indien de bestelling niet, onvolledig of incorrect aankomt bij SVK nv ten gevolge van technische problemen. Ten slotte wijst SVK nv elke aansprakelijkheid af voor welke schade dan ook voorvloeiend uit het gebruik van dit bestelformulier. SVK nv behoudt zich het recht voor de bestelling niet te aanvaarden in geval van twijfel of onduidelijkheid. Het plaatsen van een bestelling d.m.v. onderhavig bestelformulier heeft de onvoorwaardelijke aanvaarding van deze clausule tot gevolg.\" ",null,null,"\nSchuurrichting S = 3070 mm\n\nFig. a Maximale afmetingen horizontaal",null,null,null,null,null,null,null,null,null,"\nRichting P = 1220 mm\n\nFig. b Maximale afmetingen verticaal"]

{"sheet":"Hand DecoboardClassic NL","index":32,"n_rows":37,"n_cols":15,"rows_kept":37,"cut":false,"hidden":true,"merged":[[29,4,31,7],[29,14,31,17],[2,3,10,3],[2,13,10,13],[12,4,13,7],[12,14,13,17],[17,13,27,13],[18,3,28,3]]}
[]
[]
[null,null,null,"Richting P ≤ 1220 mm",null,null,null,null,null,null,null,null,null,"Richting S ≤ 3070 mm"]
[]
[]
[null,"HANDLEIDING BESTELFORMULIER \"SVK NIET GEPERFOREERDE DECOBOARD CLASSIC PLATEN\" "]
[]
[null,"Lees de volledige handleiding door vooraleer uw bestelformulier in te vullen. Na het lezen van de handleiding en disclaimer klikt u \"Gelezen en aanvaard\" om door te gaan met het invullen van de gegevens."]
[]
[null,"Het bestelformulier \"SVK niet geperforeerde Decoboard Classic platen\" is bedoeld als hulpmiddel bij het bestellen van verzaagde rechthoekige Decoboard Classic platen zonder perforaties. Alle platen dienen van  hetzelfde kleur te zijn. Voor verschillende kleuren dient telkens een nieuw tabblad ingevuld te worden. Klik hiervoor op \"Andere Kleur\"."]
[]
[null,"Voor de bewerking en plaatsing van SVK Decoboard Classic platen verwijzen wij naar de SVK Technische Gegevens Decoboard Classic. Raadpleeg altijd de meest recente versie, deze vindt u op onze website terug: www.svk.be."]
[null,null,null,null,"Fig. 1 Richting S ≤ 3070 mm",null,null,null,null,null,null,null,null,null,"Fig. 2 Richting P ≤ 1220 mm"]
[null,"Bij het ingeven van uw bestelling gaat u als volgt te werk:"]
[]
[null,"Stap 1:"]
[null,"Na het lezen van de handleiding klikt u onderaan op \"Gelezen en aanvaard\". U wordt automatisch naar het volgende tabblad doorverwezen. U kunt steeds naar de handleiding terug verwezen worden door op de knop \"Handleiding\" te klikken."]
[null,null,null,null,null,null,null,null,null,null,null,null,null,"Richting S = 3070 mm"]
[null,"Stap 2:",null,"Richting P = 1220 mm"]
[null,"Vul de projectgegevens in en de gewenste plaat en kleur. Per tabblad kunt u verschillende formaten ingeven maar kan u slechts 1 enkele kleur kiezen. Voor verschillende kleuren dient telkens een nieuw tabblad ingevuld te worden. Klik hiervoor op \"Andere Kleur\".  Het tabblad \"Kleuren\" bevat een overzicht van de kleurengamma, u kunt deze ten allen tijde raadplegen. Het nummer van de kleurencode is verplicht in te vullen, de benaming mag ter controle ingevuld worden maar is geen verplichting."]
[]
[null,"Stap 3:"]
[null,"Gelieve a.u.b. te noteren dat de maximale afmeting bedragt 3070mmx1220mm. De Decoboard Classic platen zijn niet richtingsgebonden, ze kunnen geplaatst worden in de langse of dwarse richting van de plaat, naar voorkeur. "]
[null,"Situatie 1: Indien één van de twee afmetingen van de plaat groter is dan 1220mm, dient de langste afmeting als Richting S genomen te worden. De andere afmeting, altijd ≤1220mm, wordt dan Richting P. "]
[null,"Situatie 2: Indien geen van beide afmetingen van de plaat 1220mm overschrijdt, dan bent u vrij in de keuze van de assen."]
[]
[null,"Geef vervolgens alle gegevens in"]
[null,"* afmetingen van Richting S en Richting P afhankelijk van de bijhorende as"]
[null,"* aantal stuks van deze plaat"]
[null,"*Om een rij gegevens te verwijderen druk op \"Verwijder Rij\" en geef in de gewenste rij",null,null,"Richting S = 3070 mm\n\nFig. a Maximale afmetingen horizontaal",null,null,null,null,null,null,null,null,null,"Richting P = 1220 mm\n\nFig. b Maximale afmetingen verticaal"]
[null,"Druk op \"Controleer\" om uw data te controleren"]
[]
[null,"aandacht: "]
[null,"* het aanzicht van de plaat is de afgewerkte kant van de plaat"]
[]
[null,"Disclaimer bestelformulier gevelplaten:\n"]
[null,"\"De goederen worden geleverd overeenkomstig de bestelling zoals ingegeven door de klant. De klant gebruikt dit bestelformulier volledig op eigen verantwoordelijkheid en zal als enige instaan voor de correctheid van de gegevens die hij verstrekt. SVK nv kan niet verantwoordelijk worden geacht voor fouten in afmetingen, oppervlakte, aantal platen, plaatmerk, richting schuurlijnen, perforatiepatroon of andere gegevens ten gevolge van het foutief opmeten of het foutief doorgeven ervan door de klant. SVK nv kan evenmin aansprakelijk worden gesteld indien de bestelling niet, onvolledig of incorrect aankomt bij SVK nv ten gevolge van technische problemen. Ten slotte wijst SVK nv elke aansprakelijkheid af voor welke schade dan ook voorvloeiend uit het gebruik van dit bestelformulier. SVK nv behoudt zich het recht voor de bestelling niet te aanvaarden in geval van twijfel of onduidelijkheid. Het plaatsen van een bestelling d.m.v. onderhavig bestelformulier heeft de onvoorwaardelijke aanvaarding van deze clausule tot gevolg.\" "]

{"sheet":"Hand DecoboardPure NL","index":33,"n_rows":37,"n_cols":15,"rows_kept":37,"cut":false,"hidden":true,"merged":[[30,4,32,7],[30,14,32,17],[2,3,10,3],[2,13,10,13],[12,4,12,7],[12,14,12,18],[18,13,28,13],[23,3,28,3]]}
[]
[]
[null,null,null,"Richting P ≤ 1220 mm",null,null,null,null,null,null,null,null,null,"Schuurrichting S ≤ 3070 mm"]
[]
[]
[null,"HANDLEIDING BESTELFORMULIER \"SVK NIET GEPERFOREERDE DECOBOARD PURE PLATEN\" "]
[]
[null,"Lees de volledige handleiding door vooraleer uw bestelformulier in te vullen. Na het lezen van de handleiding en disclaimer klikt u \"Gelezen en aanvaard\" om door te gaan met het invullen van de gegevens."]
[]
[null,"Gebruik dit formulier enkel voor de bestelling van rechthoekige niet geperforeerde Decoboard Pure platen, voor andere plaattypes zijn er afzonderlijke bestelformulieren."]
[]
[null,"Het bestelformulier \"SVK niet geperforeerde Colormat platen\" is bedoeld als hulpmiddel bij het bestellen van verzaagde rechthoekige Decoboard Pure platen zonder perforaties. Alle platen dienen van  hetzelfde kleur te zijn. Voor verschillende types/kleuren dient telkens een nieuw tabblad ingevuld te worden. Klik hiervoor op \"Andere Type/Kleur\"."]
[null,null,null,null,"Fig. 1 Schuurrichting S ≤ 3070 mm",null,null,null,null,null,null,null,null,null,"Fig. 2 Richting P ≤ 1220 mm"]
[null,"Voor de bewerking en plaatsing van SVK Decoboard Pure platen verwijzen wij naar de SVK Technische Gegevens. Raadpleeg altijd de meest recente versie, deze vindt u op onze website terug: www.svk.be"]
[]
[null,"Bij het ingeven van uw bestelling gaat u als volgt te werk:"]
[null,"Stap 1:"]
[null,"Na het lezen van de handleiding klikt u onderaan op \"Gelezen en aanvaard\". U wordt automatisch naar het volgende tabblad doorverwezen. U kunt steeds naar de handleiding terug verwezen worden door op de knop \"Handleiding\" te klikken."]
[null,null,null,null,null,null,null,null,null,null,null,null,null,"Schuurrichting S = 3070 mm"]
[null,"Stap 2:"]
[null,"Vul de projectgegevens in en de gewenste plaat, type en kleur. Per tabblad kunt u verschillende formaten ingeven maar kan u slechts 1 enkel type en 1 enkele kleur kiezen. Voor verschillende types/kleuren dient telkens een nieuw tabblad ingevuld te worden. Klik hiervoor op \"Andere Type/Kleur\". Het tabblad \"Kleuren\" bevat een overzicht van de kleurengamma, u kunt deze ten allen tijde raadplegen. Het nummer van de kleurencode is verplicht in te vullen, de benaming mag ter controle ingevuld worden maar is geen verplichting."]
[]
[null,"Stap 3:"]
[null,"Gelieve a.u.b. te noteren dat bij volle platen 3070mmx1220mm de schuurrichting altijd evenwijdig met de langste richting loopt, zie Fig. a en Fig. b. Alle andere kleinere formaten worden verkregen door een volle plaat te verzagen. Hierdoor kan het gebeuren (wanneer bijvoorbeeld beide afmetingen ≤1220mm zijn) dat de schuurrichting niet meer samenvalt met de langste afmeting. Hierdoor is het dus van het grootste belang om de keuze van de figuur te baseren op basis van de schuurrichting en niet o.b.v. de grootste afmeting van de plaat.",null,"Richting P = 1220 mm"]
[null,"Afhankelijk van de schuurrichting van de plaat zal u bij Fig.1 of Fig.2 terecht komen. Fig. a en Fig. b zijn enkel ter illustratie van de schuurrichting bij volle platen."]
[]
[null,"Geef vervolgens alle gegevens in"]
[null,"* afmetingen van Schuurrichting S en Richting P afhankelijk van de bijhorende figuur"]
[null,"* aantal stuks van deze plaat"]
[null,"*Om een rij gegevens te verwijderen druk op \"Verwijder Rij\" en geef in de gewenste rij"]
[null,"Druk op \"Controleer\" om uw data te controleren",null,null,"Schuurrichting S = 3070 mm\n\nFig. a Maximale afmetingen horizontaal",null,null,null,null,null,null,null,null,null,"Richting P = 1220 mm\n\nFig. b Maximale afmetingen verticaal"]
[]
[null,"aandacht: "]
[null,"* het aanzicht van de plaat is de afgewerkte kant van de plaat"]
[]
[null,"Disclaimer bestelformulier gevelplaten:"]
[null,"\"De goederen worden geleverd overeenkomstig de bestelling zoals ingegeven door de klant. De klant gebruikt dit bestelformulier volledig op eigen verantwoordelijkheid en zal als enige instaan voor de correctheid van de gegevens die hij verstrekt. SVK nv kan niet verantwoordelijk worden geacht voor fouten in afmetingen, oppervlakte, aantal platen, plaatmerk, richting schuurlijnen, perforatiepatroon of andere gegevens ten gevolge van het foutief opmeten of het foutief doorgeven ervan door de klant. SVK nv kan evenmin aansprakelijk worden gesteld indien de bestelling niet, onvolledig of incorrect aankomt bij SVK nv ten gevolge van technische problemen. Ten slotte wijst SVK nv elke aansprakelijkheid af voor welke schade dan ook voorvloeiend uit het gebruik van dit bestelformulier. SVK nv behoudt zich het recht voor de bestelling niet te aanvaarden in geval van twijfel of onduidelijkheid. Het plaatsen van een bestelling d.m.v. onderhavig bestelformulier heeft de onvoorwaardelijke aanvaarding van deze clausule tot gevolg.\" "]

{"sheet":"Hand Ornimat NL","index":34,"n_rows":37,"n_cols":15,"rows_kept":37,"cut":false,"hidden":true,"merged":[[29,4,31,7],[29,14,31,17],[2,3,10,3],[2,13,10,13],[12,4,13,7],[12,14,13,17],[17,13,27,13],[18,3,28,3]]}
[]
[]
[null,null,null,"Richting P ≤ 1220 mm",null,null,null,null,null,null,null,null,null,"Richting S ≤ 3070 mm"]
[]
[]
[null,"HANDLEIDING BESTELFORMULIER \"SVK NIET GEPERFOREERDE ORNIMAT PLATEN\" "]
[]
[null,"Lees de volledige handleiding door vooraleer uw bestelformulier in te vullen. Na het lezen van de handleiding en disclaimer klikt u \"Gelezen en aanvaard\" om door te gaan met het invullen van de gegevens."]
[]
[null,"Het bestelformulier \"SVK niet geperforeerde Ornimat platen\" is bedoeld als hulpmiddel bij het bestellen van verzaagde rechthoekige Ornimat platen zonder perforaties. Alle platen dienen van  hetzelfde kleur te zijn. Voor verschillende kleuren dient telkens een nieuw tabblad ingevuld te worden. Klik hiervoor op \"Andere Kleur\"."]
[]
[null,"Voor de bewerking en plaatsing van SVK Ornimat platen verwijzen wij naar de SVK Technische Gegevens Ornimat. Raadpleeg altijd de meest recente versie, deze vindt u op onze website terug: www.svk.be."]
[null,null,null,null,"Fig. 1 Richting S ≤ 3070 mm",null,null,null,null,null,null,null,null,null,"Fig. 2 Richting P ≤ 1220 mm"]
[null,"Bij het ingeven van uw bestelling gaat u als volgt te werk:"]
[]
[null,"Stap 1:"]
[null,"Na het lezen van de handleiding klikt u onderaan op \"Gelezen en aanvaard\". U wordt automatisch naar het volgende tabblad doorverwezen. U kunt steeds naar de handleiding terug verwezen worden door op de knop \"Handleiding\" te klikken."]
[null,null,null,null,null,null,null,null,null,null,null,null,null,"Richting S = 3070 mm"]
[null,"Stap 2:",null,"Richting P = 1220 mm"]
[null,"Vul de projectgegevens in en de gewenste plaat en kleur. Per tabblad kunt u verschillende formaten ingeven maar kan u slechts 1 enkele kleur kiezen. Voor verschillende kleuren dient telkens een nieuw tabblad ingevuld te worden. Klik hiervoor op \"Andere Kleur\".  Het tabblad \"Kleuren\" bevat een overzicht van de kleurengamma, u kunt deze ten allen tijde raadplegen. Het nummer van de kleurencode is verplicht in te vullen, de benaming mag ter controle ingevuld worden maar is geen verplichting."]
[]
[null,"Stap 3:"]
[null,"Gelieve a.u.b. te noteren dat de maximale afmeting bedragt 3070mmx1220mm. De Ornimat platen zijn niet richtingsgebonden, ze kunnen geplaatst worden in de langse of dwarse richting van de plaat, naar voorkeur. "]
[null,"Situatie 1: Indien één van de twee afmetingen van de plaat groter is dan 1220mm, dient de langste afmeting als Richting S genomen te worden. De andere afmeting, altijd ≤1220mm, wordt dan Richting P. "]
[null,"Situatie 2: Indien geen van beide afmetingen van de plaat 1220mm overschrijdt, dan bent u vrij in de keuze van de assen."]
[]
[null,"Geef vervolgens alle gegevens in"]
[null,"* afmetingen van Richting S en Richting P afhankelijk van de bijhorende as"]
[null,"* aantal stuks van deze plaat"]
[null,"*Om een rij gegevens te verwijderen druk op \"Verwijder Rij\" en geef in de gewenste rij",null,null,"Richting S = 3070 mm\n\nFig. a Maximale afmetingen horizontaal",null,null,null,null,null,null,null,null,null,"Richting P = 1220 mm\n\nFig. b Maximale afmetingen verticaal"]
[null,"Druk op \"Controleer\" om uw data te controleren"]
[]
[null,"aandacht: "]
[null,"* het aanzicht van de plaat is de afgewerkte kant van de plaat"]
[]
[null,"Disclaimer bestelformulier gevelplaten:\n"]
[null,"\"De goederen worden geleverd overeenkomstig de bestelling zoals ingegeven door de klant. De klant gebruikt dit bestelformulier volledig op eigen verantwoordelijkheid en zal als enige instaan voor de correctheid van de gegevens die hij verstrekt. SVK nv kan niet verantwoordelijk worden geacht voor fouten in afmetingen, oppervlakte, aantal platen, plaatmerk, richting schuurlijnen, perforatiepatroon of andere gegevens ten gevolge van het foutief opmeten of het foutief doorgeven ervan door de klant. SVK nv kan evenmin aansprakelijk worden gesteld indien de bestelling niet, onvolledig of incorrect aankomt bij SVK nv ten gevolge van technische problemen. Ten slotte wijst SVK nv elke aansprakelijkheid af voor welke schade dan ook voorvloeiend uit het gebruik van dit bestelformulier. SVK nv behoudt zich het recht voor de bestelling niet te aanvaarden in geval van twijfel of onduidelijkheid. Het plaatsen van een bestelling d.m.v. onderhavig bestelformulier heeft de onvoorwaardelijke aanvaarding van deze clausule tot gevolg.\" "]

{"sheet":"Hand Colormat NL","index":35,"n_rows":37,"n_cols":15,"rows_kept":37,"cut":false,"hidden":true,"merged":[[2,3,10,3],[2,13,10,13],[18,13,28,13],[30,4,32,7],[30,14,32,17],[12,4,12,7],[12,14,12,18],[23,3,28,3]]}
[]
[]
[null,null,null,"Richting P ≤ 1220 mm",null,null,null,null,null,null,null,null,null,"Schuurrichting S ≤ 3050 mm"]
[]
[]
[null,"HANDLEIDING BESTELFORMULIER \"SVK NIET GEPERFOREERDE COLORMAT PLATEN\" "]
[]
[null,"Lees de volledige handleiding door vooraleer uw bestelformulier in te vullen. Na het lezen van de handleiding en disclaimer klikt u \"Gelezen en aanvaard\" om door te gaan met het invullen van de gegevens."]
[]
[null,"Gebruik dit formulier enkel voor de bestelling van rechthoekige niet geperforeerde Colormat platen, voor andere plaattypes zijn er afzonderlijke bestelformulieren."]
[]
[null,"Het bestelformulier \"SVK niet geperforeerde Colormat platen\" is bedoeld als hulpmiddel bij het bestellen van verzaagde rechthoekige Colormat platen zonder perforaties. Alle platen dienen van  hetzelfde type (Classic, Scripto) en van dezelfde kleur te zijn. Voor verschillende types/kleuren dient telkens een nieuw tabblad ingevuld te worden. Klik hiervoor op \"Andere Type/Kleur\"."]
[null,null,null,null,"Fig. 1 Schuurrichting S ≤ 3050 mm",null,null,null,null,null,null,null,null,null,"Fig. 2 Richting P ≤ 1220 mm"]
[null,"Voor de bewerking en plaatsing van SVK Colormat platen verwijzen wij naar de SVK Technische Gegevens Colormat Classic/Scripto. Raadpleeg altijd de meest recente versie, deze vindt u op onze website terug: www.svk.be"]
[]
[null,"Bij het ingeven van uw bestelling gaat u als volgt te werk:"]
[null,"Stap 1:"]
[null,"Na het lezen van de handleiding klikt u onderaan op \"Gelezen en aanvaard\". U wordt automatisch naar het volgende tabblad doorverwezen. U kunt steeds naar de handleiding terug verwezen worden door op de knop \"Handleiding\" te klikken."]
[null,null,null,null,null,null,null,null,null,null,null,null,null,"Schuurrichting S = 3050 mm"]
[null,"Stap 2:"]
[null,"Vul de projectgegevens in en de gewenste plaat, type en kleur. Per tabblad kunt u verschillende formaten ingeven maar kan u slechts 1 enkel type en 1 enkele kleur kiezen. Voor verschillende types/kleuren dient telkens een nieuw tabblad ingevuld te worden. Klik hiervoor op \"Andere Type/Kleur\". Het tabblad \"Kleuren\" bevat een overzicht van de kleurengamma, u kunt deze ten allen tijde raadplegen. Het nummer van de kleurencode is verplicht in te vullen, de benaming mag ter controle ingevuld worden maar is geen verplichting."]
[]
[null,"Stap 3:"]
[null,"Gelieve a.u.b. te noteren dat bij volle platen 3050mmx1220mm de schuurrichting altijd evenwijdig met de langste richting loopt, zie Fig. a en Fig. b. Alle andere kleinere formaten worden verkregen door een volle plaat te verzagen. Hierdoor kan het gebeuren (wanneer bijvoorbeeld beide afmetingen ≤1220mm zijn) dat de schuurrichting niet meer samenvalt met de langste afmeting. Hierdoor is het dus van het grootste belang om de keuze van de figuur te baseren op basis van de schuurrichting en niet o.b.v. de grootste afmeting van de plaat.",null,"Richting P = 1220 mm"]
[null,"Afhankelijk van de schuurrichting van de plaat zal u bij Fig.1 of Fig.2 terecht komen. Fig. a en Fig. b zijn enkel ter illustratie van de schuurrichting bij volle platen."]
[]
[null,"Geef vervolgens alle gegevens in"]
[null,"* afmetingen van Schuurrichting S en Richting P afhankelijk van de bijhorende figuur"]
[null,"* aantal stuks van deze plaat"]
[null,"*Om een rij gegevens te verwijderen druk op \"Verwijder Rij\" en geef in de gewenste rij"]
[null,"Druk op \"Controleer\" om uw data te controleren",null,null,"Schuurrichting S = 3050 mm\n\nFig. a Maximale afmetingen horizontaal",null,null,null,null,null,null,null,null,null,"Richting P = 1220 mm\n\nFig. b Maximale afmetingen verticaal"]
[]
[null,"aandacht: "]
[null,"* het aanzicht van de plaat is de afgewerkte kant van de plaat"]
[]
[null,"Disclaimer bestelformulier gevelplaten:"]
[null,"\"De goederen worden geleverd overeenkomstig de bestelling zoals ingegeven door de klant. De klant gebruikt dit bestelformulier volledig op eigen verantwoordelijkheid en zal als enige instaan voor de correctheid van de gegevens die hij verstrekt. SVK nv kan niet verantwoordelijk worden geacht voor fouten in afmetingen, oppervlakte, aantal platen, plaatmerk, richting schuurlijnen, perforatiepatroon of andere gegevens ten gevolge van het foutief opmeten of het foutief doorgeven ervan door de klant. SVK nv kan evenmin aansprakelijk worden gesteld indien de bestelling niet, onvolledig of incorrect aankomt bij SVK nv ten gevolge van technische problemen. Ten slotte wijst SVK nv elke aansprakelijkheid af voor welke schade dan ook voorvloeiend uit het gebruik van dit bestelformulier. SVK nv behoudt zich het recht voor de bestelling niet te aanvaarden in geval van twijfel of onduidelijkheid. Het plaatsen van een bestelling d.m.v. onderhavig bestelformulier heeft de onvoorwaardelijke aanvaarding van deze clausule tot gevolg.\" "]

{"sheet":"Hand ColorPlus  NL","index":36,"n_rows":37,"n_cols":15,"rows_kept":37,"cut":false,"hidden":true,"merged":[[30,4,32,7],[30,14,32,17],[2,3,10,3],[2,13,10,13],[12,4,12,7],[12,14,12,18],[18,13,28,13],[23,3,28,3]]}
[]
[]
[null,null,null,"Richting P ≤ 1220 mm",null,null,null,null,null,null,null,null,null,"Schuurrichting S ≤ 3050 mm"]
[]
[]
[null,"HANDLEIDING BESTELFORMULIER \"SVK NIET GEPERFOREERDE COLOR PLUS PLATEN\" "]
[]
[null,"Lees de volledige handleiding door vooraleer uw bestelformulier in te vullen. Na het lezen van de handleiding en disclaimer klikt u \"Gelezen en aanvaard\" om door te gaan met het invullen van de gegevens."]
[]
[null,"Gebruik dit formulier enkel voor de bestelling van rechthoekige niet geperforeerde Color Plus platen, voor andere plaattypes zijn er afzonderlijke bestelformulieren."]
[]
[null,"Het bestelformulier \"SVK niet geperforeerde Color Plus platen\" is bedoeld als hulpmiddel bij het bestellen van verzaagde rechthoekige Color Plus platen zonder perforaties. Alle platen dienen van dezelfde kleur te zijn. Voor verschillende types/kleuren dient telkens een nieuw tabblad ingevuld te worden. Klik hiervoor op \"Andere Type/Kleur\"."]
[null,null,null,null,"Fig. 1 Schuurrichting S ≤ 3050 mm",null,null,null,null,null,null,null,null,null,"Fig. 2 Richting P ≤ 1220 mm"]
[null,"Voor de bewerking en plaatsing van SVK Color Plus platen verwijzen wij naar de SVK Technische Gegevens Color Plus. Raadpleeg altijd de meest recente versie, deze vindt u op onze website terug: www.svk.be"]
[]
[null,"Bij het ingeven van uw bestelling gaat u als volgt te werk:"]
[null,"Stap 1:"]
[null,"Na het lezen van de handleiding klikt u onderaan op \"Gelezen en aanvaard\". U wordt automatisch naar het volgende tabblad doorverwezen. U kunt steeds naar de handleiding terug verwezen worden door op de knop \"Handleiding\" te klikken."]
[null,null,null,null,null,null,null,null,null,null,null,null,null,"Schuurrichting S = 3050 mm"]
[null,"Stap 2:"]
[null,"Vul de projectgegevens in en de gewenste plaat, type en kleur. Per tabblad kunt u verschillende formaten ingeven maar kan u slechts 1 enkel type en 1 enkele kleur kiezen. Voor verschillende types/kleuren dient telkens een nieuw tabblad ingevuld te worden. Klik hiervoor op \"Andere Type/Kleur\". Het tabblad \"Kleuren\" bevat een overzicht van de kleurengamma, u kunt deze ten allen tijde raadplegen. Het nummer van de kleurencode is verplicht in te vullen, de benaming mag ter controle ingevuld worden maar is geen verplichting."]
[]
[null,"Stap 3:"]
[null,"Gelieve a.u.b. te noteren dat bij volle platen 3050mmx1220mm de schuurrichting altijd evenwijdig met de langste richting loopt, zie Fig. a en Fig. b. Alle andere kleinere formaten worden verkregen door een volle plaat te verzagen. Hierdoor kan het gebeuren (wanneer bijvoorbeeld beide afmetingen ≤1220mm zijn) dat de schuurrichting niet meer samenvalt met de langste afmeting. Hierdoor is het dus van het grootste belang om de keuze van de figuur te baseren op basis van de schuurrichting en niet o.b.v. de grootste afmeting van de plaat.",null,"Richting P = 1220 mm"]
[null,"Afhankelijk van de schuurrichting van de plaat zal u bij Fig.1 of Fig.2 terecht komen. Fig. a en Fig. b zijn enkel ter illustratie van de schuurrichting bij volle platen."]
[]
[null,"Geef vervolgens alle gegevens in"]
[null,"* afmetingen van Schuurrichting S en Richting P afhankelijk van de bijhorende figuur"]
[null,"* aantal stuks van deze plaat"]
[null,"*Om een rij gegevens te verwijderen druk op \"Verwijder Rij\" en geef in de gewenste rij"]
[null,"Druk op \"Controleer\" om uw data te controleren",null,null,"Schuurrichting S = 3050 mm\n\nFig. a Maximale afmetingen horizontaal",null,null,null,null,null,null,null,null,null,"Richting P = 1220 mm\n\nFig. b Maximale afmetingen verticaal"]
[]
[null,"aandacht: "]
[null,"* het aanzicht van de plaat is de afgewerkte kant van de plaat"]
[]
[null,"Disclaimer bestelformulier gevelplaten:"]
[null,"\"De goederen worden geleverd overeenkomstig de bestelling zoals ingegeven door de klant. De klant gebruikt dit bestelformulier volledig op eigen verantwoordelijkheid en zal als enige instaan voor de correctheid van de gegevens die hij verstrekt. SVK nv kan niet verantwoordelijk worden geacht voor fouten in afmetingen, oppervlakte, aantal platen, plaatmerk, richting schuurlijnen, perforatiepatroon of andere gegevens ten gevolge van het foutief opmeten of het foutief doorgeven ervan door de klant. SVK nv kan evenmin aansprakelijk worden gesteld indien de bestelling niet, onvolledig of incorrect aankomt bij SVK nv ten gevolge van technische problemen. Ten slotte wijst SVK nv elke aansprakelijkheid af voor welke schade dan ook voorvloeiend uit het gebruik van dit bestelformulier. SVK nv behoudt zich het recht voor de bestelling niet te aanvaarden in geval van twijfel of onduidelijkheid. Het plaatsen van een bestelling d.m.v. onderhavig bestelformulier heeft de onvoorwaardelijke aanvaarding van deze clausule tot gevolg.\" "]

{"sheet":"Hand Touch NL","index":37,"n_rows":37,"n_cols":15,"rows_kept":37,"cut":false,"hidden":true,"merged":[[29,4,31,7],[29,14,31,17],[2,3,10,3],[2,13,10,13],[12,4,13,7],[12,14,13,17],[17,13,27,13],[18,3,28,3]]}
[]
[]
[null,null,null,"Richting P ≤ 1220 mm",null,null,null,null,null,null,null,null,null,"Richting S ≤ 3050 mm"]
[]
[]
[null,"HANDLEIDING BESTELFORMULIER \"SVK NIET GEPERFOREERDE COLORMAT TOUCH PLATEN\" "]
[]
[null,"Lees de volledige handleiding door vooraleer uw bestelformulier in te vullen. Na het lezen van de handleiding en disclaimer klikt u \"Gelezen en aanvaard\" om door te gaan met het invullen van de gegevens."]
[]
[null,"Het bestelformulier \"SVK niet geperforeerde Colormat Touch platen\" is bedoeld als hulpmiddel bij het bestellen van verzaagde rechthoekige Colormat Touch platen zonder perforaties. Alle platen dienen van  hetzelfde kleur te zijn. Voor verschillende kleuren dient telkens een nieuw tabblad ingevuld te worden. Klik hiervoor op \"Andere Kleur\"."]
[]
[null,"Voor de bewerking en plaatsing van SVK Colormat Touch platen verwijzen wij naar de SVK Technische Gegevens Colormat Touch. Raadpleeg altijd de meest recente versie, deze vindt u op onze website terug: www.svk.be."]
[null,null,null,null,"Fig. 1 Richting S ≤ 3050 mm",null,null,null,null,null,null,null,null,null,"Fig. 2 Richting P ≤ 1220 mm"]
[null,"Bij het ingeven van uw bestelling gaat u als volgt te werk:"]
[]
[null,"Stap 1:"]
[null,"Na het lezen van de handleiding klikt u onderaan op \"Gelezen en aanvaard\". U wordt automatisch naar het volgende tabblad doorverwezen. U kunt steeds naar de handleiding terug verwezen worden door op de knop \"Handleiding\" te klikken."]
[null,null,null,null,null,null,null,null,null,null,null,null,null,"Richting S = 3050 mm"]
[null,"Stap 2:",null,"Richting P = 1220 mm"]
[null,"Vul de projectgegevens in en de gewenste plaat en kleur. Per tabblad kunt u verschillende formaten ingeven maar kan u slechts 1 enkele kleur kiezen. Voor verschillende kleuren dient telkens een nieuw tabblad ingevuld te worden. Klik hiervoor op \"Andere Kleur\".  Het tabblad \"Kleuren\" bevat een overzicht van de kleurengamma, u kunt deze ten allen tijde raadplegen. Het nummer van de kleurencode is verplicht in te vullen, de benaming mag ter controle ingevuld worden maar is geen verplichting."]
[]
[null,"Stap 3:"]
[null,"Gelieve a.u.b. te noteren dat de maximale afmeting bedragt 3050mmx1220mm. De Colormat Touch platen zijn niet richtingsgebonden, ze kunnen geplaatst worden in de langse of dwarse richting van de plaat, naar voorkeur. "]
[null,"Situatie 1: Indien één van de twee afmetingen van de plaat groter is dan 1220mm, dient de langste afmeting als Richting S genomen te worden. De andere afmeting, altijd ≤1220mm, wordt dan Richting P. "]
[null,"Situatie 2: Indien geen van beide afmetingen van de plaat 1220mm overschrijdt, dan bent u vrij in de keuze van de assen."]
[]
[null,"Geef vervolgens alle gegevens in"]
[null,"* afmetingen van Richting S en Richting P afhankelijk van de bijhorende as"]
[null,"* aantal stuks van deze plaat"]
[null,"*Om een rij gegevens te verwijderen druk op \"Verwijder Rij\" en geef in de gewenste rij",null,null,"Richting S = 3050 mm\n\nFig. a Maximale afmetingen horizontaal",null,null,null,null,null,null,null,null,null,"Richting P = 1220 mm\n\nFig. b Maximale afmetingen verticaal"]
[null,"Druk op \"Controleer\" om uw data te controleren"]
[]
[null,"aandacht: "]
[null,"* het aanzicht van de plaat is de afgewerkte kant van de plaat"]
[]
[null,"Disclaimer bestelformulier gevelplaten:\n"]
[null,"\"De goederen worden geleverd overeenkomstig de bestelling zoals ingegeven door de klant. De klant gebruikt dit bestelformulier volledig op eigen verantwoordelijkheid en zal als enige instaan voor de correctheid van de gegevens die hij verstrekt. SVK nv kan niet verantwoordelijk worden geacht voor fouten in afmetingen, oppervlakte, aantal platen, plaatmerk, richting schuurlijnen, perforatiepatroon of andere gegevens ten gevolge van het foutief opmeten of het foutief doorgeven ervan door de klant. SVK nv kan evenmin aansprakelijk worden gesteld indien de bestelling niet, onvolledig of incorrect aankomt bij SVK nv ten gevolge van technische problemen. Ten slotte wijst SVK nv elke aansprakelijkheid af voor welke schade dan ook voorvloeiend uit het gebruik van dit bestelformulier. SVK nv behoudt zich het recht voor de bestelling niet te aanvaarden in geval van twijfel of onduidelijkheid. Het plaatsen van een bestelling d.m.v. onderhavig bestelformulier heeft de onvoorwaardelijke aanvaarding van deze clausule tot gevolg.\" "]

{"sheet":"Hand PuroPlus FR","index":38,"n_rows":36,"n_cols":15,"rows_kept":36,"cut":false,"hidden":true,"merged":[[36,4,36,7],[36,14,36,17],[9,3,17,3],[9,13,17,13],[19,4,20,7],[19,14,20,17],[23,3,32,3],[22,13,32,13],[33,4,35,10],[33,14,35,18]]}
[]
[]
[]
[]
[]
[null,"MODE D'EMPLOI FORMULAIRE DE COMMANDE « SVK PLAQUES PURE PLUS NON PERFORÉES » "]
[]
[null,"Lisez l'intégralité du mode d'emploi avant de remplir votre formulaire de commande. Après avoir lu le mode d'emploi et la clause de non-responsabilité, cliquez sur « Lu et approuvé » pour procéder à la saisie de vos données."]
[]
[null,"Le formulaire de commande « SVK plaques Puro Plus non perforées » doit servir d'aide à la commande de plaques Puro Plus rectangulaires sciées et non perforées. ",null,"Sens P ≤ 1220 mm",null,null,null,null,null,null,null,null,null,"Sens de ponçage S ≤ 3070 mm"]
[]
[null,"Pour le traitement et l'installation des plaques Puro Plus de SVK, nous renvoyons au document « SVK Données techniques Puro Plus». Consultez toujours la version la plus récente, que vous trouverez sur notre site web http://www.svk.be/."]
[]
[null,"Lors de la saisie de votre commande, procédez comme suit:"]
[]
[null,"Étape n° 1 :"]
[null,"Après avoir lu le mode d'emploi, cliquez ci-dessous sur « Lu et approuvé ». Vous êtes automatiquement redirigé(e) vers l'onglet suivant. Vous pouvez revenir à tout moment au mode d'emploi en cliquant sur « Mode d'emploi »."]
[]
[null,"Étape n° 2 :"]
[null,"Renseignez les données du projet. Chaque formulaire de commande vous permet de renseigner plusieurs formats.",null,null,"Fig. 1 Sens de ponçage S ≤ 3070 mm",null,null,null,null,null,null,null,null,null,"Fig. 2 Sens P ≤ 1220 mm"]
[]
[null,"Étape n° 3 :"]
[null,"Veuillez noter que, pour des plaques pleines de 3070 mm x 1220 mm, le sens de ponçage est toujours parallèle à la longueur, voir fig. a et fig. b. Tous les autres formats, de dimensions inférieures, s'obtiennent par sciage d'une plaque pleine. Ce faisant, il peut arriver (par exemple lorsque les deux dimensions sont ≤ 1 220 mm) que le sens de ponçage ne corresponde plus à la longueur. Il est donc impératif de baser le choix de la figure sur le sens de ponçage et non sur la dimension la plus longue de la plaque.",null,null,null,null,null,null,null,null,null,null,null,"Sens de ponçage S = 3070 mm"]
[null,"En fonction du sens de ponçage de la plaque, vous devrez choisir la Fig. 1 ou la Fig. 2. Les fig. a et fig. b ne sont fournies qu'à titre d'illustration du sens de ponçage des plaques pleines.",null,"Sens P = 1220 mm"]
[]
[null,"Renseignez ensuite toutes les données"]
[null,"* dimensions du Sens de ponçage S et du Sens P en fonction de la figure correspondante"]
[null,"* nombre d'unités de cette plaque"]
[null,"*Appuyez sur \"Côntroler\" pour vérifier vos données "]
[null,"*Pour supprimer une ligne de données, appuyez sur \"Supprimer Ligne\" et entrez dans la ligne souhaitée"]
[]
[null,"Attention : "]
[null,"* la figure représente le côté fini de la plaque"]
[null,null,null,null,"\n\nSens de ponçage S = 3070 mm\n\nFig. a Dimensions maximale horizontale",null,null,null,null,null,null,null,null,null,"\n\nSens P = 1220 mm\n\nFig. b Dimensions maximale verticale"]
[null,"Clause de non-responsabilité formulaire de commande panneaux de façade :"]
[null,"« Les biens sont livrés conformément à la commande telle qu'elle a été saisie par le client. Le client utilise le présent formulaire de commande sous sa propre responsabilité et sera seul responsable de l'exactitude des données fournies. SVK S.A. ne peut être tenue pour responsable des erreurs dans les dimensions, la superficie, le nombre de plaques, le sens des lignes de ponçage, le motif de perforation ou toute autre donnée, résultant d'une erreur de mesure ou d'une communication incorrecte par le client. SVK S.A. ne peut pas non plus être tenue pour responsable de tout problème technique qui causerait la non-livraison ou la livraison incomplète ou incorrecte de la commande à SVK S.A. Enfin, SVK S.A. décline toute responsabilité pour tout dommage, de quelque nature que ce soit, occasionné par l'utilisation du présent formulaire de commande. SVK S.A. se réserve le droit de refuser la commande en cas de doute ou d'ambiguïté. La passation d'une commande par le biais du présent formulaire implique l'acceptation sans réserve de cette clause. »"]

{"sheet":"Hand DecoboardClassic FR","index":39,"n_rows":36,"n_cols":15,"rows_kept":36,"cut":false,"hidden":true,"merged":[[29,14,31,17],[29,4,31,7],[2,3,10,3],[2,13,10,13],[12,4,13,7],[12,14,13,17],[17,13,27,13],[18,3,28,3]]}
[]
[]
[null,null,null,"Sens P ≤ 1220 mm",null,null,null,null,null,null,null,null,null,"Sens S ≤ 3070 mm"]
[]
[]
[null,"MODE D'EMPLOI FORMULAIRE DE COMMANDE « SVK PLAQUES DECOBOARD CLASSIC NON PERFORÉES » "]
[]
[null,"Lisez l'intégralité du mode d'emploi avant de remplir votre formulaire de commande. Après avoir lu le mode d'emploi et la clause de non-responsabilité, cliquez sur « Lu et approuvé » pour procéder à la saisie de vos données."]
[]
[null,"Le formulaire de commande « SVK plaques Decoboard Classic non perforées » doit servir d'aide à la commande de plaques Decoboard Classic rectangulaires sciées et non perforées. Toutes les plaques doivent être de la même couleur. Il convient de remplir un nouveau onglet pour chaque nouveau couleur. Cliquez sur \"Autre Couleur\" pour un nouveau onglet."]
[]
[null,"Pour le traitement et l'installation des plaques Decoboard Classic de SVK, nous renvoyons au document « SVK Données techniques Decoboard Classic». Consultez toujours la version la plus récente, que vous trouverez sur notre site web http://www.svk.be/."]
[null,null,null,null,"Sens S ≤ 3070 mm",null,null,null,null,null,null,null,null,null,"Sens P ≤ 1220 mm"]
[null,"Lors de la saisie de votre commande, procédez comme suit:"]
[]
[null,"Étape n° 1 :"]
[null,"Après avoir lu le mode d'emploi, cliquez ci-dessous sur « Lu et approuvé ». Vous êtes automatiquement redirigé(e) vers l'onglet suivant. Vous pouvez revenir à tout moment au mode d'emploi en cliquant sur « Mode d'emploi »."]
[null,null,null,null,null,null,null,null,null,null,null,null,null,"Sens S = 3070 mm"]
[null,"Étape n° 2 :",null,"Sens P = 1220 mm"]
[null,"Renseignez les données du projet, ainsi que la plaque et la couleur souhaités. Chaque formulaire de commande vous permet de renseigner plusieurs formats, mais vous ne pouvez choisir qu'une seule couleur. Il convient de remplir un nouveau onglet pour chaque nouveau couleur. Cliquez sur \"Autre Couleur\" pour un nouveau onglet. L'onglet « Couleurs », consultable à tout moment, offre un aperçu des couleurs standard disponibles. Le numéro du code couleur est un champ obligatoire, l'intitulé est un champ facultatif qui peut être rempli à titre de contrôle."]
[null,"Étape n° 3 :"]
[null,"Veuillez noter que les dimensions maximales sont 3070mmx1220mm. Les plaques Decoboard Classic n’ont pas de sens de pose, elles peuvent être posées suivant le sens de la longueur ou de la largeur dans le même plan, suivant la préférence."]
[null,"Situation 1: Si l'une des deux dimensions de la plaque est supérieure à 1220 mm, il convient de choisir le côté le plus long comme « Sens S ». L'autre côté, toujours ≤ 1220 mm, devient alors le Sens P."]
[null,"Situation 2 : Si aucune des deux dimensions de la plaque n'est supérieure à 1 220 mm, vous avez le libre choix des axes."]
[]
[null,"Renseignez ensuite toutes les données"]
[null,"* dimensions du Sens S et du Sens P en fonction de la figure correspondante"]
[null,"* nombre d'unités de cette plaque"]
[null,"*Appuyez sur \"Côntroler\" pour vérifier vos données "]
[null,"*Pour supprimer une ligne de données, appuyez sur \"Supprimer Ligne\" et entrez dans la ligne souhaitée",null,null,"Sens S = 3070 mm\n\nFig. a Dimensions maximale horizontale",null,null,null,null,null,null,null,null,null,"Sens P = 1220 mm\n\nFig. b Dimensions maximale verticale"]
[]
[null,"Attention : "]
[null,"* la figure représente le côté fini de la plaque"]
[]
[null,"Clause de non-responsabilité formulaire de commande panneaux de façade :"]
[null,"« Les biens sont livrés conformément à la commande telle qu'elle a été saisie par le client. Le client utilise le présent formulaire de commande sous sa propre responsabilité et sera seul responsable de l'exactitude des données fournies. SVK S.A. ne peut être tenue pour responsable des erreurs dans les dimensions, la superficie, le nombre de plaques, le sens des lignes de ponçage, le motif de perforation ou toute autre donnée, résultant d'une erreur de mesure ou d'une communication incorrecte par le client. SVK S.A. ne peut pas non plus être tenue pour responsable de tout problème technique qui causerait la non-livraison ou la livraison incomplète ou incorrecte de la commande à SVK S.A. Enfin, SVK S.A. décline toute responsabilité pour tout dommage, de quelque nature que ce soit, occasionné par l'utilisation du présent formulaire de commande. SVK S.A. se réserve le droit de refuser la commande en cas de doute ou d'ambiguïté. La passation d'une commande par le biais du présent formulaire implique l'acceptation sans réserve de cette clause. »"]

{"sheet":"Hand DecoboardPure FR","index":40,"n_rows":36,"n_cols":15,"rows_kept":36,"cut":false,"hidden":true,"merged":[[29,4,31,7],[29,14,31,17],[2,3,10,3],[2,13,10,13],[12,4,13,7],[12,14,13,17],[17,13,27,13],[18,3,28,3]]}
[]
[]
[null,null,null,"Sens P ≤ 1220 mm",null,null,null,null,null,null,null,null,null,"Sens de ponçage S ≤ 3070 mm"]
[]
[]
[null,"MODE D'EMPLOI FORMULAIRE DE COMMANDE « SVK PLAQUES DECOBOARD PURE NON PERFORÉES » "]
[]
[null,"Lisez l'intégralité du mode d'emploi avant de remplir votre formulaire de commande. Après avoir lu le mode d'emploi et la clause de non-responsabilité, cliquez sur « Lu et approuvé » pour procéder à la saisie de vos données."]
[]
[null,"Le formulaire de commande « SVK plaques Decoboard Pure non perforées » doit servir d'aide à la commande de plaques Decoboard Pure rectangulaires sciées et non perforées. Toutes les plaques doivent être de la même couleur. Il convient de remplir un nouveau onglet pour chaque nouveau type/couleur. Cliquez sur \"Autre Type/Couleur\" pour un nouveau onglet."]
[]
[null,"Pour le traitement et l'installation des plaques Decoboard Pure de SVK, nous renvoyons au document « SVK Données techniques ». Consultez toujours la version la plus récente, que vous trouverez sur notre site web http://www.svk.be/."]
[null,null,null,null,"Fig. 1 Sens de ponçage S ≤ 3070 mm",null,null,null,null,null,null,null,null,null,"Fig. 2 Sens P ≤ 1220 mm"]
[null,"Lors de la saisie de votre commande, procédez comme suit:"]
[]
[null,"Étape n° 1 :"]
[null,"Après avoir lu le mode d'emploi, cliquez ci-dessous sur « Lu et approuvé ». Vous êtes automatiquement redirigé(e) vers l'onglet suivant. Vous pouvez revenir à tout moment au mode d'emploi en cliquant sur « Mode d'emploi »."]
[null,null,null,null,null,null,null,null,null,null,null,null,null,"Sens de ponçage S = 3070 mm"]
[null,"Étape n° 2 :",null,"Sens P = 1220 mm"]
[null,"Renseignez les données du projet, ainsi que la plaque, le type et la couleur souhaités. Chaque formulaire de commande vous permet de renseigner plusieurs formats, mais vous ne pouvez choisir qu'un seul type et une seule couleur. Il convient de remplir un nouveau onglet pour chaque nouveau type/couleur. Cliquez sur \"Autre Type/Couleur\" pour un nouveau onglet. L'onglet « Couleurs », consultable à tout moment, offre un aperçu des couleurs standard disponibles. Le numéro du code couleur est un champ obligatoire, l'intitulé est un champ facultatif qui peut être rempli à titre de contrôle."]
[]
[null,"Étape n° 3 :"]
[null,"Veuillez noter que, pour des plaques pleines de 3070 mm x 1220 mm, le sens de ponçage est toujours parallèle à la longueur, voir fig. a et fig. b. Tous les autres formats, de dimensions inférieures, s'obtiennent par sciage d'une plaque pleine. Ce faisant, il peut arriver (par exemple lorsque les deux dimensions sont ≤ 1 220 mm) que le sens de ponçage ne corresponde plus à la longueur. Il est donc impératif de baser le choix de la figure sur le sens de ponçage et non sur la dimension la plus longue de la plaque."]
[null,"En fonction du sens de ponçage de la plaque, vous devrez choisir la Fig. 1 ou la Fig. 2. Les Fig. a et Fig. b ne sont fournies qu'à titre d'illustration du sens de ponçage des plaques pleines."]
[]
[null,"Renseignez ensuite toutes les données"]
[null,"* dimensions du Sens de ponçage S et du Sens P en fonction de la figure correspondante"]
[null,"* nombre d'unités de cette plaque"]
[null,"*Appuyez sur \"Côntroler\" pour vérifier vos données "]
[null,"*Pour supprimer une ligne de données, appuyez sur \"Supprimer Ligne\" et entrez dans la ligne souhaitée",null,null,"Sens de ponçage S = 3070 mm\n\nFig. a Dimensions maximale horizontale",null,null,null,null,null,null,null,null,null,"Sens P = 1220 mm\n\nFig. b Dimensions maximale verticale"]
[]
[null,"Attention : "]
[null,"* la figure représente le côté fini de la plaque"]
[]
[null,"Clause de non-responsabilité formulaire de commande panneaux de façade :"]
[null,"« Les biens sont livrés conformément à la commande telle qu'elle a été saisie par le client. Le client utilise le présent formulaire de commande sous sa propre responsabilité et sera seul responsable de l'exactitude des données fournies. SVK S.A. ne peut être tenue pour responsable des erreurs dans les dimensions, la superficie, le nombre de plaques, le sens des lignes de ponçage, le motif de perforation ou toute autre donnée, résultant d'une erreur de mesure ou d'une communication incorrecte par le client. SVK S.A. ne peut pas non plus être tenue pour responsable de tout problème technique qui causerait la non-livraison ou la livraison incomplète ou incorrecte de la commande à SVK S.A. Enfin, SVK S.A. décline toute responsabilité pour tout dommage, de quelque nature que ce soit, occasionné par l'utilisation du présent formulaire de commande. SVK S.A. se réserve le droit de refuser la commande en cas de doute ou d'ambiguïté. La passation d'une commande par le biais du présent formulaire implique l'acceptation sans réserve de cette clause. »"]

{"sheet":"Hand Ornimat FR","index":41,"n_rows":36,"n_cols":15,"rows_kept":36,"cut":false,"hidden":true,"merged":[[29,4,31,7],[29,14,31,17],[2,3,10,3],[2,13,10,13],[12,4,13,7],[12,14,13,17],[17,13,27,13],[18,3,28,3]]}
[]
[]
[null,null,null,"Sens P ≤ 1220 mm",null,null,null,null,null,null,null,null,null,"Sens S ≤ 3070 mm"]
[]
[]
[null,"MODE D'EMPLOI FORMULAIRE DE COMMANDE « SVK PLAQUES ORNIMAT NON PERFORÉES » "]
[]
[null,"Lisez l'intégralité du mode d'emploi avant de remplir votre formulaire de commande. Après avoir lu le mode d'emploi et la clause de non-responsabilité, cliquez sur « Lu et approuvé » pour procéder à la saisie de vos données."]
[]
[null,"Le formulaire de commande « SVK plaques Ornimat non perforées » doit servir d'aide à la commande de plaques Ornimat rectangulaires sciées et non perforées. Toutes les plaques doivent être de la même couleur. Il convient de remplir un nouveau onglet pour chaque nouveau couleur. Cliquez sur \"Autre Couleur\" pour un nouveau onglet."]
[]
[null,"Pour le traitement et l'installation des plaques Ornimat de SVK, nous renvoyons au document « SVK Données techniques Ornimat». Consultez toujours la version la plus récente, que vous trouverez sur notre site web http://www.svk.be/."]
[null,null,null,null,"Fig. 1 Sens S ≤ 3070 mm",null,null,null,null,null,null,null,null,null,"Fig. 2 Sens P ≤ 1220 mm"]
[null,"Lors de la saisie de votre commande, procédez comme suit:"]
[]
[null,"Étape n° 1 :"]
[null,"Après avoir lu le mode d'emploi, cliquez ci-dessous sur « Lu et approuvé ». Vous êtes automatiquement redirigé(e) vers l'onglet suivant. Vous pouvez revenir à tout moment au mode d'emploi en cliquant sur « Mode d'emploi »."]
[null,null,null,null,null,null,null,null,null,null,null,null,null,"Sens S = 3070 mm"]
[null,"Étape n° 2 :",null,"Sens P = 1220 mm"]
[null,"Renseignez les données du projet, ainsi que la plaque et la couleur souhaités. Chaque formulaire de commande vous permet de renseigner plusieurs formats, mais vous ne pouvez choisir qu'une seule couleur. Il convient de remplir un nouveau onglet pour chaque nouveau couleur. Cliquez sur \"Autre Couleur\" pour un nouveau onglet. L'onglet « Couleurs », consultable à tout moment, offre un aperçu des couleurs standard disponibles. Le numéro du code couleur est un champ obligatoire, l'intitulé est un champ facultatif qui peut être rempli à titre de contrôle."]
[null,"Étape n° 3 :"]
[null,"Veuillez noter que les dimensions maximales sont 3070mmx1220mm. Les plaques Ornimat n’ont pas de sens de pose, elles peuvent être posées suivant le sens de la longueur ou de la largeur dans le même plan, suivant la préférence."]
[null,"Situation 1: Si l'une des deux dimensions de la plaque est supérieure à 1220 mm, il convient de choisir le côté le plus long comme « Sens S ». L'autre côté, toujours ≤ 1220 mm, devient alors le Sens P."]
[null,"Situation 2 : Si aucune des deux dimensions de la plaque n'est supérieure à 1 220 mm, vous avez le libre choix des axes."]
[]
[null,"Renseignez ensuite toutes les données"]
[null,"* dimensions du Sens S et du Sens P en fonction de la figure correspondante"]
[null,"* nombre d'unités de cette plaque"]
[null,"*Appuyez sur \"Côntroler\" pour vérifier vos données "]
[null,"*Pour supprimer une ligne de données, appuyez sur \"Supprimer Ligne\" et entrez dans la ligne souhaitée",null,null,"Sens S = 3070 mm\n\nFig. a Dimensions maximale horizontale",null,null,null,null,null,null,null,null,null,"Sens P = 1220 mm\n\nFig. b Dimensions maximale verticale"]
[]
[null,"Attention : "]
[null,"* la figure représente le côté fini de la plaque"]
[]
[null,"Clause de non-responsabilité formulaire de commande panneaux de façade :"]
[null,"« Les biens sont livrés conformément à la commande telle qu'elle a été saisie par le client. Le client utilise le présent formulaire de commande sous sa propre responsabilité et sera seul responsable de l'exactitude des données fournies. SVK S.A. ne peut être tenue pour responsable des erreurs dans les dimensions, la superficie, le nombre de plaques, le sens des lignes de ponçage, le motif de perforation ou toute autre donnée, résultant d'une erreur de mesure ou d'une communication incorrecte par le client. SVK S.A. ne peut pas non plus être tenue pour responsable de tout problème technique qui causerait la non-livraison ou la livraison incomplète ou incorrecte de la commande à SVK S.A. Enfin, SVK S.A. décline toute responsabilité pour tout dommage, de quelque nature que ce soit, occasionné par l'utilisation du présent formulaire de commande. SVK S.A. se réserve le droit de refuser la commande en cas de doute ou d'ambiguïté. La passation d'une commande par le biais du présent formulaire implique l'acceptation sans réserve de cette clause. »"]

{"sheet":"Hand Colormat FR","index":42,"n_rows":36,"n_cols":15,"rows_kept":36,"cut":false,"hidden":true,"merged":[[29,4,31,7],[29,14,31,17],[2,3,10,3],[2,13,10,13],[12,4,13,7],[12,14,13,17],[17,13,27,13],[18,3,28,3]]}
[]
[]
[null,null,null,"Sens P ≤ 1220 mm",null,null,null,null,null,null,null,null,null,"Sens de ponçage S ≤ 3050 mm"]
[]
[]
[null,"MODE D'EMPLOI FORMULAIRE DE COMMANDE « SVK PLAQUES COLORMAT NON PERFORÉES » "]
[]
[null,"Lisez l'intégralité du mode d'emploi avant de remplir votre formulaire de commande. Après avoir lu le mode d'emploi et la clause de non-responsabilité, cliquez sur « Lu et approuvé » pour procéder à la saisie de vos données."]
[]
[null,"Le formulaire de commande « SVK plaques Colormat non perforées » doit servir d'aide à la commande de plaques Colormat rectangulaires sciées et non perforées. Toutes les plaques doivent être du même type (Classic, Scripto) et de la même couleur. Il convient de remplir un nouveau onglet pour chaque nouveau type/couleur. Cliquez sur \"Autre Type/Couleur\" pour un nouveau onglet."]
[]
[null,"Pour le traitement et l'installation des plaques Colormat de SVK, nous renvoyons au document « SVK Données techniques Colormat ». Consultez toujours la version la plus récente, que vous trouverez sur notre site web http://www.svk.be/."]
[null,null,null,null,"Fig. 1 Sens de ponçage S ≤ 3050 mm",null,null,null,null,null,null,null,null,null,"Fig. 2 Sens P ≤ 1220 mm"]
[null,"Lors de la saisie de votre commande, procédez comme suit:"]
[]
[null,"Étape n° 1 :"]
[null,"Après avoir lu le mode d'emploi, cliquez ci-dessous sur « Lu et approuvé ». Vous êtes automatiquement redirigé(e) vers l'onglet suivant. Vous pouvez revenir à tout moment au mode d'emploi en cliquant sur « Mode d'emploi »."]
[null,null,null,null,null,null,null,null,null,null,null,null,null,"Sens de ponçage S = 3050 mm"]
[null,"Étape n° 2 :",null,"Sens P = 1220 mm"]
[null,"Renseignez les données du projet, ainsi que la plaque, le type et la couleur souhaités. Chaque formulaire de commande vous permet de renseigner plusieurs formats, mais vous ne pouvez choisir qu'un seul type et une seule couleur. Il convient de remplir un nouveau onglet pour chaque nouveau type/couleur. Cliquez sur \"Autre Type/Couleur\" pour un nouveau onglet. L'onglet « Couleurs », consultable à tout moment, offre un aperçu des couleurs standard disponibles. Le numéro du code couleur est un champ obligatoire, l'intitulé est un champ facultatif qui peut être rempli à titre de contrôle."]
[]
[null,"Étape n° 3 :"]
[null,"Veuillez noter que, pour des plaques pleines de 3050 mm x 1220 mm, le sens de ponçage est toujours parallèle à la longueur, voir fig. a et fig. b. Tous les autres formats, de dimensions inférieures, s'obtiennent par sciage d'une plaque pleine. Ce faisant, il peut arriver (par exemple lorsque les deux dimensions sont ≤ 1 220 mm) que le sens de ponçage ne corresponde plus à la longueur. Il est donc impératif de baser le choix de la figure sur le sens de ponçage et non sur la dimension la plus longue de la plaque."]
[null,"En fonction du sens de ponçage de la plaque, vous devrez choisir la Fig. 1 ou la Fig. 2. Les Fig. a et Fig. b ne sont fournies qu'à titre d'illustration du sens de ponçage des plaques pleines."]
[]
[null,"Renseignez ensuite toutes les données"]
[null,"* dimensions du Sens de ponçage S et du Sens P en fonction de la figure correspondante"]
[null,"* nombre d'unités de cette plaque"]
[null,"*Appuyez sur \"Côntroler\" pour vérifier vos données "]
[null,"*Pour supprimer une ligne de données, appuyez sur \"Supprimer Ligne\" et entrez dans la ligne souhaitée",null,null,"Sens de ponçage S = 3050 mm\n\nFig. a Dimensions maximale horizontale",null,null,null,null,null,null,null,null,null,"Sens P = 1220 mm\n\nFig. b Dimensions maximale verticale"]
[]
[null,"Attention : "]
[null,"* la figure représente le côté fini de la plaque"]
[]
[null,"Clause de non-responsabilité formulaire de commande panneaux de façade :"]
[null,"« Les biens sont livrés conformément à la commande telle qu'elle a été saisie par le client. Le client utilise le présent formulaire de commande sous sa propre responsabilité et sera seul responsable de l'exactitude des données fournies. SVK S.A. ne peut être tenue pour responsable des erreurs dans les dimensions, la superficie, le nombre de plaques, le sens des lignes de ponçage, le motif de perforation ou toute autre donnée, résultant d'une erreur de mesure ou d'une communication incorrecte par le client. SVK S.A. ne peut pas non plus être tenue pour responsable de tout problème technique qui causerait la non-livraison ou la livraison incomplète ou incorrecte de la commande à SVK S.A. Enfin, SVK S.A. décline toute responsabilité pour tout dommage, de quelque nature que ce soit, occasionné par l'utilisation du présent formulaire de commande. SVK S.A. se réserve le droit de refuser la commande en cas de doute ou d'ambiguïté. La passation d'une commande par le biais du présent formulaire implique l'acceptation sans réserve de cette clause. »"]

{"sheet":"Hand ColorPlus FR","index":43,"n_rows":36,"n_cols":15,"rows_kept":36,"cut":false,"hidden":true,"merged":[[29,4,31,7],[29,14,31,17],[2,3,10,3],[2,13,10,13],[12,4,13,7],[12,14,13,17],[17,13,27,13],[18,3,28,3]]}
[]
[]
[null,null,null,"Sens P ≤ 1220 mm",null,null,null,null,null,null,null,null,null,"Sens de ponçage S ≤ 3050 mm"]
[]
[]
[null,"MODE D'EMPLOI FORMULAIRE DE COMMANDE « SVK PLAQUES COLOR PLUS NON PERFORÉES » "]
[]
[null,"Lisez l'intégralité du mode d'emploi avant de remplir votre formulaire de commande. Après avoir lu le mode d'emploi et la clause de non-responsabilité, cliquez sur « Lu et approuvé » pour procéder à la saisie de vos données."]
[]
[null,"Le formulaire de commande « SVK plaques Color Plus non perforées » doit servir d'aide à la commande de plaques Color Plus rectangulaires sciées et non perforées. Toutes les plaques doivent être de la même couleur. Il convient de remplir un nouveau onglet pour chaque nouveau type/couleur. Cliquez sur \"Autre Type/Couleur\" pour un nouveau onglet."]
[]
[null,"Pour le traitement et l'installation des plaques Color Plus de SVK, nous renvoyons au document « SVK Données techniques Color Plus ». Consultez toujours la version la plus récente, que vous trouverez sur notre site web http://www.svk.be/."]
[null,null,null,null,"Fig. 1 Sens de ponçage S ≤ 3050 mm",null,null,null,null,null,null,null,null,null,"Fig. 2 Sens P ≤ 1220 mm"]
[null,"Lors de la saisie de votre commande, procédez comme suit:"]
[]
[null,"Étape n° 1 :"]
[null,"Après avoir lu le mode d'emploi, cliquez ci-dessous sur « Lu et approuvé ». Vous êtes automatiquement redirigé(e) vers l'onglet suivant. Vous pouvez revenir à tout moment au mode d'emploi en cliquant sur « Mode d'emploi »."]
[null,null,null,null,null,null,null,null,null,null,null,null,null,"Sens de ponçage S = 3050 mm"]
[null,"Étape n° 2 :",null,"Sens P = 1220 mm"]
[null,"Renseignez les données du projet, ainsi que la plaque, le type et la couleur souhaités. Chaque formulaire de commande vous permet de renseigner plusieurs formats, mais vous ne pouvez choisir qu'un seul type et une seule couleur. Il convient de remplir un nouveau onglet pour chaque nouveau type/couleur. Cliquez sur \"Autre Type/Couleur\" pour un nouveau onglet. L'onglet « Couleurs », consultable à tout moment, offre un aperçu des couleurs standard disponibles. Le numéro du code couleur est un champ obligatoire, l'intitulé est un champ facultatif qui peut être rempli à titre de contrôle."]
[]
[null,"Étape n° 3 :"]
[null,"Veuillez noter que, pour des plaques pleines de 3050 mm x 1220 mm, le sens de ponçage est toujours parallèle à la longueur, voir fig. a et fig. b. Tous les autres formats, de dimensions inférieures, s'obtiennent par sciage d'une plaque pleine. Ce faisant, il peut arriver (par exemple lorsque les deux dimensions sont ≤ 1 220 mm) que le sens de ponçage ne corresponde plus à la longueur. Il est donc impératif de baser le choix de la figure sur le sens de ponçage et non sur la dimension la plus longue de la plaque."]
[null,"En fonction du sens de ponçage de la plaque, vous devrez choisir la Fig. 1 ou la Fig. 2. Les Fig. a et Fig. b ne sont fournies qu'à titre d'illustration du sens de ponçage des plaques pleines."]
[]
[null,"Renseignez ensuite toutes les données"]
[null,"* dimensions du Sens de ponçage S et du Sens P en fonction de la figure correspondante"]
[null,"* nombre d'unités de cette plaque"]
[null,"*Appuyez sur \"Côntroler\" pour vérifier vos données "]
[null,"*Pour supprimer une ligne de données, appuyez sur \"Supprimer Ligne\" et entrez dans la ligne souhaitée",null,null,"Sens de ponçage S = 3050 mm\n\nFig. a Dimensions maximale horizontale",null,null,null,null,null,null,null,null,null,"Sens P = 1220 mm\n\nFig. b Dimensions maximale verticale"]
[]
[null,"Attention : "]
[null,"* la figure représente le côté fini de la plaque"]
[]
[null,"Clause de non-responsabilité formulaire de commande panneaux de façade :"]
[null,"« Les biens sont livrés conformément à la commande telle qu'elle a été saisie par le client. Le client utilise le présent formulaire de commande sous sa propre responsabilité et sera seul responsable de l'exactitude des données fournies. SVK S.A. ne peut être tenue pour responsable des erreurs dans les dimensions, la superficie, le nombre de plaques, le sens des lignes de ponçage, le motif de perforation ou toute autre donnée, résultant d'une erreur de mesure ou d'une communication incorrecte par le client. SVK S.A. ne peut pas non plus être tenue pour responsable de tout problème technique qui causerait la non-livraison ou la livraison incomplète ou incorrecte de la commande à SVK S.A. Enfin, SVK S.A. décline toute responsabilité pour tout dommage, de quelque nature que ce soit, occasionné par l'utilisation du présent formulaire de commande. SVK S.A. se réserve le droit de refuser la commande en cas de doute ou d'ambiguïté. La passation d'une commande par le biais du présent formulaire implique l'acceptation sans réserve de cette clause. »"]

{"sheet":"Hand Touch FR","index":44,"n_rows":36,"n_cols":15,"rows_kept":36,"cut":false,"hidden":true,"merged":[[29,4,31,7],[29,14,31,17],[2,3,10,3],[2,13,10,13],[12,4,13,7],[12,14,13,17],[17,13,27,13],[18,3,28,3]]}
[]
[]
[null,null,null,"Sens P ≤ 1220 mm",null,null,null,null,null,null,null,null,null,"Sens S ≤ 3050 mm"]
[]
[]
[null,"MODE D'EMPLOI FORMULAIRE DE COMMANDE « SVK PLAQUES COLORMAT TOUCH NON PERFORÉES » "]
[]
[null,"Lisez l'intégralité du mode d'emploi avant de remplir votre formulaire de commande. Après avoir lu le mode d'emploi et la clause de non-responsabilité, cliquez sur « Lu et approuvé » pour procéder à la saisie de vos données."]
[]
[null,"Le formulaire de commande « SVK plaques Colormat Touch non perforées » doit servir d'aide à la commande de plaques Colormat Touch rectangulaires sciées et non perforées. Toutes les plaques doivent être de la même couleur. Il convient de remplir un nouveau onglet pour chaque nouveau couleur. Cliquez sur \"Autre Couleur\" pour un nouveau onglet."]
[]
[null,"Pour le traitement et l'installation des plaques Colormat Touch de SVK, nous renvoyons au document « SVK Données techniques Colormat Touch». Consultez toujours la version la plus récente, que vous trouverez sur notre site web http://www.svk.be/."]
[null,null,null,null,"Fig. 1 Sens S ≤ 3050 mm",null,null,null,null,null,null,null,null,null,"Fig. 2 Sens P ≤ 1220 mm"]
[null,"Lors de la saisie de votre commande, procédez comme suit:"]
[]
[null,"Étape n° 1 :"]
[null,"Après avoir lu le mode d'emploi, cliquez ci-dessous sur « Lu et approuvé ». Vous êtes automatiquement redirigé(e) vers l'onglet suivant. Vous pouvez revenir à tout moment au mode d'emploi en cliquant sur « Mode d'emploi »."]
[null,null,null,null,null,null,null,null,null,null,null,null,null,"Sens S = 3050 mm"]
[null,"Étape n° 2 :",null,"Sens P = 1220 mm"]
[null,"Renseignez les données du projet, ainsi que la plaque et la couleur souhaités. Chaque formulaire de commande vous permet de renseigner plusieurs formats, mais vous ne pouvez choisir qu'une seule couleur. Il convient de remplir un nouveau onglet pour chaque nouveau couleur. Cliquez sur \"Autre Couleur\" pour un nouveau onglet. L'onglet « Couleurs », consultable à tout moment, offre un aperçu des couleurs standard disponibles. Le numéro du code couleur est un champ obligatoire, l'intitulé est un champ facultatif qui peut être rempli à titre de contrôle."]
[null,"Étape n° 3 :"]
[null,"Veuillez noter que les dimensions maximales sont 3050mmx1220mm. Les plaques Colormat Touch n’ont pas de sens de pose, elles peuvent être posées suivant le sens de la longueur ou de la largeur dans le même plan, suivant la préférence."]
[null,"Situation 1: Si l'une des deux dimensions de la plaque est supérieure à 1220 mm, il convient de choisir le côté le plus long comme « Sens S ». L'autre côté, toujours ≤ 1220 mm, devient alors le Sens P."]
[null,"Situation 2 : Si aucune des deux dimensions de la plaque n'est supérieure à 1 220 mm, vous avez le libre choix des axes."]
[]
[null,"Renseignez ensuite toutes les données"]
[null,"* dimensions du Sens S et du Sens P en fonction de la figure correspondante"]
[null,"* nombre d'unités de cette plaque"]
[null,"*Appuyez sur \"Côntroler\" pour vérifier vos données "]
[null,"*Pour supprimer une ligne de données, appuyez sur \"Supprimer Ligne\" et entrez dans la ligne souhaitée",null,null,"Sens S = 3050 mm\n\nFig. a Dimensions maximale horizontale",null,null,null,null,null,null,null,null,null,"Sens P = 1220 mm\n\nFig. b Dimensions maximale verticale"]
[]
[null,"Attention : "]
[null,"* la figure représente le côté fini de la plaque"]
[]
[null,"Clause de non-responsabilité formulaire de commande panneaux de façade :"]
[null,"« Les biens sont livrés conformément à la commande telle qu'elle a été saisie par le client. Le client utilise le présent formulaire de commande sous sa propre responsabilité et sera seul responsable de l'exactitude des données fournies. SVK S.A. ne peut être tenue pour responsable des erreurs dans les dimensions, la superficie, le nombre de plaques, le sens des lignes de ponçage, le motif de perforation ou toute autre donnée, résultant d'une erreur de mesure ou d'une communication incorrecte par le client. SVK S.A. ne peut pas non plus être tenue pour responsable de tout problème technique qui causerait la non-livraison ou la livraison incomplète ou incorrecte de la commande à SVK S.A. Enfin, SVK S.A. décline toute responsabilité pour tout dommage, de quelque nature que ce soit, occasionné par l'utilisation du présent formulaire de commande. SVK S.A. se réserve le droit de refuser la commande en cas de doute ou d'ambiguïté. La passation d'une commande par le biais du présent formulaire implique l'acceptation sans réserve de cette clause. »"]

{"sheet":"Hand PuroPlus DE","index":45,"n_rows":34,"n_cols":14,"rows_kept":34,"cut":false,"hidden":true,"merged":[[22,3,32,3],[3,3,11,3],[33,13,35,16],[13,4,14,7],[33,4,35,8],[3,12,11,12],[13,13,14,16],[22,12,32,12]]}
[]
[]
[]
[null,null,null,"Richtung P ≤ 1220 mm",null,null,null,null,null,null,null,null,"Schleifrichtung S ≤ 3070 mm"]
[]
[null,"ANLEITUNG BESTELLFORMULAR „SVK NICHT PERFORIERTED PURO PLUS TAFELN"]
[]
[null,"Lesen Sie sich die Anleitung vollständig durch, bevor Sie das Bestellformular ausfüllen. Nachdem Sie die Anleitung und den Disclaimer gelesen haben, klicken Sie auf „Gelesen und akzeptiert“, um zum Ausfüllen überzugehen."]
[]
[null,"Das Bestellformular „SVK nicht perforierte Puro Plus-Tafeln“ ist als Hilfsmittel für die Bestellung zugesägter Puro Plus-Tafeln ohne Perforation gedacht. "]
[null,"Für die Bearbeitung und Montage von SVK Puro Plus-Tafeln verweisen wir auf das Technische Datenblatt SVK Puro Plus. Ziehen Sie stets die neueste Version zurate, diese finden Sie auf unserer Website http://www.svk.be."]
[]
[null,"Beim Eingeben Ihrer Bestellung gehen Sie vor wie folgt:"]
[null,null,null,null,"Abb. 1 Schleifrichtung S ≤ 3070 mm",null,null,null,null,null,null,null,null,"Abb. 2 Richtung P ≤ 1220 mm"]
[null,"Schritt 1:"]
[null,"Nachdem Sie die Anleitung gelesen haben, klicken Sie unten auf „Gelesen und akzeptiert“. Sie werden automatisch zum nächsten Reiter weitergeleitet. Sie können stets zur Anleitung zurückkehren, indem Sie auf „Anleitung“ klicken."]
[]
[null,"Schritt 2:"]
[null,"Geben Sie die Projektdaten ein."]
[]
[null,"Schritt 3:"]
[null,"Bitte beachten Sie, dass bei vollständigen Tafeln 3070 mm x 1220 mm die Schleifrichtung stets in die längste Richtung verläuft, siehe Abb. a und Abb. b. Alle anderen kleineren Formate entstehen, indem die Tafel zugesägt wird. Dadurch kann es passieren (wenn beispielsweise beide Abmessungen ≤ 1220mm betragen), dass die Schleifrichtung nicht mehr mit der längsten Abmessung übereinstimmt. Daher ist es besonders wichtig, die Abbildung je nach Schleifrichtung auszuwählen und nicht nach der größten Abmessung der Tafel."]
[null,"Je nach Schleifrichtung der Tafel werden Sie Abb. 1 oder Abb. 2 benötigen. Abb. a und Abb. b dienen lediglich zur Illustration der Schleifrichtung bei vollständigen Tafeln.",null,"Richtung P = 1220 mm",null,null,null,null,null,null,null,null,"Schleifrichtung S = 3070 mm"]
[]
[null,"Geben Sie anschließend alle Daten ein"]
[null,"*Abmessungen in Schleifrichtung S und Richtung P, je nach dazugehöriger Abbildung"]
[null,"*Stückzahl dieser Tafel"]
[null,"*Wenn Sie eine ganze Reihe löschen möchten, klicken Sie auf \"Reihe Löschen\" und geben Sie die zu löschende Reihennummer ein."]
[null,"*Drücken Sie auf \"Kontrollieren\" um Ihre Werte zu überprüfen"]
[]
[null,"Achtung: "]
[null,"*Die Ansicht der Tafel ist die Vorderseite"]
[]
[null,"Disclaimer Bestellformular Fassadentafeln:\n„Die Güter werden der vom Kunden eingegebenen Bestellung zufolge geliefert. Der Kunde nutzt dieses Bestellformular vollständig auf eigenes Risiko und ist selbst voll und ganz für die Richtigkeit der eingegebenen Daten verantwortlich. SVK nv kann nicht haftbar gemacht werden für Fehler bei den Abmessungen, der Oberfläche, der Anzahl der Tafeln, der Tafelnmarke, der Richtung der Scheuerlinien, Perforationsmuster oder andere Daten in Folge falscher Messung oder Eingabe durch den Kunden. SVK nv kann ebenfalls nicht haftbar gemacht werden, wenn die Bestellung, nicht, unvollständig oder inkorrekt bei SVK nv ankommt infolge technischer Probleme. Zum Schluss schließt SVK nv jegliche Haftung für jegliche Schäden aus, die aus der Nutzung dieses Bestellformulars entstehen. SVK nv behält sich das Recht vor, die Bestellung bei Zweifeln oder Unklarheiten abzulehnen. Das Aufgeben einer Bestellung über das vorliegende Bestellformular hat die bedingungslose Annahme dieser Klausel zur Folge.“",null,null,"Schleifrichtung S = 3070 mm\n\nAbb. a Maximales Abmessungen Horizontal",null,null,null,null,null,null,null,null,"\nRichtung P = 1220 mm\n\nAbb. b Maximales Abmessungen Vertikal"]

{"sheet":"Hand DecoboardClassic DE","index":46,"n_rows":36,"n_cols":15,"rows_kept":36,"cut":false,"hidden":true,"merged":[[29,14,31,17],[29,4,31,8],[2,3,10,3],[2,13,10,13],[12,4,13,7],[12,14,13,17],[17,13,27,13],[18,3,28,3]]}
[]
[]
[null,null,null,"Richtung P ≤ 1220 mm",null,null,null,null,null,null,null,null,null,"Richtung S ≤ 3070 mm"]
[]
[]
[null,"ANLEITUNG BESTELLFORMULAR „SVK NICHT PERFORIERTE DECOBOARD CLASSIC TAFELN"]
[]
[null,"Lesen Sie sich die Anleitung vollständig durch, bevor Sie das Bestellformular ausfüllen. Nachdem Sie die Anleitung und den Disclaimer gelesen haben, klicken Sie auf „Gelesen und akzeptiert“, um zum Ausfüllen überzugehen."]
[]
[null,"Das Bestellformular „SVK nicht perforierte Decoboard Classic Tafeln“ ist als Hilfsmittel für die Bestellung zugesägter Decoboard-Tafeln ohne Perforation gedacht. Alle Tafeln in einem Reiter müssen dieselbe Farbe haben. Für unterschiedliche Farben muss jeweils ein neues Reiter ausgefüllt werden. Klicken Sie auf \"AndereFarbe\"."]
[]
[null,"Für die Bearbeitung und Montage von SVK Decoboard-Tafeln verweisen wir auf das Technische Datenblatt SVK Decoboard. Ziehen Sie stets die neueste Version zurate, diese finden Sie auf unserer Website http://www.svk.be."]
[null,null,null,null,"Abb. 1 Richtung S ≤ 3070 mm",null,null,null,null,null,null,null,null,null,"Abb. 2 Richtung P ≤ 1220 mm"]
[null,"Beim Eingeben Ihrer Bestellung gehen Sie vor wie folgt:"]
[]
[null,"Schritt 1:"]
[null,"Nachdem Sie die Anleitung gelesen haben, klicken Sie unten auf „Gelesen und akzeptiert“. Sie werden automatisch zum nächsten Reiter weitergeleitet. Sie können stets zur Anleitung zurückkehren, indem Sie auf „Anleitung“ klicken."]
[null,null,null,null,null,null,null,null,null,null,null,null,null,"Richtung S = 3070 mm"]
[null,"Schritt 2:",null,"Richtung P = 1220 mm"]
[null,"Geben Sie die Projektdaten ein und wählen Sie die gewünschte Farbe aus. Pro Bestellformular Reiter können Sie unterschiedliche Formate eingeben, jedoch nur 1 einzige Farbe auswählen. Für unterschiedliche Farben müssen Sie jeweils ein neues Reiter ausfüllen. Der Reiter „Farben“ enthält eine Übersicht der erhältlichen Standardfarben, die Sie sich jederzeit ansehen können. Die Nummer des Farbcodes ist verpflichtend einzugeben, der Name kann zur Kontrolle eingegeben werden, muss jedoch nicht."]
[]
[null,"Schritt 3:"]
[null,"Bitte beachten Sie, dass die maximale Abmessungen der Tafeln 3070 mm x 1220 mm betragen, siehe Abb. a und Abb. b. Decoboard Classic Tafeln sind nicht richtungsgebunden und können in Längs- oder Querrichtung angeordnet werden. "]
[null,"Situation 1: Wenn eine der beiden Abmessungen der Platte größer ist als 1220 mm, muss die längste Abmessung als Richtung S genommen werden. Die andere Abmessung, stets ≤1220 mm, wird dann Richtung P. "]
[null,"Situation 2: Wenn keine der beiden Abmessungen der Platte 1220 mm überschreitet, können Sie die Abbildung frei wählen. Es wird empfohlen, mit Abb. 1 zu arbeiten."]
[]
[null,"Geben Sie anschließend alle Daten ein"]
[null,"*Abmessungen in Schleifrichtung S und Richtung P, je nach dazugehöriger Abbildung"]
[null,"*Stückzahl dieser Tafel"]
[null,"*Wenn Sie eine ganze Reihe löschen möchten, klicken Sie auf \"Reihe Löschen\" und geben Sie die zu löschende Reihennummer ein.",null,null,"Richtung S = 3070 mm\n\nAbb. a Maximales Abmessungen Horizontal",null,null,null,null,null,null,null,null,null,"Richtung P = 1220 mm\n\nAbb. b Maximales Abmessungen Vertikal"]
[null,"*Drücken Sie auf \"Kontrollieren\" um Ihre Werte zu überprüfen"]
[]
[null,"Achtung: "]
[null,"*Die Ansicht der Tafel ist die Vorderseite"]
[]
[null,"Disclaimer Bestellformular Fassadentafeln:\n„Die Güter werden der vom Kunden eingegebenen Bestellung zufolge geliefert. Der Kunde nutzt dieses Bestellformular vollständig auf eigenes Risiko und ist selbst voll und ganz für die Richtigkeit der eingegebenen Daten verantwortlich. SVK nv kann nicht haftbar gemacht werden für Fehler bei den Abmessungen, der Oberfläche, der Anzahl der Tafeln, der Tafelnmarke, der Richtung der Scheuerlinien, Perforationsmuster oder andere Daten in Folge falscher Messung oder Eingabe durch den Kunden. SVK nv kann ebenfalls nicht haftbar gemacht werden, wenn die Bestellung, nicht, unvollständig oder inkorrekt bei SVK nv ankommt infolge technischer Probleme. Zum Schluss schließt SVK nv jegliche Haftung für jegliche Schäden aus, die aus der Nutzung dieses Bestellformulars entstehen. SVK nv behält sich das Recht vor, die Bestellung bei Zweifeln oder Unklarheiten abzulehnen. Das Aufgeben einer Bestellung über das vorliegende Bestellformular hat die bedingungslose Annahme dieser Klausel zur Folge.“"]

{"sheet":"Hand DecoboardPure DE","index":47,"n_rows":35,"n_cols":15,"rows_kept":35,"cut":false,"hidden":true,"merged":[[28,4,30,8],[28,14,30,17],[2,3,10,3],[2,13,10,13],[12,4,13,7],[12,14,13,17],[17,13,26,13],[18,3,27,3]]}
[]
[]
[null,null,null,"Richtung P ≤ 1220 mm",null,null,null,null,null,null,null,null,null,"Schleifrichtung S ≤ 3070 mm"]
[]
[]
[null,"ANLEITUNG BESTELLFORMULAR „SVK NICHT PERFORIERTE DECOBOARD PURE TAFELN"]
[]
[null,"Lesen Sie sich die Anleitung vollständig durch, bevor Sie das Bestellformular ausfüllen. Nachdem Sie die Anleitung und den Disclaimer gelesen haben, klicken Sie auf „Gelesen und akzeptiert“, um zum Ausfüllen überzugehen."]
[]
[null,"Das Bestellformular „SVK nicht perforierte Decoboard Pure Tafeln“ ist als Hilfsmittel für die Bestellung zugesägter Decoboard Pure-Tafeln ohne Perforation gedacht. Alle Tafeln in einem Reiter müssen dieselbe Farbe haben. Für unterschiedliche Farben muss jeweils ein neues Reiter ausgefüllt werden. Klicken Sie auf \"Andere Farbe\"."]
[]
[null,"Für die Bearbeitung und Montage von SVK Decoboard Pure-Tafeln verweisen wir auf das Technische Datenblatt SVK . Ziehen Sie stets die neueste Version zurate, diese finden Sie auf unserer Website http://www.svk.be."]
[null,null,null,null,"Abb. 1 Schleifrichtung S ≤ 3070 mm",null,null,null,null,null,null,null,null,null,"Abb. 2 Richtung P ≤ 1220 mm"]
[null,"Beim Eingeben Ihrer Bestellung gehen Sie vor wie folgt:"]
[]
[null,"Schritt 1:"]
[null,"Nachdem Sie die Anleitung gelesen haben, klicken Sie unten auf „Gelesen und akzeptiert“. Sie werden automatisch zum nächsten Reiter weitergeleitet. Sie können stets zur Anleitung zurückkehren, indem Sie auf „Anleitung“ klicken."]
[null,null,null,null,null,null,null,null,null,null,null,null,null,"Schleifrichtung S = 3070 mm"]
[null,"Schritt 2:",null,"Richtung P = 1220 mm"]
[null,"Geben Sie die Projektdaten ein und wählen Sie die gewünschte Farbe aus. Pro Bestellformular Reiter können Sie unterschiedliche Formate eingeben, jedoch nur 1 einzige Farbe auswählen. Für unterschiedliche Farben müssen Sie jeweils ein neues Reiter ausfüllen. Der Reiter „Farben“ enthält eine Übersicht der erhältlichen Standardfarben, die Sie sich jederzeit ansehen können. Die Nummer des Farbcodes ist verpflichtend einzugeben, der Name kann zur Kontrolle eingegeben werden, muss jedoch nicht."]
[]
[null,"Schritt 3:"]
[null,"Bitte beachten Sie, dass bei vollständigen Tafeln 3070 mm x 1220 mm die Schleifrichtung stets in die längste Richtung verläuft, siehe Abb. a und Abb. b. Alle anderen kleineren Formate entstehen, indem die Tafel zugesägt wird. Dadurch kann es passieren (wenn beispielsweise beide Abmessungen ≤ 1220mm betragen), dass die Schleifrichtung nicht mehr mit der längsten Abmessung übereinstimmt. Daher ist es besonders wichtig, die Abbildung je nach Schleifrichtung auszuwählen und nicht nach der größten Abmessung der Tafel."]
[null,"Je nach Schleifrichtung der Tafel werden Sie Abb. 1 oder Abb. 2 benötigen. Abb. a und Abb. b dienen lediglich zur Illustration der Schleifrichtung bei vollständigen Tafeln."]
[]
[null,"Geben Sie anschließend alle Daten ein"]
[null,"*Abmessungen in Schleifrichtung S und Richtung P, je nach dazugehöriger Abbildung"]
[null,"*Stückzahl dieser Tafel"]
[null,"*Wenn Sie eine ganze Reihe löschen möchten, klicken Sie auf \"Reihe Löschen\" und geben Sie die zu löschende Reihennummer ein.",null,null,"Schleifrichtung S = 3070 mm\n\nAbb. a Maximales Abmessungen Horizontal",null,null,null,null,null,null,null,null,null,"Richtung P = 1220 mm\n\nAbb. b Maximales Abmessungen Vertikal"]
[null,"*Drücken Sie auf \"Kontrollieren\" um Ihre Werte zu überprüfen"]
[]
[null,"Achtung: "]
[null,"*Die Ansicht der Tafel ist die Vorderseite"]
[]
[null,"Disclaimer Bestellformular Fassadentafeln:\n„Die Güter werden der vom Kunden eingegebenen Bestellung zufolge geliefert. Der Kunde nutzt dieses Bestellformular vollständig auf eigenes Risiko und ist selbst voll und ganz für die Richtigkeit der eingegebenen Daten verantwortlich. SVK nv kann nicht haftbar gemacht werden für Fehler bei den Abmessungen, der Oberfläche, der Anzahl der Tafeln, der Tafelnmarke, der Richtung der Scheuerlinien, Perforationsmuster oder andere Daten in Folge falscher Messung oder Eingabe durch den Kunden. SVK nv kann ebenfalls nicht haftbar gemacht werden, wenn die Bestellung, nicht, unvollständig oder inkorrekt bei SVK nv ankommt infolge technischer Probleme. Zum Schluss schließt SVK nv jegliche Haftung für jegliche Schäden aus, die aus der Nutzung dieses Bestellformulars entstehen. SVK nv behält sich das Recht vor, die Bestellung bei Zweifeln oder Unklarheiten abzulehnen. Das Aufgeben einer Bestellung über das vorliegende Bestellformular hat die bedingungslose Annahme dieser Klausel zur Folge.“"]

{"sheet":"Hand Ornimat DE","index":48,"n_rows":36,"n_cols":15,"rows_kept":36,"cut":false,"hidden":true,"merged":[[29,14,31,17],[29,4,31,8],[2,3,10,3],[2,13,10,13],[12,4,13,7],[12,14,13,17],[17,13,27,13],[18,3,28,3]]}
[]
[]
[null,null,null,"Richtung P ≤ 1220 mm",null,null,null,null,null,null,null,null,null,"Richtung S ≤ 3070 mm"]
[]
[]
[null,"ANLEITUNG BESTELLFORMULAR „SVK NICHT PERFORIERTE ORNIMAT TAFELN"]
[]
[null,"Lesen Sie sich die Anleitung vollständig durch, bevor Sie das Bestellformular ausfüllen. Nachdem Sie die Anleitung und den Disclaimer gelesen haben, klicken Sie auf „Gelesen und akzeptiert“, um zum Ausfüllen überzugehen."]
[]
[null,"Das Bestellformular „SVK nicht perforierte Ornimat Tafeln“ ist als Hilfsmittel für die Bestellung zugesägter Ornimat-Tafeln ohne Perforation gedacht. Alle Tafeln in einem Reiter müssen dieselbe Farbe haben. Für unterschiedliche Farben muss jeweils ein neues Reiter ausgefüllt werden. Klicken Sie auf \"Andere Farbe\"."]
[]
[null,"Für die Bearbeitung und Montage von SVK Ornimat-Tafeln verweisen wir auf das Technische Datenblatt SVK Ornimat. Ziehen Sie stets die neueste Version zurate, diese finden Sie auf unserer Website http://www.svk.be."]
[null,null,null,null,"Abb. 1 Richtung S ≤ 3070 mm",null,null,null,null,null,null,null,null,null,"Abb. 2 Richtung P ≤ 1220 mm"]
[null,"Beim Eingeben Ihrer Bestellung gehen Sie vor wie folgt:"]
[]
[null,"Schritt 1:"]
[null,"Nachdem Sie die Anleitung gelesen haben, klicken Sie unten auf „Gelesen und akzeptiert“. Sie werden automatisch zum nächsten Reiter weitergeleitet. Sie können stets zur Anleitung zurückkehren, indem Sie auf „Anleitung“ klicken."]
[null,null,null,null,null,null,null,null,null,null,null,null,null,"Richtung S = 3070 mm"]
[null,"Schritt 2:",null,"Richtung P = 1220 mm"]
[null,"Geben Sie die Projektdaten ein und wählen Sie die gewünschte Farbe aus. Pro Bestellformular Reiter können Sie unterschiedliche Formate eingeben, jedoch nur 1 einzige Farbe auswählen. Für unterschiedliche Farben müssen Sie jeweils ein neues Reiter ausfüllen. Der Reiter „Farben“ enthält eine Übersicht der erhältlichen Standardfarben, die Sie sich jederzeit ansehen können. Die Nummer des Farbcodes ist verpflichtend einzugeben, der Name kann zur Kontrolle eingegeben werden, muss jedoch nicht."]
[]
[null,"Schritt 3:"]
[null,"Bitte beachten Sie, dass die maximale Abmessungen der Tafeln 3070 mm x 1220 mm betragen, siehe Abb. a und Abb. b. Ornimat Tafeln sind nicht richtungsgebunden und können in Längs- oder Querrichtung angeordnet werden. "]
[null,"Situation 1: Wenn eine der beiden Abmessungen der Platte größer ist als 1220 mm, muss die längste Abmessung als Richtung S genommen werden. Die andere Abmessung, stets ≤1220 mm, wird dann Richtung P."]
[null,"Situation 2: Wenn keine der beiden Abmessungen der Platte 1220 mm überschreitet, können Sie die Abbildung frei wählen. Es wird empfohlen, mit Abb. 1 zu arbeiten."]
[]
[null,"Geben Sie anschließend alle Daten ein"]
[null,"*Abmessungen in Schleifrichtung S und Richtung P, je nach dazugehöriger Abbildung"]
[null,"*Stückzahl dieser Tafel"]
[null,"*Wenn Sie eine ganze Reihe löschen möchten, klicken Sie auf \"Reihe Löschen\" und geben Sie die zu löschende Reihennummer ein.",null,null,"Richtung S = 3070 mm\n\nAbb. a Maximales Abmessungen Horizontal",null,null,null,null,null,null,null,null,null,"Richtung P = 1220 mm\n\nAbb. b Maximales Abmessungen Vertikal"]
[null,"*Drücken Sie auf \"Kontrollieren\" um Ihre Werte zu überprüfen"]
[]
[null,"Achtung: "]
[null,"*Die Ansicht der Tafel ist die Vorderseite"]
[]
[null,"Disclaimer Bestellformular Fassadentafeln:\n„Die Güter werden der vom Kunden eingegebenen Bestellung zufolge geliefert. Der Kunde nutzt dieses Bestellformular vollständig auf eigenes Risiko und ist selbst voll und ganz für die Richtigkeit der eingegebenen Daten verantwortlich. SVK nv kann nicht haftbar gemacht werden für Fehler bei den Abmessungen, der Oberfläche, der Anzahl der Tafeln, der Tafelnmarke, der Richtung der Scheuerlinien, Perforationsmuster oder andere Daten in Folge falscher Messung oder Eingabe durch den Kunden. SVK nv kann ebenfalls nicht haftbar gemacht werden, wenn die Bestellung, nicht, unvollständig oder inkorrekt bei SVK nv ankommt infolge technischer Probleme. Zum Schluss schließt SVK nv jegliche Haftung für jegliche Schäden aus, die aus der Nutzung dieses Bestellformulars entstehen. SVK nv behält sich das Recht vor, die Bestellung bei Zweifeln oder Unklarheiten abzulehnen. Das Aufgeben einer Bestellung über das vorliegende Bestellformular hat die bedingungslose Annahme dieser Klausel zur Folge.“"]

{"sheet":"Hand Colormat DE","index":49,"n_rows":35,"n_cols":15,"rows_kept":35,"cut":false,"hidden":true,"merged":[[28,14,30,17],[28,4,30,8],[2,3,10,3],[2,13,10,13],[12,4,13,7],[12,14,13,17],[17,13,26,13],[18,3,27,3]]}
[]
[]
[null,null,null,"Richtung P ≤ 1220 mm",null,null,null,null,null,null,null,null,null,"Schleifrichtung S ≤ 3050 mm"]
[]
[]
[null,"ANLEITUNG BESTELLFORMULAR „SVK NICHT PERFORIERTE COLORMAT TAFELN"]
[]
[null,"Lesen Sie sich die Anleitung vollständig durch, bevor Sie das Bestellformular ausfüllen. Nachdem Sie die Anleitung und den Disclaimer gelesen haben, klicken Sie auf „Gelesen und akzeptiert“, um zum Ausfüllen überzugehen."]
[]
[null,"Das Bestellformular „SVK nicht perforierte Colormat Tafeln“ ist als Hilfsmittel für die Bestellung zugesägter Colormat-Tafeln ohne Perforation gedacht. Alle Tafeln in einem Reiter müssen dieselbe Farbe haben. Für unterschiedliche Farben muss jeweils ein neues Reiter ausgefüllt werden. Klicken Sie auf \"Andere Farbe\"."]
[]
[null,"Für die Bearbeitung und Montage von SVK Colormat-Tafeln verweisen wir auf das Technische Datenblatt SVK Colormat. Ziehen Sie stets die neueste Version zurate, diese finden Sie auf unserer Website http://www.svk.be."]
[null,null,null,null,"Abb. 1 Schleifrichtung S ≤ 3050 mm",null,null,null,null,null,null,null,null,null,"Abb. 2 Richtung P ≤ 1220 mm"]
[null,"Beim Eingeben Ihrer Bestellung gehen Sie vor wie folgt:"]
[]
[null,"Schritt 1:"]
[null,"Nachdem Sie die Anleitung gelesen haben, klicken Sie unten auf „Gelesen und akzeptiert“. Sie werden automatisch zum nächsten Reiter weitergeleitet. Sie können stets zur Anleitung zurückkehren, indem Sie auf „Anleitung“ klicken."]
[null,null,null,null,null,null,null,null,null,null,null,null,null,"Schleifrichtung S = 3050 mm"]
[null,"Schritt 2:",null,"Richtung P = 1220 mm"]
[null,"Geben Sie die Projektdaten ein und wählen Sie die gewünschte Farbe aus. Pro Bestellformular Reiter können Sie unterschiedliche Formate eingeben, jedoch nur 1 einzige Farbe auswählen. Für unterschiedliche Farben müssen Sie jeweils ein neues Reiter ausfüllen. Der Reiter „Farben“ enthält eine Übersicht der erhältlichen Standardfarben, die Sie sich jederzeit ansehen können. Die Nummer des Farbcodes ist verpflichtend einzugeben, der Name kann zur Kontrolle eingegeben werden, muss jedoch nicht."]
[]
[null,"Schritt 3:"]
[null,"Bitte beachten Sie, dass bei vollständigen Tafeln 3050 mm x 1220 mm die Schleifrichtung stets in die längste Richtung verläuft, siehe Abb. a und Abb. b. Alle anderen kleineren Formate entstehen, indem die Tafel zugesägt wird. Dadurch kann es passieren (wenn beispielsweise beide Abmessungen ≤ 1220mm betragen), dass die Schleifrichtung nicht mehr mit der längsten Abmessung übereinstimmt. Daher ist es besonders wichtig, die Abbildung je nach Schleifrichtung auszuwählen und nicht nach der größten Abmessung der Tafel."]
[null,"Je nach Schleifrichtung der Tafel werden Sie Abb. 1 oder Abb. 2 benötigen. Abb. a und Abb. b dienen lediglich zur Illustration der Schleifrichtung bei vollständigen Tafeln."]
[]
[null,"Geben Sie anschließend alle Daten ein"]
[null,"*Abmessungen in Schleifrichtung S und Richtung P, je nach dazugehöriger Abbildung"]
[null,"*Stückzahl dieser Tafel"]
[null,"*Wenn Sie eine ganze Reihe löschen möchten, klicken Sie auf \"Reihe Löschen\" und geben Sie die zu löschende Reihennummer ein.",null,null,"Schleifrichtung S = 3050 mm\n\nAbb. a Maximales Abmessungen Horizontal",null,null,null,null,null,null,null,null,null,"Richtung P = 1220 mm\n\nAbb. b Maximales Abmessungen Vertikal"]
[null,"*Drücken Sie auf \"Kontrollieren\" um Ihre Werte zu überprüfen"]
[]
[null,"Achtung: "]
[null,"*Die Ansicht der Tafel ist die Vorderseite"]
[]
[null,"Disclaimer Bestellformular Fassadentafeln:\n„Die Güter werden der vom Kunden eingegebenen Bestellung zufolge geliefert. Der Kunde nutzt dieses Bestellformular vollständig auf eigenes Risiko und ist selbst voll und ganz für die Richtigkeit der eingegebenen Daten verantwortlich. SVK nv kann nicht haftbar gemacht werden für Fehler bei den Abmessungen, der Oberfläche, der Anzahl der Tafeln, der Tafelnmarke, der Richtung der Scheuerlinien, Perforationsmuster oder andere Daten in Folge falscher Messung oder Eingabe durch den Kunden. SVK nv kann ebenfalls nicht haftbar gemacht werden, wenn die Bestellung, nicht, unvollständig oder inkorrekt bei SVK nv ankommt infolge technischer Probleme. Zum Schluss schließt SVK nv jegliche Haftung für jegliche Schäden aus, die aus der Nutzung dieses Bestellformulars entstehen. SVK nv behält sich das Recht vor, die Bestellung bei Zweifeln oder Unklarheiten abzulehnen. Das Aufgeben einer Bestellung über das vorliegende Bestellformular hat die bedingungslose Annahme dieser Klausel zur Folge.“"]

{"sheet":"Hand ColorPlus DE","index":50,"n_rows":35,"n_cols":15,"rows_kept":35,"cut":false,"hidden":true,"merged":[[28,4,30,8],[28,14,30,17],[2,3,10,3],[2,13,10,13],[12,4,13,7],[12,14,13,17],[17,13,26,13],[18,3,27,3]]}
[]
[]
[null,null,null,"Richtung P ≤ 1220 mm",null,null,null,null,null,null,null,null,null,"Schleifrichtung S ≤ 3050 mm"]
[]
[]
[null,"ANLEITUNG BESTELLFORMULAR „SVK NICHT PERFORIERTE COLOR PLUS TAFELN"]
[]
[null,"Lesen Sie sich die Anleitung vollständig durch, bevor Sie das Bestellformular ausfüllen. Nachdem Sie die Anleitung und den Disclaimer gelesen haben, klicken Sie auf „Gelesen und akzeptiert“, um zum Ausfüllen überzugehen."]
[]
[null,"Das Bestellformular „SVK nicht perforierte Color Plus Tafeln“ ist als Hilfsmittel für die Bestellung zugesägter Color Plus-Tafeln ohne Perforation gedacht. Alle Tafeln in einem Reiter müssen dieselbe Farbe haben. Für unterschiedliche Farben muss jeweils ein neues Reiter ausgefüllt werden. Klicken Sie auf \"Andere Farbe\"."]
[]
[null,"Für die Bearbeitung und Montage von SVK Color Plus-Tafeln verweisen wir auf das Technische Datenblatt SVK Color Plus. Ziehen Sie stets die neueste Version zurate, diese finden Sie auf unserer Website http://www.svk.be."]
[null,null,null,null,"Abb. 1 Schleifrichtung S ≤ 3050 mm",null,null,null,null,null,null,null,null,null,"Abb. 2 Richtung P ≤ 1220 mm"]
[null,"Beim Eingeben Ihrer Bestellung gehen Sie vor wie folgt:"]
[]
[null,"Schritt 1:"]
[null,"Nachdem Sie die Anleitung gelesen haben, klicken Sie unten auf „Gelesen und akzeptiert“. Sie werden automatisch zum nächsten Reiter weitergeleitet. Sie können stets zur Anleitung zurückkehren, indem Sie auf „Anleitung“ klicken."]
[null,null,null,null,null,null,null,null,null,null,null,null,null,"Schleifrichtung S = 3050 mm"]
[null,"Schritt 2:",null,"Richtung P = 1220 mm"]
[null,"Geben Sie die Projektdaten ein und wählen Sie die gewünschte Farbe aus. Pro Bestellformular Reiter können Sie unterschiedliche Formate eingeben, jedoch nur 1 einzige Farbe auswählen. Für unterschiedliche Farben müssen Sie jeweils ein neues Reiter ausfüllen. Der Reiter „Farben“ enthält eine Übersicht der erhältlichen Standardfarben, die Sie sich jederzeit ansehen können. Die Nummer des Farbcodes ist verpflichtend einzugeben, der Name kann zur Kontrolle eingegeben werden, muss jedoch nicht."]
[]
[null,"Schritt 3:"]
[null,"Bitte beachten Sie, dass bei vollständigen Tafeln 3050 mm x 1220 mm die Schleifrichtung stets in die längste Richtung verläuft, siehe Abb. a und Abb. b. Alle anderen kleineren Formate entstehen, indem die Tafel zugesägt wird. Dadurch kann es passieren (wenn beispielsweise beide Abmessungen ≤ 1220mm betragen), dass die Schleifrichtung nicht mehr mit der längsten Abmessung übereinstimmt. Daher ist es besonders wichtig, die Abbildung je nach Schleifrichtung auszuwählen und nicht nach der größten Abmessung der Tafel."]
[null,"Je nach Schleifrichtung der Tafel werden Sie Abb. 1 oder Abb. 2 benötigen. Abb. a und Abb. b dienen lediglich zur Illustration der Schleifrichtung bei vollständigen Tafeln."]
[]
[null,"Geben Sie anschließend alle Daten ein"]
[null,"*Abmessungen in Schleifrichtung S und Richtung P, je nach dazugehöriger Abbildung"]
[null,"*Stückzahl dieser Tafel"]
[null,"*Wenn Sie eine ganze Reihe löschen möchten, klicken Sie auf \"Reihe Löschen\" und geben Sie die zu löschende Reihennummer ein.",null,null,"Schleifrichtung S = 3050 mm\n\nAbb. a Maximales Abmessungen Horizontal",null,null,null,null,null,null,null,null,null,"Richtung P = 1220 mm\n\nAbb. b Maximales Abmessungen Vertikal"]
[null,"*Drücken Sie auf \"Kontrollieren\" um Ihre Werte zu überprüfen"]
[]
[null,"Achtung: "]
[null,"*Die Ansicht der Tafel ist die Vorderseite"]
[]
[null,"Disclaimer Bestellformular Fassadentafeln:\n„Die Güter werden der vom Kunden eingegebenen Bestellung zufolge geliefert. Der Kunde nutzt dieses Bestellformular vollständig auf eigenes Risiko und ist selbst voll und ganz für die Richtigkeit der eingegebenen Daten verantwortlich. SVK nv kann nicht haftbar gemacht werden für Fehler bei den Abmessungen, der Oberfläche, der Anzahl der Tafeln, der Tafelnmarke, der Richtung der Scheuerlinien, Perforationsmuster oder andere Daten in Folge falscher Messung oder Eingabe durch den Kunden. SVK nv kann ebenfalls nicht haftbar gemacht werden, wenn die Bestellung, nicht, unvollständig oder inkorrekt bei SVK nv ankommt infolge technischer Probleme. Zum Schluss schließt SVK nv jegliche Haftung für jegliche Schäden aus, die aus der Nutzung dieses Bestellformulars entstehen. SVK nv behält sich das Recht vor, die Bestellung bei Zweifeln oder Unklarheiten abzulehnen. Das Aufgeben einer Bestellung über das vorliegende Bestellformular hat die bedingungslose Annahme dieser Klausel zur Folge.“"]

{"sheet":"Hand Touch DE","index":51,"n_rows":36,"n_cols":15,"rows_kept":36,"cut":false,"hidden":true,"merged":[[29,4,31,8],[29,14,31,17],[2,3,10,3],[2,13,10,13],[12,4,13,7],[12,14,13,17],[17,13,27,13],[18,3,28,3]]}
[]
[]
[null,null,null,"Richtung P ≤ 1220 mm",null,null,null,null,null,null,null,null,null,"Richtung S ≤ 3050 mm"]
[]
[]
[null,"ANLEITUNG BESTELLFORMULAR „SVK NICHT PERFORIERTE COLORMAT TOUCH TAFELN"]
[]
[null,"Lesen Sie sich die Anleitung vollständig durch, bevor Sie das Bestellformular ausfüllen. Nachdem Sie die Anleitung und den Disclaimer gelesen haben, klicken Sie auf „Gelesen und akzeptiert“, um zum Ausfüllen überzugehen."]
[]
[null,"Das Bestellformular „SVK nicht perforierte Colormat Touch Tafeln“ ist als Hilfsmittel für die Bestellung zugesägter Colormat Touch-Tafeln ohne Perforation gedacht. Alle Tafeln in einem Reiter müssen dieselbe Farbe haben. Für unterschiedliche Farben muss jeweils ein neues Reiter ausgefüllt werden. Klicken Sie auf \"Andere Farbe\"."]
[]
[null,"Für die Bearbeitung und Montage von SVK Colormat Touch-Tafeln verweisen wir auf das Technische Datenblatt SVK Colormat Touch. Ziehen Sie stets die neueste Version zurate, diese finden Sie auf unserer Website http://www.svk.be."]
[null,null,null,null,"Abb. 1 Richtung S ≤ 3050 mm",null,null,null,null,null,null,null,null,null,"Abb. 2 Richtung P ≤ 1220 mm"]
[null,"Beim Eingeben Ihrer Bestellung gehen Sie vor wie folgt:"]
[]
[null,"Schritt 1:"]
[null,"Nachdem Sie die Anleitung gelesen haben, klicken Sie unten auf „Gelesen und akzeptiert“. Sie werden automatisch zum nächsten Reiter weitergeleitet. Sie können stets zur Anleitung zurückkehren, indem Sie auf „Anleitung“ klicken."]
[null,null,null,null,null,null,null,null,null,null,null,null,null,"Richtung S = 3050 mm"]
[null,"Schritt 2:",null,"Richtung P = 1220 mm"]
[null,"Geben Sie die Projektdaten ein und wählen Sie die gewünschte Farbe aus. Pro Bestellformular Reiter können Sie unterschiedliche Formate eingeben, jedoch nur 1 einzige Farbe auswählen. Für unterschiedliche Farben müssen Sie jeweils ein neues Reiter ausfüllen. Der Reiter „Farben“ enthält eine Übersicht der erhältlichen Standardfarben, die Sie sich jederzeit ansehen können. Die Nummer des Farbcodes ist verpflichtend einzugeben, der Name kann zur Kontrolle eingegeben werden, muss jedoch nicht."]
[]
[null,"Schritt 3:"]
[null,"Bitte beachten Sie, dass die maximale Abmessungen der Tafeln 3050 mm x 1220 mm betragen, siehe Abb. a und Abb. b. Colormat Touch Tafeln sind nicht richtungsgebunden und können in Längs- oder Querrichtung angeordnet werden. "]
[null,"Situation 1: Wenn eine der beiden Abmessungen der Platte größer ist als 1220 mm, muss die längste Abmessung als Richtung S genommen werden. Die andere Abmessung, stets ≤1220 mm, wird dann Richtung P."]
[null,"Situation 2: Wenn keine der beiden Abmessungen der Platte 1220 mm überschreitet, können Sie die Abbildung frei wählen. Es wird empfohlen, mit Abb. 1 zu arbeiten."]
[]
[null,"Geben Sie anschließend alle Daten ein"]
[null,"*Abmessungen in Schleifrichtung S und Richtung P, je nach dazugehöriger Abbildung"]
[null,"*Stückzahl dieser Tafel"]
[null,"*Wenn Sie eine ganze Reihe löschen möchten, klicken Sie auf \"Reihe Löschen\" und geben Sie die zu löschende Reihennummer ein.",null,null,"Richtung S = 3050 mm\n\nAbb. a Maximales Abmessungen Horizontal",null,null,null,null,null,null,null,null,null,"Richtung P = 1220 mm\n\nAbb. b Maximales Abmessungen Vertikal"]
[null,"*Drücken Sie auf \"Kontrollieren\" um Ihre Werte zu überprüfen"]
[]
[null,"Achtung: "]
[null,"*Die Ansicht der Tafel ist die Vorderseite"]
[]
[null,"Disclaimer Bestellformular Fassadentafeln:\n„Die Güter werden der vom Kunden eingegebenen Bestellung zufolge geliefert. Der Kunde nutzt dieses Bestellformular vollständig auf eigenes Risiko und ist selbst voll und ganz für die Richtigkeit der eingegebenen Daten verantwortlich. SVK nv kann nicht haftbar gemacht werden für Fehler bei den Abmessungen, der Oberfläche, der Anzahl der Tafeln, der Tafelnmarke, der Richtung der Scheuerlinien, Perforationsmuster oder andere Daten in Folge falscher Messung oder Eingabe durch den Kunden. SVK nv kann ebenfalls nicht haftbar gemacht werden, wenn die Bestellung, nicht, unvollständig oder inkorrekt bei SVK nv ankommt infolge technischer Probleme. Zum Schluss schließt SVK nv jegliche Haftung für jegliche Schäden aus, die aus der Nutzung dieses Bestellformulars entstehen. SVK nv behält sich das Recht vor, die Bestellung bei Zweifeln oder Unklarheiten abzulehnen. Das Aufgeben einer Bestellung über das vorliegende Bestellformular hat die bedingungslose Annahme dieser Klausel zur Folge.“"]